Workbook

Sheet DONNEES INFOGRAPHIES
D1: Synthèse DOMEX
T5: colonne EMPLOI | U5: colonne NAF | V5: colonne DPAE et OEE | W5: colonne EMPLOI
B6: BTP | L6: =VLOOKUP(E9,R:S,2,FALSE) -> ARA | P6: Aéronautique | Q6: =IF(P6=$B$6,1,0) -> 0 | R6: Ain | S6: 01 | T6: =HLOOKUP(R6,W$6:AI$7,2,FALSE) -> 2 | U6: =HLOOKUP(R6,$W$11:$AI$12,2,FALSE) -> 6 | V6: =HLOOKUP($S6,$W$15:$AI$16,2,FALSE) -> 2 | W6: ='Emploi (DOMEX)'!B1 -> Ain | X6: ='Emploi (DOMEX)'!C1 -> Allier | Y6: ='Emploi (DOMEX)'!D1 -> Ardèche | Z6: ='Emploi (DOMEX)'!E1 -> Cantal | AA6: ='Emploi (DOMEX)'!F1 -> Drôme | AB6: ='Emploi (DOMEX)'!G1 -> Haute-Loire | AC6: ='Emploi (DOMEX)'!H1 -> Haute-Savoie | AD6: ='Emploi (DOMEX)'!I1 -> Isère | AE6: ='Emploi (DOMEX)'!J1 -> Loire | AF6: ='Emploi (DOMEX)'!K1 -> Puy-de-Dôme | AG6: ='Emploi (DOMEX)'!L1 -> Rhône | AH6: ='Emploi (DOMEX)'!M1 -> Savoie | AI6: ='Emploi (DOMEX)'!N1 -> Auvergne-Rhône-Alpes
L7: =VLOOKUP(E9,R:T,3,FALSE) -> 14 | M7: colonne emploi | P7: Agriculture, Agroalimentaire, Forêt | Q7: 0 | R7: Allier | S7: 03 | T7: =HLOOKUP(R7,W$6:AI$7,2,FALSE) -> 3 | U7: =HLOOKUP(R7,$W$11:$AI$12,2,FALSE) -> 7 | V7: =HLOOKUP($S7,$W$15:$AI$16,2,FALSE) -> 3 | W7: 2 | X7: 3 | Y7: 4 | Z7: 5 | AA7: 6 | AB7: 7 | AC7: 8 | AD7: 9 | AE7: 10 | AF7: 11 | AG7: 12 | AH7: 13 | AI7: 14
L8: =VLOOKUP(E9,R:U,4,FALSE) -> 18 | M8: colonne NAF | P8: BTP | Q8: 1 | R8: Ardèche | S8: 07 | T8: 4 | U8: 8 | V8: 4
B9: Territoire : | E9: Auvergne-Rhône-Alpes | L9: =VLOOKUP(E9,R:V,5,FALSE) -> 14 | M9: colonne DPAE et OEE | P9: Energie | Q9: 0 | R9: Cantal | S9: 15 | T9: 5 | U9: 9 | V9: 5
P10: Industrie du futur, production industrielle | Q10: 0 | R10: Drôme | S10: 26 | T10: 6 | U10: 10 | V10: 6 | W10: colonne NAF
P11: Métier de bouche | Q11: 0 | R11: Haute-Loire | S11: 43 | T11: 7 | U11: =HLOOKUP(R11,$W$11:$AI$12,2,FALSE) -> 11 | V11: 9 | W11: ='Emploi (NAF)'!F1 -> Ain | X11: ='Emploi (NAF)'!G1 -> Allier | Y11: ='Emploi (NAF)'!H1 -> Ardèche | Z11: ='Emploi (NAF)'!I1 -> Cantal | AA11: ='Emploi (NAF)'!J1 -> Drôme | AB11: ='Emploi (NAF)'!K1 -> Haute-Loire | AC11: ='Emploi (NAF)'!L1 -> Haute-Savoie | AD11: ='Emploi (NAF)'!M1 -> Isère | AE11: ='Emploi (NAF)'!N1 -> Loire | AF11: ='Emploi (NAF)'!O1 -> Puy-de-Dôme | AG11: ='Emploi (NAF)'!P1 -> Rhône | AH11: ='Emploi (NAF)'!Q1 -> Savoie | AI11: ='Emploi (NAF)'!R1 -> Auvergne-Rhône-Alpes
B12: Les effectifs salariés 2023 | P12: Mobilité, systèmes de transport intelligents | Q12: 0 | R12: Haute-Savoie | S12: 74 | T12: 8 | U12: 12 | V12: 13 | W12: 6 | X12: 7 | Y12: 8 | Z12: 9 | AA12: 10 | AB12: 11 | AC12: 12 | AD12: 13 | AE12: 14 | AF12: 15 | AG12: 16 | AH12: 17 | AI12: 18
B13: (source ACOSS, secteur privé) | P13: Numérique | Q13: 0 | R13: Isère | S13: 38 | T13: 9 | U13: 13 | V13: 7
E14: Nombre d'établissements (2023) : | F14: =ROUND($AL14,IF($AL14>100,-2,-1)) -> 30800 | P14: Polymères | Q14: 0 | R14: Loire | S14: 42 | T14: 10 | U14: 14 | V14: 8 | W14: colonne DPAE et OEE | AL14: =VLOOKUP($B$6,'Emploi (DOMEX)'!$A$37:$N$51,$L$7,FALSE) -> 30759
E15: Effectifs salariés (2023) : | F15: 202900 | P15: Services à la personne | Q15: 0 | R15: Puy-de-Dôme | S15: 63 | T15: 11 | U15: 15 | V15: 10 | W15: ='DPAE (DOMEX)'!B1 -> 01 | X15: ='DPAE (DOMEX)'!C1 -> 03 | Y15: ='DPAE (DOMEX)'!D1 -> 07 | Z15: ='DPAE (DOMEX)'!E1 -> 15 | AA15: ='DPAE (DOMEX)'!F1 -> 26 | AB15: ='DPAE (DOMEX)'!G1 -> 38 | AC15: ='DPAE (DOMEX)'!H1 -> 42 | AD15: ='DPAE (DOMEX)'!I1 -> 43 | AE15: ='DPAE (DOMEX)'!J1 -> 63 | AF15: ='DPAE (DOMEX)'!K1 -> 69 | AG15: ='DPAE (DOMEX)'!L1 -> 73 | AH15: ='DPAE (DOMEX)'!M1 -> 74 | AI15: ='DPAE (DOMEX)'!N1 -> TOTAL | AL15: =VLOOKUP($B$6,'Emploi (DOMEX)'!$A$1:$N$15,$L$7,FALSE) -> 202945
E16: Part du DOMEX dans l'emploi total du territoire : | F16: =VLOOKUP($B$6,'Emploi (DOMEX)'!$A$19:$N$33,$L$7,FALSE) -> 0.08159924796 | P16: Sport, Montagne, Tourisme | Q16: 0 | R16: Rhône | S16: 69 | T16: 12 | U16: 16 | V16: 11 | W16: 2 | X16: 3 | Y16: 4 | Z16: 5 | AA16: 6 | AB16: 7 | AC16: 8 | AD16: 9 | AE16: 10 | AF16: 11 | AG16: 12 | AH16: 13 | AI16: 14
E17: Evolution annuelle de l'emploi (2023) : | F17: =(AL15-VLOOKUP($B$6,'Emploi (DOMEX)'!$A$55:$N$69,$L$7,FALSE))/VLOOKUP($B$6,'Emploi (DOMEX)'!$A$55:$N$69,$L$7,FALSE) -> -0.01193304641 | G17: -2450 | P17: Santé | Q17: 0 | R17: Savoie | S17: 73 | T17: 13 | U17: 17 | V17: 12 | AL17: =AL15-VLOOKUP($B$6,'Emploi (DOMEX)'!$A$55:$N$69,$L$7,FALSE) -> -2451
P18: Hors DOMEX | Q18: 0 | R18: Auvergne-Rhône-Alpes | S18: ARA | T18: =HLOOKUP(R18,W$6:AI$7,2,FALSE) -> 14 | U18: 18 | V18: =HLOOKUP("TOTAL",$W$15:$AI$16,2,FALSE) -> 14
B19: Les 10 principaux secteurs du DOMEX dans le territoire : | P19: TOTAL TOUS SECTEURS (secteur privé) | Q19: 0
B21: NAF | C21: Libellé NAF | G21: Effectifs (2023) | H21: %
B22: =IF('Emploi (NAF)'!$D2=1,'Emploi (NAF)'!A2,"") -> 4321A | C22: =IF('Emploi (NAF)'!$D2=1,'Emploi (NAF)'!B2,"") -> Travaux d'installation électrique dans tous locaux | G22: =ROUND($AL22,IF($AL22>100,-2,-1)) -> 26800 | H22: =IF(AL22="","",AL22/AL$15) -> 0.1322920003 | AL22: =IF('Emploi (NAF)'!$D2=1,'Emploi (NAF)'!E2,0) -> 26848
B23: =IF('Emploi (NAF)'!$D3=1,'Emploi (NAF)'!A3,"") -> 4399C | C23: =IF('Emploi (NAF)'!$D3=1,'Emploi (NAF)'!B3,"") -> Travaux de maçonnerie générale et gros oeuvre de bâtiment | G23: 25700 | H23: 0.1265810934 | AL23: =IF('Emploi (NAF)'!$D3=1,'Emploi (NAF)'!E3,0) -> 25689
B24: =IF('Emploi (NAF)'!$D4=1,'Emploi (NAF)'!A4,"") -> 4322B | C24: =IF('Emploi (NAF)'!$D4=1,'Emploi (NAF)'!B4,"") -> Travaux d'installation équipements thermiques et climatisation | G24: =IF(ROUND($AL24,IF($AL24>100,-2,-1))=0,"",ROUND($AL24,IF($AL24>100,-2,-1))) -> 16100 | H24: =IF(AL24=0,"",AL24/AL$15) -> 0.0791987977 | AL24: =IF('Emploi (NAF)'!$D4=1,'Emploi (NAF)'!E4,0) -> 16073
B25: =IF('Emploi (NAF)'!$D5=1,'Emploi (NAF)'!A5,"") -> 4332A | C25: =IF('Emploi (NAF)'!$D5=1,'Emploi (NAF)'!B5,"") -> Travaux de menuiserie bois et PVC | G25: =IF(ROUND($AL25,IF($AL25>100,-2,-1))=0,"",ROUND($AL25,IF($AL25>100,-2,-1))) -> 13000 | H25: =IF(AL25=0,"",AL25/AL$15) -> 0.06387444874 | AL25: =IF('Emploi (NAF)'!$D5=1,'Emploi (NAF)'!E5,0) -> 12963
B26: =IF('Emploi (NAF)'!$D6=1,'Emploi (NAF)'!A6,"") -> 4312A | C26: =IF('Emploi (NAF)'!$D6=1,'Emploi (NAF)'!B6,"") -> Travaux de terrassement courants et travaux préparatoires | G26: 11200 | H26: 0.05524156791 | AL26: =IF('Emploi (NAF)'!$D6=1,'Emploi (NAF)'!E6,0) -> 11211
B27: =IF('Emploi (NAF)'!$D7=1,'Emploi (NAF)'!A7,"") -> 4334Z | C27: =IF('Emploi (NAF)'!$D7=1,'Emploi (NAF)'!B7,"") -> Travaux de peinture et vitrerie | G27: 10300 | H27: 0.05073295721 | AL27: =IF('Emploi (NAF)'!$D7=1,'Emploi (NAF)'!E7,0) -> 10296
B28: =IF('Emploi (NAF)'!$D8=1,'Emploi (NAF)'!A8,"") -> 4322A | C28: =IF('Emploi (NAF)'!$D8=1,'Emploi (NAF)'!B8,"") -> Travaux d'installation d'eau et de gaz en tous locaux | G28: 9700 | H28: 0.04755475621 | AL28: =IF('Emploi (NAF)'!$D8=1,'Emploi (NAF)'!E8,0) -> 9651
B29: =IF('Emploi (NAF)'!$D9=1,'Emploi (NAF)'!A9,"") -> 4331Z | C29: =IF('Emploi (NAF)'!$D9=1,'Emploi (NAF)'!B9,"") -> Travaux de plâtrerie | G29: 9100 | H29: 0.04499248565 | AL29: =IF('Emploi (NAF)'!$D9=1,'Emploi (NAF)'!E9,0) -> 9131
B30: =IF('Emploi (NAF)'!$D10=1,'Emploi (NAF)'!A10,"") -> 4211Z | C30: =IF('Emploi (NAF)'!$D10=1,'Emploi (NAF)'!B10,"") -> Construction de routes et autoroutes | G30: 8000 | H30: 0.03936534529 | AL30: =IF('Emploi (NAF)'!$D10=1,'Emploi (NAF)'!E10,0) -> 7989
B31: =IF('Emploi (NAF)'!$D11=1,'Emploi (NAF)'!A11,"") -> 4332B | C31: =IF('Emploi (NAF)'!$D11=1,'Emploi (NAF)'!B11,"") -> Travaux de menuiserie métallique et serrurerie | G31: 7100 | H31: 0.03505383232 | AL31: =IF('Emploi (NAF)'!$D11=1,'Emploi (NAF)'!E11,0) -> 7114
B33: Les embauches sur les 12 derniers mois
B34: (DPAE, source ACOSS, cumul d'octobre 2023 à septembre 2024)
H36: Nombre d'embauches (tous types de contrats) : | I36: =IF(ROUND($AL36,IF($AL36>100,-2,-1))=0,"NC",ROUND($AL36,IF($AL36>100,-2,-1))) -> 83900 | AL36: =VLOOKUP($B$6,'DPAE (DOMEX)'!$A$1:$N$15,$L$9,FALSE) -> 83881
H37: dont contrats de plus d'un mois (hors intérim) : | I37: =IF(ROUND(AL37,IF(AL37>100,-2,-1))=0,"NC",ROUND(AL37,IF(AL37>100,-2,-1))) -> 75300 | AL37: =VLOOKUP($B$6,'DPAE (DOMEX)'!A19:N33,$L$9,FALSE) -> 75304
G38: =IF(AL36=0,"","(soit "&TEXT(AL37/AL36,"0%")&" des embauches du secteur)") -> (soit 90% des embauches du secteur)
H39: Part du DOMEX dans l'ensemble des embauches de plus d'un mois sur le territoire : | I39: =IF(AL37=0,"NC",AL37/VLOOKUP("TOTAL",'DPAE (DOMEX)'!A20:N34,$L$9,FALSE)) -> 0.05996854407
B41: Les offres d'emploi sur les 12 derniers mois
B42: (source France Travail, cumul d'octobre 2023 à septembre 2024)
H44: Nombre d'offres d'emploi enregistrées (tous types de contrats) : | I44: =ROUND(AL44,IF(AL44>100,-2,-1)) -> 48500 | AL44: =SUMIFS(SILOSTMAT!$C:$C,SILOSTMAT!$A:$A,IF($L$6="ARA","TOTAL",$L$6),SILOSTMAT!$M:$M,$B$6) -> 48529
H45: dont contrats durables (plus de 6 mois) : | I45: =ROUND(AL45,IF(AL45>100,-2,-1)) -> 27700 | AL45: =SUMIFS(SILOSTMAT!$D:$D,SILOSTMAT!$A:$A,IF($L$6="ARA","TOTAL",$L$6),SILOSTMAT!$M:$M,$B$6) -> 27697
H46: ="(soit "&TEXT(AL45/AL44,"0%")&" des offres du secteur)" -> (soit 57% des offres du secteur)
H47: dont missions en intérim : | I47: =ROUND(AL47,IF(AL47>100,-2,-1)) -> 18400 | AL47: =SUMIFS(SILOSTMAT!$E:$E,SILOSTMAT!$A:$A,IF($L$6="ARA","TOTAL",$L$6),SILOSTMAT!$M:$M,$B$6) -> 18392
H48: ="(soit "&TEXT(AL47/AL44,"0%")&" des offres du secteur)" -> (soit 38% des offres du secteur)
B50: Les 5 métiers les plus recherchés par les employeurs du DOMEX dans le territoire (parmi les offres enregistrées) :
B51: ROME | C51: Libellé ROME | G51: Nb Offres (cumul sur 12 mois)
B52: =IF('OEE (ROME)'!D2=1,'OEE (ROME)'!A2,"") -> F1602 | C52: =IF('OEE (ROME)'!D2=1,'OEE (ROME)'!B2,"") -> Électricité bâtiment | G52: =ROUND($AL52,IF($AL52>100,-2,-1)) -> 4600 | AL52: =IF('OEE (ROME)'!D2=1,'OEE (ROME)'!$E2,0) -> 4609
B53: =IF('OEE (ROME)'!D3=1,'OEE (ROME)'!A3,"") -> F1703 | C53: =IF('OEE (ROME)'!D3=1,'OEE (ROME)'!B3,"") -> Maçonnerie | G53: =ROUND($AL53,IF($AL53>100,-2,-1)) -> 4400 | AL53: =IF('OEE (ROME)'!D3=1,'OEE (ROME)'!$E3,0) -> 4375
B54: =IF('OEE (ROME)'!D4=1,'OEE (ROME)'!A4,"") -> F1704 | C54: =IF('OEE (ROME)'!D4=1,'OEE (ROME)'!B4,"") -> Préparation du gros oeuvre et des travaux publics | G54: 3700 | AL54: =IF('OEE (ROME)'!D4=1,'OEE (ROME)'!$E4,0) -> 3668
B55: =IF('OEE (ROME)'!D5=1,'OEE (ROME)'!A5,"") -> F1603 | C55: =IF('OEE (ROME)'!D5=1,'OEE (ROME)'!B5,"") -> Installation d'équipements sanitaires et thermiques | G55: 3600 | AL55: =IF('OEE (ROME)'!D5=1,'OEE (ROME)'!$E5,0) -> 3613
B56: =IF('OEE (ROME)'!D6=1,'OEE (ROME)'!A6,"") -> F1302 | C56: =IF('OEE (ROME)'!D6=1,'OEE (ROME)'!B6,"") -> Conduite d'engins de terrassement et de carrière | G56: 2600 | AL56: =IF('OEE (ROME)'!D6=1,'OEE (ROME)'!$E6,0) -> 2563
B58: Les demandeurs d'emploi inscrits à fin septembre 2024
B59: (catégorie A, source France Travail)
F60: DEFM A : | G60: =ROUND($AL60,IF($AL60>100,-2,-1)) -> 22100 | AL60: =SUMIFS(SILOSTMAT!$F:$F,SILOSTMAT!$A:$A,IF($L$6="ARA","TOTAL",$L$6),SILOSTMAT!$M:$M,$B$6) -> 22120
F61: dont catégorie A (%) : | G61: =SUMIFS(SILOSTMAT!$G:$G,SILOSTMAT!$A:$A,IF($L$6="ARA","TOTAL",$L$6),SILOSTMAT!$M:$M,$B$6)/AL60 -> 1
F62: dont Femmes (%) : | G62: =SUMIFS(SILOSTMAT!$I:$I,SILOSTMAT!$A:$A,IF($L$6="ARA","TOTAL",$L$6),SILOSTMAT!$M:$M,$B$6)/AL60 -> 0.06898734177
F63: dont Moins de 26 ans (%) : | G63: =SUMIFS(SILOSTMAT!$J:$J,SILOSTMAT!$A:$A,IF($L$6="ARA","TOTAL",$L$6),SILOSTMAT!$M:$M,$B$6)/AL60 -> 0.1603074141
F64: dont 50 ans et plus (%) : | G64: =SUMIFS(SILOSTMAT!$K:$K,SILOSTMAT!$A:$A,IF($L$6="ARA","TOTAL",$L$6),SILOSTMAT!$M:$M,$B$6)/AL60 -> 0.2470162749
F65: dont infra-bac (%) : | G65: =SUMIFS(SILOSTMAT!$H:$H,SILOSTMAT!$A:$A,IF($L$6="ARA","TOTAL",$L$6),SILOSTMAT!$M:$M,$B$6)/AL60 -> 0.7029385172
F66: dont éloignés durablement de l'emploi (%) : | G66: =SUMIFS(SILOSTMAT!$L:$L,SILOSTMAT!$A:$A,IF($L$6="ARA","TOTAL",$L$6),SILOSTMAT!$M:$M,$B$6)/AL60 -> 0.2438065099
B68: Les perspectives d'embauche par département :
F70: Nb intentions d'embauche 2024* | G70: Nb offres enregistrées au cours des 12 derniers mois
D71: 01 | E71: Ain | F71: =ROUND($AL71,IF($AL71>100,-2,-1)) -> 1800 | G71: =ROUND($AM71,IF($AM71>100,-2,-1)) -> 3400 | H71: 2 | AL71: =VLOOKUP($B$6,siloBMO!$A$1:$N$15,$H71,FALSE) -> 1785.400688 | AM71: =SUMIFS(SILOSTMAT!$C:$C,SILOSTMAT!$A:$A,$D71,SILOSTMAT!$M:$M,$B$6) -> 3367
D72: 03 | E72: Allier | F72: 1000 | G72: 1300 | H72: 3 | AL72: =VLOOKUP($B$6,siloBMO!$A$1:$N$15,$H72,FALSE) -> 985.1665152 | AM72: =SUMIFS(SILOSTMAT!$C:$C,SILOSTMAT!$A:$A,$D72,SILOSTMAT!$M:$M,$B$6) -> 1264
D73: 07 | E73: Ardèche | F73: 600 | G73: 1100 | H73: 4 | AL73: =VLOOKUP($B$6,siloBMO!$A$1:$N$15,$H73,FALSE) -> 587.9985264 | AM73: =SUMIFS(SILOSTMAT!$C:$C,SILOSTMAT!$A:$A,$D73,SILOSTMAT!$M:$M,$B$6) -> 1097
D74: 15 | E74: Cantal | F74: 500 | G74: 600 | H74: 5 | AL74: =VLOOKUP($B$6,siloBMO!$A$1:$N$15,$H74,FALSE) -> 518.899943 | AM74: =SUMIFS(SILOSTMAT!$C:$C,SILOSTMAT!$A:$A,$D74,SILOSTMAT!$M:$M,$B$6) -> 642
D75: 26 | E75: Drôme | F75: 1900 | G75: 3700 | H75: 6 | AL75: =VLOOKUP($B$6,siloBMO!$A$1:$N$15,$H75,FALSE) -> 1889.513593 | AM75: =SUMIFS(SILOSTMAT!$C:$C,SILOSTMAT!$A:$A,$D75,SILOSTMAT!$M:$M,$B$6) -> 3706
D76: 38 | E76: Isère | F76: 4500 | G76: 6600 | H76: 7 | AL76: =VLOOKUP($B$6,siloBMO!$A$1:$N$15,$H76,FALSE) -> 4454.492675 | AM76: =SUMIFS(SILOSTMAT!$C:$C,SILOSTMAT!$A:$A,$D76,SILOSTMAT!$M:$M,$B$6) -> 6625
D77: 42 | E77: Loire | F77: 1600 | G77: 3900 | H77: 8 | AL77: =VLOOKUP($B$6,siloBMO!$A$1:$N$15,$H77,FALSE) -> 1584.476028 | AM77: =SUMIFS(SILOSTMAT!$C:$C,SILOSTMAT!$A:$A,$D77,SILOSTMAT!$M:$M,$B$6) -> 3880
D78: 43 | E78: Haute-Loire | F78: 600 | G78: 1300 | H78: 9 | AL78: =VLOOKUP($B$6,siloBMO!$A$1:$N$15,$H78,FALSE) -> 563.2376588 | AM78: =SUMIFS(SILOSTMAT!$C:$C,SILOSTMAT!$A:$A,$D78,SILOSTMAT!$M:$M,$B$6) -> 1274
D79: 63 | E79: Puy-de-Dôme | F79: 1800 | G79: 3600 | H79: 10 | AL79: =VLOOKUP($B$6,siloBMO!$A$1:$N$15,$H79,FALSE) -> 1774.612704 | AM79: =SUMIFS(SILOSTMAT!$C:$C,SILOSTMAT!$A:$A,$D79,SILOSTMAT!$M:$M,$B$6) -> 3558
D80: 69 | E80: Rhône | F80: 6700 | G80: 12200 | H80: 11 | AL80: =VLOOKUP($B$6,siloBMO!$A$1:$N$15,$H80,FALSE) -> 6736.280416 | AM80: =SUMIFS(SILOSTMAT!$C:$C,SILOSTMAT!$A:$A,$D80,SILOSTMAT!$M:$M,$B$6) -> 12222
D81: 73 | E81: Savoie | F81: 2500 | G81: 4200 | H81: 12 | AL81: =VLOOKUP($B$6,siloBMO!$A$1:$N$15,$H81,FALSE) -> 2535.978316 | AM81: =SUMIFS(SILOSTMAT!$C:$C,SILOSTMAT!$A:$A,$D81,SILOSTMAT!$M:$M,$B$6) -> 4165
D82: 74 | E82: Haute-Savoie | F82: 3100 | G82: 6700 | H82: 13 | AL82: =VLOOKUP($B$6,siloBMO!$A$1:$N$15,$H82,FALSE) -> 3081.409168 | AM82: =SUMIFS(SILOSTMAT!$C:$C,SILOSTMAT!$A:$A,$D82,SILOSTMAT!$M:$M,$B$6) -> 6729
D83: TOTAL | E83: Auvergne-Rhône-Alpes | F83: 26500 | G83: 48500 | H83: 14 | AL83: =VLOOKUP($B$6,siloBMO!$A$1:$N$15,$H83,FALSE) -> 26497.46623 | AM83: =SUMIFS(SILOSTMAT!$C:$C,SILOSTMAT!$A:$A,$D83,SILOSTMAT!$M:$M,$B$6) -> 48529
E85: Taux de projets difficiles* : | F85: =VLOOKUP($B$6,siloBMO!$A$19:$N$33,$H$85,FALSE) -> 0.7173888151 | H85: =VLOOKUP(E9,E71:H83,4,FALSE) -> 14
D86: * source enquête BMO 2024
B90: Les entrées en formation sur les 12 derniers mois :
B91: (AES, cumul d'octobre 2023 à septembre 2024)
H93: Nombre d'entrées en formation (tous financeurs) : | I93: =SUMIFS('Formation (détail)'!E:E,'Formation (détail)'!D:D,1) -> 4587
B96: Les 5 formacodes les plus fréquents parmi les entrées en formation en lien avec le DOMEX :
B97: Formacode | C97: Libellé formation | G97: Nb entrées en formation (cumul sur 12 mois)
B98: =IF('Formation (détail)'!D2=1,'Formation (détail)'!A2,"") -> 31717 | C98: =IF('Formation (détail)'!D2=1,'Formation (détail)'!B2,"") -> engin chantier | G98: =ROUND($AL98,IF($AL98>100,-2,-1)) -> 800 | AL98: =IF('Formation (détail)'!D2=1,'Formation (détail)'!$E2,0) -> 827
B99: =IF('Formation (détail)'!D3=1,'Formation (détail)'!A3,"") -> 31709 | C99: =IF('Formation (détail)'!D3=1,'Formation (détail)'!B3,"") -> grue auxiliaire | G99: =ROUND($AL99,IF($AL99>100,-2,-1)) -> 400 | AL99: =IF('Formation (détail)'!D3=1,'Formation (détail)'!$E3,0) -> 437
B100: =IF('Formation (détail)'!D4=1,'Formation (détail)'!A4,"") -> 24066 | C100: =IF('Formation (détail)'!D4=1,'Formation (détail)'!B4,"") -> installation électrique | G100: 400 | AL100: =IF('Formation (détail)'!D4=1,'Formation (détail)'!$E4,0) -> 372
B101: =IF('Formation (détail)'!D5=1,'Formation (détail)'!A5,"") -> 22685 | C101: =IF('Formation (détail)'!D5=1,'Formation (détail)'!B5,"") -> installation thermique sanitaire | G101: 300 | AL101: =IF('Formation (détail)'!D5=1,'Formation (détail)'!$E5,0) -> 332
B102: =IF('Formation (détail)'!D6=1,'Formation (détail)'!A6,"") -> 24049 | C102: =IF('Formation (détail)'!D6=1,'Formation (détail)'!B6,"") -> habilitation électrique | G102: 200 | AL102: =IF('Formation (détail)'!D6=1,'Formation (détail)'!$E6,0) -> 202
B105: Le taux d'accès à l'emploi après une formation : | H105: =SUMIFS(siloFOR1!$D:$D,siloFOR1!$E:$E,$B$6,siloFOR1!$A:$A,$L$6,siloFOR1!$B:$B,"o")/SUMIFS(siloFOR1!$D:$D,siloFOR1!$E:$E,$B$6,siloFOR1!$A:$A,$L$6,siloFOR1!$B:$B,"t") -> 0.6312292359
B106: (FOR1 : taux d'accès à l'emploi (plus d'un mois, hors intérim) au cours des six mois qui suivent une sortie de formation (hors remises à niveau et savoirs de base) parmi les sortants de février 2023 à janvier 2024)

Sheet siloBMO (hidden)
A1: Intentions d'embauche (BMO 2024) | B1: 01 | C1: 03 | D1: 07 | E1: 15 | F1: 26 | G1: 38 | H1: 42 | I1: 43 | J1: 63 | K1: 69 | L1: 73 | M1: 74 | N1: TOTAL
A2: Aéronautique | B2: 469.1427471 | C2: 215.2268183 | D2: 79.87734979 | E2: 35.86812071 | F2: 512.8354082 | G2: 531.2397671 | H2: 774.1466451 | I2: 253.4492662 | J2: 528.9977796 | K2: 765.9860102 | L2: 336.7603426 | M2: 906.0711295 | N2: 5409.601384
A3: Agriculture, Agroalimentaire, Forêt | B3: 1674.668424 | C3: 747.2295453 | D3: 2176.950496 | E3: 431.565259 | F3: 5493.20606 | G3: 2498.75018 | H3: 2487.824491 | I3: 851.0796535 | J3: 1849.870168 | K3: 5677.649351 | L3: 1302.430918 | M3: 1398.255776 | N3: 26589.48032
A4: BTP | B4: 1785.400688 | C4: 985.1665152 | D4: 587.9985264 | E4: 518.899943 | F4: 1889.513593 | G4: 4454.492675 | H4: 1584.476028 | I4: 563.2376588 | J4: 1774.612704 | K4: 6736.280416 | L4: 2535.978316 | M4: 3081.409168 | N4: 26497.46623
A5: Energie | B5: 142.7193296 | C5: 27.16833753 | D5: 47.20713733 | E5: 7.014000412 | F5: 67.42534741 | G5: 179.3112635 | H5: 59.133672 | I5: 24.55525366 | J5: 77.63016941 | K5: 428.2190223 | L5: 112.6129471 | M5: 38.89375266 | N5: 1211.890233
A6: Industrie du futur, production industrielle | B6: 1257.835956 | C6: 442.5325709 | D6: 785.4742182 | E6: 118.1116271 | F6: 1032.902023 | G6: 2814.824564 | H6: 1337.477844 | I6: 280.5584492 | J6: 870.9869173 | K6: 3144.952878 | L6: 474.4157177 | M6: 1078.176536 | N6: 13638.2493
A7: Métier de bouche | B7: 299.6646341 | C7: 116.0259963 | D7: 406.5061442 | E7: 96.60601445 | F7: 533.6137806 | G7: 828.7887853 | H7: 568.4392653 | I7: 154.5454919 | J7: 507.943535 | K7: 1754.54029 | L7: 669.0914371 | M7: 612.9806921 | N7: 6548.746066
A8: Mobilité, systèmes de transport intelligents | B8: 1243.918497 | C8: 328.6932116 | D8: 164.2342975 | E8: 135.3565381 | F8: 1212.892699 | G8: 1722.564378 | H8: 806.2340584 | I8: 86.83647689 | J8: 778.1600267 | K8: 3898.642009 | L8: 678.6494051 | M8: 915.8959506 | N8: 11972.07755
A9: Numérique | B9: 127.726814 | C9: 12.7745237 | D9: 21.77252559 | E9: 2.727648155 | F9: 374.3543513 | G9: 1251.523122 | H9: 188.1808343 | I9: 38.10776929 | J9: 429.7761987 | K9: 6418.485354 | L9: 143.4879328 | M9: 471.7393179 | N9: 9480.656392
A10: Polymères | B10: 505.5690613 | C10: 17.25931321 | D10: 56.8838136 | E10: 43.37672548 | F10: 277.0215788 | G10: 249.4691549 | H10: 70.84548482 | I10: 193.7039322 | J10: 26.90338711 | K10: 171.3712749 | L10: 13.06108487 | M10: 37.08696664 | N10: 1662.551778
A11: Santé | B11: 490.1170422 | C11: 303.3477073 | D11: 671.9531632 | E11: 60.93106188 | F11: 679.2580734 | G11: 1321.385771 | H11: 469.8381192 | I11: 538.2908371 | J11: 871.9646514 | K11: 1639.348452 | L11: 409.3184092 | M11: 2030.599085 | N11: 9486.352372
A12: Services à la personne | B12: 384.9767136 | C12: 329.2167461 | D12: 241.8338461 | E12: 207.0973278 | F12: 872.0213661 | G12: 1336.098169 | H12: 702.5672167 | I12: 289.401558 | J12: 665.2925062 | K12: 3598.475921 | L12: 997.754489 | M12: 850.9557806 | N12: 10475.69164
A13: Sport, Montagne, Tourisme | B13: 2336.966416 | C13: 1907.216582 | D13: 3639.930766 | E13: 1837.100207 | F13: 3221.004546 | G13: 6409.485047 | H13: 2435.339602 | I13: 1261.620304 | J13: 3342.062538 | K13: 8131.744145 | L13: 10153.74444 | M13: 11399.62082 | N13: 56075.83541
A14: Hors DOMEX | B14: 7668.650042 | C14: 4555.101677 | D14: 5099.019712 | E14: 2334.395468 | F14: 9788.495005 | G14: 20542.86652 | H14: 9159.588522 | I14: 3052.483025 | J14: 11164.38354 | K14: 43427.54817 | L14: 11199.69199 | M14: 14664.04496 | N14: 142656.2686
A15: TOTAL | B15: 18387.35637 | C15: 9986.959545 | D15: 13979.64199 | E15: 5829.049942 | F15: 25954.54383 | G15: 44140.7994 | H15: 20644.09178 | I15: 7587.869676 | J15: 22888.58413 | K15: 85793.24329 | L15: 29026.99743 | M15: 37485.72994 | N15: 321704.8673
A19: Taux de difficulté à recruter (%, BMO 2024) | B19: =B1 -> 01 | C19: =C1 -> 03 | D19: 07 | E19: 15 | F19: 26 | G19: 38 | H19: 42 | I19: 43 | J19: 63 | K19: 69 | L19: 73 | M19: 74 | N19: TOTAL
A20: =A2 -> Aéronautique | B20: 0.666213488 | C20: 0.7585218606 | D20: 0.9333366734 | E20: 0.747282066 | F20: 0.5487983467 | G20: 0.7303837526 | H20: 0.758603089 | I20: 0.8407280457 | J20: 0.5603811642 | K20: 0.7683587058 | L20: 0.6365856102 | M20: 0.6551386025 | N20: 0.6913513038
A21: =A3 -> Agriculture, Agroalimentaire, Forêt | B21: 0.4978165824 | C21: 0.6362658064 | D21: 0.5404637755 | E21: 0.5294523754 | F21: 0.4159646567 | G21: 0.5062872061 | H21: 0.5449663992 | I21: 0.755505859 | J21: 0.5454390821 | K21: 0.4888425819 | L21: 0.6090885685 | M21: 0.6240241667 | N21: 0.5157423524
A22: BTP | B22: 0.8437601682 | C22: 0.7518503076 | D22: 0.6472723361 | E22: 0.8179363076 | F22: 0.6514396743 | G22: 0.6613650173 | H22: 0.7826822089 | I22: 0.8464496952 | J22: 0.715675881 | K22: 0.6254068828 | L22: 0.7788114942 | M22: 0.8453794192 | N22: 0.7173888151
A23: Energie | B23: 0.1852798314 | C23: 1 | D23: 0 | E23: 0.7048369395 | F23: 0 | G23: 0.2319426982 | H23: 0.5317371689 | I23: 0.7871826171 | J23: 0.4505759252 | K23: 0.4440327107 | L23: 0.2118396761 | M23: 0.6447739447 | N23: 0.3506696824
A24: Industrie du futur, production industrielle | B24: 0.5860763239 | C24: 0.5362376906 | D24: 0.2658705728 | E24: 0.4942174779 | F24: 0.713788526 | G24: 0.600378487 | H24: 0.7152829351 | I24: 0.7095608189 | J24: 0.5386084869 | K24: 0.7212620208 | L24: 0.6253691862 | M24: 0.6366421882 | N24: 0.6265638191
A25: Métier de bouche | B25: 0.2962638058 | C25: 0.7166807484 | D25: 0.2955376252 | E25: 0.6573217305 | F25: 0.6587038962 | G25: 0.3814408389 | H25: 0.3856315918 | I25: 0.4469753775 | J25: 0.7242005311 | K25: 0.4553152524 | L25: 0.41448013 | M25: 0.6275442188 | N25: 0.4795124909
A26: Mobilité, systèmes de transport intelligents | B26: 0.488078427 | C26: 0.7790595582 | D26: 0.5161300974 | E26: 0.5753074809 | F26: 0.3639869738 | G26: 0.5650343135 | H26: 0.684534384 | I26: 0.7703578297 | J26: 0.5435609756 | K26: 0.5726316362 | L26: 0.6346352592 | M26: 0.7280376191 | N26: 0.5690223088
A27: Numérique | B27: 0.5760390827 | C27: 0.1852667565 | D27: 0.05244030149 | E27: 1 | F27: 0.2288393368 | G27: 0.5367772339 | H27: 0.5612128996 | I27: 0.3895674903 | J27: 0.3968802829 | K27: 0.5350582512 | L27: 0.7282697981 | M27: 0.5962344874 | N27: 0.5219386865
A28: Polymères | B28: 0.6934519463 | C28: 0.7342626914 | D28: 0.2968122658 | E28: 0.06666666667 | F28: 0.9648296995 | G28: 0.3965956532 | H28: 0.2759054108 | I28: 0.7040070502 | J28: 0.2779845034 | K28: 0.7958283504 | L28: 0.5174296587 | M28: 0.9259344686 | N28: 0.6556957094
A29: Santé | B29: 0.8953279667 | C29: 0.3798969599 | D29: 0.8952912994 | E29: 1 | F29: 0.7421958976 | G29: 0.8039341746 | H29: 0.5529994424 | I29: 0.8505234969 | J29: 0.749512429 | K29: 0.5969465954 | L29: 0.7210675748 | M29: 0.9037137106 | N29: 0.7656323747
A30: Services à la personne | B30: 0.912126416 | C30: 0.9187060871 | D30: 0.867988903 | E30: 0.4061016585 | F30: 0.8823010803 | G30: 0.7827483025 | H30: 0.7916826664 | I30: 0.7606982074 | J30: 0.8754515928 | K30: 0.8255830947 | L30: 0.478300978 | M30: 0.9603994234 | N30: 0.8006097326
A31: Sport, Montagne, Tourisme | B31: 0.564209805 | C31: 0.4136473026 | D31: 0.542524465 | E31: 0.5726027612 | F31: 0.593423922 | G31: 0.5999204201 | H31: 0.4903146599 | I31: 0.4980386854 | J31: 0.5448274185 | K31: 0.5750213628 | L31: 0.4481325079 | M31: 0.5959718085 | N31: 0.5448693598
A32: Hors DOMEX | B32: 0.5892036413 | C32: 0.4624754472 | D32: 0.5116563271 | E32: 0.5765696615 | F32: 0.487764984 | G32: 0.5237535512 | H32: 0.5932123833 | I32: 0.5939417094 | J32: 0.5035257909 | K32: 0.5264062975 | L32: 0.5133591802 | M32: 0.6086943274 | N32: 0.5363791269
A33: TOTAL | B33: 0.6071171658 | C33: 0.531829161 | D33: 0.5335383272 | E33: 0.5889358862 | F33: 0.5255322957 | G33: 0.5687159168 | H33: 0.6060457664 | I33: 0.6533756516 | J33: 0.5560343734 | K33: 0.5609221377 | L33: 0.5234643865 | M33: 0.6541634828 | N33: 0.572404555

Sheet Emploi (DOMEX) (hidden)
A1: Effectifs salariés 2023 (secteur privé) | B1: Ain | C1: Allier | D1: Ardèche | E1: Cantal | F1: Drôme | G1: Haute-Loire | H1: Haute-Savoie | I1: Isère | J1: Loire | K1: Puy-de-Dôme | L1: Rhône | M1: Savoie | N1: Auvergne-Rhône-Alpes
A2: Aéronautique | B2: =SUMIFS(siloEMPLOI!$H:$H,siloEMPLOI!$A:$A,B$1,siloEMPLOI!$E:$E,$A2) -> 6631 | C2: =SUMIFS(siloEMPLOI!$H:$H,siloEMPLOI!$A:$A,C$1,siloEMPLOI!$E:$E,$A2) -> 4561 | D2: =SUMIFS(siloEMPLOI!$H:$H,siloEMPLOI!$A:$A,D$1,siloEMPLOI!$E:$E,$A2) -> 1045 | E2: =SUMIFS(siloEMPLOI!$H:$H,siloEMPLOI!$A:$A,E$1,siloEMPLOI!$E:$E,$A2) -> 254 | F2: =SUMIFS(siloEMPLOI!$H:$H,siloEMPLOI!$A:$A,F$1,siloEMPLOI!$E:$E,$A2) -> 7875 | G2: =SUMIFS(siloEMPLOI!$H:$H,siloEMPLOI!$A:$A,G$1,siloEMPLOI!$E:$E,$A2) -> 2334 | H2: =SUMIFS(siloEMPLOI!$H:$H,siloEMPLOI!$A:$A,H$1,siloEMPLOI!$E:$E,$A2) -> 13387 | I2: =SUMIFS(siloEMPLOI!$H:$H,siloEMPLOI!$A:$A,I$1,siloEMPLOI!$E:$E,$A2) -> 10039 | J2: =SUMIFS(siloEMPLOI!$H:$H,siloEMPLOI!$A:$A,J$1,siloEMPLOI!$E:$E,$A2) -> 11177 | K2: =SUMIFS(siloEMPLOI!$H:$H,siloEMPLOI!$A:$A,K$1,siloEMPLOI!$E:$E,$A2) -> 8502 | L2: =SUMIFS(siloEMPLOI!$H:$H,siloEMPLOI!$A:$A,L$1,siloEMPLOI!$E:$E,$A2) -> 12774 | M2: =SUMIFS(siloEMPLOI!$H:$H,siloEMPLOI!$A:$A,M$1,siloEMPLOI!$E:$E,$A2) -> 5849 | N2: =SUMIFS(siloEMPLOI!$H:$H,siloEMPLOI!$E:$E,$A2) -> 84428
A3: Agriculture, Agroalimentaire, Forêt | B3: =SUMIFS(siloEMPLOI!$H:$H,siloEMPLOI!$A:$A,B$1,siloEMPLOI!$E:$E,$A3) -> 4339 | C3: =SUMIFS(siloEMPLOI!$H:$H,siloEMPLOI!$A:$A,C$1,siloEMPLOI!$E:$E,$A3) -> 2576 | D3: =SUMIFS(siloEMPLOI!$H:$H,siloEMPLOI!$A:$A,D$1,siloEMPLOI!$E:$E,$A3) -> 2764 | E3: =SUMIFS(siloEMPLOI!$H:$H,siloEMPLOI!$A:$A,E$1,siloEMPLOI!$E:$E,$A3) -> 1175 | F3: =SUMIFS(siloEMPLOI!$H:$H,siloEMPLOI!$A:$A,F$1,siloEMPLOI!$E:$E,$A3) -> 7980 | G3: =SUMIFS(siloEMPLOI!$H:$H,siloEMPLOI!$A:$A,G$1,siloEMPLOI!$E:$E,$A3) -> 2521 | H3: =SUMIFS(siloEMPLOI!$H:$H,siloEMPLOI!$A:$A,H$1,siloEMPLOI!$E:$E,$A3) -> 5006 | I3: =SUMIFS(siloEMPLOI!$H:$H,siloEMPLOI!$A:$A,I$1,siloEMPLOI!$E:$E,$A3) -> 6608 | J3: =SUMIFS(siloEMPLOI!$H:$H,siloEMPLOI!$A:$A,J$1,siloEMPLOI!$E:$E,$A3) -> 8151 | K3: =SUMIFS(siloEMPLOI!$H:$H,siloEMPLOI!$A:$A,K$1,siloEMPLOI!$E:$E,$A3) -> 4311 | L3: =SUMIFS(siloEMPLOI!$H:$H,siloEMPLOI!$A:$A,L$1,siloEMPLOI!$E:$E,$A3) -> 7407 | M3: =SUMIFS(siloEMPLOI!$H:$H,siloEMPLOI!$A:$A,M$1,siloEMPLOI!$E:$E,$A3) -> 3203 | N3: =SUMIFS(siloEMPLOI!$H:$H,siloEMPLOI!$E:$E,$A3) -> 56041
A4: BTP | B4: =SUMIFS(siloEMPLOI!$H:$H,siloEMPLOI!$A:$A,B$1,siloEMPLOI!$E:$E,$A4) -> 14086 | C4: =SUMIFS(siloEMPLOI!$H:$H,siloEMPLOI!$A:$A,C$1,siloEMPLOI!$E:$E,$A4) -> 6500 | D4: =SUMIFS(siloEMPLOI!$H:$H,siloEMPLOI!$A:$A,D$1,siloEMPLOI!$E:$E,$A4) -> 6567 | E4: =SUMIFS(siloEMPLOI!$H:$H,siloEMPLOI!$A:$A,E$1,siloEMPLOI!$E:$E,$A4) -> 3592 | F4: =SUMIFS(siloEMPLOI!$H:$H,siloEMPLOI!$A:$A,F$1,siloEMPLOI!$E:$E,$A4) -> 13793 | G4: =SUMIFS(siloEMPLOI!$H:$H,siloEMPLOI!$A:$A,G$1,siloEMPLOI!$E:$E,$A4) -> 5170 | H4: =SUMIFS(siloEMPLOI!$H:$H,siloEMPLOI!$A:$A,H$1,siloEMPLOI!$E:$E,$A4) -> 20077 | I4: =SUMIFS(siloEMPLOI!$H:$H,siloEMPLOI!$A:$A,I$1,siloEMPLOI!$E:$E,$A4) -> 30868 | J4: =SUMIFS(siloEMPLOI!$H:$H,siloEMPLOI!$A:$A,J$1,siloEMPLOI!$E:$E,$A4) -> 17755 | K4: =SUMIFS(siloEMPLOI!$H:$H,siloEMPLOI!$A:$A,K$1,siloEMPLOI!$E:$E,$A4) -> 14872 | L4: =SUMIFS(siloEMPLOI!$H:$H,siloEMPLOI!$A:$A,L$1,siloEMPLOI!$E:$E,$A4) -> 55283 | M4: =SUMIFS(siloEMPLOI!$H:$H,siloEMPLOI!$A:$A,M$1,siloEMPLOI!$E:$E,$A4) -> 14382 | N4: =SUMIFS(siloEMPLOI!$H:$H,siloEMPLOI!$E:$E,$A4) -> 202945
A5: Energie | B5: =SUMIFS(siloEMPLOI!$H:$H,siloEMPLOI!$A:$A,B$1,siloEMPLOI!$E:$E,$A5) -> 2936 | C5: =SUMIFS(siloEMPLOI!$H:$H,siloEMPLOI!$A:$A,C$1,siloEMPLOI!$E:$E,$A5) -> 389 | D5: =SUMIFS(siloEMPLOI!$H:$H,siloEMPLOI!$A:$A,D$1,siloEMPLOI!$E:$E,$A5) -> 1787 | E5: =SUMIFS(siloEMPLOI!$H:$H,siloEMPLOI!$A:$A,E$1,siloEMPLOI!$E:$E,$A5) -> 285 | F5: =SUMIFS(siloEMPLOI!$H:$H,siloEMPLOI!$A:$A,F$1,siloEMPLOI!$E:$E,$A5) -> 3069 | G5: =SUMIFS(siloEMPLOI!$H:$H,siloEMPLOI!$A:$A,G$1,siloEMPLOI!$E:$E,$A5) -> 330 | H5: =SUMIFS(siloEMPLOI!$H:$H,siloEMPLOI!$A:$A,H$1,siloEMPLOI!$E:$E,$A5) -> 1018 | I5: =SUMIFS(siloEMPLOI!$H:$H,siloEMPLOI!$A:$A,I$1,siloEMPLOI!$E:$E,$A5) -> 4867 | J5: =SUMIFS(siloEMPLOI!$H:$H,siloEMPLOI!$A:$A,J$1,siloEMPLOI!$E:$E,$A5) -> 1086 | K5: =SUMIFS(siloEMPLOI!$H:$H,siloEMPLOI!$A:$A,K$1,siloEMPLOI!$E:$E,$A5) -> 1659 | L5: =SUMIFS(siloEMPLOI!$H:$H,siloEMPLOI!$A:$A,L$1,siloEMPLOI!$E:$E,$A5) -> 11017 | M5: =SUMIFS(siloEMPLOI!$H:$H,siloEMPLOI!$A:$A,M$1,siloEMPLOI!$E:$E,$A5) -> 2319 | N5: =SUMIFS(siloEMPLOI!$H:$H,siloEMPLOI!$E:$E,$A5) -> 30762
A6: Industrie du futur, production industrielle | B6: =SUMIFS(siloEMPLOI!$H:$H,siloEMPLOI!$A:$A,B$1,siloEMPLOI!$E:$E,$A6) -> 20484 | C6: =SUMIFS(siloEMPLOI!$H:$H,siloEMPLOI!$A:$A,C$1,siloEMPLOI!$E:$E,$A6) -> 8097 | D6: =SUMIFS(siloEMPLOI!$H:$H,siloEMPLOI!$A:$A,D$1,siloEMPLOI!$E:$E,$A6) -> 11191 | E6: =SUMIFS(siloEMPLOI!$H:$H,siloEMPLOI!$A:$A,E$1,siloEMPLOI!$E:$E,$A6) -> 2192 | F6: =SUMIFS(siloEMPLOI!$H:$H,siloEMPLOI!$A:$A,F$1,siloEMPLOI!$E:$E,$A6) -> 15709 | G6: =SUMIFS(siloEMPLOI!$H:$H,siloEMPLOI!$A:$A,G$1,siloEMPLOI!$E:$E,$A6) -> 5331 | H6: =SUMIFS(siloEMPLOI!$H:$H,siloEMPLOI!$A:$A,H$1,siloEMPLOI!$E:$E,$A6) -> 21433 | I6: =SUMIFS(siloEMPLOI!$H:$H,siloEMPLOI!$A:$A,I$1,siloEMPLOI!$E:$E,$A6) -> 55384 | J6: =SUMIFS(siloEMPLOI!$H:$H,siloEMPLOI!$A:$A,J$1,siloEMPLOI!$E:$E,$A6) -> 23345 | K6: =SUMIFS(siloEMPLOI!$H:$H,siloEMPLOI!$A:$A,K$1,siloEMPLOI!$E:$E,$A6) -> 22693 | L6: =SUMIFS(siloEMPLOI!$H:$H,siloEMPLOI!$A:$A,L$1,siloEMPLOI!$E:$E,$A6) -> 68304 | M6: =SUMIFS(siloEMPLOI!$H:$H,siloEMPLOI!$A:$A,M$1,siloEMPLOI!$E:$E,$A6) -> 8339 | N6: =SUMIFS(siloEMPLOI!$H:$H,siloEMPLOI!$E:$E,$A6) -> 262502
A7: Métier de bouche | B7: =SUMIFS(siloEMPLOI!$H:$H,siloEMPLOI!$A:$A,B$1,siloEMPLOI!$E:$E,$A7) -> 3437 | C7: =SUMIFS(siloEMPLOI!$H:$H,siloEMPLOI!$A:$A,C$1,siloEMPLOI!$E:$E,$A7) -> 1695 | D7: =SUMIFS(siloEMPLOI!$H:$H,siloEMPLOI!$A:$A,D$1,siloEMPLOI!$E:$E,$A7) -> 1819 | E7: =SUMIFS(siloEMPLOI!$H:$H,siloEMPLOI!$A:$A,E$1,siloEMPLOI!$E:$E,$A7) -> 830 | F7: =SUMIFS(siloEMPLOI!$H:$H,siloEMPLOI!$A:$A,F$1,siloEMPLOI!$E:$E,$A7) -> 2892 | G7: =SUMIFS(siloEMPLOI!$H:$H,siloEMPLOI!$A:$A,G$1,siloEMPLOI!$E:$E,$A7) -> 1252 | H7: =SUMIFS(siloEMPLOI!$H:$H,siloEMPLOI!$A:$A,H$1,siloEMPLOI!$E:$E,$A7) -> 6114 | I7: =SUMIFS(siloEMPLOI!$H:$H,siloEMPLOI!$A:$A,I$1,siloEMPLOI!$E:$E,$A7) -> 6633 | J7: =SUMIFS(siloEMPLOI!$H:$H,siloEMPLOI!$A:$A,J$1,siloEMPLOI!$E:$E,$A7) -> 4326 | K7: =SUMIFS(siloEMPLOI!$H:$H,siloEMPLOI!$A:$A,K$1,siloEMPLOI!$E:$E,$A7) -> 3399 | L7: =SUMIFS(siloEMPLOI!$H:$H,siloEMPLOI!$A:$A,L$1,siloEMPLOI!$E:$E,$A7) -> 11796 | M7: =SUMIFS(siloEMPLOI!$H:$H,siloEMPLOI!$A:$A,M$1,siloEMPLOI!$E:$E,$A7) -> 3160 | N7: =SUMIFS(siloEMPLOI!$H:$H,siloEMPLOI!$E:$E,$A7) -> 47353
A8: Mobilité, systèmes de transport intelligents | B8: =SUMIFS(siloEMPLOI!$H:$H,siloEMPLOI!$A:$A,B$1,siloEMPLOI!$E:$E,$A8) -> 11115 | C8: =SUMIFS(siloEMPLOI!$H:$H,siloEMPLOI!$A:$A,C$1,siloEMPLOI!$E:$E,$A8) -> 4203 | D8: =SUMIFS(siloEMPLOI!$H:$H,siloEMPLOI!$A:$A,D$1,siloEMPLOI!$E:$E,$A8) -> 2763 | E8: =SUMIFS(siloEMPLOI!$H:$H,siloEMPLOI!$A:$A,E$1,siloEMPLOI!$E:$E,$A8) -> 1964 | F8: =SUMIFS(siloEMPLOI!$H:$H,siloEMPLOI!$A:$A,F$1,siloEMPLOI!$E:$E,$A8) -> 12006 | G8: =SUMIFS(siloEMPLOI!$H:$H,siloEMPLOI!$A:$A,G$1,siloEMPLOI!$E:$E,$A8) -> 2148 | H8: =SUMIFS(siloEMPLOI!$H:$H,siloEMPLOI!$A:$A,H$1,siloEMPLOI!$E:$E,$A8) -> 8663 | I8: =SUMIFS(siloEMPLOI!$H:$H,siloEMPLOI!$A:$A,I$1,siloEMPLOI!$E:$E,$A8) -> 21546 | J8: =SUMIFS(siloEMPLOI!$H:$H,siloEMPLOI!$A:$A,J$1,siloEMPLOI!$E:$E,$A8) -> 10728 | K8: =SUMIFS(siloEMPLOI!$H:$H,siloEMPLOI!$A:$A,K$1,siloEMPLOI!$E:$E,$A8) -> 12557 | L8: =SUMIFS(siloEMPLOI!$H:$H,siloEMPLOI!$A:$A,L$1,siloEMPLOI!$E:$E,$A8) -> 48893 | M8: =SUMIFS(siloEMPLOI!$H:$H,siloEMPLOI!$A:$A,M$1,siloEMPLOI!$E:$E,$A8) -> 8078 | N8: =SUMIFS(siloEMPLOI!$H:$H,siloEMPLOI!$E:$E,$A8) -> 144664
A9: Numérique | B9: =SUMIFS(siloEMPLOI!$H:$H,siloEMPLOI!$A:$A,B$1,siloEMPLOI!$E:$E,$A9) -> 1377 | C9: =SUMIFS(siloEMPLOI!$H:$H,siloEMPLOI!$A:$A,C$1,siloEMPLOI!$E:$E,$A9) -> 1298 | D9: =SUMIFS(siloEMPLOI!$H:$H,siloEMPLOI!$A:$A,D$1,siloEMPLOI!$E:$E,$A9) -> 946 | E9: =SUMIFS(siloEMPLOI!$H:$H,siloEMPLOI!$A:$A,E$1,siloEMPLOI!$E:$E,$A9) -> 283 | F9: =SUMIFS(siloEMPLOI!$H:$H,siloEMPLOI!$A:$A,F$1,siloEMPLOI!$E:$E,$A9) -> 2945 | G9: =SUMIFS(siloEMPLOI!$H:$H,siloEMPLOI!$A:$A,G$1,siloEMPLOI!$E:$E,$A9) -> 566 | H9: =SUMIFS(siloEMPLOI!$H:$H,siloEMPLOI!$A:$A,H$1,siloEMPLOI!$E:$E,$A9) -> 4493 | I9: =SUMIFS(siloEMPLOI!$H:$H,siloEMPLOI!$A:$A,I$1,siloEMPLOI!$E:$E,$A9) -> 17355 | J9: =SUMIFS(siloEMPLOI!$H:$H,siloEMPLOI!$A:$A,J$1,siloEMPLOI!$E:$E,$A9) -> 3452 | K9: =SUMIFS(siloEMPLOI!$H:$H,siloEMPLOI!$A:$A,K$1,siloEMPLOI!$E:$E,$A9) -> 4864 | L9: =SUMIFS(siloEMPLOI!$H:$H,siloEMPLOI!$A:$A,L$1,siloEMPLOI!$E:$E,$A9) -> 60266 | M9: =SUMIFS(siloEMPLOI!$H:$H,siloEMPLOI!$A:$A,M$1,siloEMPLOI!$E:$E,$A9) -> 2337 | N9: =SUMIFS(siloEMPLOI!$H:$H,siloEMPLOI!$E:$E,$A9) -> 100182
A10: Polymères | B10: =SUMIFS(siloEMPLOI!$H:$H,siloEMPLOI!$A:$A,B$1,siloEMPLOI!$E:$E,$A10) -> 7268 | C10: =SUMIFS(siloEMPLOI!$H:$H,siloEMPLOI!$A:$A,C$1,siloEMPLOI!$E:$E,$A10) -> 814 | D10: =SUMIFS(siloEMPLOI!$H:$H,siloEMPLOI!$A:$A,D$1,siloEMPLOI!$E:$E,$A10) -> 422 | E10: =SUMIFS(siloEMPLOI!$H:$H,siloEMPLOI!$A:$A,E$1,siloEMPLOI!$E:$E,$A10) -> 516 | F10: =SUMIFS(siloEMPLOI!$H:$H,siloEMPLOI!$A:$A,F$1,siloEMPLOI!$E:$E,$A10) -> 2186 | G10: =SUMIFS(siloEMPLOI!$H:$H,siloEMPLOI!$A:$A,G$1,siloEMPLOI!$E:$E,$A10) -> 2816 | H10: =SUMIFS(siloEMPLOI!$H:$H,siloEMPLOI!$A:$A,H$1,siloEMPLOI!$E:$E,$A10) -> 1069 | I10: =SUMIFS(siloEMPLOI!$H:$H,siloEMPLOI!$A:$A,I$1,siloEMPLOI!$E:$E,$A10) -> 3093 | J10: =SUMIFS(siloEMPLOI!$H:$H,siloEMPLOI!$A:$A,J$1,siloEMPLOI!$E:$E,$A10) -> 1372 | K10: =SUMIFS(siloEMPLOI!$H:$H,siloEMPLOI!$A:$A,K$1,siloEMPLOI!$E:$E,$A10) -> 1214 | L10: =SUMIFS(siloEMPLOI!$H:$H,siloEMPLOI!$A:$A,L$1,siloEMPLOI!$E:$E,$A10) -> 3265 | M10: =SUMIFS(siloEMPLOI!$H:$H,siloEMPLOI!$A:$A,M$1,siloEMPLOI!$E:$E,$A10) -> 326 | N10: =SUMIFS(siloEMPLOI!$H:$H,siloEMPLOI!$E:$E,$A10) -> 24361
A11: Services à la personne | B11: =SUMIFS(siloEMPLOI!$H:$H,siloEMPLOI!$A:$A,B$1,siloEMPLOI!$E:$E,$A11) -> 2860 | C11: =SUMIFS(siloEMPLOI!$H:$H,siloEMPLOI!$A:$A,C$1,siloEMPLOI!$E:$E,$A11) -> 1604 | D11: =SUMIFS(siloEMPLOI!$H:$H,siloEMPLOI!$A:$A,D$1,siloEMPLOI!$E:$E,$A11) -> 2158 | E11: =SUMIFS(siloEMPLOI!$H:$H,siloEMPLOI!$A:$A,E$1,siloEMPLOI!$E:$E,$A11) -> 755 | F11: =SUMIFS(siloEMPLOI!$H:$H,siloEMPLOI!$A:$A,F$1,siloEMPLOI!$E:$E,$A11) -> 3662 | G11: =SUMIFS(siloEMPLOI!$H:$H,siloEMPLOI!$A:$A,G$1,siloEMPLOI!$E:$E,$A11) -> 1547 | H11: =SUMIFS(siloEMPLOI!$H:$H,siloEMPLOI!$A:$A,H$1,siloEMPLOI!$E:$E,$A11) -> 4010 | I11: =SUMIFS(siloEMPLOI!$H:$H,siloEMPLOI!$A:$A,I$1,siloEMPLOI!$E:$E,$A11) -> 7386 | J11: =SUMIFS(siloEMPLOI!$H:$H,siloEMPLOI!$A:$A,J$1,siloEMPLOI!$E:$E,$A11) -> 5425 | K11: =SUMIFS(siloEMPLOI!$H:$H,siloEMPLOI!$A:$A,K$1,siloEMPLOI!$E:$E,$A11) -> 2526 | L11: =SUMIFS(siloEMPLOI!$H:$H,siloEMPLOI!$A:$A,L$1,siloEMPLOI!$E:$E,$A11) -> 13672 | M11: =SUMIFS(siloEMPLOI!$H:$H,siloEMPLOI!$A:$A,M$1,siloEMPLOI!$E:$E,$A11) -> 1628 | N11: =SUMIFS(siloEMPLOI!$H:$H,siloEMPLOI!$E:$E,$A11) -> 47233
A12: Sport, Montagne, Tourisme | B12: =SUMIFS(siloEMPLOI!$H:$H,siloEMPLOI!$A:$A,B$1,siloEMPLOI!$E:$E,$A12) -> 9965 | C12: =SUMIFS(siloEMPLOI!$H:$H,siloEMPLOI!$A:$A,C$1,siloEMPLOI!$E:$E,$A12) -> 5238 | D12: =SUMIFS(siloEMPLOI!$H:$H,siloEMPLOI!$A:$A,D$1,siloEMPLOI!$E:$E,$A12) -> 4408 | E12: =SUMIFS(siloEMPLOI!$H:$H,siloEMPLOI!$A:$A,E$1,siloEMPLOI!$E:$E,$A12) -> 2432 | F12: =SUMIFS(siloEMPLOI!$H:$H,siloEMPLOI!$A:$A,F$1,siloEMPLOI!$E:$E,$A12) -> 9749 | G12: =SUMIFS(siloEMPLOI!$H:$H,siloEMPLOI!$A:$A,G$1,siloEMPLOI!$E:$E,$A12) -> 3043 | H12: =SUMIFS(siloEMPLOI!$H:$H,siloEMPLOI!$A:$A,H$1,siloEMPLOI!$E:$E,$A12) -> 37550 | I12: =SUMIFS(siloEMPLOI!$H:$H,siloEMPLOI!$A:$A,I$1,siloEMPLOI!$E:$E,$A12) -> 26872 | J12: =SUMIFS(siloEMPLOI!$H:$H,siloEMPLOI!$A:$A,J$1,siloEMPLOI!$E:$E,$A12) -> 11498 | K12: =SUMIFS(siloEMPLOI!$H:$H,siloEMPLOI!$A:$A,K$1,siloEMPLOI!$E:$E,$A12) -> 14047 | L12: =SUMIFS(siloEMPLOI!$H:$H,siloEMPLOI!$A:$A,L$1,siloEMPLOI!$E:$E,$A12) -> 56264 | M12: =SUMIFS(siloEMPLOI!$H:$H,siloEMPLOI!$A:$A,M$1,siloEMPLOI!$E:$E,$A12) -> 42742 | N12: =SUMIFS(siloEMPLOI!$H:$H,siloEMPLOI!$E:$E,$A12) -> 223808
A13: Santé | B13: =SUMIFS(siloEMPLOI!$H:$H,siloEMPLOI!$A:$A,B$1,siloEMPLOI!$E:$E,$A13) -> 4686 | C13: =SUMIFS(siloEMPLOI!$H:$H,siloEMPLOI!$A:$A,C$1,siloEMPLOI!$E:$E,$A13) -> 1887 | D13: =SUMIFS(siloEMPLOI!$H:$H,siloEMPLOI!$A:$A,D$1,siloEMPLOI!$E:$E,$A13) -> 2811 | E13: =SUMIFS(siloEMPLOI!$H:$H,siloEMPLOI!$A:$A,E$1,siloEMPLOI!$E:$E,$A13) -> 1245 | F13: =SUMIFS(siloEMPLOI!$H:$H,siloEMPLOI!$A:$A,F$1,siloEMPLOI!$E:$E,$A13) -> 4033 | G13: =SUMIFS(siloEMPLOI!$H:$H,siloEMPLOI!$A:$A,G$1,siloEMPLOI!$E:$E,$A13) -> 2392 | H13: =SUMIFS(siloEMPLOI!$H:$H,siloEMPLOI!$A:$A,H$1,siloEMPLOI!$E:$E,$A13) -> 6060 | I13: =SUMIFS(siloEMPLOI!$H:$H,siloEMPLOI!$A:$A,I$1,siloEMPLOI!$E:$E,$A13) -> 10029 | J13: =SUMIFS(siloEMPLOI!$H:$H,siloEMPLOI!$A:$A,J$1,siloEMPLOI!$E:$E,$A13) -> 6056 | K13: =SUMIFS(siloEMPLOI!$H:$H,siloEMPLOI!$A:$A,K$1,siloEMPLOI!$E:$E,$A13) -> 7286 | L13: =SUMIFS(siloEMPLOI!$H:$H,siloEMPLOI!$A:$A,L$1,siloEMPLOI!$E:$E,$A13) -> 24272 | M13: =SUMIFS(siloEMPLOI!$H:$H,siloEMPLOI!$A:$A,M$1,siloEMPLOI!$E:$E,$A13) -> 2829 | N13: =SUMIFS(siloEMPLOI!$H:$H,siloEMPLOI!$E:$E,$A13) -> 73586
A14: Hors DOMEX | B14: =SUMIFS(siloEMPLOI!$H:$H,siloEMPLOI!$A:$A,B$1,siloEMPLOI!$E:$E,$A14) -> 0 | C14: =SUMIFS(siloEMPLOI!$H:$H,siloEMPLOI!$A:$A,C$1,siloEMPLOI!$E:$E,$A14) -> 0 | D14: =SUMIFS(siloEMPLOI!$H:$H,siloEMPLOI!$A:$A,D$1,siloEMPLOI!$E:$E,$A14) -> 0 | E14: =SUMIFS(siloEMPLOI!$H:$H,siloEMPLOI!$A:$A,E$1,siloEMPLOI!$E:$E,$A14) -> 0 | F14: =SUMIFS(siloEMPLOI!$H:$H,siloEMPLOI!$A:$A,F$1,siloEMPLOI!$E:$E,$A14) -> 0 | G14: =SUMIFS(siloEMPLOI!$H:$H,siloEMPLOI!$A:$A,G$1,siloEMPLOI!$E:$E,$A14) -> 0 | H14: =SUMIFS(siloEMPLOI!$H:$H,siloEMPLOI!$A:$A,H$1,siloEMPLOI!$E:$E,$A14) -> 0 | I14: =SUMIFS(siloEMPLOI!$H:$H,siloEMPLOI!$A:$A,I$1,siloEMPLOI!$E:$E,$A14) -> 0 | J14: =SUMIFS(siloEMPLOI!$H:$H,siloEMPLOI!$A:$A,J$1,siloEMPLOI!$E:$E,$A14) -> 0 | K14: =SUMIFS(siloEMPLOI!$H:$H,siloEMPLOI!$A:$A,K$1,siloEMPLOI!$E:$E,$A14) -> 0 | L14: =SUMIFS(siloEMPLOI!$H:$H,siloEMPLOI!$A:$A,L$1,siloEMPLOI!$E:$E,$A14) -> 0 | M14: =SUMIFS(siloEMPLOI!$H:$H,siloEMPLOI!$A:$A,M$1,siloEMPLOI!$E:$E,$A14) -> 0 | N14: =SUMIFS(siloEMPLOI!$H:$H,siloEMPLOI!$E:$E,$A14) -> 0
A15: TOTAL TOUS SECTEURS (secteur privé) | B15: =SUMIFS(siloEMPLOI!$H:$H,siloEMPLOI!$A:$A,B$1) -> 157315 | C15: =SUMIFS(siloEMPLOI!$H:$H,siloEMPLOI!$A:$A,C$1) -> 73466 | D15: =SUMIFS(siloEMPLOI!$H:$H,siloEMPLOI!$A:$A,D$1) -> 66145 | E15: =SUMIFS(siloEMPLOI!$H:$H,siloEMPLOI!$A:$A,E$1) -> 30397 | F15: =SUMIFS(siloEMPLOI!$H:$H,siloEMPLOI!$A:$A,F$1) -> 160107 | G15: =SUMIFS(siloEMPLOI!$H:$H,siloEMPLOI!$A:$A,G$1) -> 51842 | H15: =SUMIFS(siloEMPLOI!$H:$H,siloEMPLOI!$A:$A,H$1) -> 230736 | I15: =SUMIFS(siloEMPLOI!$H:$H,siloEMPLOI!$A:$A,I$1) -> 374778 | J15: =SUMIFS(siloEMPLOI!$H:$H,siloEMPLOI!$A:$A,J$1) -> 199087 | K15: =SUMIFS(siloEMPLOI!$H:$H,siloEMPLOI!$A:$A,K$1) -> 179969 | L15: =SUMIFS(siloEMPLOI!$H:$H,siloEMPLOI!$A:$A,L$1) -> 801321 | M15: =SUMIFS(siloEMPLOI!$H:$H,siloEMPLOI!$A:$A,M$1) -> 161931 | N15: =SUM(siloEMPLOI!$H:$H) -> 2487094
A19: Poids des DOMEX dans les territoires | B19: =B1 -> Ain | C19: =C1 -> Allier | D19: Ardèche | E19: Cantal | F19: Drôme | G19: Haute-Loire | H19: Haute-Savoie | I19: Isère | J19: Loire | K19: Puy-de-Dôme | L19: Rhône | M19: Savoie | N19: Auvergne-Rhône-Alpes
A20: =A2 -> Aéronautique | B20: =B2/B$15 -> 0.04215109812 | C20: =C2/C$15 -> 0.0620831405 | D20: 0.01579862423 | E20: 0.008356087772 | F20: 0.04918585696 | G20: 0.04502141121 | H20: 0.05801868802 | I20: 0.02678652429 | J20: 0.05614128497 | K20: 0.04724146936 | L20: 0.01594117713 | M20: 0.03612032285 | N20: 0.03394644513
A21: =A3 -> Agriculture, Agroalimentaire, Forêt | B21: =B3/B$15 -> 0.02758160379 | C21: 0.03506383905 | D21: 0.04178698314 | E21: 0.03865513044 | F21: 0.04984166838 | G21: 0.04862852513 | H21: 0.02169579086 | I21: 0.01763177134 | J21: 0.04094189977 | K21: 0.02395412543 | L21: 0.009243486693 | M21: 0.01978002977 | N21: 0.02253272293
A22: BTP | B22: =B4/B$15 -> 0.08954009471 | C22: 0.08847630196 | D22: 0.09928188072 | E22: 0.1181695562 | F22: 0.0861486381 | G22: 0.09972609081 | H22: 0.08701286319 | I22: 0.08236342581 | J22: 0.08918211636 | K22: 0.08263645406 | L22: 0.06898983054 | M22: 0.08881560665 | N22: 0.08159924796
A23: Energie | B23: =B5/B$15 -> 0.01866319169 | C23: 0.005294966379 | D23: 0.02701640336 | E23: 0.009375925256 | F23: 0.01916843111 | G23: 0.006365495158 | H23: 0.004411968657 | I23: 0.01298635459 | J23: 0.005454901626 | K23: 0.009218254255 | L23: 0.01374854771 | M23: 0.01432091446 | N23: 0.01236865193
A24: Industrie du futur, production industrielle | B24: =B6/B$15 -> 0.130210088 | C24: 0.1102142488 | D24: 0.1691889032 | E24: 0.07211237951 | F24: 0.09811563517 | G24: 0.1028316809 | H24: 0.09288970945 | I24: 0.1477781513 | J24: 0.1172602932 | K24: 0.1260939384 | L24: 0.08523924869 | M24: 0.05149724265 | N24: 0.105545669
A25: Métier de bouche | B25: =B7/B$15 -> 0.02184788482 | C25: 0.0230718972 | D25: 0.02750018898 | E25: 0.02730532618 | F25: 0.01806292042 | G25: 0.02415030284 | H25: 0.02649781569 | I25: 0.0176984775 | J25: 0.02172919377 | K25: 0.01888658602 | L25: 0.01472069246 | M25: 0.01951448456 | N25: 0.01903948946
A26: Mobilité, systèmes de transport intelligents | B26: =B8/B$15 -> 0.07065441948 | C26: 0.05721013802 | D26: 0.04177186484 | E26: 0.06461163931 | F26: 0.07498735221 | G26: 0.04143358667 | H26: 0.03754507316 | I26: 0.0574900341 | J26: 0.05388598954 | K26: 0.06977312759 | L26: 0.06101549816 | M26: 0.04988544504 | N26: 0.05816587552
A27: Numérique | B27: =B9/B$15 -> 0.008753138607 | C27: 0.01766803692 | D27: 0.01430191247 | E27: 0.009310129289 | F27: 0.01839394905 | G27: 0.01091778867 | H27: 0.0194724707 | I27: 0.04630741399 | J27: 0.01733915323 | K27: 0.02702687685 | L27: 0.07520831227 | M27: 0.01443207292 | N27: 0.04028074532
A28: Polymères | B28: =B10/B$15 -> 0.04620029876 | C28: 0.01107995535 | D28: 0.006379922897 | E28: 0.01697535941 | F28: 0.01365336931 | G28: 0.05431889202 | H28: 0.004633000485 | I28: 0.008252885708 | J28: 0.006891459513 | K28: 0.006745606188 | L28: 0.004074521946 | M28: 0.002013203154 | N28: 0.00979496553
A29: Services à la personne | B29: =B11/B$15 -> 0.01818008454 | C29: 0.02183322898 | D29: 0.03262529292 | E29: 0.02483797743 | F29: 0.02287220421 | G29: 0.02984066973 | H29: 0.01737916927 | I29: 0.01970766694 | J29: 0.02724939348 | K29: 0.0140357506 | L29: 0.01706182666 | M29: 0.01005366483 | N29: 0.01899124038
A30: Sport, Montagne, Tourisme | B30: =B12/B$15 -> 0.06334424562 | C30: 0.07129828764 | D30: 0.0666414695 | E30: 0.08000789552 | F30: 0.06089052946 | G30: 0.05869758111 | H30: 0.1627401012 | I30: 0.07170111373 | J30: 0.05775364539 | K30: 0.07805233123 | L30: 0.07021405904 | M30: 0.2639519301 | N30: 0.08998775277
A31: Santé | B31: =B13/B$15 -> 0.02978736929 | C31: 0.02568535105 | D31: 0.04249754328 | E31: 0.04095798928 | F31: 0.02518940459 | G31: 0.04614019521 | H31: 0.02626378198 | I31: 0.02675984183 | J31: 0.03041886211 | K31: 0.04048475015 | L31: 0.03028998366 | M31: 0.01747040406 | N31: 0.02958714065
A32: Hors DOMEX | B32: =B14/B$15 -> 0 | C32: 0 | D32: 0 | E32: 0 | F32: 0 | G32: 0 | H32: 0 | I32: 0 | J32: 0 | K32: 0 | L32: 0 | M32: 0 | N32: 0
A33: TOTAL TOUS SECTEURS (secteur privé) | B33: =B15/B$15 -> 1 | C33: 1 | D33: 1 | E33: 1 | F33: 1 | G33: 1 | H33: 1 | I33: 1 | J33: 1 | K33: 1 | L33: 1 | M33: 1 | N33: 1
A37: nombre d'établissements 2023 (secteur privé) | B37: =B1 -> Ain | C37: =C1 -> Allier | D37: Ardèche | E37: Cantal | F37: Drôme | G37: Haute-Loire | H37: Haute-Savoie | I37: Isère | J37: Loire | K37: Puy-de-Dôme | L37: Rhône | M37: Savoie | N37: Auvergne-Rhône-Alpes
A38: =A2 -> Aéronautique | B38: =SUMIFS(siloEMPLOI!$G:$G,siloEMPLOI!$A:$A,B$1,siloEMPLOI!$E:$E,$A38) -> 382 | C38: =SUMIFS(siloEMPLOI!$G:$G,siloEMPLOI!$A:$A,C$1,siloEMPLOI!$E:$E,$A38) -> 100 | D38: =SUMIFS(siloEMPLOI!$G:$G,siloEMPLOI!$A:$A,D$1,siloEMPLOI!$E:$E,$A38) -> 73 | E38: =SUMIFS(siloEMPLOI!$G:$G,siloEMPLOI!$A:$A,E$1,siloEMPLOI!$E:$E,$A38) -> 21 | F38: =SUMIFS(siloEMPLOI!$G:$G,siloEMPLOI!$A:$A,F$1,siloEMPLOI!$E:$E,$A38) -> 216 | G38: =SUMIFS(siloEMPLOI!$G:$G,siloEMPLOI!$A:$A,G$1,siloEMPLOI!$E:$E,$A38) -> 125 | H38: =SUMIFS(siloEMPLOI!$G:$G,siloEMPLOI!$A:$A,H$1,siloEMPLOI!$E:$E,$A38) -> 568 | I38: =SUMIFS(siloEMPLOI!$G:$G,siloEMPLOI!$A:$A,I$1,siloEMPLOI!$E:$E,$A38) -> 498 | J38: =SUMIFS(siloEMPLOI!$G:$G,siloEMPLOI!$A:$A,J$1,siloEMPLOI!$E:$E,$A38) -> 518 | K38: =SUMIFS(siloEMPLOI!$G:$G,siloEMPLOI!$A:$A,K$1,siloEMPLOI!$E:$E,$A38) -> 268 | L38: =SUMIFS(siloEMPLOI!$G:$G,siloEMPLOI!$A:$A,L$1,siloEMPLOI!$E:$E,$A38) -> 612 | M38: =SUMIFS(siloEMPLOI!$G:$G,siloEMPLOI!$A:$A,M$1,siloEMPLOI!$E:$E,$A38) -> 173 | N38: =SUMIFS(siloEMPLOI!$G:$G,siloEMPLOI!$E:$E,$A38) -> 3554
A39: =A3 -> Agriculture, Agroalimentaire, Forêt | B39: =SUMIFS(siloEMPLOI!$G:$G,siloEMPLOI!$A:$A,B$1,siloEMPLOI!$E:$E,$A39) -> 209 | C39: =SUMIFS(siloEMPLOI!$G:$G,siloEMPLOI!$A:$A,C$1,siloEMPLOI!$E:$E,$A39) -> 96 | D39: =SUMIFS(siloEMPLOI!$G:$G,siloEMPLOI!$A:$A,D$1,siloEMPLOI!$E:$E,$A39) -> 160 | E39: =SUMIFS(siloEMPLOI!$G:$G,siloEMPLOI!$A:$A,E$1,siloEMPLOI!$E:$E,$A39) -> 79 | F39: =SUMIFS(siloEMPLOI!$G:$G,siloEMPLOI!$A:$A,F$1,siloEMPLOI!$E:$E,$A39) -> 256 | G39: =SUMIFS(siloEMPLOI!$G:$G,siloEMPLOI!$A:$A,G$1,siloEMPLOI!$E:$E,$A39) -> 124 | H39: =SUMIFS(siloEMPLOI!$G:$G,siloEMPLOI!$A:$A,H$1,siloEMPLOI!$E:$E,$A39) -> 286 | I39: =SUMIFS(siloEMPLOI!$G:$G,siloEMPLOI!$A:$A,I$1,siloEMPLOI!$E:$E,$A39) -> 348 | J39: =SUMIFS(siloEMPLOI!$G:$G,siloEMPLOI!$A:$A,J$1,siloEMPLOI!$E:$E,$A39) -> 306 | K39: =SUMIFS(siloEMPLOI!$G:$G,siloEMPLOI!$A:$A,K$1,siloEMPLOI!$E:$E,$A39) -> 186 | L39: =SUMIFS(siloEMPLOI!$G:$G,siloEMPLOI!$A:$A,L$1,siloEMPLOI!$E:$E,$A39) -> 473 | M39: =SUMIFS(siloEMPLOI!$G:$G,siloEMPLOI!$A:$A,M$1,siloEMPLOI!$E:$E,$A39) -> 192 | N39: =SUMIFS(siloEMPLOI!$G:$G,siloEMPLOI!$E:$E,$A39) -> 2715
A40: BTP | B40: =SUMIFS(siloEMPLOI!$G:$G,siloEMPLOI!$A:$A,B$1,siloEMPLOI!$E:$E,$A40) -> 2517 | C40: =SUMIFS(siloEMPLOI!$G:$G,siloEMPLOI!$A:$A,C$1,siloEMPLOI!$E:$E,$A40) -> 1061 | D40: =SUMIFS(siloEMPLOI!$G:$G,siloEMPLOI!$A:$A,D$1,siloEMPLOI!$E:$E,$A40) -> 1222 | E40: =SUMIFS(siloEMPLOI!$G:$G,siloEMPLOI!$A:$A,E$1,siloEMPLOI!$E:$E,$A40) -> 566 | F40: =SUMIFS(siloEMPLOI!$G:$G,siloEMPLOI!$A:$A,F$1,siloEMPLOI!$E:$E,$A40) -> 2140 | G40: =SUMIFS(siloEMPLOI!$G:$G,siloEMPLOI!$A:$A,G$1,siloEMPLOI!$E:$E,$A40) -> 888 | H40: =SUMIFS(siloEMPLOI!$G:$G,siloEMPLOI!$A:$A,H$1,siloEMPLOI!$E:$E,$A40) -> 3390 | I40: =SUMIFS(siloEMPLOI!$G:$G,siloEMPLOI!$A:$A,I$1,siloEMPLOI!$E:$E,$A40) -> 5106 | J40: =SUMIFS(siloEMPLOI!$G:$G,siloEMPLOI!$A:$A,J$1,siloEMPLOI!$E:$E,$A40) -> 2787 | K40: =SUMIFS(siloEMPLOI!$G:$G,siloEMPLOI!$A:$A,K$1,siloEMPLOI!$E:$E,$A40) -> 2228 | L40: =SUMIFS(siloEMPLOI!$G:$G,siloEMPLOI!$A:$A,L$1,siloEMPLOI!$E:$E,$A40) -> 6782 | M40: =SUMIFS(siloEMPLOI!$G:$G,siloEMPLOI!$A:$A,M$1,siloEMPLOI!$E:$E,$A40) -> 2072 | N40: =SUMIFS(siloEMPLOI!$G:$G,siloEMPLOI!$E:$E,$A40) -> 30759
A41: Energie | B41: =SUMIFS(siloEMPLOI!$G:$G,siloEMPLOI!$A:$A,B$1,siloEMPLOI!$E:$E,$A41) -> 50 | C41: =SUMIFS(siloEMPLOI!$G:$G,siloEMPLOI!$A:$A,C$1,siloEMPLOI!$E:$E,$A41) -> 17 | D41: =SUMIFS(siloEMPLOI!$G:$G,siloEMPLOI!$A:$A,D$1,siloEMPLOI!$E:$E,$A41) -> 28 | E41: =SUMIFS(siloEMPLOI!$G:$G,siloEMPLOI!$A:$A,E$1,siloEMPLOI!$E:$E,$A41) -> 24 | F41: =SUMIFS(siloEMPLOI!$G:$G,siloEMPLOI!$A:$A,F$1,siloEMPLOI!$E:$E,$A41) -> 56 | G41: =SUMIFS(siloEMPLOI!$G:$G,siloEMPLOI!$A:$A,G$1,siloEMPLOI!$E:$E,$A41) -> 30 | H41: =SUMIFS(siloEMPLOI!$G:$G,siloEMPLOI!$A:$A,H$1,siloEMPLOI!$E:$E,$A41) -> 47 | I41: =SUMIFS(siloEMPLOI!$G:$G,siloEMPLOI!$A:$A,I$1,siloEMPLOI!$E:$E,$A41) -> 93 | J41: =SUMIFS(siloEMPLOI!$G:$G,siloEMPLOI!$A:$A,J$1,siloEMPLOI!$E:$E,$A41) -> 32 | K41: =SUMIFS(siloEMPLOI!$G:$G,siloEMPLOI!$A:$A,K$1,siloEMPLOI!$E:$E,$A41) -> 45 | L41: =SUMIFS(siloEMPLOI!$G:$G,siloEMPLOI!$A:$A,L$1,siloEMPLOI!$E:$E,$A41) -> 123 | M41: =SUMIFS(siloEMPLOI!$G:$G,siloEMPLOI!$A:$A,M$1,siloEMPLOI!$E:$E,$A41) -> 72 | N41: =SUMIFS(siloEMPLOI!$G:$G,siloEMPLOI!$E:$E,$A41) -> 617
A42: Industrie du futur, production industrielle | B42: =SUMIFS(siloEMPLOI!$G:$G,siloEMPLOI!$A:$A,B$1,siloEMPLOI!$E:$E,$A42) -> 750 | C42: =SUMIFS(siloEMPLOI!$G:$G,siloEMPLOI!$A:$A,C$1,siloEMPLOI!$E:$E,$A42) -> 290 | D42: =SUMIFS(siloEMPLOI!$G:$G,siloEMPLOI!$A:$A,D$1,siloEMPLOI!$E:$E,$A42) -> 303 | E42: =SUMIFS(siloEMPLOI!$G:$G,siloEMPLOI!$A:$A,E$1,siloEMPLOI!$E:$E,$A42) -> 100 | F42: =SUMIFS(siloEMPLOI!$G:$G,siloEMPLOI!$A:$A,F$1,siloEMPLOI!$E:$E,$A42) -> 647 | G42: =SUMIFS(siloEMPLOI!$G:$G,siloEMPLOI!$A:$A,G$1,siloEMPLOI!$E:$E,$A42) -> 270 | H42: =SUMIFS(siloEMPLOI!$G:$G,siloEMPLOI!$A:$A,H$1,siloEMPLOI!$E:$E,$A42) -> 704 | I42: =SUMIFS(siloEMPLOI!$G:$G,siloEMPLOI!$A:$A,I$1,siloEMPLOI!$E:$E,$A42) -> 1490 | J42: =SUMIFS(siloEMPLOI!$G:$G,siloEMPLOI!$A:$A,J$1,siloEMPLOI!$E:$E,$A42) -> 922 | K42: =SUMIFS(siloEMPLOI!$G:$G,siloEMPLOI!$A:$A,K$1,siloEMPLOI!$E:$E,$A42) -> 517 | L42: =SUMIFS(siloEMPLOI!$G:$G,siloEMPLOI!$A:$A,L$1,siloEMPLOI!$E:$E,$A42) -> 2105 | M42: =SUMIFS(siloEMPLOI!$G:$G,siloEMPLOI!$A:$A,M$1,siloEMPLOI!$E:$E,$A42) -> 448 | N42: =SUMIFS(siloEMPLOI!$G:$G,siloEMPLOI!$E:$E,$A42) -> 8546
A43: Métier de bouche | B43: =SUMIFS(siloEMPLOI!$G:$G,siloEMPLOI!$A:$A,B$1,siloEMPLOI!$E:$E,$A43) -> 616 | C43: =SUMIFS(siloEMPLOI!$G:$G,siloEMPLOI!$A:$A,C$1,siloEMPLOI!$E:$E,$A43) -> 330 | D43: =SUMIFS(siloEMPLOI!$G:$G,siloEMPLOI!$A:$A,D$1,siloEMPLOI!$E:$E,$A43) -> 432 | E43: =SUMIFS(siloEMPLOI!$G:$G,siloEMPLOI!$A:$A,E$1,siloEMPLOI!$E:$E,$A43) -> 188 | F43: =SUMIFS(siloEMPLOI!$G:$G,siloEMPLOI!$A:$A,F$1,siloEMPLOI!$E:$E,$A43) -> 564 | G43: =SUMIFS(siloEMPLOI!$G:$G,siloEMPLOI!$A:$A,G$1,siloEMPLOI!$E:$E,$A43) -> 293 | H43: =SUMIFS(siloEMPLOI!$G:$G,siloEMPLOI!$A:$A,H$1,siloEMPLOI!$E:$E,$A43) -> 951 | I43: =SUMIFS(siloEMPLOI!$G:$G,siloEMPLOI!$A:$A,I$1,siloEMPLOI!$E:$E,$A43) -> 1180 | J43: =SUMIFS(siloEMPLOI!$G:$G,siloEMPLOI!$A:$A,J$1,siloEMPLOI!$E:$E,$A43) -> 812 | K43: =SUMIFS(siloEMPLOI!$G:$G,siloEMPLOI!$A:$A,K$1,siloEMPLOI!$E:$E,$A43) -> 685 | L43: =SUMIFS(siloEMPLOI!$G:$G,siloEMPLOI!$A:$A,L$1,siloEMPLOI!$E:$E,$A43) -> 1857 | M43: =SUMIFS(siloEMPLOI!$G:$G,siloEMPLOI!$A:$A,M$1,siloEMPLOI!$E:$E,$A43) -> 553 | N43: =SUMIFS(siloEMPLOI!$G:$G,siloEMPLOI!$E:$E,$A43) -> 8461
A44: Mobilité, systèmes de transport intelligents | B44: =SUMIFS(siloEMPLOI!$G:$G,siloEMPLOI!$A:$A,B$1,siloEMPLOI!$E:$E,$A44) -> 553 | C44: =SUMIFS(siloEMPLOI!$G:$G,siloEMPLOI!$A:$A,C$1,siloEMPLOI!$E:$E,$A44) -> 232 | D44: =SUMIFS(siloEMPLOI!$G:$G,siloEMPLOI!$A:$A,D$1,siloEMPLOI!$E:$E,$A44) -> 221 | E44: =SUMIFS(siloEMPLOI!$G:$G,siloEMPLOI!$A:$A,E$1,siloEMPLOI!$E:$E,$A44) -> 143 | F44: =SUMIFS(siloEMPLOI!$G:$G,siloEMPLOI!$A:$A,F$1,siloEMPLOI!$E:$E,$A44) -> 543 | G44: =SUMIFS(siloEMPLOI!$G:$G,siloEMPLOI!$A:$A,G$1,siloEMPLOI!$E:$E,$A44) -> 191 | H44: =SUMIFS(siloEMPLOI!$G:$G,siloEMPLOI!$A:$A,H$1,siloEMPLOI!$E:$E,$A44) -> 591 | I44: =SUMIFS(siloEMPLOI!$G:$G,siloEMPLOI!$A:$A,I$1,siloEMPLOI!$E:$E,$A44) -> 1122 | J44: =SUMIFS(siloEMPLOI!$G:$G,siloEMPLOI!$A:$A,J$1,siloEMPLOI!$E:$E,$A44) -> 640 | K44: =SUMIFS(siloEMPLOI!$G:$G,siloEMPLOI!$A:$A,K$1,siloEMPLOI!$E:$E,$A44) -> 548 | L44: =SUMIFS(siloEMPLOI!$G:$G,siloEMPLOI!$A:$A,L$1,siloEMPLOI!$E:$E,$A44) -> 2119 | M44: =SUMIFS(siloEMPLOI!$G:$G,siloEMPLOI!$A:$A,M$1,siloEMPLOI!$E:$E,$A44) -> 518 | N44: =SUMIFS(siloEMPLOI!$G:$G,siloEMPLOI!$E:$E,$A44) -> 7421
A45: Numérique | B45: =SUMIFS(siloEMPLOI!$G:$G,siloEMPLOI!$A:$A,B$1,siloEMPLOI!$E:$E,$A45) -> 279 | C45: =SUMIFS(siloEMPLOI!$G:$G,siloEMPLOI!$A:$A,C$1,siloEMPLOI!$E:$E,$A45) -> 112 | D45: =SUMIFS(siloEMPLOI!$G:$G,siloEMPLOI!$A:$A,D$1,siloEMPLOI!$E:$E,$A45) -> 131 | E45: =SUMIFS(siloEMPLOI!$G:$G,siloEMPLOI!$A:$A,E$1,siloEMPLOI!$E:$E,$A45) -> 51 | F45: =SUMIFS(siloEMPLOI!$G:$G,siloEMPLOI!$A:$A,F$1,siloEMPLOI!$E:$E,$A45) -> 329 | G45: =SUMIFS(siloEMPLOI!$G:$G,siloEMPLOI!$A:$A,G$1,siloEMPLOI!$E:$E,$A45) -> 97 | H45: =SUMIFS(siloEMPLOI!$G:$G,siloEMPLOI!$A:$A,H$1,siloEMPLOI!$E:$E,$A45) -> 558 | I45: =SUMIFS(siloEMPLOI!$G:$G,siloEMPLOI!$A:$A,I$1,siloEMPLOI!$E:$E,$A45) -> 1121 | J45: =SUMIFS(siloEMPLOI!$G:$G,siloEMPLOI!$A:$A,J$1,siloEMPLOI!$E:$E,$A45) -> 436 | K45: =SUMIFS(siloEMPLOI!$G:$G,siloEMPLOI!$A:$A,K$1,siloEMPLOI!$E:$E,$A45) -> 426 | L45: =SUMIFS(siloEMPLOI!$G:$G,siloEMPLOI!$A:$A,L$1,siloEMPLOI!$E:$E,$A45) -> 3233 | M45: =SUMIFS(siloEMPLOI!$G:$G,siloEMPLOI!$A:$A,M$1,siloEMPLOI!$E:$E,$A45) -> 282 | N45: =SUMIFS(siloEMPLOI!$G:$G,siloEMPLOI!$E:$E,$A45) -> 7055
A46: Polymères | B46: =SUMIFS(siloEMPLOI!$G:$G,siloEMPLOI!$A:$A,B$1,siloEMPLOI!$E:$E,$A46) -> 204 | C46: =SUMIFS(siloEMPLOI!$G:$G,siloEMPLOI!$A:$A,C$1,siloEMPLOI!$E:$E,$A46) -> 17 | D46: =SUMIFS(siloEMPLOI!$G:$G,siloEMPLOI!$A:$A,D$1,siloEMPLOI!$E:$E,$A46) -> 16 | E46: =SUMIFS(siloEMPLOI!$G:$G,siloEMPLOI!$A:$A,E$1,siloEMPLOI!$E:$E,$A46) -> 3 | F46: =SUMIFS(siloEMPLOI!$G:$G,siloEMPLOI!$A:$A,F$1,siloEMPLOI!$E:$E,$A46) -> 55 | G46: =SUMIFS(siloEMPLOI!$G:$G,siloEMPLOI!$A:$A,G$1,siloEMPLOI!$E:$E,$A46) -> 64 | H46: =SUMIFS(siloEMPLOI!$G:$G,siloEMPLOI!$A:$A,H$1,siloEMPLOI!$E:$E,$A46) -> 42 | I46: =SUMIFS(siloEMPLOI!$G:$G,siloEMPLOI!$A:$A,I$1,siloEMPLOI!$E:$E,$A46) -> 109 | J46: =SUMIFS(siloEMPLOI!$G:$G,siloEMPLOI!$A:$A,J$1,siloEMPLOI!$E:$E,$A46) -> 35 | K46: =SUMIFS(siloEMPLOI!$G:$G,siloEMPLOI!$A:$A,K$1,siloEMPLOI!$E:$E,$A46) -> 53 | L46: =SUMIFS(siloEMPLOI!$G:$G,siloEMPLOI!$A:$A,L$1,siloEMPLOI!$E:$E,$A46) -> 106 | M46: =SUMIFS(siloEMPLOI!$G:$G,siloEMPLOI!$A:$A,M$1,siloEMPLOI!$E:$E,$A46) -> 17 | N46: =SUMIFS(siloEMPLOI!$G:$G,siloEMPLOI!$E:$E,$A46) -> 721
A47: Services à la personne | B47: =SUMIFS(siloEMPLOI!$G:$G,siloEMPLOI!$A:$A,B$1,siloEMPLOI!$E:$E,$A47) -> 181 | C47: =SUMIFS(siloEMPLOI!$G:$G,siloEMPLOI!$A:$A,C$1,siloEMPLOI!$E:$E,$A47) -> 58 | D47: =SUMIFS(siloEMPLOI!$G:$G,siloEMPLOI!$A:$A,D$1,siloEMPLOI!$E:$E,$A47) -> 93 | E47: =SUMIFS(siloEMPLOI!$G:$G,siloEMPLOI!$A:$A,E$1,siloEMPLOI!$E:$E,$A47) -> 35 | F47: =SUMIFS(siloEMPLOI!$G:$G,siloEMPLOI!$A:$A,F$1,siloEMPLOI!$E:$E,$A47) -> 190 | G47: =SUMIFS(siloEMPLOI!$G:$G,siloEMPLOI!$A:$A,G$1,siloEMPLOI!$E:$E,$A47) -> 85 | H47: =SUMIFS(siloEMPLOI!$G:$G,siloEMPLOI!$A:$A,H$1,siloEMPLOI!$E:$E,$A47) -> 298 | I47: =SUMIFS(siloEMPLOI!$G:$G,siloEMPLOI!$A:$A,I$1,siloEMPLOI!$E:$E,$A47) -> 451 | J47: =SUMIFS(siloEMPLOI!$G:$G,siloEMPLOI!$A:$A,J$1,siloEMPLOI!$E:$E,$A47) -> 266 | K47: =SUMIFS(siloEMPLOI!$G:$G,siloEMPLOI!$A:$A,K$1,siloEMPLOI!$E:$E,$A47) -> 146 | L47: =SUMIFS(siloEMPLOI!$G:$G,siloEMPLOI!$A:$A,L$1,siloEMPLOI!$E:$E,$A47) -> 884 | M47: =SUMIFS(siloEMPLOI!$G:$G,siloEMPLOI!$A:$A,M$1,siloEMPLOI!$E:$E,$A47) -> 133 | N47: =SUMIFS(siloEMPLOI!$G:$G,siloEMPLOI!$E:$E,$A47) -> 2820
A48: Sport, Montagne, Tourisme | B48: =SUMIFS(siloEMPLOI!$G:$G,siloEMPLOI!$A:$A,B$1,siloEMPLOI!$E:$E,$A48) -> 1872 | C48: =SUMIFS(siloEMPLOI!$G:$G,siloEMPLOI!$A:$A,C$1,siloEMPLOI!$E:$E,$A48) -> 912 | D48: =SUMIFS(siloEMPLOI!$G:$G,siloEMPLOI!$A:$A,D$1,siloEMPLOI!$E:$E,$A48) -> 1215 | E48: =SUMIFS(siloEMPLOI!$G:$G,siloEMPLOI!$A:$A,E$1,siloEMPLOI!$E:$E,$A48) -> 553 | F48: =SUMIFS(siloEMPLOI!$G:$G,siloEMPLOI!$A:$A,F$1,siloEMPLOI!$E:$E,$A48) -> 1869 | G48: =SUMIFS(siloEMPLOI!$G:$G,siloEMPLOI!$A:$A,G$1,siloEMPLOI!$E:$E,$A48) -> 758 | H48: =SUMIFS(siloEMPLOI!$G:$G,siloEMPLOI!$A:$A,H$1,siloEMPLOI!$E:$E,$A48) -> 4384 | I48: =SUMIFS(siloEMPLOI!$G:$G,siloEMPLOI!$A:$A,I$1,siloEMPLOI!$E:$E,$A48) -> 4268 | J48: =SUMIFS(siloEMPLOI!$G:$G,siloEMPLOI!$A:$A,J$1,siloEMPLOI!$E:$E,$A48) -> 2167 | K48: =SUMIFS(siloEMPLOI!$G:$G,siloEMPLOI!$A:$A,K$1,siloEMPLOI!$E:$E,$A48) -> 2215 | L48: =SUMIFS(siloEMPLOI!$G:$G,siloEMPLOI!$A:$A,L$1,siloEMPLOI!$E:$E,$A48) -> 6850 | M48: =SUMIFS(siloEMPLOI!$G:$G,siloEMPLOI!$A:$A,M$1,siloEMPLOI!$E:$E,$A48) -> 3684 | N48: =SUMIFS(siloEMPLOI!$G:$G,siloEMPLOI!$E:$E,$A48) -> 30747
A49: Santé | B49: =SUMIFS(siloEMPLOI!$G:$G,siloEMPLOI!$A:$A,B$1,siloEMPLOI!$E:$E,$A49) -> 508 | C49: =SUMIFS(siloEMPLOI!$G:$G,siloEMPLOI!$A:$A,C$1,siloEMPLOI!$E:$E,$A49) -> 447 | D49: =SUMIFS(siloEMPLOI!$G:$G,siloEMPLOI!$A:$A,D$1,siloEMPLOI!$E:$E,$A49) -> 357 | E49: =SUMIFS(siloEMPLOI!$G:$G,siloEMPLOI!$A:$A,E$1,siloEMPLOI!$E:$E,$A49) -> 165 | F49: =SUMIFS(siloEMPLOI!$G:$G,siloEMPLOI!$A:$A,F$1,siloEMPLOI!$E:$E,$A49) -> 535 | G49: =SUMIFS(siloEMPLOI!$G:$G,siloEMPLOI!$A:$A,G$1,siloEMPLOI!$E:$E,$A49) -> 258 | H49: =SUMIFS(siloEMPLOI!$G:$G,siloEMPLOI!$A:$A,H$1,siloEMPLOI!$E:$E,$A49) -> 813 | I49: =SUMIFS(siloEMPLOI!$G:$G,siloEMPLOI!$A:$A,I$1,siloEMPLOI!$E:$E,$A49) -> 1142 | J49: =SUMIFS(siloEMPLOI!$G:$G,siloEMPLOI!$A:$A,J$1,siloEMPLOI!$E:$E,$A49) -> 753 | K49: =SUMIFS(siloEMPLOI!$G:$G,siloEMPLOI!$A:$A,K$1,siloEMPLOI!$E:$E,$A49) -> 647 | L49: =SUMIFS(siloEMPLOI!$G:$G,siloEMPLOI!$A:$A,L$1,siloEMPLOI!$E:$E,$A49) -> 2045 | M49: =SUMIFS(siloEMPLOI!$G:$G,siloEMPLOI!$A:$A,M$1,siloEMPLOI!$E:$E,$A49) -> 474 | N49: =SUMIFS(siloEMPLOI!$G:$G,siloEMPLOI!$E:$E,$A49) -> 8144
A50: Hors DOMEX | B50: =SUMIFS(siloEMPLOI!$G:$G,siloEMPLOI!$A:$A,B$1,siloEMPLOI!$E:$E,$A50) -> 0 | C50: =SUMIFS(siloEMPLOI!$G:$G,siloEMPLOI!$A:$A,C$1,siloEMPLOI!$E:$E,$A50) -> 0 | D50: =SUMIFS(siloEMPLOI!$G:$G,siloEMPLOI!$A:$A,D$1,siloEMPLOI!$E:$E,$A50) -> 0 | E50: =SUMIFS(siloEMPLOI!$G:$G,siloEMPLOI!$A:$A,E$1,siloEMPLOI!$E:$E,$A50) -> 0 | F50: =SUMIFS(siloEMPLOI!$G:$G,siloEMPLOI!$A:$A,F$1,siloEMPLOI!$E:$E,$A50) -> 0 | G50: =SUMIFS(siloEMPLOI!$G:$G,siloEMPLOI!$A:$A,G$1,siloEMPLOI!$E:$E,$A50) -> 0 | H50: =SUMIFS(siloEMPLOI!$G:$G,siloEMPLOI!$A:$A,H$1,siloEMPLOI!$E:$E,$A50) -> 0 | I50: =SUMIFS(siloEMPLOI!$G:$G,siloEMPLOI!$A:$A,I$1,siloEMPLOI!$E:$E,$A50) -> 0 | J50: =SUMIFS(siloEMPLOI!$G:$G,siloEMPLOI!$A:$A,J$1,siloEMPLOI!$E:$E,$A50) -> 0 | K50: =SUMIFS(siloEMPLOI!$G:$G,siloEMPLOI!$A:$A,K$1,siloEMPLOI!$E:$E,$A50) -> 0 | L50: =SUMIFS(siloEMPLOI!$G:$G,siloEMPLOI!$A:$A,L$1,siloEMPLOI!$E:$E,$A50) -> 0 | M50: =SUMIFS(siloEMPLOI!$G:$G,siloEMPLOI!$A:$A,M$1,siloEMPLOI!$E:$E,$A50) -> 0 | N50: =SUMIFS(siloEMPLOI!$G:$G,siloEMPLOI!$E:$E,$A50) -> 0
A51: TOTAL TOUS SECTEURS (secteur privé) | B51: =SUMIFS(siloEMPLOI!$G:$G,siloEMPLOI!$A:$A,B$1) -> 16481 | C51: =SUMIFS(siloEMPLOI!$G:$G,siloEMPLOI!$A:$A,C$1) -> 8099 | D51: =SUMIFS(siloEMPLOI!$G:$G,siloEMPLOI!$A:$A,D$1) -> 8414 | E51: =SUMIFS(siloEMPLOI!$G:$G,siloEMPLOI!$A:$A,E$1) -> 3965 | F51: =SUMIFS(siloEMPLOI!$G:$G,siloEMPLOI!$A:$A,F$1) -> 16116 | G51: =SUMIFS(siloEMPLOI!$G:$G,siloEMPLOI!$A:$A,G$1) -> 6310 | H51: =SUMIFS(siloEMPLOI!$G:$G,siloEMPLOI!$A:$A,H$1) -> 26760 | I51: =SUMIFS(siloEMPLOI!$G:$G,siloEMPLOI!$A:$A,I$1) -> 35946 | J51: =SUMIFS(siloEMPLOI!$G:$G,siloEMPLOI!$A:$A,J$1) -> 21031 | K51: =SUMIFS(siloEMPLOI!$G:$G,siloEMPLOI!$A:$A,K$1) -> 17321 | L51: =SUMIFS(siloEMPLOI!$G:$G,siloEMPLOI!$A:$A,L$1) -> 66630 | M51: =SUMIFS(siloEMPLOI!$G:$G,siloEMPLOI!$A:$A,M$1) -> 17674 | N51: =SUM(siloEMPLOI!$G:$G) -> 244747
A55: Effectifs salariés 2022 (secteur privé) | B55: Ain | C55: Allier | D55: Ardèche | E55: Cantal | F55: Drôme | G55: Haute-Loire | H55: Haute-Savoie | I55: Isère | J55: Loire | K55: Puy-de-Dôme | L55: Rhône | M55: Savoie | N55: Auvergne-Rhône-Alpes
A56: Aéronautique | B56: =SUMIFS(siloEMPLOI!$F:$F,siloEMPLOI!$A:$A,B$1,siloEMPLOI!$E:$E,$A56) -> 6741 | C56: =SUMIFS(siloEMPLOI!$F:$F,siloEMPLOI!$A:$A,C$1,siloEMPLOI!$E:$E,$A56) -> 4431 | D56: =SUMIFS(siloEMPLOI!$F:$F,siloEMPLOI!$A:$A,D$1,siloEMPLOI!$E:$E,$A56) -> 1029 | E56: =SUMIFS(siloEMPLOI!$F:$F,siloEMPLOI!$A:$A,E$1,siloEMPLOI!$E:$E,$A56) -> 247 | F56: =SUMIFS(siloEMPLOI!$F:$F,siloEMPLOI!$A:$A,F$1,siloEMPLOI!$E:$E,$A56) -> 7896 | G56: =SUMIFS(siloEMPLOI!$F:$F,siloEMPLOI!$A:$A,G$1,siloEMPLOI!$E:$E,$A56) -> 2295 | H56: =SUMIFS(siloEMPLOI!$F:$F,siloEMPLOI!$A:$A,H$1,siloEMPLOI!$E:$E,$A56) -> 13649 | I56: =SUMIFS(siloEMPLOI!$F:$F,siloEMPLOI!$A:$A,I$1,siloEMPLOI!$E:$E,$A56) -> 9984 | J56: =SUMIFS(siloEMPLOI!$F:$F,siloEMPLOI!$A:$A,J$1,siloEMPLOI!$E:$E,$A56) -> 11130 | K56: =SUMIFS(siloEMPLOI!$F:$F,siloEMPLOI!$A:$A,K$1,siloEMPLOI!$E:$E,$A56) -> 8342 | L56: =SUMIFS(siloEMPLOI!$F:$F,siloEMPLOI!$A:$A,L$1,siloEMPLOI!$E:$E,$A56) -> 12353 | M56: =SUMIFS(siloEMPLOI!$F:$F,siloEMPLOI!$A:$A,M$1,siloEMPLOI!$E:$E,$A56) -> 5967 | N56: =SUMIFS(siloEMPLOI!$F:$F,siloEMPLOI!$E:$E,$A56) -> 84064
A57: Agriculture, Agroalimentaire, Forêt | B57: =SUMIFS(siloEMPLOI!$F:$F,siloEMPLOI!$A:$A,B$1,siloEMPLOI!$E:$E,$A57) -> 4327 | C57: =SUMIFS(siloEMPLOI!$F:$F,siloEMPLOI!$A:$A,C$1,siloEMPLOI!$E:$E,$A57) -> 2552 | D57: =SUMIFS(siloEMPLOI!$F:$F,siloEMPLOI!$A:$A,D$1,siloEMPLOI!$E:$E,$A57) -> 2775 | E57: =SUMIFS(siloEMPLOI!$F:$F,siloEMPLOI!$A:$A,E$1,siloEMPLOI!$E:$E,$A57) -> 1179 | F57: =SUMIFS(siloEMPLOI!$F:$F,siloEMPLOI!$A:$A,F$1,siloEMPLOI!$E:$E,$A57) -> 7833 | G57: =SUMIFS(siloEMPLOI!$F:$F,siloEMPLOI!$A:$A,G$1,siloEMPLOI!$E:$E,$A57) -> 2570 | H57: =SUMIFS(siloEMPLOI!$F:$F,siloEMPLOI!$A:$A,H$1,siloEMPLOI!$E:$E,$A57) -> 5018 | I57: =SUMIFS(siloEMPLOI!$F:$F,siloEMPLOI!$A:$A,I$1,siloEMPLOI!$E:$E,$A57) -> 6544 | J57: =SUMIFS(siloEMPLOI!$F:$F,siloEMPLOI!$A:$A,J$1,siloEMPLOI!$E:$E,$A57) -> 8022 | K57: =SUMIFS(siloEMPLOI!$F:$F,siloEMPLOI!$A:$A,K$1,siloEMPLOI!$E:$E,$A57) -> 4302 | L57: =SUMIFS(siloEMPLOI!$F:$F,siloEMPLOI!$A:$A,L$1,siloEMPLOI!$E:$E,$A57) -> 7362 | M57: =SUMIFS(siloEMPLOI!$F:$F,siloEMPLOI!$A:$A,M$1,siloEMPLOI!$E:$E,$A57) -> 3254 | N57: =SUMIFS(siloEMPLOI!$F:$F,siloEMPLOI!$E:$E,$A57) -> 55738
A58: BTP | B58: =SUMIFS(siloEMPLOI!$F:$F,siloEMPLOI!$A:$A,B$1,siloEMPLOI!$E:$E,$A58) -> 14240 | C58: =SUMIFS(siloEMPLOI!$F:$F,siloEMPLOI!$A:$A,C$1,siloEMPLOI!$E:$E,$A58) -> 6410 | D58: =SUMIFS(siloEMPLOI!$F:$F,siloEMPLOI!$A:$A,D$1,siloEMPLOI!$E:$E,$A58) -> 6593 | E58: =SUMIFS(siloEMPLOI!$F:$F,siloEMPLOI!$A:$A,E$1,siloEMPLOI!$E:$E,$A58) -> 3706 | F58: =SUMIFS(siloEMPLOI!$F:$F,siloEMPLOI!$A:$A,F$1,siloEMPLOI!$E:$E,$A58) -> 14009 | G58: =SUMIFS(siloEMPLOI!$F:$F,siloEMPLOI!$A:$A,G$1,siloEMPLOI!$E:$E,$A58) -> 5196 | H58: =SUMIFS(siloEMPLOI!$F:$F,siloEMPLOI!$A:$A,H$1,siloEMPLOI!$E:$E,$A58) -> 20240 | I58: =SUMIFS(siloEMPLOI!$F:$F,siloEMPLOI!$A:$A,I$1,siloEMPLOI!$E:$E,$A58) -> 32001 | J58: =SUMIFS(siloEMPLOI!$F:$F,siloEMPLOI!$A:$A,J$1,siloEMPLOI!$E:$E,$A58) -> 18129 | K58: =SUMIFS(siloEMPLOI!$F:$F,siloEMPLOI!$A:$A,K$1,siloEMPLOI!$E:$E,$A58) -> 14632 | L58: =SUMIFS(siloEMPLOI!$F:$F,siloEMPLOI!$A:$A,L$1,siloEMPLOI!$E:$E,$A58) -> 55939 | M58: =SUMIFS(siloEMPLOI!$F:$F,siloEMPLOI!$A:$A,M$1,siloEMPLOI!$E:$E,$A58) -> 14301 | N58: =SUMIFS(siloEMPLOI!$F:$F,siloEMPLOI!$E:$E,$A58) -> 205396
A59: Energie | B59: =SUMIFS(siloEMPLOI!$F:$F,siloEMPLOI!$A:$A,B$1,siloEMPLOI!$E:$E,$A59) -> 2849 | C59: =SUMIFS(siloEMPLOI!$F:$F,siloEMPLOI!$A:$A,C$1,siloEMPLOI!$E:$E,$A59) -> 370 | D59: =SUMIFS(siloEMPLOI!$F:$F,siloEMPLOI!$A:$A,D$1,siloEMPLOI!$E:$E,$A59) -> 1732 | E59: =SUMIFS(siloEMPLOI!$F:$F,siloEMPLOI!$A:$A,E$1,siloEMPLOI!$E:$E,$A59) -> 282 | F59: =SUMIFS(siloEMPLOI!$F:$F,siloEMPLOI!$A:$A,F$1,siloEMPLOI!$E:$E,$A59) -> 2978 | G59: =SUMIFS(siloEMPLOI!$F:$F,siloEMPLOI!$A:$A,G$1,siloEMPLOI!$E:$E,$A59) -> 321 | H59: =SUMIFS(siloEMPLOI!$F:$F,siloEMPLOI!$A:$A,H$1,siloEMPLOI!$E:$E,$A59) -> 1019 | I59: =SUMIFS(siloEMPLOI!$F:$F,siloEMPLOI!$A:$A,I$1,siloEMPLOI!$E:$E,$A59) -> 4718 | J59: =SUMIFS(siloEMPLOI!$F:$F,siloEMPLOI!$A:$A,J$1,siloEMPLOI!$E:$E,$A59) -> 1085 | K59: =SUMIFS(siloEMPLOI!$F:$F,siloEMPLOI!$A:$A,K$1,siloEMPLOI!$E:$E,$A59) -> 1621 | L59: =SUMIFS(siloEMPLOI!$F:$F,siloEMPLOI!$A:$A,L$1,siloEMPLOI!$E:$E,$A59) -> 10547 | M59: =SUMIFS(siloEMPLOI!$F:$F,siloEMPLOI!$A:$A,M$1,siloEMPLOI!$E:$E,$A59) -> 2229 | N59: =SUMIFS(siloEMPLOI!$F:$F,siloEMPLOI!$E:$E,$A59) -> 29751
A60: Industrie du futur, production industrielle | B60: =SUMIFS(siloEMPLOI!$F:$F,siloEMPLOI!$A:$A,B$1,siloEMPLOI!$E:$E,$A60) -> 20308 | C60: =SUMIFS(siloEMPLOI!$F:$F,siloEMPLOI!$A:$A,C$1,siloEMPLOI!$E:$E,$A60) -> 8041 | D60: =SUMIFS(siloEMPLOI!$F:$F,siloEMPLOI!$A:$A,D$1,siloEMPLOI!$E:$E,$A60) -> 10945 | E60: =SUMIFS(siloEMPLOI!$F:$F,siloEMPLOI!$A:$A,E$1,siloEMPLOI!$E:$E,$A60) -> 2170 | F60: =SUMIFS(siloEMPLOI!$F:$F,siloEMPLOI!$A:$A,F$1,siloEMPLOI!$E:$E,$A60) -> 15525 | G60: =SUMIFS(siloEMPLOI!$F:$F,siloEMPLOI!$A:$A,G$1,siloEMPLOI!$E:$E,$A60) -> 5380 | H60: =SUMIFS(siloEMPLOI!$F:$F,siloEMPLOI!$A:$A,H$1,siloEMPLOI!$E:$E,$A60) -> 21307 | I60: =SUMIFS(siloEMPLOI!$F:$F,siloEMPLOI!$A:$A,I$1,siloEMPLOI!$E:$E,$A60) -> 54367 | J60: =SUMIFS(siloEMPLOI!$F:$F,siloEMPLOI!$A:$A,J$1,siloEMPLOI!$E:$E,$A60) -> 23525 | K60: =SUMIFS(siloEMPLOI!$F:$F,siloEMPLOI!$A:$A,K$1,siloEMPLOI!$E:$E,$A60) -> 22384 | L60: =SUMIFS(siloEMPLOI!$F:$F,siloEMPLOI!$A:$A,L$1,siloEMPLOI!$E:$E,$A60) -> 67137 | M60: =SUMIFS(siloEMPLOI!$F:$F,siloEMPLOI!$A:$A,M$1,siloEMPLOI!$E:$E,$A60) -> 8140 | N60: =SUMIFS(siloEMPLOI!$F:$F,siloEMPLOI!$E:$E,$A60) -> 259229
A61: Métier de bouche | B61: =SUMIFS(siloEMPLOI!$F:$F,siloEMPLOI!$A:$A,B$1,siloEMPLOI!$E:$E,$A61) -> 3308 | C61: =SUMIFS(siloEMPLOI!$F:$F,siloEMPLOI!$A:$A,C$1,siloEMPLOI!$E:$E,$A61) -> 1696 | D61: =SUMIFS(siloEMPLOI!$F:$F,siloEMPLOI!$A:$A,D$1,siloEMPLOI!$E:$E,$A61) -> 1908 | E61: =SUMIFS(siloEMPLOI!$F:$F,siloEMPLOI!$A:$A,E$1,siloEMPLOI!$E:$E,$A61) -> 836 | F61: =SUMIFS(siloEMPLOI!$F:$F,siloEMPLOI!$A:$A,F$1,siloEMPLOI!$E:$E,$A61) -> 2903 | G61: =SUMIFS(siloEMPLOI!$F:$F,siloEMPLOI!$A:$A,G$1,siloEMPLOI!$E:$E,$A61) -> 1246 | H61: =SUMIFS(siloEMPLOI!$F:$F,siloEMPLOI!$A:$A,H$1,siloEMPLOI!$E:$E,$A61) -> 6073 | I61: =SUMIFS(siloEMPLOI!$F:$F,siloEMPLOI!$A:$A,I$1,siloEMPLOI!$E:$E,$A61) -> 6653 | J61: =SUMIFS(siloEMPLOI!$F:$F,siloEMPLOI!$A:$A,J$1,siloEMPLOI!$E:$E,$A61) -> 4299 | K61: =SUMIFS(siloEMPLOI!$F:$F,siloEMPLOI!$A:$A,K$1,siloEMPLOI!$E:$E,$A61) -> 3375 | L61: =SUMIFS(siloEMPLOI!$F:$F,siloEMPLOI!$A:$A,L$1,siloEMPLOI!$E:$E,$A61) -> 11780 | M61: =SUMIFS(siloEMPLOI!$F:$F,siloEMPLOI!$A:$A,M$1,siloEMPLOI!$E:$E,$A61) -> 3144 | N61: =SUMIFS(siloEMPLOI!$F:$F,siloEMPLOI!$E:$E,$A61) -> 47221
A62: Mobilité, systèmes de transport intelligents | B62: =SUMIFS(siloEMPLOI!$F:$F,siloEMPLOI!$A:$A,B$1,siloEMPLOI!$E:$E,$A62) -> 11041 | C62: =SUMIFS(siloEMPLOI!$F:$F,siloEMPLOI!$A:$A,C$1,siloEMPLOI!$E:$E,$A62) -> 4226 | D62: =SUMIFS(siloEMPLOI!$F:$F,siloEMPLOI!$A:$A,D$1,siloEMPLOI!$E:$E,$A62) -> 2865 | E62: =SUMIFS(siloEMPLOI!$F:$F,siloEMPLOI!$A:$A,E$1,siloEMPLOI!$E:$E,$A62) -> 1974 | F62: =SUMIFS(siloEMPLOI!$F:$F,siloEMPLOI!$A:$A,F$1,siloEMPLOI!$E:$E,$A62) -> 12140 | G62: =SUMIFS(siloEMPLOI!$F:$F,siloEMPLOI!$A:$A,G$1,siloEMPLOI!$E:$E,$A62) -> 2193 | H62: =SUMIFS(siloEMPLOI!$F:$F,siloEMPLOI!$A:$A,H$1,siloEMPLOI!$E:$E,$A62) -> 8313 | I62: =SUMIFS(siloEMPLOI!$F:$F,siloEMPLOI!$A:$A,I$1,siloEMPLOI!$E:$E,$A62) -> 21819 | J62: =SUMIFS(siloEMPLOI!$F:$F,siloEMPLOI!$A:$A,J$1,siloEMPLOI!$E:$E,$A62) -> 10985 | K62: =SUMIFS(siloEMPLOI!$F:$F,siloEMPLOI!$A:$A,K$1,siloEMPLOI!$E:$E,$A62) -> 12323 | L62: =SUMIFS(siloEMPLOI!$F:$F,siloEMPLOI!$A:$A,L$1,siloEMPLOI!$E:$E,$A62) -> 49360 | M62: =SUMIFS(siloEMPLOI!$F:$F,siloEMPLOI!$A:$A,M$1,siloEMPLOI!$E:$E,$A62) -> 7869 | N62: =SUMIFS(siloEMPLOI!$F:$F,siloEMPLOI!$E:$E,$A62) -> 145108
A63: Numérique | B63: =SUMIFS(siloEMPLOI!$F:$F,siloEMPLOI!$A:$A,B$1,siloEMPLOI!$E:$E,$A63) -> 1346 | C63: =SUMIFS(siloEMPLOI!$F:$F,siloEMPLOI!$A:$A,C$1,siloEMPLOI!$E:$E,$A63) -> 1153 | D63: =SUMIFS(siloEMPLOI!$F:$F,siloEMPLOI!$A:$A,D$1,siloEMPLOI!$E:$E,$A63) -> 1060 | E63: =SUMIFS(siloEMPLOI!$F:$F,siloEMPLOI!$A:$A,E$1,siloEMPLOI!$E:$E,$A63) -> 299 | F63: =SUMIFS(siloEMPLOI!$F:$F,siloEMPLOI!$A:$A,F$1,siloEMPLOI!$E:$E,$A63) -> 3007 | G63: =SUMIFS(siloEMPLOI!$F:$F,siloEMPLOI!$A:$A,G$1,siloEMPLOI!$E:$E,$A63) -> 585 | H63: =SUMIFS(siloEMPLOI!$F:$F,siloEMPLOI!$A:$A,H$1,siloEMPLOI!$E:$E,$A63) -> 4480 | I63: =SUMIFS(siloEMPLOI!$F:$F,siloEMPLOI!$A:$A,I$1,siloEMPLOI!$E:$E,$A63) -> 17348 | J63: =SUMIFS(siloEMPLOI!$F:$F,siloEMPLOI!$A:$A,J$1,siloEMPLOI!$E:$E,$A63) -> 3414 | K63: =SUMIFS(siloEMPLOI!$F:$F,siloEMPLOI!$A:$A,K$1,siloEMPLOI!$E:$E,$A63) -> 5240 | L63: =SUMIFS(siloEMPLOI!$F:$F,siloEMPLOI!$A:$A,L$1,siloEMPLOI!$E:$E,$A63) -> 58964 | M63: =SUMIFS(siloEMPLOI!$F:$F,siloEMPLOI!$A:$A,M$1,siloEMPLOI!$E:$E,$A63) -> 2214 | N63: =SUMIFS(siloEMPLOI!$F:$F,siloEMPLOI!$E:$E,$A63) -> 99110
A64: Polymères | B64: =SUMIFS(siloEMPLOI!$F:$F,siloEMPLOI!$A:$A,B$1,siloEMPLOI!$E:$E,$A64) -> 7390 | C64: =SUMIFS(siloEMPLOI!$F:$F,siloEMPLOI!$A:$A,C$1,siloEMPLOI!$E:$E,$A64) -> 837 | D64: =SUMIFS(siloEMPLOI!$F:$F,siloEMPLOI!$A:$A,D$1,siloEMPLOI!$E:$E,$A64) -> 433 | E64: =SUMIFS(siloEMPLOI!$F:$F,siloEMPLOI!$A:$A,E$1,siloEMPLOI!$E:$E,$A64) -> 508 | F64: =SUMIFS(siloEMPLOI!$F:$F,siloEMPLOI!$A:$A,F$1,siloEMPLOI!$E:$E,$A64) -> 2194 | G64: =SUMIFS(siloEMPLOI!$F:$F,siloEMPLOI!$A:$A,G$1,siloEMPLOI!$E:$E,$A64) -> 2899 | H64: =SUMIFS(siloEMPLOI!$F:$F,siloEMPLOI!$A:$A,H$1,siloEMPLOI!$E:$E,$A64) -> 1084 | I64: =SUMIFS(siloEMPLOI!$F:$F,siloEMPLOI!$A:$A,I$1,siloEMPLOI!$E:$E,$A64) -> 3032 | J64: =SUMIFS(siloEMPLOI!$F:$F,siloEMPLOI!$A:$A,J$1,siloEMPLOI!$E:$E,$A64) -> 1384 | K64: =SUMIFS(siloEMPLOI!$F:$F,siloEMPLOI!$A:$A,K$1,siloEMPLOI!$E:$E,$A64) -> 1190 | L64: =SUMIFS(siloEMPLOI!$F:$F,siloEMPLOI!$A:$A,L$1,siloEMPLOI!$E:$E,$A64) -> 3224 | M64: =SUMIFS(siloEMPLOI!$F:$F,siloEMPLOI!$A:$A,M$1,siloEMPLOI!$E:$E,$A64) -> 339 | N64: =SUMIFS(siloEMPLOI!$F:$F,siloEMPLOI!$E:$E,$A64) -> 24514
A65: Services à la personne | B65: =SUMIFS(siloEMPLOI!$F:$F,siloEMPLOI!$A:$A,B$1,siloEMPLOI!$E:$E,$A65) -> 2876 | C65: =SUMIFS(siloEMPLOI!$F:$F,siloEMPLOI!$A:$A,C$1,siloEMPLOI!$E:$E,$A65) -> 1572 | D65: =SUMIFS(siloEMPLOI!$F:$F,siloEMPLOI!$A:$A,D$1,siloEMPLOI!$E:$E,$A65) -> 2052 | E65: =SUMIFS(siloEMPLOI!$F:$F,siloEMPLOI!$A:$A,E$1,siloEMPLOI!$E:$E,$A65) -> 721 | F65: =SUMIFS(siloEMPLOI!$F:$F,siloEMPLOI!$A:$A,F$1,siloEMPLOI!$E:$E,$A65) -> 3582 | G65: =SUMIFS(siloEMPLOI!$F:$F,siloEMPLOI!$A:$A,G$1,siloEMPLOI!$E:$E,$A65) -> 1569 | H65: =SUMIFS(siloEMPLOI!$F:$F,siloEMPLOI!$A:$A,H$1,siloEMPLOI!$E:$E,$A65) -> 3795 | I65: =SUMIFS(siloEMPLOI!$F:$F,siloEMPLOI!$A:$A,I$1,siloEMPLOI!$E:$E,$A65) -> 7202 | J65: =SUMIFS(siloEMPLOI!$F:$F,siloEMPLOI!$A:$A,J$1,siloEMPLOI!$E:$E,$A65) -> 5318 | K65: =SUMIFS(siloEMPLOI!$F:$F,siloEMPLOI!$A:$A,K$1,siloEMPLOI!$E:$E,$A65) -> 2452 | L65: =SUMIFS(siloEMPLOI!$F:$F,siloEMPLOI!$A:$A,L$1,siloEMPLOI!$E:$E,$A65) -> 13877 | M65: =SUMIFS(siloEMPLOI!$F:$F,siloEMPLOI!$A:$A,M$1,siloEMPLOI!$E:$E,$A65) -> 1595 | N65: =SUMIFS(siloEMPLOI!$F:$F,siloEMPLOI!$E:$E,$A65) -> 46611
A66: Sport, Montagne, Tourisme | B66: =SUMIFS(siloEMPLOI!$F:$F,siloEMPLOI!$A:$A,B$1,siloEMPLOI!$E:$E,$A66) -> 9829 | C66: =SUMIFS(siloEMPLOI!$F:$F,siloEMPLOI!$A:$A,C$1,siloEMPLOI!$E:$E,$A66) -> 5218 | D66: =SUMIFS(siloEMPLOI!$F:$F,siloEMPLOI!$A:$A,D$1,siloEMPLOI!$E:$E,$A66) -> 4407 | E66: =SUMIFS(siloEMPLOI!$F:$F,siloEMPLOI!$A:$A,E$1,siloEMPLOI!$E:$E,$A66) -> 2370 | F66: =SUMIFS(siloEMPLOI!$F:$F,siloEMPLOI!$A:$A,F$1,siloEMPLOI!$E:$E,$A66) -> 9722 | G66: =SUMIFS(siloEMPLOI!$F:$F,siloEMPLOI!$A:$A,G$1,siloEMPLOI!$E:$E,$A66) -> 3023 | H66: =SUMIFS(siloEMPLOI!$F:$F,siloEMPLOI!$A:$A,H$1,siloEMPLOI!$E:$E,$A66) -> 37223 | I66: =SUMIFS(siloEMPLOI!$F:$F,siloEMPLOI!$A:$A,I$1,siloEMPLOI!$E:$E,$A66) -> 26338 | J66: =SUMIFS(siloEMPLOI!$F:$F,siloEMPLOI!$A:$A,J$1,siloEMPLOI!$E:$E,$A66) -> 11747 | K66: =SUMIFS(siloEMPLOI!$F:$F,siloEMPLOI!$A:$A,K$1,siloEMPLOI!$E:$E,$A66) -> 13966 | L66: =SUMIFS(siloEMPLOI!$F:$F,siloEMPLOI!$A:$A,L$1,siloEMPLOI!$E:$E,$A66) -> 54708 | M66: =SUMIFS(siloEMPLOI!$F:$F,siloEMPLOI!$A:$A,M$1,siloEMPLOI!$E:$E,$A66) -> 41775 | N66: =SUMIFS(siloEMPLOI!$F:$F,siloEMPLOI!$E:$E,$A66) -> 220326
A67: Santé | B67: =SUMIFS(siloEMPLOI!$F:$F,siloEMPLOI!$A:$A,B$1,siloEMPLOI!$E:$E,$A67) -> 4548 | C67: =SUMIFS(siloEMPLOI!$F:$F,siloEMPLOI!$A:$A,C$1,siloEMPLOI!$E:$E,$A67) -> 1898 | D67: =SUMIFS(siloEMPLOI!$F:$F,siloEMPLOI!$A:$A,D$1,siloEMPLOI!$E:$E,$A67) -> 2845 | E67: =SUMIFS(siloEMPLOI!$F:$F,siloEMPLOI!$A:$A,E$1,siloEMPLOI!$E:$E,$A67) -> 1261 | F67: =SUMIFS(siloEMPLOI!$F:$F,siloEMPLOI!$A:$A,F$1,siloEMPLOI!$E:$E,$A67) -> 3887 | G67: =SUMIFS(siloEMPLOI!$F:$F,siloEMPLOI!$A:$A,G$1,siloEMPLOI!$E:$E,$A67) -> 2384 | H67: =SUMIFS(siloEMPLOI!$F:$F,siloEMPLOI!$A:$A,H$1,siloEMPLOI!$E:$E,$A67) -> 5998 | I67: =SUMIFS(siloEMPLOI!$F:$F,siloEMPLOI!$A:$A,I$1,siloEMPLOI!$E:$E,$A67) -> 9943 | J67: =SUMIFS(siloEMPLOI!$F:$F,siloEMPLOI!$A:$A,J$1,siloEMPLOI!$E:$E,$A67) -> 6074 | K67: =SUMIFS(siloEMPLOI!$F:$F,siloEMPLOI!$A:$A,K$1,siloEMPLOI!$E:$E,$A67) -> 7236 | L67: =SUMIFS(siloEMPLOI!$F:$F,siloEMPLOI!$A:$A,L$1,siloEMPLOI!$E:$E,$A67) -> 24080 | M67: =SUMIFS(siloEMPLOI!$F:$F,siloEMPLOI!$A:$A,M$1,siloEMPLOI!$E:$E,$A67) -> 2834 | N67: =SUMIFS(siloEMPLOI!$F:$F,siloEMPLOI!$E:$E,$A67) -> 72988
A68: Hors DOMEX | B68: =SUMIFS(siloEMPLOI!$F:$F,siloEMPLOI!$A:$A,B$1,siloEMPLOI!$E:$E,$A68) -> 0 | C68: =SUMIFS(siloEMPLOI!$F:$F,siloEMPLOI!$A:$A,C$1,siloEMPLOI!$E:$E,$A68) -> 0 | D68: =SUMIFS(siloEMPLOI!$F:$F,siloEMPLOI!$A:$A,D$1,siloEMPLOI!$E:$E,$A68) -> 0 | E68: =SUMIFS(siloEMPLOI!$F:$F,siloEMPLOI!$A:$A,E$1,siloEMPLOI!$E:$E,$A68) -> 0 | F68: =SUMIFS(siloEMPLOI!$F:$F,siloEMPLOI!$A:$A,F$1,siloEMPLOI!$E:$E,$A68) -> 0 | G68: =SUMIFS(siloEMPLOI!$F:$F,siloEMPLOI!$A:$A,G$1,siloEMPLOI!$E:$E,$A68) -> 0 | H68: =SUMIFS(siloEMPLOI!$F:$F,siloEMPLOI!$A:$A,H$1,siloEMPLOI!$E:$E,$A68) -> 0 | I68: =SUMIFS(siloEMPLOI!$F:$F,siloEMPLOI!$A:$A,I$1,siloEMPLOI!$E:$E,$A68) -> 0 | J68: =SUMIFS(siloEMPLOI!$F:$F,siloEMPLOI!$A:$A,J$1,siloEMPLOI!$E:$E,$A68) -> 0 | K68: =SUMIFS(siloEMPLOI!$F:$F,siloEMPLOI!$A:$A,K$1,siloEMPLOI!$E:$E,$A68) -> 0 | L68: =SUMIFS(siloEMPLOI!$F:$F,siloEMPLOI!$A:$A,L$1,siloEMPLOI!$E:$E,$A68) -> 0 | M68: =SUMIFS(siloEMPLOI!$F:$F,siloEMPLOI!$A:$A,M$1,siloEMPLOI!$E:$E,$A68) -> 0 | N68: =SUMIFS(siloEMPLOI!$F:$F,siloEMPLOI!$E:$E,$A68) -> 0
A69: TOTAL TOUS SECTEURS (secteur privé) | B69: =SUMIFS(siloEMPLOI!$F:$F,siloEMPLOI!$A:$A,B$1) -> 156703 | C69: =SUMIFS(siloEMPLOI!$F:$F,siloEMPLOI!$A:$A,C$1) -> 73726 | D69: =SUMIFS(siloEMPLOI!$F:$F,siloEMPLOI!$A:$A,D$1) -> 65772 | E69: =SUMIFS(siloEMPLOI!$F:$F,siloEMPLOI!$A:$A,E$1) -> 30309 | F69: =SUMIFS(siloEMPLOI!$F:$F,siloEMPLOI!$A:$A,F$1) -> 160245 | G69: =SUMIFS(siloEMPLOI!$F:$F,siloEMPLOI!$A:$A,G$1) -> 51812 | H69: =SUMIFS(siloEMPLOI!$F:$F,siloEMPLOI!$A:$A,H$1) -> 229913 | I69: =SUMIFS(siloEMPLOI!$F:$F,siloEMPLOI!$A:$A,I$1) -> 373901 | J69: =SUMIFS(siloEMPLOI!$F:$F,siloEMPLOI!$A:$A,J$1) -> 200482 | K69: =SUMIFS(siloEMPLOI!$F:$F,siloEMPLOI!$A:$A,K$1) -> 178879 | L69: =SUMIFS(siloEMPLOI!$F:$F,siloEMPLOI!$A:$A,L$1) -> 793675 | M69: =SUMIFS(siloEMPLOI!$F:$F,siloEMPLOI!$A:$A,M$1) -> 160252 | N69: =SUM(siloEMPLOI!$F:$F) -> 2475669

Sheet Emploi (NAF) (hidden)
A1: NAF | B1: Libellé NAF | C1: DOMEX | D1: Clé tri DOMEX | E1: Territoire sélection | F1: Ain | G1: Allier | H1: Ardèche | I1: Cantal | J1: Drôme | K1: Haute-Loire | L1: Haute-Savoie | M1: Isère | N1: Loire | O1: Puy-de-Dôme | P1: Rhône | Q1: Savoie | R1: Auvergne-Rhône-Alpes
A2: 4321A | B2: Travaux d'installation électrique dans tous locaux | C2: BTP | D2: =IF(C2='DONNEES INFOGRAPHIES'!$B$6,1,0) -> 1 | E2: =VLOOKUP(A2,A:R,'DONNEES INFOGRAPHIES'!$L$8,FALSE) -> 26848 | F2: 1973 | G2: 740 | H2: 650 | I2: 275 | J2: 2244 | K2: 405 | L2: 1995 | M2: 3901 | N2: 1986 | O2: 1996 | P2: 9108 | Q2: 1575 | R2: 26848
A3: 4399C | B3: Travaux de maçonnerie générale et gros oeuvre de bâtiment | C3: BTP | D3: =IF(C3='DONNEES INFOGRAPHIES'!$B$6,1,0) -> 1 | E3: =VLOOKUP(A3,A:R,'DONNEES INFOGRAPHIES'!$L$8,FALSE) -> 25689 | F3: 1826 | G3: 862 | H3: 1440 | I3: 418 | J3: 2252 | K3: 774 | L3: 2792 | M3: 4153 | N3: 2289 | O3: 1986 | P3: 4863 | Q3: 2034 | R3: 25689
A4: 4322B | B4: Travaux d'installation équipements thermiques et climatisation | C4: BTP | D4: =IF(C4='DONNEES INFOGRAPHIES'!$B$6,1,0) -> 1 | E4: =VLOOKUP(A4,A:R,'DONNEES INFOGRAPHIES'!$L$8,FALSE) -> 16073 | F4: 901 | G4: 636 | H4: 402 | I4: 130 | J4: 1461 | K4: 357 | L4: 1482 | M4: 2391 | N4: 1428 | O4: 1081 | P4: 5091 | Q4: 713 | R4: 16073
A5: 4332A | B5: Travaux de menuiserie bois et PVC | C5: BTP | D5: =IF(C5='DONNEES INFOGRAPHIES'!$B$6,1,0) -> 1 | E5: =VLOOKUP(A5,A:R,'DONNEES INFOGRAPHIES'!$L$8,FALSE) -> 12963 | F5: 890 | G5: 588 | H5: 591 | I5: 337 | J5: 602 | K5: 644 | L5: 1875 | M5: 1736 | N5: 1417 | O5: 914 | P5: 2377 | Q5: 992 | R5: 12963
A6: 4312A | B6: Travaux de terrassement courants et travaux préparatoires | C6: BTP | D6: =IF(C6='DONNEES INFOGRAPHIES'!$B$6,1,0) -> 1 | E6: =VLOOKUP(A6,A:R,'DONNEES INFOGRAPHIES'!$L$8,FALSE) -> 11211 | F6: 1024 | G6: 241 | H6: 639 | I6: 366 | J6: 741 | K6: 462 | L6: 1369 | M6: 1909 | N6: 788 | O6: 706 | P6: 2002 | Q6: 964 | R6: 11211
A7: 4334Z | B7: Travaux de peinture et vitrerie | C7: BTP | D7: =IF(C7='DONNEES INFOGRAPHIES'!$B$6,1,0) -> 1 | E7: =VLOOKUP(A7,A:R,'DONNEES INFOGRAPHIES'!$L$8,FALSE) -> 10296 | F7: 596 | G7: 330 | H7: 294 | I7: 89 | J7: 497 | K7: 160 | L7: 1218 | M7: 2091 | N7: 693 | O7: 926 | P7: 2717 | Q7: 685 | R7: 10296
A8: 4322A | B8: Travaux d'installation d'eau et de gaz en tous locaux | C8: BTP | D8: =IF(C8='DONNEES INFOGRAPHIES'!$B$6,1,0) -> 1 | E8: =VLOOKUP(A8,A:R,'DONNEES INFOGRAPHIES'!$L$8,FALSE) -> 9651 | F8: 845 | G8: 367 | H8: 286 | I8: 164 | J8: 589 | K8: 340 | L8: 817 | M8: 1632 | N8: 971 | O8: 573 | P8: 2515 | Q8: 552 | R8: 9651
A9: 4331Z | B9: Travaux de plâtrerie | C9: BTP | D9: =IF(C9='DONNEES INFOGRAPHIES'!$B$6,1,0) -> 1 | E9: =VLOOKUP(A9,A:R,'DONNEES INFOGRAPHIES'!$L$8,FALSE) -> 9131 | F9: 737 | G9: 460 | H9: 194 | I9: 249 | J9: 436 | K9: 374 | L9: 561 | M9: 861 | N9: 1298 | O9: 930 | P9: 2507 | Q9: 524 | R9: 9131
A10: 4211Z | B10: Construction de routes et autoroutes | C10: BTP | D10: =IF(C10='DONNEES INFOGRAPHIES'!$B$6,1,0) -> 1 | E10: =VLOOKUP(A10,A:R,'DONNEES INFOGRAPHIES'!$L$8,FALSE) -> 7989 | F10: 437 | G10: 432 | H10: 319 | I10: 442 | J10: 397 | K10: 226 | L10: 924 | M10: 1023 | N10: 496 | O10: 823 | P10: 1878 | Q10: 592 | R10: 7989
A11: 4332B | B11: Travaux de menuiserie métallique et serrurerie | C11: BTP | D11: =IF(C11='DONNEES INFOGRAPHIES'!$B$6,1,0) -> 1 | E11: =VLOOKUP(A11,A:R,'DONNEES INFOGRAPHIES'!$L$8,FALSE) -> 7114 | F11: 475 | G11: 163 | H11: 245 | I11: 153 | J11: 478 | K11: 173 | L11: 588 | M11: 990 | N11: 1066 | O11: 596 | P11: 1751 | Q11: 436 | R11: 7114
A12: 4222Z | B12: Construction de réseaux électriques et de télécommunications | C12: BTP | D12: =IF(C12='DONNEES INFOGRAPHIES'!$B$6,1,0) -> 1 | E12: =VLOOKUP(A12,A:R,'DONNEES INFOGRAPHIES'!$L$8,FALSE) -> 6825 | F12: 424 | G12: 110 | H12: 170 | I12: 291 | J12: 306 | K12: 181 | L12: 408 | M12: 731 | N12: 762 | O12: 464 | P12: 2563 | Q12: 415 | R12: 6825
A13: 4391A | B13: Travaux de charpente | C13: BTP | D13: =IF(C13='DONNEES INFOGRAPHIES'!$B$6,1,0) -> 1 | E13: =VLOOKUP(A13,A:R,'DONNEES INFOGRAPHIES'!$L$8,FALSE) -> 6258 | F13: 653 | G13: 71 | H13: 160 | I13: 38 | J13: 294 | K13: 242 | L13: 1269 | M13: 1299 | N13: 473 | O13: 319 | P13: 652 | Q13: 788 | R13: 6258
A14: 4333Z | B14: Travaux de revêtement des sols et des murs | C14: BTP | D14: =IF(C14='DONNEES INFOGRAPHIES'!$B$6,1,0) -> 1 | E14: =VLOOKUP(A14,A:R,'DONNEES INFOGRAPHIES'!$L$8,FALSE) -> 5582 | F14: 533 | G14: 211 | H14: 128 | I14: 120 | J14: 379 | K14: 102 | L14: 623 | M14: 935 | N14: 530 | O14: 245 | P14: 1382 | Q14: 394 | R14: 5582
A15: 4120B | B15: Construction d'autres bâtiments | C15: BTP | D15: =IF(C15='DONNEES INFOGRAPHIES'!$B$6,1,0) -> 1 | E15: =VLOOKUP(A15,A:R,'DONNEES INFOGRAPHIES'!$L$8,FALSE) -> 5373 | F15: 468 | G15: 138 | H15: 57 | I15: 37 | J15: 283 | K15: 101 | L15: 287 | M15: 939 | N15: 128 | O15: 509 | P15: 2027 | Q15: 399 | R15: 5373
A16: 4329A | B16: Travaux d'isolation | C16: BTP | D16: =IF(C16='DONNEES INFOGRAPHIES'!$B$6,1,0) -> 1 | E16: =VLOOKUP(A16,A:R,'DONNEES INFOGRAPHIES'!$L$8,FALSE) -> 4200 | F16: 300 | G16: 146 | H16: 80 | I16: 19 | J16: 271 | K16: 43 | L16: 196 | M16: 1117 | N16: 272 | O16: 251 | P16: 1299 | Q16: 206 | R16: 4200
A17: 4391B | B17: Travaux de couverture par éléments | C17: BTP | D17: =IF(C17='DONNEES INFOGRAPHIES'!$B$6,1,0) -> 1 | E17: =VLOOKUP(A17,A:R,'DONNEES INFOGRAPHIES'!$L$8,FALSE) -> 3911 | F17: 328 | G17: 344 | H17: 53 | I17: 193 | J17: 135 | K17: 67 | L17: 343 | M17: 420 | N17: 522 | O17: 489 | P17: 788 | Q17: 229 | R17: 3911
A18: 4221Z | B18: Construction de réseaux pour fluides | C18: BTP | D18: =IF(C18='DONNEES INFOGRAPHIES'!$B$6,1,0) -> 1 | E18: =VLOOKUP(A18,A:R,'DONNEES INFOGRAPHIES'!$L$8,FALSE) -> 3741 | F18: 283 | G18: 104 | H18: 349 | I18: 5 | J18: 345 | K18: 80 | L18: 233 | M18: 473 | N18: 302 | O18: 267 | P18: 1079 | Q18: 221 | R18: 3741
A19: 4399D | B19: Autres travaux spécialisés de construction | C19: BTP | D19: =IF(C19='DONNEES INFOGRAPHIES'!$B$6,1,0) -> 1 | E19: =VLOOKUP(A19,A:R,'DONNEES INFOGRAPHIES'!$L$8,FALSE) -> 3372 | F19: 225 | G19: 80 | H19: 83 | I19: 49 | J19: 245 | K19: 119 | L19: 272 | M19: 419 | N19: 330 | O19: 184 | P19: 1164 | Q19: 202 | R19: 3372
A20: 4110A | B20: Promotion immobilière de logements | C20: BTP | D20: =IF(C20='DONNEES INFOGRAPHIES'!$B$6,1,0) -> 1 | E20: =VLOOKUP(A20,A:R,'DONNEES INFOGRAPHIES'!$L$8,FALSE) -> 3303 | F20: 73 | G20: 9 | H20: 11 | I20: 3 | J20: 47 | K20: 21 | L20: 760 | M20: 362 | N20: 86 | O20: 134 | P20: 1559 | Q20: 238 | R20: 3303
A21: 4329B | B21: Autres travaux d'installation n.c.a. | C21: BTP | D21: =IF(C21='DONNEES INFOGRAPHIES'!$B$6,1,0) -> 1 | E21: =VLOOKUP(A21,A:R,'DONNEES INFOGRAPHIES'!$L$8,FALSE) -> 3187 | F21: 77 | G21: 33 | H21: 74 | J21: 188 | K21: 56 | L21: 323 | M21: 325 | N21: 259 | O21: 281 | P21: 1267 | Q21: 304 | R21: 3187
A22: 4120A | B22: Construction de maisons individuelles | C22: BTP | D22: =IF(C22='DONNEES INFOGRAPHIES'!$B$6,1,0) -> 1 | E22: =VLOOKUP(A22,A:R,'DONNEES INFOGRAPHIES'!$L$8,FALSE) -> 3130 | F22: 226 | G22: 148 | H22: 76 | I22: 40 | J22: 356 | K22: 44 | L22: 607 | M22: 389 | N22: 249 | O22: 240 | P22: 500 | Q22: 255 | R22: 3130
A23: 4399A | B23: Travaux d'étanchéification | C23: BTP | D23: =IF(C23='DONNEES INFOGRAPHIES'!$B$6,1,0) -> 1 | E23: =VLOOKUP(A23,A:R,'DONNEES INFOGRAPHIES'!$L$8,FALSE) -> 2848 | F23: 105 | G23: 11 | H23: 49 | J23: 193 | K23: 43 | L23: 120 | M23: 455 | N23: 391 | O23: 218 | P23: 1001 | Q23: 262 | R23: 2848
A24: 4312B | B24: Travaux de terrassement spécialisés ou de grande masse | C24: BTP | D24: =IF(C24='DONNEES INFOGRAPHIES'!$B$6,1,0) -> 1 | E24: =VLOOKUP(A24,A:R,'DONNEES INFOGRAPHIES'!$L$8,FALSE) -> 2839 | F24: 175 | G24: 18 | H24: 75 | I24: 38 | J24: 330 | K24: 11 | L24: 482 | M24: 698 | N24: 189 | O24: 218 | P24: 419 | Q24: 186 | R24: 2839
A25: 4399B | B25: Travaux de montage de structures métalliques | C25: BTP | D25: =IF(C25='DONNEES INFOGRAPHIES'!$B$6,1,0) -> 1 | E25: =VLOOKUP(A25,A:R,'DONNEES INFOGRAPHIES'!$L$8,FALSE) -> 1988 | F25: 153 | G25: 117 | H25: 73 | I25: 36 | J25: 233 | K25: 81 | L25: 76 | M25: 382 | N25: 97 | O25: 102 | P25: 554 | Q25: 84 | R25: 1988
A26: 4213A | B26: Construction d'ouvrages d'art | C26: BTP | D26: =IF(C26='DONNEES INFOGRAPHIES'!$B$6,1,0) -> 1 | E26: =VLOOKUP(A26,A:R,'DONNEES INFOGRAPHIES'!$L$8,FALSE) -> 1608 | F26: 4 | I26: 67 | J26: 187 | L26: 14 | M26: 129 | N26: 46 | O26: 81 | P26: 757 | Q26: 323 | R26: 1608
A27: 4299Z | B27: Construction d'autres ouvrages de génie civil n.c.a. | C27: BTP | D27: =IF(C27='DONNEES INFOGRAPHIES'!$B$6,1,0) -> 1 | E27: =VLOOKUP(A27,A:R,'DONNEES INFOGRAPHIES'!$L$8,FALSE) -> 1595 | F27: 28 | G27: 6 | H27: 24 | I27: 2 | J27: 102 | L27: 65 | M27: 213 | N27: 74 | O27: 47 | P27: 623 | Q27: 411 | R27: 1595
A28: 4339Z | B28: Autres travaux de finition | C28: BTP | D28: =IF(C28='DONNEES INFOGRAPHIES'!$B$6,1,0) -> 1 | E28: =VLOOKUP(A28,A:R,'DONNEES INFOGRAPHIES'!$L$8,FALSE) -> 1118 | F28: 59 | G28: 21 | H28: 16 | I28: 19 | J28: 88 | K28: 25 | L28: 88 | M28: 158 | N28: 94 | O28: 77 | P28: 385 | Q28: 88 | R28: 1118
A29: 4332C | B29: Agencement de lieux de vente | C29: BTP | D29: =IF(C29='DONNEES INFOGRAPHIES'!$B$6,1,0) -> 1 | E29: =VLOOKUP(A29,A:R,'DONNEES INFOGRAPHIES'!$L$8,FALSE) -> 1097 | F29: 39 | G29: 59 | H29: 5 | I29: 4 | J29: 4 | K29: 4 | L29: 86 | M29: 135 | N29: 137 | O29: 31 | P29: 495 | Q29: 98 | R29: 1097
A30: 4311Z | B30: Travaux de démolition | C30: BTP | D30: =IF(C30='DONNEES INFOGRAPHIES'!$B$6,1,0) -> 1 | E30: =VLOOKUP(A30,A:R,'DONNEES INFOGRAPHIES'!$L$8,FALSE) -> 972 | F30: 47 | H30: 1 | I30: 1 | J30: 9 | K30: 18 | L30: 95 | M30: 93 | N30: 209 | O30: 28 | P30: 424 | Q30: 47 | R30: 972
A31: 4212Z | B31: Construction de voies ferrées de surface et souterraines | C31: BTP | D31: =IF(C31='DONNEES INFOGRAPHIES'!$B$6,1,0) -> 1 | E31: =VLOOKUP(A31,A:R,'DONNEES INFOGRAPHIES'!$L$8,FALSE) -> 614 | F31: 53 | H31: 3 | J31: 1 | M31: 155 | N31: 71 | O31: 33 | P31: 298 | R31: 614
A32: 4399E | B32: Location avec opérateur de matériel de construction | C32: BTP | D32: =IF(C32='DONNEES INFOGRAPHIES'!$B$6,1,0) -> 1 | E32: =VLOOKUP(A32,A:R,'DONNEES INFOGRAPHIES'!$L$8,FALSE) -> 559 | F32: 22 | G32: 3 | I32: 6 | J32: 41 | K32: 4 | L32: 67 | M32: 120 | N32: 40 | O32: 27 | P32: 197 | Q32: 32 | R32: 559
A33: 4321B | B33: Travaux d'installation électrique sur la voie publique | C33: BTP | D33: =IF(C33='DONNEES INFOGRAPHIES'!$B$6,1,0) -> 1 | E33: =VLOOKUP(A33,A:R,'DONNEES INFOGRAPHIES'!$L$8,FALSE) -> 467 | F33: 18 | G33: 52 | J33: 2 | K33: 1 | L33: 4 | M33: 34 | N33: 50 | O33: 67 | P33: 202 | Q33: 37 | R33: 467
A34: 4313Z | B34: Forages et sondages | C34: BTP | D34: =IF(C34='DONNEES INFOGRAPHIES'!$B$6,1,0) -> 1 | E34: =VLOOKUP(A34,A:R,'DONNEES INFOGRAPHIES'!$L$8,FALSE) -> 423 | F34: 50 | H34: 5 | J34: 18 | K34: 11 | L34: 4 | M34: 32 | N34: 5 | O34: 22 | P34: 276 | R34: 423
A35: 4110C | B35: Promotion immobilière d'autres bâtiments | C35: BTP | D35: =IF(C35='DONNEES INFOGRAPHIES'!$B$6,1,0) -> 1 | E35: =VLOOKUP(A35,A:R,'DONNEES INFOGRAPHIES'!$L$8,FALSE) -> 364 | F35: 20 | H35: 2 | J35: 38 | L35: 19 | M35: 40 | N35: 2 | O35: 5 | P35: 237 | Q35: 1 | R35: 364
A36: 4213B | B36: Construction et entretien de tunnels | C36: BTP | D36: =IF(C36='DONNEES INFOGRAPHIES'!$B$6,1,0) -> 1 | E36: =VLOOKUP(A36,A:R,'DONNEES INFOGRAPHIES'!$L$8,FALSE) -> 295 | P36: 203 | Q36: 92 | R36: 295
A37: 4291Z | B37: Construction d'ouvrages maritimes et fluviaux | C37: BTP | D37: =IF(C37='DONNEES INFOGRAPHIES'!$B$6,1,0) -> 1 | E37: =VLOOKUP(A37,A:R,'DONNEES INFOGRAPHIES'!$L$8,FALSE) -> 148 | F37: 16 | H37: 13 | L37: 5 | M37: 112 | P37: 2 | R37: 148
A38: 4110B | B38: Promotion immobilière de bureaux | C38: BTP | D38: =IF(C38='DONNEES INFOGRAPHIES'!$B$6,1,0) -> 1 | E38: =VLOOKUP(A38,A:R,'DONNEES INFOGRAPHIES'!$L$8,FALSE) -> 95 | L38: 1 | M38: 6 | N38: 3 | P38: 85 | R38: 95
A39: 4110D | B39: Supports juridiques de programmes | C39: BTP | D39: =IF(C39='DONNEES INFOGRAPHIES'!$B$6,1,0) -> 1 | E39: =VLOOKUP(A39,A:R,'DONNEES INFOGRAPHIES'!$L$8,FALSE) -> 68 | F39: 3 | I39: 1 | J39: 1 | K39: 1 | L39: 9 | M39: 10 | N39: 2 | O39: 2 | P39: 36 | Q39: 3 | R39: 68
A40: 7820Z | B40: Activités des agences de travail temporaire | D40: =IF(C40='DONNEES INFOGRAPHIES'!$B$6,1,0) -> 0 | E40: =VLOOKUP(A40,A:R,'DONNEES INFOGRAPHIES'!$L$8,FALSE) -> 71168 | F40: 4943 | G40: 2418 | H40: 932 | I40: 461 | J40: 4716 | K40: 1658 | L40: 4361 | M40: 12000 | N40: 4595 | O40: 4492 | P40: 27437 | Q40: 3155 | R40: 71168
A41: 5610A | B41: Restauration traditionnelle | C41: Sport, Montagne, Tourisme | D41: =IF(C41='DONNEES INFOGRAPHIES'!$B$6,1,0) -> 0 | E41: =VLOOKUP(A41,A:R,'DONNEES INFOGRAPHIES'!$L$8,FALSE) -> 59264 | F41: 2949 | G41: 1299 | H41: 1041 | I41: 520 | J41: 2612 | K41: 717 | L41: 11236 | M41: 7161 | N41: 3163 | O41: 3360 | P41: 15038 | Q41: 10168 | R41: 59264
A42: 7112B | B42: Ingénierie, études techniques | D42: =IF(C42='DONNEES INFOGRAPHIES'!$B$6,1,0) -> 0 | E42: =VLOOKUP(A42,A:R,'DONNEES INFOGRAPHIES'!$L$8,FALSE) -> 52698 | F42: 1364 | G42: 210 | H42: 777 | I42: 143 | J42: 3241 | K42: 170 | L42: 2568 | M42: 8113 | N42: 2233 | O42: 2259 | P42: 29579 | Q42: 2041 | R42: 52698
A43: 8121Z | B43: Nettoyage courant des bâtiments | D43: =IF(C43='DONNEES INFOGRAPHIES'!$B$6,1,0) -> 0 | E43: =VLOOKUP(A43,A:R,'DONNEES INFOGRAPHIES'!$L$8,FALSE) -> 48365 | F43: 2440 | G43: 1129 | H43: 964 | I43: 196 | J43: 2660 | K43: 228 | L43: 5016 | M43: 8437 | N43: 3365 | O43: 3249 | P43: 17371 | Q43: 3310 | R43: 48365
A44: 8610Z | B44: Activités hospitalières | C44: Santé | D44: =IF(C44='DONNEES INFOGRAPHIES'!$B$6,1,0) -> 0 | E44: =VLOOKUP(A44,A:R,'DONNEES INFOGRAPHIES'!$L$8,FALSE) -> 39165 | F44: 2492 | G44: 331 | H44: 1479 | I44: 516 | J44: 1767 | K44: 1334 | L44: 2713 | M44: 5064 | N44: 2821 | O44: 4652 | P44: 14976 | Q44: 1020 | R44: 39165
A45: 6202A | B45: Conseil en systèmes et logiciels informatiques | C45: Numérique | D45: =IF(C45='DONNEES INFOGRAPHIES'!$B$6,1,0) -> 0 | E45: =VLOOKUP(A45,A:R,'DONNEES INFOGRAPHIES'!$L$8,FALSE) -> 38318 | F45: 174 | G45: 456 | H45: 130 | I45: 22 | J45: 828 | K45: 118 | L45: 986 | M45: 6736 | N45: 764 | O45: 1428 | P45: 26057 | Q45: 619 | R45: 38318
A46: 5610C | B46: Restauration de type rapide | C46: Sport, Montagne, Tourisme | D46: =IF(C46='DONNEES INFOGRAPHIES'!$B$6,1,0) -> 0 | E46: =VLOOKUP(A46,A:R,'DONNEES INFOGRAPHIES'!$L$8,FALSE) -> 35599 | F46: 1684 | G46: 1454 | H46: 746 | I46: 322 | J46: 1990 | K46: 463 | L46: 4060 | M46: 5621 | N46: 2682 | O46: 2820 | P46: 11702 | Q46: 2055 | R46: 35599
A47: 4711D | B47: Supermarchés | D47: =IF(C47='DONNEES INFOGRAPHIES'!$B$6,1,0) -> 0 | E47: =VLOOKUP(A47,A:R,'DONNEES INFOGRAPHIES'!$L$8,FALSE) -> 34940 | F47: 3599 | G47: 1459 | H47: 1572 | I47: 917 | J47: 2079 | K47: 1084 | L47: 4413 | M47: 5537 | N47: 2845 | O47: 3010 | P47: 6341 | Q47: 2084 | R47: 34940
A48: 4711F | B48: Hypermarchés | D48: =IF(C48='DONNEES INFOGRAPHIES'!$B$6,1,0) -> 0 | E48: =VLOOKUP(A48,A:R,'DONNEES INFOGRAPHIES'!$L$8,FALSE) -> 34334 | F48: 1919 | G48: 2234 | H48: 1079 | I48: 380 | J48: 2374 | K48: 720 | L48: 3609 | M48: 4599 | N48: 5208 | O48: 3392 | P48: 6534 | Q48: 2286 | R48: 34334
A49: 5510Z | B49: Hôtels et hébergement similaire | C49: Sport, Montagne, Tourisme | D49: =IF(C49='DONNEES INFOGRAPHIES'!$B$6,1,0) -> 0 | E49: =VLOOKUP(A49,A:R,'DONNEES INFOGRAPHIES'!$L$8,FALSE) -> 33614 | F49: 1163 | G49: 693 | H49: 387 | I49: 389 | J49: 1234 | K49: 294 | L49: 7852 | M49: 2934 | N49: 647 | O49: 1755 | P49: 5250 | Q49: 11016 | R49: 33614
A50: 8810A | B50: Aide à domicile | C50: Services à la personne | D50: =IF(C50='DONNEES INFOGRAPHIES'!$B$6,1,0) -> 0 | E50: =VLOOKUP(A50,A:R,'DONNEES INFOGRAPHIES'!$L$8,FALSE) -> 30146 | F50: 1567 | G50: 1421 | H50: 1685 | I50: 667 | J50: 2927 | K50: 1262 | L50: 2148 | M50: 5446 | N50: 3829 | O50: 1519 | P50: 6777 | Q50: 898 | R50: 30146
A51: 4941A | B51: Transports routiers de fret interurbains | C51: Mobilité, systèmes de transport intelligents | D51: =IF(C51='DONNEES INFOGRAPHIES'!$B$6,1,0) -> 0 | E51: =VLOOKUP(A51,A:R,'DONNEES INFOGRAPHIES'!$L$8,FALSE) -> 28739 | F51: 2528 | G51: 1192 | H51: 556 | I51: 845 | J51: 2790 | K51: 539 | L51: 1398 | M51: 3474 | N51: 2744 | O51: 2441 | P51: 8573 | Q51: 1659 | R51: 28739
A52: 7022Z | B52: Conseil pour les affaires et autres conseils de gestion | D52: =IF(C52='DONNEES INFOGRAPHIES'!$B$6,1,0) -> 0 | E52: =VLOOKUP(A52,A:R,'DONNEES INFOGRAPHIES'!$L$8,FALSE) -> 26776 | F52: 1034 | G52: 189 | H52: 353 | I52: 23 | J52: 1061 | K52: 127 | L52: 1134 | M52: 2563 | N52: 891 | O52: 1650 | P52: 16723 | Q52: 1028 | R52: 26776
A53: 6920Z | B53: Activités comptables | D53: =IF(C53='DONNEES INFOGRAPHIES'!$B$6,1,0) -> 0 | E53: =VLOOKUP(A53,A:R,'DONNEES INFOGRAPHIES'!$L$8,FALSE) -> 24043 | F53: 934 | G53: 619 | H53: 471 | I53: 333 | J53: 1284 | K53: 420 | L53: 2466 | M53: 3315 | N53: 1967 | O53: 1405 | P53: 9275 | Q53: 1554 | R53: 24043
A54: 6419Z | B54: Autres intermédiations monétaires | D54: =IF(C54='DONNEES INFOGRAPHIES'!$B$6,1,0) -> 0 | E54: =VLOOKUP(A54,A:R,'DONNEES INFOGRAPHIES'!$L$8,FALSE) -> 22807 | F54: 970 | G54: 521 | H54: 520 | I54: 176 | J54: 1425 | K54: 301 | L54: 1946 | M54: 3006 | N54: 1876 | O54: 1857 | P54: 9300 | Q54: 909 | R54: 22807
A55: 4941B | B55: Transports routiers de fret de proximité | C55: Mobilité, systèmes de transport intelligents | D55: =IF(C55='DONNEES INFOGRAPHIES'!$B$6,1,0) -> 0 | E55: =VLOOKUP(A55,A:R,'DONNEES INFOGRAPHIES'!$L$8,FALSE) -> 22777 | F55: 1395 | G55: 789 | H55: 239 | I55: 147 | J55: 2599 | K55: 323 | L55: 1187 | M55: 3041 | N55: 2429 | O55: 1822 | P55: 7554 | Q55: 1252 | R55: 22777
A56: 8899B | B56: Action sociale sans hébergement n.c.a. | D56: =IF(C56='DONNEES INFOGRAPHIES'!$B$6,1,0) -> 0 | E56: =VLOOKUP(A56,A:R,'DONNEES INFOGRAPHIES'!$L$8,FALSE) -> 22664 | F56: 2170 | G56: 972 | H56: 731 | I56: 1060 | J56: 1266 | K56: 1026 | L56: 1083 | M56: 2691 | N56: 2243 | O56: 1760 | P56: 6276 | Q56: 1386 | R56: 22664
A57: 8710A | B57: Hébergement médicalisé pour personnes âgées | D57: =IF(C57='DONNEES INFOGRAPHIES'!$B$6,1,0) -> 0 | E57: =VLOOKUP(A57,A:R,'DONNEES INFOGRAPHIES'!$L$8,FALSE) -> 22587 | F57: 1632 | G57: 1104 | H57: 1339 | I57: 692 | J57: 1716 | K57: 1044 | L57: 1161 | M57: 2519 | N57: 2705 | O57: 1362 | P57: 6631 | Q57: 682 | R57: 22587
A58: 1071C | B58: Boulangerie et boulangerie-pâtisserie | C58: Métier de bouche | D58: =IF(C58='DONNEES INFOGRAPHIES'!$B$6,1,0) -> 0 | E58: =VLOOKUP(A58,A:R,'DONNEES INFOGRAPHIES'!$L$8,FALSE) -> 21905 | F58: 1590 | G58: 842 | H58: 777 | I58: 420 | J58: 1485 | K58: 619 | L58: 2736 | M58: 3156 | N58: 1959 | O58: 1660 | P58: 5135 | Q58: 1526 | R58: 21905
A59: 4520A | B59: Entretien et réparation de véhicules automobiles légers | D59: =IF(C59='DONNEES INFOGRAPHIES'!$B$6,1,0) -> 0 | E59: =VLOOKUP(A59,A:R,'DONNEES INFOGRAPHIES'!$L$8,FALSE) -> 21676 | F59: 1672 | G59: 709 | H59: 796 | I59: 458 | J59: 1610 | K59: 559 | L59: 2334 | M59: 3684 | N59: 2178 | O59: 1826 | P59: 4454 | Q59: 1396 | R59: 21676
A60: 9499Z | B60: Autres organisations fonctionnant par adhésion volontaire | D60: =IF(C60='DONNEES INFOGRAPHIES'!$B$6,1,0) -> 0 | E60: =VLOOKUP(A60,A:R,'DONNEES INFOGRAPHIES'!$L$8,FALSE) -> 21195 | F60: 1185 | G60: 455 | H60: 893 | I60: 198 | J60: 1636 | K60: 399 | L60: 1523 | M60: 2927 | N60: 1872 | O60: 1560 | P60: 7451 | Q60: 1096 | R60: 21195
A61: 4511Z | B61: Commerce de voitures et de véhicules automobiles légers | D61: =IF(C61='DONNEES INFOGRAPHIES'!$B$6,1,0) -> 0 | E61: =VLOOKUP(A61,A:R,'DONNEES INFOGRAPHIES'!$L$8,FALSE) -> 20075 | F61: 1251 | G61: 850 | H61: 461 | I61: 419 | J61: 1790 | K61: 441 | L61: 2437 | M61: 2805 | N61: 1905 | O61: 1740 | P61: 4553 | Q61: 1423 | R61: 20075
A62: 7010Z | B62: Activités des sièges sociaux | D62: =IF(C62='DONNEES INFOGRAPHIES'!$B$6,1,0) -> 0 | E62: =VLOOKUP(A62,A:R,'DONNEES INFOGRAPHIES'!$L$8,FALSE) -> 19825 | F62: 1066 | G62: 233 | H62: 262 | I62: 57 | J62: 1281 | K62: 210 | L62: 1348 | M62: 1925 | N62: 1496 | O62: 975 | P62: 9834 | Q62: 1138 | R62: 19825
A63: 5310Z | B63: Activ. poste dans le cadre d'une obligation de service universel | C63: Mobilité, systèmes de transport intelligents | D63: =IF(C63='DONNEES INFOGRAPHIES'!$B$6,1,0) -> 0 | E63: =VLOOKUP(A63,A:R,'DONNEES INFOGRAPHIES'!$L$8,FALSE) -> 19572 | F63: 1105 | G63: 757 | H63: 650 | I63: 413 | J63: 1166 | K63: 517 | L63: 1576 | M63: 3068 | N63: 1556 | O63: 2364 | P63: 5362 | Q63: 1038 | R63: 19572
A64: 8810C | B64: Aide par le travail | D64: =IF(C64='DONNEES INFOGRAPHIES'!$B$6,1,0) -> 0 | E64: =VLOOKUP(A64,A:R,'DONNEES INFOGRAPHIES'!$L$8,FALSE) -> 17857 | F64: 984 | G64: 822 | H64: 872 | I64: 324 | J64: 1158 | K64: 589 | L64: 1734 | M64: 2913 | N64: 1629 | O64: 1654 | P64: 4129 | Q64: 1049 | R64: 17857
A65: 8891A | B65: Accueil de jeunes enfants | C65: Services à la personne | D65: =IF(C65='DONNEES INFOGRAPHIES'!$B$6,1,0) -> 0 | E65: =VLOOKUP(A65,A:R,'DONNEES INFOGRAPHIES'!$L$8,FALSE) -> 17087 | F65: 1293 | G65: 183 | H65: 473 | I65: 88 | J65: 735 | K65: 285 | L65: 1862 | M65: 1940 | N65: 1596 | O65: 1007 | P65: 6895 | Q65: 730 | R65: 17087
A66: 4669B | B66: Commerce de gros de fournitures et équipements industriels divers | D66: =IF(C66='DONNEES INFOGRAPHIES'!$B$6,1,0) -> 0 | E66: =VLOOKUP(A66,A:R,'DONNEES INFOGRAPHIES'!$L$8,FALSE) -> 16877 | F66: 1577 | G66: 234 | H66: 178 | I66: 17 | J66: 830 | K66: 227 | L66: 1450 | M66: 2381 | N66: 1012 | O66: 568 | P66: 7771 | Q66: 632 | R66: 16877
A67: 4773Z | B67: Commerce de détail produits pharmaceutiques (magasin spécialisé) | D67: =IF(C67='DONNEES INFOGRAPHIES'!$B$6,1,0) -> 0 | E67: =VLOOKUP(A67,A:R,'DONNEES INFOGRAPHIES'!$L$8,FALSE) -> 16122 | F67: 1186 | G67: 758 | H67: 648 | I67: 321 | J67: 1123 | K67: 523 | L67: 1540 | M67: 2409 | N67: 1654 | O67: 1350 | P67: 3693 | Q67: 917 | R67: 16122
A68: 8010Z | B68: Activités de sécurité privée | D68: =IF(C68='DONNEES INFOGRAPHIES'!$B$6,1,0) -> 0 | E68: =VLOOKUP(A68,A:R,'DONNEES INFOGRAPHIES'!$L$8,FALSE) -> 15975 | F68: 360 | G68: 40 | H68: 111 | I68: 17 | J68: 281 | K68: 37 | L68: 732 | M68: 1797 | N68: 804 | O68: 1227 | P68: 9564 | Q68: 1005 | R68: 15975
A69: 4771Z | B69: Commerce de détail d'habillement en magasin spécialisé | D69: =IF(C69='DONNEES INFOGRAPHIES'!$B$6,1,0) -> 0 | E69: =VLOOKUP(A69,A:R,'DONNEES INFOGRAPHIES'!$L$8,FALSE) -> 15383 | F69: 786 | G69: 528 | H69: 255 | I69: 214 | J69: 951 | K69: 244 | L69: 1989 | M69: 2397 | N69: 1398 | O69: 1162 | P69: 4599 | Q69: 860 | R69: 15383
A70: 6910Z | B70: Activités juridiques | D70: =IF(C70='DONNEES INFOGRAPHIES'!$B$6,1,0) -> 0 | E70: =VLOOKUP(A70,A:R,'DONNEES INFOGRAPHIES'!$L$8,FALSE) -> 15051 | F70: 963 | G70: 461 | H70: 429 | I70: 285 | J70: 859 | K70: 260 | L70: 1800 | M70: 1966 | N70: 1060 | O70: 1153 | P70: 4925 | Q70: 890 | R70: 15051
A71: 7219Z | B71: Recherche-développement : autres sciences physiques et naturelles | D71: =IF(C71='DONNEES INFOGRAPHIES'!$B$6,1,0) -> 0 | E71: =VLOOKUP(A71,A:R,'DONNEES INFOGRAPHIES'!$L$8,FALSE) -> 15041 | F71: 168 | G71: 63 | H71: 6 | J71: 113 | K71: 8 | L71: 353 | M71: 8875 | N71: 319 | O71: 346 | P71: 4397 | Q71: 393 | R71: 15041
A72: 2120Z | B72: Fabrication de préparations pharmaceutiques | C72: Industrie du futur, production industrielle | D72: =IF(C72='DONNEES INFOGRAPHIES'!$B$6,1,0) -> 0 | E72: =VLOOKUP(A72,A:R,'DONNEES INFOGRAPHIES'!$L$8,FALSE) -> 14906 | F72: 724 | G72: 272 | H72: 1035 | J72: 323 | L72: 1524 | M72: 992 | N72: 7 | O72: 1492 | P72: 8530 | Q72: 7 | R72: 14906
A73: 8299Z | B73: Autres activités de soutien aux entreprises n.c.a. | D73: =IF(C73='DONNEES INFOGRAPHIES'!$B$6,1,0) -> 0 | E73: =VLOOKUP(A73,A:R,'DONNEES INFOGRAPHIES'!$L$8,FALSE) -> 14851 | F73: 386 | G73: 192 | H73: 95 | I73: 47 | J73: 766 | K73: 118 | L73: 886 | M73: 1911 | N73: 1261 | O73: 863 | P73: 7682 | Q73: 644 | R73: 14851
A74: 6201Z | B74: Programmation informatique | C74: Numérique | D74: =IF(C74='DONNEES INFOGRAPHIES'!$B$6,1,0) -> 0 | E74: =VLOOKUP(A74,A:R,'DONNEES INFOGRAPHIES'!$L$8,FALSE) -> 14524 | F74: 316 | G74: 92 | H74: 378 | I74: 43 | J74: 393 | K74: 76 | L74: 516 | M74: 2752 | N74: 595 | O74: 721 | P74: 8270 | Q74: 372 | R74: 14524
A75: 2611Z | B75: Fabrication de composants électroniques | C75: Industrie du futur, production industrielle | D75: =IF(C75='DONNEES INFOGRAPHIES'!$B$6,1,0) -> 0 | E75: =VLOOKUP(A75,A:R,'DONNEES INFOGRAPHIES'!$L$8,FALSE) -> 13623 | F75: 22 | G75: 28 | J75: 33 | K75: 17 | L75: 973 | M75: 11714 | N75: 136 | P75: 454 | Q75: 246 | R75: 13623
A76: 9312Z | B76: Activités de clubs de sports | C76: Sport, Montagne, Tourisme | D76: =IF(C76='DONNEES INFOGRAPHIES'!$B$6,1,0) -> 0 | E76: =VLOOKUP(A76,A:R,'DONNEES INFOGRAPHIES'!$L$8,FALSE) -> 13581 | F76: 892 | G76: 313 | H76: 460 | I76: 199 | J76: 781 | K76: 285 | L76: 1297 | M76: 2024 | N76: 1111 | O76: 1125 | P76: 4201 | Q76: 893 | R76: 13581
A77: 2562B | B77: Mécanique industrielle | C77: Aéronautique | D77: =IF(C77='DONNEES INFOGRAPHIES'!$B$6,1,0) -> 0 | E77: =VLOOKUP(A77,A:R,'DONNEES INFOGRAPHIES'!$L$8,FALSE) -> 13182 | F77: 1222 | G77: 306 | H77: 253 | I77: 35 | J77: 753 | K77: 805 | L77: 1669 | M77: 2120 | N77: 2817 | O77: 585 | P77: 1720 | Q77: 897 | R77: 13182
A78: 8430A | B78: Activités générales de sécurité sociale | D78: =IF(C78='DONNEES INFOGRAPHIES'!$B$6,1,0) -> 0 | E78: =VLOOKUP(A78,A:R,'DONNEES INFOGRAPHIES'!$L$8,FALSE) -> 12452 | F78: 598 | G78: 368 | H78: 363 | I78: 184 | J78: 631 | K78: 434 | L78: 920 | M78: 1546 | N78: 1591 | O78: 1319 | P78: 4031 | Q78: 467 | R78: 12452
A79: 6420Z | B79: Activités des sociétés holding | D79: =IF(C79='DONNEES INFOGRAPHIES'!$B$6,1,0) -> 0 | E79: =VLOOKUP(A79,A:R,'DONNEES INFOGRAPHIES'!$L$8,FALSE) -> 12419 | F79: 675 | G79: 367 | H79: 271 | I79: 69 | J79: 800 | K79: 300 | L79: 946 | M79: 1963 | N79: 955 | O79: 639 | P79: 4699 | Q79: 735 | R79: 12419
A80: 3511Z | B80: Production d'électricité | C80: Energie | D80: =IF(C80='DONNEES INFOGRAPHIES'!$B$6,1,0) -> 0 | E80: =VLOOKUP(A80,A:R,'DONNEES INFOGRAPHIES'!$L$8,FALSE) -> 12371 | F80: 1748 | G80: 40 | H80: 1552 | I80: 36 | J80: 2164 | K80: 57 | L80: 74 | M80: 1979 | N80: 20 | O80: 24 | P80: 4092 | Q80: 585 | R80: 12371
A81: 2211Z | B81: Fabrication et rechapage de pneumatiques | C81: Industrie du futur, production industrielle | D81: =IF(C81='DONNEES INFOGRAPHIES'!$B$6,1,0) -> 0 | E81: =VLOOKUP(A81,A:R,'DONNEES INFOGRAPHIES'!$L$8,FALSE) -> 12327 | G81: 536 | K81: 502 | N81: 857 | O81: 10399 | P81: 33 | R81: 12327
A82: 5210B | B82: Entreposage et stockage non frigorifique | C82: Mobilité, systèmes de transport intelligents | D82: =IF(C82='DONNEES INFOGRAPHIES'!$B$6,1,0) -> 0 | E82: =VLOOKUP(A82,A:R,'DONNEES INFOGRAPHIES'!$L$8,FALSE) -> 12292 | F82: 2135 | G82: 177 | H82: 250 | I82: 27 | J82: 1815 | K82: 43 | L82: 272 | M82: 3256 | N82: 720 | O82: 508 | P82: 2852 | Q82: 237 | R82: 12292
A83: 8122Z | B83: Autres activités nettoyage des bâtiments et nettoyage industriel | D83: =IF(C83='DONNEES INFOGRAPHIES'!$B$6,1,0) -> 0 | E83: =VLOOKUP(A83,A:R,'DONNEES INFOGRAPHIES'!$L$8,FALSE) -> 12238 | F83: 1323 | G83: 102 | H83: 105 | I83: 38 | J83: 676 | K83: 70 | L83: 667 | M83: 1297 | N83: 972 | O83: 1041 | P83: 5523 | Q83: 424 | R83: 12238
A84: 3250A | B84: Fabrication de matériel médico-chirurgical et dentaire | C84: Industrie du futur, production industrielle | D84: =IF(C84='DONNEES INFOGRAPHIES'!$B$6,1,0) -> 0 | E84: =VLOOKUP(A84,A:R,'DONNEES INFOGRAPHIES'!$L$8,FALSE) -> 12225 | F84: 877 | G84: 485 | H84: 91 | I84: 22 | J84: 1062 | K84: 72 | L84: 1254 | M84: 3216 | N84: 736 | O84: 328 | P84: 3961 | Q84: 121 | R84: 12225
A85: 9602A | B85: Coiffure | D85: =IF(C85='DONNEES INFOGRAPHIES'!$B$6,1,0) -> 0 | E85: =VLOOKUP(A85,A:R,'DONNEES INFOGRAPHIES'!$L$8,FALSE) -> 11977 | F85: 905 | G85: 498 | H85: 384 | I85: 189 | J85: 728 | K85: 217 | L85: 1499 | M85: 1818 | N85: 1056 | O85: 988 | P85: 3086 | Q85: 609 | R85: 11977
A86: 4673A | B86: Commerce de gros de bois et de matériaux de construction | D86: =IF(C86='DONNEES INFOGRAPHIES'!$B$6,1,0) -> 0 | E86: =VLOOKUP(A86,A:R,'DONNEES INFOGRAPHIES'!$L$8,FALSE) -> 11936 | F86: 730 | G86: 308 | H86: 499 | I86: 196 | J86: 878 | K86: 271 | L86: 1319 | M86: 1982 | N86: 971 | O86: 951 | P86: 3023 | Q86: 808 | R86: 11936
A87: 4764Z | B87: Commerce de détail d'articles de sport en magasin spécialisé | D87: =IF(C87='DONNEES INFOGRAPHIES'!$B$6,1,0) -> 0 | E87: =VLOOKUP(A87,A:R,'DONNEES INFOGRAPHIES'!$L$8,FALSE) -> 11932 | F87: 351 | G87: 174 | H87: 193 | I87: 152 | J87: 483 | K87: 163 | L87: 2735 | M87: 1782 | N87: 522 | O87: 613 | P87: 1819 | Q87: 2945 | R87: 11932
A88: 5520Z | B88: Hébergement touristique et autre hébergement de courte durée | C88: Sport, Montagne, Tourisme | D88: =IF(C88='DONNEES INFOGRAPHIES'!$B$6,1,0) -> 0 | E88: =VLOOKUP(A88,A:R,'DONNEES INFOGRAPHIES'!$L$8,FALSE) -> 11525 | F88: 229 | G88: 89 | H88: 187 | I88: 80 | J88: 282 | K88: 230 | L88: 2353 | M88: 1166 | N88: 94 | O88: 324 | P88: 925 | Q88: 5566 | R88: 11525
A89: 6820A | B89: Location de logements | D89: =IF(C89='DONNEES INFOGRAPHIES'!$B$6,1,0) -> 0 | E89: =VLOOKUP(A89,A:R,'DONNEES INFOGRAPHIES'!$L$8,FALSE) -> 11318 | F89: 1068 | G89: 414 | H89: 199 | I89: 141 | J89: 511 | K89: 184 | L89: 845 | M89: 1794 | N89: 1118 | O89: 784 | P89: 3735 | Q89: 525 | R89: 11318
A90: 6512Z | B90: Autres assurances | D90: =IF(C90='DONNEES INFOGRAPHIES'!$B$6,1,0) -> 0 | E90: =VLOOKUP(A90,A:R,'DONNEES INFOGRAPHIES'!$L$8,FALSE) -> 11217 | F90: 283 | G90: 332 | H90: 181 | I90: 56 | J90: 683 | K90: 66 | L90: 500 | M90: 1098 | N90: 1155 | O90: 709 | P90: 5830 | Q90: 324 | R90: 11217
A91: 5221Z | B91: Services auxiliaires des transports terrestres | C91: Mobilité, systèmes de transport intelligents | D91: =IF(C91='DONNEES INFOGRAPHIES'!$B$6,1,0) -> 0 | E91: =VLOOKUP(A91,A:R,'DONNEES INFOGRAPHIES'!$L$8,FALSE) -> 11158 | F91: 641 | G91: 432 | H91: 60 | I91: 85 | J91: 611 | K91: 121 | L91: 742 | M91: 872 | N91: 327 | O91: 916 | P91: 4491 | Q91: 1860 | R91: 11158
A92: 5630Z | B92: Débits de boissons | C92: Sport, Montagne, Tourisme | D92: =IF(C92='DONNEES INFOGRAPHIES'!$B$6,1,0) -> 0 | E92: =VLOOKUP(A92,A:R,'DONNEES INFOGRAPHIES'!$L$8,FALSE) -> 11072 | F92: 416 | G92: 268 | H92: 270 | I92: 276 | J92: 538 | K92: 320 | L92: 1727 | M92: 1257 | N92: 917 | O92: 875 | P92: 2553 | Q92: 1655 | R92: 11072
A93: 2712Z | B93: Fabrication de matériel de distribution et de commande électrique | C93: Industrie du futur, production industrielle | D93: =IF(C93='DONNEES INFOGRAPHIES'!$B$6,1,0) -> 0 | E93: =VLOOKUP(A93,A:R,'DONNEES INFOGRAPHIES'!$L$8,FALSE) -> 10947 | F93: 495 | G93: 48 | H93: 352 | J93: 377 | K93: 1 | L93: 288 | M93: 5656 | N93: 343 | O93: 62 | P93: 1686 | Q93: 1639 | R93: 10947
A94: 4939C | B94: Téléphériques et remontées mécaniques | C94: Sport, Montagne, Tourisme | D94: =IF(C94='DONNEES INFOGRAPHIES'!$B$6,1,0) -> 0 | E94: =VLOOKUP(A94,A:R,'DONNEES INFOGRAPHIES'!$L$8,FALSE) -> 10773 | I94: 73 | J94: 57 | L94: 3583 | M94: 1509 | O94: 214 | Q94: 5337 | R94: 10773
A95: 5229B | B95: Affrètement et organisation des transports | C95: Mobilité, systèmes de transport intelligents | D95: =IF(C95='DONNEES INFOGRAPHIES'!$B$6,1,0) -> 0 | E95: =VLOOKUP(A95,A:R,'DONNEES INFOGRAPHIES'!$L$8,FALSE) -> 10721 | F95: 994 | G95: 82 | H95: 77 | I95: 15 | J95: 545 | K95: 16 | L95: 782 | M95: 1986 | N95: 501 | O95: 614 | P95: 4997 | Q95: 112 | R95: 10721
A96: 4931Z | B96: Transports urbains et suburbains de voyageurs | C96: Mobilité, systèmes de transport intelligents | D96: =IF(C96='DONNEES INFOGRAPHIES'!$B$6,1,0) -> 0 | E96: =VLOOKUP(A96,A:R,'DONNEES INFOGRAPHIES'!$L$8,FALSE) -> 10434 | F96: 116 | G96: 151 | H96: 62 | I96: 52 | J96: 367 | K96: 9 | L96: 712 | M96: 1875 | N96: 802 | O96: 1004 | P96: 4861 | Q96: 423 | R96: 10434
A97: 8559A | B97: Formation continue d'adultes | D97: =IF(C97='DONNEES INFOGRAPHIES'!$B$6,1,0) -> 0 | E97: =VLOOKUP(A97,A:R,'DONNEES INFOGRAPHIES'!$L$8,FALSE) -> 10384 | F97: 317 | G97: 264 | H97: 180 | I97: 63 | J97: 679 | K97: 121 | L97: 381 | M97: 914 | N97: 843 | O97: 803 | P97: 5313 | Q97: 506 | R97: 10384
A98: 7120B | B98: Analyses, essais et inspections techniques | D98: =IF(C98='DONNEES INFOGRAPHIES'!$B$6,1,0) -> 0 | E98: =VLOOKUP(A98,A:R,'DONNEES INFOGRAPHIES'!$L$8,FALSE) -> 10318 | F98: 461 | G98: 150 | H98: 154 | I98: 57 | J98: 668 | K98: 93 | L98: 531 | M98: 1848 | N98: 572 | O98: 658 | P98: 4655 | Q98: 471 | R98: 10318
A99: 4910Z | B99: Transport ferroviaire interurbain de voyageurs | C99: Sport, Montagne, Tourisme | D99: =IF(C99='DONNEES INFOGRAPHIES'!$B$6,1,0) -> 0 | E99: =VLOOKUP(A99,A:R,'DONNEES INFOGRAPHIES'!$L$8,FALSE) -> 10195 | F99: 226 | G99: 118 | H99: 4 | I99: 67 | J99: 444 | K99: 20 | L99: 572 | M99: 484 | N99: 346 | O99: 776 | P99: 6266 | Q99: 872 | R99: 10195
A100: 6831Z | B100: Agences immobilières | D100: =IF(C100='DONNEES INFOGRAPHIES'!$B$6,1,0) -> 0 | E100: =VLOOKUP(A100,A:R,'DONNEES INFOGRAPHIES'!$L$8,FALSE) -> 10036 | F100: 443 | G100: 244 | H100: 220 | I100: 74 | J100: 556 | K100: 122 | L100: 2028 | M100: 1186 | N100: 487 | O100: 523 | P100: 2944 | Q100: 1209 | R100: 10036
A101: 3513Z | B101: Distribution d'électricité | C101: Energie | D101: =IF(C101='DONNEES INFOGRAPHIES'!$B$6,1,0) -> 0 | E101: =VLOOKUP(A101,A:R,'DONNEES INFOGRAPHIES'!$L$8,FALSE) -> 10031 | F101: 882 | G101: 257 | H101: 230 | I101: 194 | J101: 731 | K101: 240 | L101: 572 | M101: 1830 | N101: 420 | O101: 925 | P101: 2665 | Q101: 1085 | R101: 10031
A102: 6622Z | B102: Activités des agents et courtiers d'assurances | D102: =IF(C102='DONNEES INFOGRAPHIES'!$B$6,1,0) -> 0 | E102: =VLOOKUP(A102,A:R,'DONNEES INFOGRAPHIES'!$L$8,FALSE) -> 9751 | F102: 419 | G102: 204 | H102: 200 | I102: 90 | J102: 679 | K102: 196 | L102: 615 | M102: 902 | N102: 747 | O102: 417 | P102: 4939 | Q102: 343 | R102: 9751
A103: 8720A | B103: Hébergement social pour handicapés mentaux et malades mentaux | D103: =IF(C103='DONNEES INFOGRAPHIES'!$B$6,1,0) -> 0 | E103: =VLOOKUP(A103,A:R,'DONNEES INFOGRAPHIES'!$L$8,FALSE) -> 9566 | F103: 611 | G103: 434 | H103: 325 | I103: 484 | J103: 1015 | K103: 393 | L103: 769 | M103: 1134 | N103: 890 | O103: 582 | P103: 2349 | Q103: 580 | R103: 9566
A104: 5829C | B104: Edition de logiciels applicatifs | C104: Numérique | D104: =IF(C104='DONNEES INFOGRAPHIES'!$B$6,1,0) -> 0 | E104: =VLOOKUP(A104,A:R,'DONNEES INFOGRAPHIES'!$L$8,FALSE) -> 9547 | F104: 19 | G104: 3 | H104: 104 | I104: 83 | J104: 121 | K104: 54 | L104: 474 | M104: 1901 | N104: 337 | O104: 585 | P104: 5636 | Q104: 230 | R104: 9547
A105: 4752B | B105: Comm. détail de quincaillerie, peintures et verres (mag.> 400 m2) | D105: =IF(C105='DONNEES INFOGRAPHIES'!$B$6,1,0) -> 0 | E105: =VLOOKUP(A105,A:R,'DONNEES INFOGRAPHIES'!$L$8,FALSE) -> 9386 | F105: 709 | G105: 375 | H105: 180 | I105: 139 | J105: 829 | K105: 264 | L105: 1160 | M105: 1722 | N105: 836 | O105: 694 | P105: 1820 | Q105: 658 | R105: 9386
A106: 7830Z | B106: Autre mise à disposition de ressources humaines | D106: =IF(C106='DONNEES INFOGRAPHIES'!$B$6,1,0) -> 0 | E106: =VLOOKUP(A106,A:R,'DONNEES INFOGRAPHIES'!$L$8,FALSE) -> 9186 | F106: 174 | G106: 362 | H106: 107 | I106: 52 | J106: 442 | K106: 211 | L106: 603 | M106: 1113 | N106: 740 | O106: 1002 | P106: 3685 | Q106: 695 | R106: 9186
A107: 2910Z | B107: Construction de véhicules automobiles | C107: Industrie du futur, production industrielle | D107: =IF(C107='DONNEES INFOGRAPHIES'!$B$6,1,0) -> 0 | E107: =VLOOKUP(A107,A:R,'DONNEES INFOGRAPHIES'!$L$8,FALSE) -> 8983 | F107: 1429 | G107: 286 | H107: 2102 | J107: 36 | L107: 20 | M107: 73 | N107: 172 | O107: 14 | P107: 4765 | Q107: 86 | R107: 8983
A108: 1512Z | B108: Fabrication d'articles de voyage, de maroquinerie et de sellerie | C108: Industrie du futur, production industrielle | D108: =IF(C108='DONNEES INFOGRAPHIES'!$B$6,1,0) -> 0 | E108: =VLOOKUP(A108,A:R,'DONNEES INFOGRAPHIES'!$L$8,FALSE) -> 8799 | F108: 267 | G108: 1792 | H108: 500 | I108: 287 | J108: 2128 | K108: 556 | L108: 228 | M108: 406 | N108: 651 | O108: 1025 | P108: 536 | Q108: 423 | R108: 8799
A109: 8710B | B109: Hébergement médicalisé pour enfants handicapés | D109: =IF(C109='DONNEES INFOGRAPHIES'!$B$6,1,0) -> 0 | E109: =VLOOKUP(A109,A:R,'DONNEES INFOGRAPHIES'!$L$8,FALSE) -> 8797 | F109: 857 | G109: 572 | H109: 237 | I109: 164 | J109: 443 | K109: 330 | L109: 859 | M109: 1445 | N109: 707 | O109: 594 | P109: 2171 | Q109: 418 | R109: 8797
A110: 2511Z | B110: Fabrication de structures métalliques et de parties de structures | C110: Aéronautique | D110: =IF(C110='DONNEES INFOGRAPHIES'!$B$6,1,0) -> 0 | E110: =VLOOKUP(A110,A:R,'DONNEES INFOGRAPHIES'!$L$8,FALSE) -> 8495 | F110: 1267 | G110: 624 | H110: 106 | I110: 95 | J110: 370 | K110: 447 | L110: 450 | M110: 1192 | N110: 933 | O110: 565 | P110: 1953 | Q110: 493 | R110: 8495
A111: 8542Z | B111: Enseignement supérieur | D111: =IF(C111='DONNEES INFOGRAPHIES'!$B$6,1,0) -> 0 | E111: =VLOOKUP(A111,A:R,'DONNEES INFOGRAPHIES'!$L$8,FALSE) -> 8249 | F111: 114 | G111: 61 | H111: 1 | J111: 82 | K111: 18 | L111: 492 | M111: 1278 | N111: 782 | O111: 412 | P111: 4673 | Q111: 336 | R111: 8249
A112: 2229A | B112: Fabrication de pièces techniques à base de matières plastiques | C112: Polymères | D112: =IF(C112='DONNEES INFOGRAPHIES'!$B$6,1,0) -> 0 | E112: =VLOOKUP(A112,A:R,'DONNEES INFOGRAPHIES'!$L$8,FALSE) -> 8019 | F112: 2855 | G112: 31 | H112: 199 | I112: 506 | J112: 590 | K112: 89 | L112: 309 | M112: 1531 | N112: 204 | O112: 682 | P112: 790 | Q112: 233 | R112: 8019
A113: 8211Z | B113: Services administratifs combinés de bureau | D113: =IF(C113='DONNEES INFOGRAPHIES'!$B$6,1,0) -> 0 | E113: =VLOOKUP(A113,A:R,'DONNEES INFOGRAPHIES'!$L$8,FALSE) -> 8015 | F113: 493 | G113: 104 | H113: 61 | I113: 33 | J113: 826 | K113: 60 | L113: 438 | M113: 984 | N113: 573 | O113: 384 | P113: 3744 | Q113: 315 | R113: 8015
A114: 4939A | B114: Transports routiers réguliers de voyageurs | C114: Mobilité, systèmes de transport intelligents | D114: =IF(C114='DONNEES INFOGRAPHIES'!$B$6,1,0) -> 0 | E114: =VLOOKUP(A114,A:R,'DONNEES INFOGRAPHIES'!$L$8,FALSE) -> 7871 | F114: 740 | G114: 322 | H114: 330 | I114: 160 | J114: 662 | K114: 367 | L114: 941 | M114: 777 | N114: 535 | O114: 730 | P114: 1790 | Q114: 517 | R114: 7871
A115: 4646Z | B115: Commerce de gros de produits pharmaceutiques | D115: =IF(C115='DONNEES INFOGRAPHIES'!$B$6,1,0) -> 0 | E115: =VLOOKUP(A115,A:R,'DONNEES INFOGRAPHIES'!$L$8,FALSE) -> 7806 | F115: 202 | G115: 155 | H115: 25 | I115: 23 | J115: 205 | K115: 8 | L115: 415 | M115: 1635 | N115: 145 | O115: 569 | P115: 4415 | Q115: 9 | R115: 7806
A116: 2932Z | B116: Fabrication d'autres équipements automobiles | C116: Industrie du futur, production industrielle | D116: =IF(C116='DONNEES INFOGRAPHIES'!$B$6,1,0) -> 0 | E116: =VLOOKUP(A116,A:R,'DONNEES INFOGRAPHIES'!$L$8,FALSE) -> 7745 | F116: 1397 | G116: 388 | H116: 864 | J116: 147 | K116: 517 | L116: 316 | M116: 755 | N116: 1030 | O116: 18 | P116: 2262 | Q116: 51 | R116: 7745
A117: 7311Z | B117: Activités des agences de publicité | D117: =IF(C117='DONNEES INFOGRAPHIES'!$B$6,1,0) -> 0 | E117: =VLOOKUP(A117,A:R,'DONNEES INFOGRAPHIES'!$L$8,FALSE) -> 7687 | F117: 144 | G117: 168 | H117: 74 | I117: 8 | J117: 675 | K117: 70 | L117: 529 | M117: 721 | N117: 897 | O117: 408 | P117: 3708 | Q117: 285 | R117: 7687
A118: 6110Z | B118: Télécommunications filaires | C118: Numérique | D118: =IF(C118='DONNEES INFOGRAPHIES'!$B$6,1,0) -> 0 | E118: =VLOOKUP(A118,A:R,'DONNEES INFOGRAPHIES'!$L$8,FALSE) -> 7477 | F118: 104 | G118: 167 | H118: 52 | I118: 54 | J118: 367 | K118: 76 | L118: 321 | M118: 1051 | N118: 321 | O118: 491 | P118: 4300 | Q118: 173 | R118: 7477
A119: 8790A | B119: Hébergement social pour enfants en difficultés | D119: =IF(C119='DONNEES INFOGRAPHIES'!$B$6,1,0) -> 0 | E119: =VLOOKUP(A119,A:R,'DONNEES INFOGRAPHIES'!$L$8,FALSE) -> 7088 | F119: 327 | G119: 233 | H119: 253 | I119: 95 | J119: 609 | K119: 358 | L119: 662 | M119: 598 | N119: 815 | O119: 422 | P119: 2261 | Q119: 455 | R119: 7088
A120: 8623Z | B120: Pratique dentaire | C120: Santé | D120: =IF(C120='DONNEES INFOGRAPHIES'!$B$6,1,0) -> 0 | E120: =VLOOKUP(A120,A:R,'DONNEES INFOGRAPHIES'!$L$8,FALSE) -> 7080 | F120: 527 | G120: 174 | H120: 181 | I120: 54 | J120: 409 | K120: 144 | L120: 764 | M120: 1154 | N120: 679 | O120: 429 | P120: 2147 | Q120: 418 | R120: 7080
A121: 8621Z | B121: Activité des médecins généralistes | C121: Santé | D121: =IF(C121='DONNEES INFOGRAPHIES'!$B$6,1,0) -> 0 | E121: =VLOOKUP(A121,A:R,'DONNEES INFOGRAPHIES'!$L$8,FALSE) -> 6918 | F121: 435 | G121: 197 | H121: 288 | I121: 114 | J121: 444 | K121: 129 | L121: 579 | M121: 1046 | N121: 643 | O121: 462 | P121: 2157 | Q121: 424 | R121: 6918
A122: 2562A | B122: Décolletage | C122: Aéronautique | D122: =IF(C122='DONNEES INFOGRAPHIES'!$B$6,1,0) -> 0 | E122: =VLOOKUP(A122,A:R,'DONNEES INFOGRAPHIES'!$L$8,FALSE) -> 6860 | F122: 164 | H122: 50 | J122: 17 | K122: 43 | L122: 6121 | M122: 121 | N122: 135 | O122: 36 | P122: 173 | R122: 6860
A123: 6832A | B123: Administration d'immeubles et autres biens immobiliers | D123: =IF(C123='DONNEES INFOGRAPHIES'!$B$6,1,0) -> 0 | E123: =VLOOKUP(A123,A:R,'DONNEES INFOGRAPHIES'!$L$8,FALSE) -> 6855 | F123: 249 | G123: 123 | H123: 50 | I123: 13 | J123: 194 | K123: 55 | L123: 689 | M123: 1009 | N123: 502 | O123: 333 | P123: 3249 | Q123: 389 | R123: 6855
A124: 4759A | B124: Commerce de détail de meubles | D124: =IF(C124='DONNEES INFOGRAPHIES'!$B$6,1,0) -> 0 | E124: =VLOOKUP(A124,A:R,'DONNEES INFOGRAPHIES'!$L$8,FALSE) -> 6836 | F124: 394 | G124: 272 | H124: 107 | I124: 142 | J124: 433 | K124: 127 | L124: 827 | M124: 1030 | N124: 671 | O124: 673 | P124: 1797 | Q124: 363 | R124: 6836
A125: 8559B | B125: Autres enseignements | D125: =IF(C125='DONNEES INFOGRAPHIES'!$B$6,1,0) -> 0 | E125: =VLOOKUP(A125,A:R,'DONNEES INFOGRAPHIES'!$L$8,FALSE) -> 6621 | F125: 274 | G125: 179 | H125: 80 | I125: 75 | J125: 233 | K125: 36 | L125: 332 | M125: 672 | N125: 423 | O125: 210 | P125: 3680 | Q125: 427 | R125: 6621
A126: 4722Z | B126: Comm. détail viandes & produits à base de viande (magas. spéc.) | C126: Métier de bouche | D126: =IF(C126='DONNEES INFOGRAPHIES'!$B$6,1,0) -> 0 | E126: =VLOOKUP(A126,A:R,'DONNEES INFOGRAPHIES'!$L$8,FALSE) -> 6523 | F126: 505 | G126: 180 | H126: 391 | I126: 205 | J126: 286 | K126: 164 | L126: 783 | M126: 912 | N126: 748 | O126: 496 | P126: 1508 | Q126: 345 | R126: 6523
A127: 9329Z | B127: Autres activités récréatives et de loisirs | C127: Sport, Montagne, Tourisme | D127: =IF(C127='DONNEES INFOGRAPHIES'!$B$6,1,0) -> 0 | E127: =VLOOKUP(A127,A:R,'DONNEES INFOGRAPHIES'!$L$8,FALSE) -> 6517 | F127: 675 | G127: 200 | H127: 160 | I127: 38 | J127: 331 | K127: 183 | L127: 823 | M127: 774 | N127: 604 | O127: 383 | P127: 1917 | Q127: 429 | R127: 6517
A128: 8710C | B128: Héberg. médicalisé adultes handicapés & autre héberg. médicalisé | D128: =IF(C128='DONNEES INFOGRAPHIES'!$B$6,1,0) -> 0 | E128: =VLOOKUP(A128,A:R,'DONNEES INFOGRAPHIES'!$L$8,FALSE) -> 6354 | F128: 398 | G128: 248 | H128: 295 | I128: 334 | J128: 329 | K128: 317 | L128: 242 | M128: 921 | N128: 604 | O128: 651 | P128: 1657 | Q128: 358 | R128: 6354
A129: 7111Z | B129: Activités d'architecture | D129: =IF(C129='DONNEES INFOGRAPHIES'!$B$6,1,0) -> 0 | E129: =VLOOKUP(A129,A:R,'DONNEES INFOGRAPHIES'!$L$8,FALSE) -> 6347 | F129: 169 | G129: 60 | H129: 132 | I129: 71 | J129: 223 | K129: 48 | L129: 632 | M129: 841 | N129: 505 | O129: 541 | P129: 2465 | Q129: 660 | R129: 6347
A130: 7490B | B130: Activités spécialisées, scientifiques et techniques diverses | D130: =IF(C130='DONNEES INFOGRAPHIES'!$B$6,1,0) -> 0 | E130: =VLOOKUP(A130,A:R,'DONNEES INFOGRAPHIES'!$L$8,FALSE) -> 6294 | F130: 171 | G130: 39 | H130: 36 | I130: 13 | J130: 426 | K130: 29 | L130: 158 | M130: 1471 | N130: 352 | O130: 238 | P130: 3114 | Q130: 247 | R130: 6294
A131: 4711B | B131: Commerce d'alimentation générale | D131: =IF(C131='DONNEES INFOGRAPHIES'!$B$6,1,0) -> 0 | E131: =VLOOKUP(A131,A:R,'DONNEES INFOGRAPHIES'!$L$8,FALSE) -> 6271 | F131: 233 | G131: 147 | H131: 220 | I131: 132 | J131: 436 | K131: 96 | L131: 702 | M131: 887 | N131: 579 | O131: 302 | P131: 1979 | Q131: 558 | R131: 6271
A132: 8690A | B132: Ambulances | C132: Santé | D132: =IF(C132='DONNEES INFOGRAPHIES'!$B$6,1,0) -> 0 | E132: =VLOOKUP(A132,A:R,'DONNEES INFOGRAPHIES'!$L$8,FALSE) -> 6067 | F132: 470 | G132: 524 | H132: 305 | I132: 241 | J132: 476 | K132: 329 | L132: 480 | M132: 844 | N132: 590 | O132: 482 | P132: 957 | Q132: 369 | R132: 6067
A133: 5629B | B133: Autres services de restauration n.c.a. | D133: =IF(C133='DONNEES INFOGRAPHIES'!$B$6,1,0) -> 0 | E133: =VLOOKUP(A133,A:R,'DONNEES INFOGRAPHIES'!$L$8,FALSE) -> 6021 | F133: 532 | G133: 41 | H133: 88 | I133: 15 | J133: 362 | K133: 64 | L133: 438 | M133: 695 | N133: 377 | O133: 412 | P133: 2830 | Q133: 167 | R133: 6021
A134: 2825Z | B134: Fabrication équipements aérauliques et frigorifiques industriels | C134: Industrie du futur, production industrielle | D134: =IF(C134='DONNEES INFOGRAPHIES'!$B$6,1,0) -> 0 | E134: =VLOOKUP(A134,A:R,'DONNEES INFOGRAPHIES'!$L$8,FALSE) -> 5950 | F134: 1719 | G134: 36 | H134: 29 | I134: 41 | J134: 86 | L134: 119 | M134: 1969 | N134: 186 | O134: 5 | P134: 1644 | Q134: 116 | R134: 5950
A135: 4778A | B135: Commerces de détail d'optique | D135: =IF(C135='DONNEES INFOGRAPHIES'!$B$6,1,0) -> 0 | E135: =VLOOKUP(A135,A:R,'DONNEES INFOGRAPHIES'!$L$8,FALSE) -> 5865 | F135: 422 | G135: 225 | H135: 215 | I135: 96 | J135: 397 | K135: 147 | L135: 528 | M135: 934 | N135: 566 | O135: 434 | P135: 1579 | Q135: 322 | R135: 5865
A136: 4649Z | B136: Commerce de gros d'autres biens domestiques | D136: =IF(C136='DONNEES INFOGRAPHIES'!$B$6,1,0) -> 0 | E136: =VLOOKUP(A136,A:R,'DONNEES INFOGRAPHIES'!$L$8,FALSE) -> 5810 | F136: 204 | G136: 26 | H136: 94 | I136: 9 | J136: 319 | K136: 31 | L136: 1142 | M136: 1110 | N136: 521 | O136: 304 | P136: 1761 | Q136: 289 | R136: 5810
A137: 3312Z | B137: Réparation de machines et équipements mécaniques | C137: Industrie du futur, production industrielle | D137: =IF(C137='DONNEES INFOGRAPHIES'!$B$6,1,0) -> 0 | E137: =VLOOKUP(A137,A:R,'DONNEES INFOGRAPHIES'!$L$8,FALSE) -> 5753 | F137: 493 | G137: 187 | H137: 163 | I137: 64 | J137: 431 | K137: 179 | L137: 276 | M137: 613 | N137: 590 | O137: 275 | P137: 2212 | Q137: 270 | R137: 5753
A138: 8690B | B138: Laboratoires d'analyses médicales | C138: Santé | D138: =IF(C138='DONNEES INFOGRAPHIES'!$B$6,1,0) -> 0 | E138: =VLOOKUP(A138,A:R,'DONNEES INFOGRAPHIES'!$L$8,FALSE) -> 5746 | F138: 316 | G138: 264 | H138: 173 | I138: 148 | J138: 348 | K138: 148 | L138: 569 | M138: 850 | N138: 406 | O138: 513 | P138: 1684 | Q138: 327 | R138: 5746
A139: 4531Z | B139: Commerce de gros d'équipements automobiles | D139: =IF(C139='DONNEES INFOGRAPHIES'!$B$6,1,0) -> 0 | E139: =VLOOKUP(A139,A:R,'DONNEES INFOGRAPHIES'!$L$8,FALSE) -> 5700 | F139: 393 | G139: 166 | H139: 111 | I139: 156 | J139: 568 | K139: 171 | L139: 290 | M139: 651 | N139: 309 | O139: 488 | P139: 2026 | Q139: 371 | R139: 5700
A140: 2222Z | B140: Fabrication d'emballages en matières plastiques | C140: Polymères | D140: =IF(C140='DONNEES INFOGRAPHIES'!$B$6,1,0) -> 0 | E140: =VLOOKUP(A140,A:R,'DONNEES INFOGRAPHIES'!$L$8,FALSE) -> 5670 | F140: 1804 | G140: 294 | H140: 2 | I140: 10 | J140: 310 | K140: 1006 | L140: 428 | M140: 291 | N140: 719 | O140: 290 | P140: 499 | Q140: 17 | R140: 5670
A141: 4669A | B141: Commerce de gros de matériel électrique | D141: =IF(C141='DONNEES INFOGRAPHIES'!$B$6,1,0) -> 0 | E141: =VLOOKUP(A141,A:R,'DONNEES INFOGRAPHIES'!$L$8,FALSE) -> 5668 | F141: 536 | G141: 74 | H141: 52 | I141: 44 | J141: 332 | K141: 44 | L141: 308 | M141: 878 | N141: 438 | O141: 319 | P141: 2417 | Q141: 226 | R141: 5668
A142: 1812Z | B142: Autre imprimerie (labeur) | C142: Industrie du futur, production industrielle | D142: =IF(C142='DONNEES INFOGRAPHIES'!$B$6,1,0) -> 0 | E142: =VLOOKUP(A142,A:R,'DONNEES INFOGRAPHIES'!$L$8,FALSE) -> 5640 | F142: 444 | G142: 218 | H142: 233 | I142: 65 | J142: 900 | K142: 59 | L142: 209 | M142: 801 | N142: 720 | O142: 952 | P142: 921 | Q142: 118 | R142: 5640
A143: 8790B | B143: Hébergement social pour adultes, familles en difficultés et autre | D143: =IF(C143='DONNEES INFOGRAPHIES'!$B$6,1,0) -> 0 | E143: =VLOOKUP(A143,A:R,'DONNEES INFOGRAPHIES'!$L$8,FALSE) -> 5525 | F143: 599 | G143: 227 | H143: 196 | I143: 219 | J143: 233 | K143: 197 | L143: 439 | M143: 577 | N143: 614 | O143: 384 | P143: 1571 | Q143: 269 | R143: 5525
A144: 8531Z | B144: Enseignement secondaire général | D144: =IF(C144='DONNEES INFOGRAPHIES'!$B$6,1,0) -> 0 | E144: =VLOOKUP(A144,A:R,'DONNEES INFOGRAPHIES'!$L$8,FALSE) -> 5505 | F144: 155 | G144: 115 | H144: 364 | I144: 30 | J144: 256 | K144: 381 | L144: 465 | M144: 448 | N144: 608 | O144: 548 | P144: 1869 | Q144: 266 | R144: 5505
A145: 4778C | B145: Autres commerces de détail spécialisés divers | D145: =IF(C145='DONNEES INFOGRAPHIES'!$B$6,1,0) -> 0 | E145: =VLOOKUP(A145,A:R,'DONNEES INFOGRAPHIES'!$L$8,FALSE) -> 5456 | F145: 328 | G145: 191 | H145: 77 | I145: 60 | J145: 305 | K145: 93 | L145: 1098 | M145: 747 | N145: 498 | O145: 332 | P145: 1370 | Q145: 357 | R145: 5456
A146: 2561Z | B146: Traitement et revêtement des métaux | C146: Aéronautique | D146: =IF(C146='DONNEES INFOGRAPHIES'!$B$6,1,0) -> 0 | E146: =VLOOKUP(A146,A:R,'DONNEES INFOGRAPHIES'!$L$8,FALSE) -> 5442 | F146: 435 | G146: 227 | H146: 100 | I146: 16 | J146: 213 | K146: 395 | L146: 1118 | M146: 492 | N146: 897 | O146: 296 | P146: 1147 | Q146: 106 | R146: 5442
A147: 4729Z | B147: Autres commerces de détail alimentaires en magasin spécialisé | C147: Métier de bouche | D147: =IF(C147='DONNEES INFOGRAPHIES'!$B$6,1,0) -> 0 | E147: =VLOOKUP(A147,A:R,'DONNEES INFOGRAPHIES'!$L$8,FALSE) -> 5432 | F147: 300 | G147: 100 | H147: 155 | I147: 65 | J147: 236 | K147: 101 | L147: 814 | M147: 871 | N147: 314 | O147: 368 | P147: 1718 | Q147: 390 | R147: 5432
A148: 8520Z | B148: Enseignement primaire | D148: =IF(C148='DONNEES INFOGRAPHIES'!$B$6,1,0) -> 0 | E148: =VLOOKUP(A148,A:R,'DONNEES INFOGRAPHIES'!$L$8,FALSE) -> 5203 | F148: 463 | G148: 71 | H148: 228 | I148: 19 | J148: 338 | K148: 225 | L148: 680 | M148: 667 | N148: 508 | O148: 74 | P148: 1795 | Q148: 135 | R148: 5203
A149: 4674B | B149: Commerce de gros de fournitures pour la plomberie et le chauffage | D149: =IF(C149='DONNEES INFOGRAPHIES'!$B$6,1,0) -> 0 | E149: =VLOOKUP(A149,A:R,'DONNEES INFOGRAPHIES'!$L$8,FALSE) -> 5151 | F149: 573 | G149: 122 | H149: 96 | I149: 34 | J149: 260 | K149: 121 | L149: 331 | M149: 824 | N149: 423 | O149: 194 | P149: 1849 | Q149: 324 | R149: 5151
A150: 5229A | B150: Messagerie, fret express | C150: Mobilité, systèmes de transport intelligents | D150: =IF(C150='DONNEES INFOGRAPHIES'!$B$6,1,0) -> 0 | E150: =VLOOKUP(A150,A:R,'DONNEES INFOGRAPHIES'!$L$8,FALSE) -> 5013 | F150: 296 | G150: 42 | H150: 50 | I150: 106 | J150: 386 | K150: 65 | L150: 280 | M150: 573 | N150: 284 | O150: 510 | P150: 2293 | Q150: 128 | R150: 5013
A151: 2059Z | B151: Fabrication d'autres produits chimiques n.c.a. | C151: Industrie du futur, production industrielle | D151: =IF(C151='DONNEES INFOGRAPHIES'!$B$6,1,0) -> 0 | E151: =VLOOKUP(A151,A:R,'DONNEES INFOGRAPHIES'!$L$8,FALSE) -> 4894 | F151: 97 | G151: 15 | H151: 160 | J151: 177 | K151: 236 | L151: 37 | M151: 883 | N151: 200 | O151: 279 | P151: 2740 | Q151: 70 | R151: 4894
A152: 6619A | B152: Supports juridiques de gestion de patrimoine mobilier | D152: =IF(C152='DONNEES INFOGRAPHIES'!$B$6,1,0) -> 0 | E152: =VLOOKUP(A152,A:R,'DONNEES INFOGRAPHIES'!$L$8,FALSE) -> 4825 | F152: 222 | G152: 165 | H152: 161 | I152: 54 | J152: 236 | K152: 79 | L152: 406 | M152: 736 | N152: 399 | O152: 441 | P152: 1635 | Q152: 291 | R152: 4825
A153: 3832Z | B153: Récupération de déchets triés | D153: =IF(C153='DONNEES INFOGRAPHIES'!$B$6,1,0) -> 0 | E153: =VLOOKUP(A153,A:R,'DONNEES INFOGRAPHIES'!$L$8,FALSE) -> 4759 | F153: 432 | G153: 191 | H153: 158 | I153: 17 | J153: 229 | K153: 162 | L153: 628 | M153: 639 | N153: 488 | O153: 295 | P153: 1115 | Q153: 405 | R153: 4759
A154: 2822Z | B154: Fabrication de matériel de levage et de manutention | C154: Industrie du futur, production industrielle | D154: =IF(C154='DONNEES INFOGRAPHIES'!$B$6,1,0) -> 0 | E154: =VLOOKUP(A154,A:R,'DONNEES INFOGRAPHIES'!$L$8,FALSE) -> 4692 | F154: 75 | G154: 350 | H154: 47 | J154: 313 | K154: 10 | L154: 40 | M154: 1194 | N154: 1281 | O154: 75 | P154: 872 | Q154: 435 | R154: 4692
A155: 4639B | B155: Commerce de gros alimentaire non spécialisé | D155: =IF(C155='DONNEES INFOGRAPHIES'!$B$6,1,0) -> 0 | E155: =VLOOKUP(A155,A:R,'DONNEES INFOGRAPHIES'!$L$8,FALSE) -> 4641 | F155: 465 | G155: 151 | H155: 27 | I155: 9 | J155: 432 | K155: 27 | L155: 593 | M155: 704 | N155: 236 | O155: 165 | P155: 1634 | Q155: 198 | R155: 4641
A156: 4939B | B156: Autres transports routiers de voyageurs | C156: Sport, Montagne, Tourisme | D156: =IF(C156='DONNEES INFOGRAPHIES'!$B$6,1,0) -> 0 | E156: =VLOOKUP(A156,A:R,'DONNEES INFOGRAPHIES'!$L$8,FALSE) -> 4639 | F156: 153 | G156: 15 | H156: 220 | I156: 182 | J156: 117 | K156: 247 | L156: 776 | M156: 1018 | N156: 360 | O156: 285 | P156: 592 | Q156: 674 | R156: 4639
A157: 4719B | B157: Autres commerces de détail en magasin non spécialisé | D157: =IF(C157='DONNEES INFOGRAPHIES'!$B$6,1,0) -> 0 | E157: =VLOOKUP(A157,A:R,'DONNEES INFOGRAPHIES'!$L$8,FALSE) -> 4613 | F157: 185 | G157: 155 | H157: 180 | I157: 123 | J157: 402 | K157: 58 | L157: 344 | M157: 977 | N157: 472 | O157: 225 | P157: 1222 | Q157: 270 | R157: 4613
A158: 6311Z | B158: Traitement de données, hébergement et activités connexes | C158: Numérique | D158: =IF(C158='DONNEES INFOGRAPHIES'!$B$6,1,0) -> 0 | E158: =VLOOKUP(A158,A:R,'DONNEES INFOGRAPHIES'!$L$8,FALSE) -> 4593 | F158: 98 | G158: 7 | H158: 37 | I158: 23 | J158: 61 | K158: 20 | L158: 143 | M158: 343 | N158: 366 | O158: 282 | P158: 3015 | Q158: 198 | R158: 4593
A159: 4776Z | B159: Comm. dét. fleurs, plantes, etc, animaux de cie et leurs aliments | D159: =IF(C159='DONNEES INFOGRAPHIES'!$B$6,1,0) -> 0 | E159: =VLOOKUP(A159,A:R,'DONNEES INFOGRAPHIES'!$L$8,FALSE) -> 4559 | F159: 331 | G159: 197 | H159: 90 | I159: 91 | J159: 244 | K159: 103 | L159: 640 | M159: 791 | N159: 386 | O159: 384 | P159: 1019 | Q159: 283 | R159: 4559
A160: 8110Z | B160: Activités combinées de soutien lié aux bâtiments | D160: =IF(C160='DONNEES INFOGRAPHIES'!$B$6,1,0) -> 0 | E160: =VLOOKUP(A160,A:R,'DONNEES INFOGRAPHIES'!$L$8,FALSE) -> 4466 | F160: 91 | G160: 174 | H160: 37 | I160: 65 | J160: 188 | K160: 32 | L160: 597 | M160: 305 | N160: 373 | O160: 246 | P160: 1908 | Q160: 450 | R160: 4466
A161: 4532Z | B161: Commerce de détail d'équipements automobiles | D161: =IF(C161='DONNEES INFOGRAPHIES'!$B$6,1,0) -> 0 | E161: =VLOOKUP(A161,A:R,'DONNEES INFOGRAPHIES'!$L$8,FALSE) -> 4402 | F161: 277 | G161: 206 | H161: 146 | I161: 115 | J161: 299 | K161: 73 | L161: 405 | M161: 722 | N161: 394 | O161: 351 | P161: 1180 | Q161: 234 | R161: 4402
A162: 4932Z | B162: Transports de voyageurs par taxis | C162: Mobilité, systèmes de transport intelligents | D162: =IF(C162='DONNEES INFOGRAPHIES'!$B$6,1,0) -> 0 | E162: =VLOOKUP(A162,A:R,'DONNEES INFOGRAPHIES'!$L$8,FALSE) -> 4346 | F162: 334 | G162: 138 | H162: 395 | I162: 113 | J162: 348 | K162: 103 | L162: 390 | M162: 608 | N162: 421 | O162: 320 | P162: 633 | Q162: 543 | R162: 4346
A163: 8532Z | B163: Enseignement secondaire technique ou professionnel | D163: =IF(C163='DONNEES INFOGRAPHIES'!$B$6,1,0) -> 0 | E163: =VLOOKUP(A163,A:R,'DONNEES INFOGRAPHIES'!$L$8,FALSE) -> 4331 | F163: 242 | G163: 71 | H163: 155 | I163: 22 | J163: 285 | K163: 129 | L163: 306 | M163: 959 | N163: 547 | O163: 336 | P163: 1107 | Q163: 172 | R163: 4331
A164: 7729Z | B164: Location et location-bail autres biens personnels et domestiques | D164: =IF(C164='DONNEES INFOGRAPHIES'!$B$6,1,0) -> 0 | E164: =VLOOKUP(A164,A:R,'DONNEES INFOGRAPHIES'!$L$8,FALSE) -> 4326 | F164: 167 | G164: 154 | H164: 12 | I164: 18 | J164: 204 | K164: 12 | L164: 154 | M164: 864 | N164: 460 | O164: 423 | P164: 1286 | Q164: 572 | R164: 4326
A165: 3320C | B165: Concept. d'ens. & assembl s/site d'éqpts ctrle des processus ind. | C165: Industrie du futur, production industrielle | D165: =IF(C165='DONNEES INFOGRAPHIES'!$B$6,1,0) -> 0 | E165: =VLOOKUP(A165,A:R,'DONNEES INFOGRAPHIES'!$L$8,FALSE) -> 4307 | F165: 182 | G165: 56 | H165: 519 | J165: 328 | K165: 16 | L165: 144 | M165: 922 | N165: 693 | O165: 235 | P165: 1074 | Q165: 138 | R165: 4307
A166: 9001Z | B166: Arts du spectacle vivant | D166: =IF(C166='DONNEES INFOGRAPHIES'!$B$6,1,0) -> 0 | E166: =VLOOKUP(A166,A:R,'DONNEES INFOGRAPHIES'!$L$8,FALSE) -> 4237 | F166: 141 | G166: 122 | H166: 159 | I166: 33 | J166: 323 | K166: 22 | L166: 253 | M166: 624 | N166: 241 | O166: 315 | P166: 1712 | Q166: 292 | R166: 4237
A167: 8730A | B167: Hébergement social pour personnes âgées | D167: =IF(C167='DONNEES INFOGRAPHIES'!$B$6,1,0) -> 0 | E167: =VLOOKUP(A167,A:R,'DONNEES INFOGRAPHIES'!$L$8,FALSE) -> 4207 | F167: 255 | G167: 165 | H167: 150 | I167: 173 | J167: 375 | K167: 261 | L167: 399 | M167: 406 | N167: 638 | O167: 374 | P167: 882 | Q167: 129 | R167: 4207
A168: 2410Z | B168: Sidérurgie | C168: Aéronautique | D168: =IF(C168='DONNEES INFOGRAPHIES'!$B$6,1,0) -> 0 | E168: =VLOOKUP(A168,A:R,'DONNEES INFOGRAPHIES'!$L$8,FALSE) -> 4204 | F168: 266 | G168: 279 | M168: 508 | N168: 354 | O168: 1381 | P168: 10 | Q168: 1406 | R168: 4204
A169: 2221Z | B169: Fabrication plaques, feuilles, tubes et profilés en plastique | C169: Polymères | D169: =IF(C169='DONNEES INFOGRAPHIES'!$B$6,1,0) -> 0 | E169: =VLOOKUP(A169,A:R,'DONNEES INFOGRAPHIES'!$L$8,FALSE) -> 4164 | F169: 750 | G169: 228 | H169: 28 | J169: 255 | K169: 1601 | L169: 185 | M169: 452 | N169: 183 | O169: 107 | P169: 315 | Q169: 60 | R169: 4164
A170: 5629A | B170: Restauration collective sous contrat | D170: =IF(C170='DONNEES INFOGRAPHIES'!$B$6,1,0) -> 0 | E170: =VLOOKUP(A170,A:R,'DONNEES INFOGRAPHIES'!$L$8,FALSE) -> 4131 | F170: 117 | G170: 137 | H170: 50 | I170: 33 | J170: 413 | K170: 83 | L170: 326 | M170: 774 | N170: 134 | O170: 370 | P170: 1544 | Q170: 150 | R170: 4131
A171: 4661Z | B171: Commerce de gros (commerce interentreprises) de matériel agricole | D171: =IF(C171='DONNEES INFOGRAPHIES'!$B$6,1,0) -> 0 | E171: =VLOOKUP(A171,A:R,'DONNEES INFOGRAPHIES'!$L$8,FALSE) -> 4131 | F171: 360 | G171: 328 | H171: 52 | I171: 379 | J171: 453 | K171: 291 | L171: 417 | M171: 395 | N171: 301 | O171: 511 | P171: 378 | Q171: 266 | R171: 4131
A172: 2550B | B172: Découpage, emboutissage | C172: Aéronautique | D172: =IF(C172='DONNEES INFOGRAPHIES'!$B$6,1,0) -> 0 | E172: =VLOOKUP(A172,A:R,'DONNEES INFOGRAPHIES'!$L$8,FALSE) -> 4078 | F172: 310 | G172: 52 | H172: 188 | I172: 47 | J172: 191 | K172: 256 | L172: 353 | M172: 750 | N172: 779 | O172: 365 | P172: 590 | Q172: 197 | R172: 4078
A173: 3320A | B173: Installation structures métalliques, chaudronnées et tuyauterie | C173: Industrie du futur, production industrielle | D173: =IF(C173='DONNEES INFOGRAPHIES'!$B$6,1,0) -> 0 | E173: =VLOOKUP(A173,A:R,'DONNEES INFOGRAPHIES'!$L$8,FALSE) -> 4007 | F173: 162 | G173: 75 | H173: 121 | I173: 37 | J173: 658 | K173: 74 | L173: 65 | M173: 936 | N173: 269 | O173: 274 | P173: 1238 | Q173: 98 | R173: 4007
A174: 2651B | B174: Fabrication d'instrumentation scientifique et technique | C174: Industrie du futur, production industrielle | D174: =IF(C174='DONNEES INFOGRAPHIES'!$B$6,1,0) -> 0 | E174: =VLOOKUP(A174,A:R,'DONNEES INFOGRAPHIES'!$L$8,FALSE) -> 4000 | F174: 723 | G174: 124 | H174: 35 | I174: 93 | J174: 243 | K174: 143 | L174: 285 | M174: 736 | N174: 549 | O174: 261 | P174: 737 | Q174: 71 | R174: 4000
A175: 2223Z | B175: Fabrication d'éléments matières plastiques pour la construction | C175: Polymères | D175: =IF(C175='DONNEES INFOGRAPHIES'!$B$6,1,0) -> 0 | E175: =VLOOKUP(A175,A:R,'DONNEES INFOGRAPHIES'!$L$8,FALSE) -> 3981 | F175: 649 | G175: 91 | H175: 50 | J175: 868 | K175: 67 | L175: 22 | M175: 485 | N175: 223 | O175: 72 | P175: 1450 | Q175: 4 | R175: 3981
A176: 8219Z | B176: Photocopie prépa. documents & aut. activ. spéc. soutien de bureau | D176: =IF(C176='DONNEES INFOGRAPHIES'!$B$6,1,0) -> 0 | E176: =VLOOKUP(A176,A:R,'DONNEES INFOGRAPHIES'!$L$8,FALSE) -> 3974 | F176: 245 | G176: 137 | H176: 65 | I176: 16 | J176: 139 | K176: 24 | L176: 282 | M176: 644 | N176: 206 | O176: 434 | P176: 1631 | Q176: 151 | R176: 3974
A177: 2920Z | B177: Fabrication de carrosseries et remorques | C177: Industrie du futur, production industrielle | D177: =IF(C177='DONNEES INFOGRAPHIES'!$B$6,1,0) -> 0 | E177: =VLOOKUP(A177,A:R,'DONNEES INFOGRAPHIES'!$L$8,FALSE) -> 3946 | F177: 1224 | G177: 57 | H177: 606 | I177: 23 | J177: 361 | K177: 193 | L177: 113 | M177: 268 | N177: 379 | O177: 162 | P177: 517 | Q177: 43 | R177: 3946
A178: 1396Z | B178: Fabrication d'autres textiles techniques et industriels | C178: Industrie du futur, production industrielle | D178: =IF(C178='DONNEES INFOGRAPHIES'!$B$6,1,0) -> 0 | E178: =VLOOKUP(A178,A:R,'DONNEES INFOGRAPHIES'!$L$8,FALSE) -> 3919 | F178: 519 | H178: 173 | J178: 10 | K178: 317 | L178: 6 | M178: 758 | N178: 1671 | O178: 294 | P178: 171 | R178: 3919
A179: 1071A | B179: Fabrication industrielle de pain et de pâtisserie fraîche | C179: Agriculture, Agroalimentaire, Forêt | D179: =IF(C179='DONNEES INFOGRAPHIES'!$B$6,1,0) -> 0 | E179: =VLOOKUP(A179,A:R,'DONNEES INFOGRAPHIES'!$L$8,FALSE) -> 3880 | F179: 316 | G179: 49 | H179: 106 | I179: 16 | J179: 1258 | K179: 40 | L179: 136 | M179: 531 | N179: 291 | O179: 464 | P179: 391 | Q179: 282 | R179: 3880
A180: 1013A | B180: Préparation industrielle de produits à base de viande | C180: Agriculture, Agroalimentaire, Forêt | D180: =IF(C180='DONNEES INFOGRAPHIES'!$B$6,1,0) -> 0 | E180: =VLOOKUP(A180,A:R,'DONNEES INFOGRAPHIES'!$L$8,FALSE) -> 3870 | F180: 269 | H180: 229 | I180: 112 | J180: 70 | K180: 495 | L180: 98 | M180: 517 | N180: 683 | O180: 269 | P180: 773 | Q180: 355 | R180: 3870
A181: 4669C | B181: Comm. gros de fournitures & équipts divers pour commerces & sces | D181: =IF(C181='DONNEES INFOGRAPHIES'!$B$6,1,0) -> 0 | E181: =VLOOKUP(A181,A:R,'DONNEES INFOGRAPHIES'!$L$8,FALSE) -> 3820 | F181: 459 | G181: 26 | H181: 46 | I181: 5 | J181: 186 | K181: 45 | L181: 278 | M181: 454 | N181: 205 | O181: 220 | P181: 1675 | Q181: 221 | R181: 3820
A182: 7500Z | B182: Activités vétérinaires | D182: =IF(C182='DONNEES INFOGRAPHIES'!$B$6,1,0) -> 0 | E182: =VLOOKUP(A182,A:R,'DONNEES INFOGRAPHIES'!$L$8,FALSE) -> 3813 | F182: 323 | G182: 246 | H182: 127 | I182: 137 | J182: 245 | K182: 117 | L182: 593 | M182: 533 | N182: 346 | O182: 338 | P182: 667 | Q182: 141 | R182: 3813
A183: 6820B | B183: Location de terrains et d'autres biens immobiliers | D183: =IF(C183='DONNEES INFOGRAPHIES'!$B$6,1,0) -> 0 | E183: =VLOOKUP(A183,A:R,'DONNEES INFOGRAPHIES'!$L$8,FALSE) -> 3740 | F183: 231 | G183: 85 | H183: 87 | I183: 33 | J183: 207 | K183: 33 | L183: 491 | M183: 342 | N183: 316 | O183: 403 | P183: 1039 | Q183: 473 | R183: 3740
A184: 3530Z | B184: Production et distribution de vapeur et d'air conditionné | C184: Energie | D184: =IF(C184='DONNEES INFOGRAPHIES'!$B$6,1,0) -> 0 | E184: =VLOOKUP(A184,A:R,'DONNEES INFOGRAPHIES'!$L$8,FALSE) -> 3729 | F184: 82 | G184: 29 | H184: 1 | J184: 37 | K184: 2 | L184: 204 | M184: 796 | N184: 269 | O184: 390 | P184: 1555 | Q184: 364 | R184: 3729
A185: 2016Z | B185: Fabrication de matières plastiques de base | C185: Industrie du futur, production industrielle | D185: =IF(C185='DONNEES INFOGRAPHIES'!$B$6,1,0) -> 0 | E185: =VLOOKUP(A185,A:R,'DONNEES INFOGRAPHIES'!$L$8,FALSE) -> 3698 | F185: 111 | G185: 31 | H185: 57 | J185: 161 | K185: 162 | M185: 339 | N185: 1435 | O185: 17 | P185: 1385 | R185: 3698
A186: 3320B | B186: Installation de machines et équipements mécaniques | C186: Industrie du futur, production industrielle | D186: =IF(C186='DONNEES INFOGRAPHIES'!$B$6,1,0) -> 0 | E186: =VLOOKUP(A186,A:R,'DONNEES INFOGRAPHIES'!$L$8,FALSE) -> 3688 | F186: 362 | G186: 72 | H186: 50 | I186: 44 | J186: 114 | K186: 51 | L186: 151 | M186: 496 | N186: 151 | O186: 191 | P186: 1596 | Q186: 410 | R186: 3688
A187: 4690Z | B187: Commerce de gros (commerce interentreprises) non spécialisé | D187: =IF(C187='DONNEES INFOGRAPHIES'!$B$6,1,0) -> 0 | E187: =VLOOKUP(A187,A:R,'DONNEES INFOGRAPHIES'!$L$8,FALSE) -> 3680 | F187: 251 | G187: 22 | H187: 42 | I187: 11 | J187: 234 | K187: 150 | L187: 318 | M187: 402 | N187: 388 | O187: 78 | P187: 1638 | Q187: 146 | R187: 3680
A188: 1011Z | B188: Transformation et conservation de la viande de boucherie | C188: Agriculture, Agroalimentaire, Forêt | D188: =IF(C188='DONNEES INFOGRAPHIES'!$B$6,1,0) -> 0 | E188: =VLOOKUP(A188,A:R,'DONNEES INFOGRAPHIES'!$L$8,FALSE) -> 3667 | F188: 510 | G188: 933 | H188: 123 | I188: 59 | J188: 345 | K188: 203 | L188: 188 | M188: 117 | N188: 790 | O188: 163 | P188: 150 | Q188: 86 | R188: 3667
A189: 9602B | B189: Soins de beauté | D189: =IF(C189='DONNEES INFOGRAPHIES'!$B$6,1,0) -> 0 | E189: =VLOOKUP(A189,A:R,'DONNEES INFOGRAPHIES'!$L$8,FALSE) -> 3590 | F189: 282 | G189: 110 | H189: 83 | I189: 27 | J189: 220 | K189: 70 | L189: 463 | M189: 479 | N189: 279 | O189: 270 | P189: 1060 | Q189: 247 | R189: 3590
A190: 6630Z | B190: Gestion de fonds | D190: =IF(C190='DONNEES INFOGRAPHIES'!$B$6,1,0) -> 0 | E190: =VLOOKUP(A190,A:R,'DONNEES INFOGRAPHIES'!$L$8,FALSE) -> 3538 | F190: 161 | G190: 58 | H190: 67 | I190: 59 | J190: 203 | K190: 122 | L190: 212 | M190: 388 | N190: 484 | O190: 219 | P190: 1429 | Q190: 136 | R190: 3538
A191: 2899B | B191: Fabrication d'autres machines spécialisées | C191: Industrie du futur, production industrielle | D191: =IF(C191='DONNEES INFOGRAPHIES'!$B$6,1,0) -> 0 | E191: =VLOOKUP(A191,A:R,'DONNEES INFOGRAPHIES'!$L$8,FALSE) -> 3524 | F191: 158 | G191: 43 | H191: 17 | I191: 37 | J191: 139 | K191: 53 | L191: 2072 | M191: 350 | N191: 157 | O191: 97 | P191: 339 | Q191: 62 | R191: 3524
A192: 4775Z | B192: Comm. détail de parfumerie & produits de beauté en magasin spéc. | D192: =IF(C192='DONNEES INFOGRAPHIES'!$B$6,1,0) -> 0 | E192: =VLOOKUP(A192,A:R,'DONNEES INFOGRAPHIES'!$L$8,FALSE) -> 3484 | F192: 196 | G192: 110 | H192: 80 | I192: 56 | J192: 221 | K192: 38 | L192: 385 | M192: 577 | N192: 309 | O192: 261 | P192: 1098 | Q192: 153 | R192: 3484
A193: 1082Z | B193: Fabrication de cacao, chocolat et de produits de confiserie | C193: Agriculture, Agroalimentaire, Forêt | D193: =IF(C193='DONNEES INFOGRAPHIES'!$B$6,1,0) -> 0 | E193: =VLOOKUP(A193,A:R,'DONNEES INFOGRAPHIES'!$L$8,FALSE) -> 3481 | F193: 63 | G193: 78 | H193: 114 | I193: 23 | J193: 1441 | K193: 1 | L193: 102 | M193: 138 | N193: 859 | O193: 162 | P193: 315 | Q193: 185 | R193: 3481
A194: 4652Z | B194: Comm. de gros d'éqpts et composants électroniques et de télécomm. | C194: Numérique | D194: =IF(C194='DONNEES INFOGRAPHIES'!$B$6,1,0) -> 0 | E194: =VLOOKUP(A194,A:R,'DONNEES INFOGRAPHIES'!$L$8,FALSE) -> 3462 | F194: 47 | G194: 6 | J194: 46 | K194: 34 | L194: 170 | M194: 1024 | N194: 73 | O194: 111 | P194: 1894 | Q194: 57 | R194: 3462
A195: 2815Z | B195: Fabrication d'engrenages et d'organes mécaniques de transmission | C195: Industrie du futur, production industrielle | D195: =IF(C195='DONNEES INFOGRAPHIES'!$B$6,1,0) -> 0 | E195: =VLOOKUP(A195,A:R,'DONNEES INFOGRAPHIES'!$L$8,FALSE) -> 3435 | G195: 22 | H195: 15 | J195: 34 | K195: 32 | L195: 2539 | M195: 63 | N195: 343 | P195: 111 | Q195: 276 | R195: 3435
A196: 3600Z | B196: Captage, traitement et distribution d'eau | D196: =IF(C196='DONNEES INFOGRAPHIES'!$B$6,1,0) -> 0 | E196: =VLOOKUP(A196,A:R,'DONNEES INFOGRAPHIES'!$L$8,FALSE) -> 3417 | F196: 264 | G196: 3 | H196: 143 | J196: 286 | K196: 21 | L196: 153 | M196: 431 | N196: 350 | O196: 298 | P196: 1355 | Q196: 113 | R196: 3417
A197: 8430C | B197: Distribution sociale de revenus | D197: =IF(C197='DONNEES INFOGRAPHIES'!$B$6,1,0) -> 0 | E197: =VLOOKUP(A197,A:R,'DONNEES INFOGRAPHIES'!$L$8,FALSE) -> 3410 | F197: 309 | G197: 33 | H197: 208 | I197: 103 | J197: 228 | K197: 133 | L197: 249 | M197: 436 | N197: 99 | O197: 338 | P197: 1099 | Q197: 175 | R197: 3410
A198: 4634Z | B198: Commerce de gros (commerce interentreprises) de boissons | D198: =IF(C198='DONNEES INFOGRAPHIES'!$B$6,1,0) -> 0 | E198: =VLOOKUP(A198,A:R,'DONNEES INFOGRAPHIES'!$L$8,FALSE) -> 3410 | F198: 210 | G198: 34 | H198: 125 | I198: 50 | J198: 181 | K198: 95 | L198: 375 | M198: 250 | N198: 286 | O198: 175 | P198: 1219 | Q198: 410 | R198: 3410
A199: 2892Z | B199: Fabrication de machines pour l'extraction ou la construction | C199: Industrie du futur, production industrielle | D199: =IF(C199='DONNEES INFOGRAPHIES'!$B$6,1,0) -> 0 | E199: =VLOOKUP(A199,A:R,'DONNEES INFOGRAPHIES'!$L$8,FALSE) -> 3383 | F199: 370 | G199: 4 | H199: 3 | I199: 28 | J199: 19 | K199: 6 | L199: 422 | M199: 1390 | N199: 249 | O199: 105 | P199: 787 | R199: 3383
A200: 4651Z | B200: Comm. de gros d'ordinat., d'éqpts informatiq. périph. & logiciels | C200: Numérique | D200: =IF(C200='DONNEES INFOGRAPHIES'!$B$6,1,0) -> 0 | E200: =VLOOKUP(A200,A:R,'DONNEES INFOGRAPHIES'!$L$8,FALSE) -> 3383 | F200: 111 | G200: 16 | H200: 38 | I200: 13 | J200: 176 | K200: 68 | L200: 203 | M200: 1006 | N200: 108 | O200: 101 | P200: 1437 | Q200: 106 | R200: 3383
... 474 more rows

Sheet DPAE (DOMEX) (hidden)
A1: DPAE cumul sur 12 mois (tous contrats) | B1: 01 | C1: 03 | D1: 07 | E1: 15 | F1: 26 | G1: 38 | H1: 42 | I1: 43 | J1: 63 | K1: 69 | L1: 73 | M1: 74 | N1: TOTAL
A2: Aéronautique | B2: =SUMIFS(siloDPAE!$E:$E,siloDPAE!$H:$H,"Période",siloDPAE!$A:$A,B$19,siloDPAE!$F:$F,"Total",siloDPAE!$G:$G,$A2) -> 1344 | C2: =SUMIFS(siloDPAE!$E:$E,siloDPAE!$H:$H,"Période",siloDPAE!$A:$A,C$19,siloDPAE!$F:$F,"Total",siloDPAE!$G:$G,$A2) -> 833 | D2: =SUMIFS(siloDPAE!$E:$E,siloDPAE!$H:$H,"Période",siloDPAE!$A:$A,D$19,siloDPAE!$F:$F,"Total",siloDPAE!$G:$G,$A2) -> 308 | E2: =SUMIFS(siloDPAE!$E:$E,siloDPAE!$H:$H,"Période",siloDPAE!$A:$A,E$19,siloDPAE!$F:$F,"Total",siloDPAE!$G:$G,$A2) -> 104 | F2: =SUMIFS(siloDPAE!$E:$E,siloDPAE!$H:$H,"Période",siloDPAE!$A:$A,F$19,siloDPAE!$F:$F,"Total",siloDPAE!$G:$G,$A2) -> 1258 | G2: =SUMIFS(siloDPAE!$E:$E,siloDPAE!$H:$H,"Période",siloDPAE!$A:$A,G$19,siloDPAE!$F:$F,"Total",siloDPAE!$G:$G,$A2) -> 2059 | H2: =SUMIFS(siloDPAE!$E:$E,siloDPAE!$H:$H,"Période",siloDPAE!$A:$A,H$19,siloDPAE!$F:$F,"Total",siloDPAE!$G:$G,$A2) -> 2250 | I2: =SUMIFS(siloDPAE!$E:$E,siloDPAE!$H:$H,"Période",siloDPAE!$A:$A,I$19,siloDPAE!$F:$F,"Total",siloDPAE!$G:$G,$A2) -> 506 | J2: =SUMIFS(siloDPAE!$E:$E,siloDPAE!$H:$H,"Période",siloDPAE!$A:$A,J$19,siloDPAE!$F:$F,"Total",siloDPAE!$G:$G,$A2) -> 1463 | K2: =SUMIFS(siloDPAE!$E:$E,siloDPAE!$H:$H,"Période",siloDPAE!$A:$A,K$19,siloDPAE!$F:$F,"Total",siloDPAE!$G:$G,$A2) -> 2898 | L2: =SUMIFS(siloDPAE!$E:$E,siloDPAE!$H:$H,"Période",siloDPAE!$A:$A,L$19,siloDPAE!$F:$F,"Total",siloDPAE!$G:$G,$A2) -> 1146 | M2: =SUMIFS(siloDPAE!$E:$E,siloDPAE!$H:$H,"Période",siloDPAE!$A:$A,M$19,siloDPAE!$F:$F,"Total",siloDPAE!$G:$G,$A2) -> 2427 | N2: =SUM(B2:M2) -> 16596
A3: Agriculture, Agroalimentaire, Forêt | B3: =SUMIFS(siloDPAE!$E:$E,siloDPAE!$H:$H,"Période",siloDPAE!$A:$A,B$19,siloDPAE!$F:$F,"Total",siloDPAE!$G:$G,$A3) -> 8296 | C3: =SUMIFS(siloDPAE!$E:$E,siloDPAE!$H:$H,"Période",siloDPAE!$A:$A,C$19,siloDPAE!$F:$F,"Total",siloDPAE!$G:$G,$A3) -> 4038 | D3: =SUMIFS(siloDPAE!$E:$E,siloDPAE!$H:$H,"Période",siloDPAE!$A:$A,D$19,siloDPAE!$F:$F,"Total",siloDPAE!$G:$G,$A3) -> 15020 | E3: =SUMIFS(siloDPAE!$E:$E,siloDPAE!$H:$H,"Période",siloDPAE!$A:$A,E$19,siloDPAE!$F:$F,"Total",siloDPAE!$G:$G,$A3) -> 1698 | F3: =SUMIFS(siloDPAE!$E:$E,siloDPAE!$H:$H,"Période",siloDPAE!$A:$A,F$19,siloDPAE!$F:$F,"Total",siloDPAE!$G:$G,$A3) -> 29951 | G3: =SUMIFS(siloDPAE!$E:$E,siloDPAE!$H:$H,"Période",siloDPAE!$A:$A,G$19,siloDPAE!$F:$F,"Total",siloDPAE!$G:$G,$A3) -> 12704 | H3: =SUMIFS(siloDPAE!$E:$E,siloDPAE!$H:$H,"Période",siloDPAE!$A:$A,H$19,siloDPAE!$F:$F,"Total",siloDPAE!$G:$G,$A3) -> 11898 | I3: =SUMIFS(siloDPAE!$E:$E,siloDPAE!$H:$H,"Période",siloDPAE!$A:$A,I$19,siloDPAE!$F:$F,"Total",siloDPAE!$G:$G,$A3) -> 3114 | J3: =SUMIFS(siloDPAE!$E:$E,siloDPAE!$H:$H,"Période",siloDPAE!$A:$A,J$19,siloDPAE!$F:$F,"Total",siloDPAE!$G:$G,$A3) -> 13587 | K3: =SUMIFS(siloDPAE!$E:$E,siloDPAE!$H:$H,"Période",siloDPAE!$A:$A,K$19,siloDPAE!$F:$F,"Total",siloDPAE!$G:$G,$A3) -> 52243 | L3: =SUMIFS(siloDPAE!$E:$E,siloDPAE!$H:$H,"Période",siloDPAE!$A:$A,L$19,siloDPAE!$F:$F,"Total",siloDPAE!$G:$G,$A3) -> 7289 | M3: =SUMIFS(siloDPAE!$E:$E,siloDPAE!$H:$H,"Période",siloDPAE!$A:$A,M$19,siloDPAE!$F:$F,"Total",siloDPAE!$G:$G,$A3) -> 6961 | N3: =SUM(B3:M3) -> 166799
A4: BTP | B4: =SUMIFS(siloDPAE!$E:$E,siloDPAE!$H:$H,"Période",siloDPAE!$A:$A,B$19,siloDPAE!$F:$F,"Total",siloDPAE!$G:$G,$A4) -> 5053 | C4: =SUMIFS(siloDPAE!$E:$E,siloDPAE!$H:$H,"Période",siloDPAE!$A:$A,C$19,siloDPAE!$F:$F,"Total",siloDPAE!$G:$G,$A4) -> 2251 | D4: =SUMIFS(siloDPAE!$E:$E,siloDPAE!$H:$H,"Période",siloDPAE!$A:$A,D$19,siloDPAE!$F:$F,"Total",siloDPAE!$G:$G,$A4) -> 2545 | E4: =SUMIFS(siloDPAE!$E:$E,siloDPAE!$H:$H,"Période",siloDPAE!$A:$A,E$19,siloDPAE!$F:$F,"Total",siloDPAE!$G:$G,$A4) -> 1135 | F4: =SUMIFS(siloDPAE!$E:$E,siloDPAE!$H:$H,"Période",siloDPAE!$A:$A,F$19,siloDPAE!$F:$F,"Total",siloDPAE!$G:$G,$A4) -> 5556 | G4: =SUMIFS(siloDPAE!$E:$E,siloDPAE!$H:$H,"Période",siloDPAE!$A:$A,G$19,siloDPAE!$F:$F,"Total",siloDPAE!$G:$G,$A4) -> 14164 | H4: =SUMIFS(siloDPAE!$E:$E,siloDPAE!$H:$H,"Période",siloDPAE!$A:$A,H$19,siloDPAE!$F:$F,"Total",siloDPAE!$G:$G,$A4) -> 6952 | I4: =SUMIFS(siloDPAE!$E:$E,siloDPAE!$H:$H,"Période",siloDPAE!$A:$A,I$19,siloDPAE!$F:$F,"Total",siloDPAE!$G:$G,$A4) -> 1701 | J4: =SUMIFS(siloDPAE!$E:$E,siloDPAE!$H:$H,"Période",siloDPAE!$A:$A,J$19,siloDPAE!$F:$F,"Total",siloDPAE!$G:$G,$A4) -> 5263 | K4: =SUMIFS(siloDPAE!$E:$E,siloDPAE!$H:$H,"Période",siloDPAE!$A:$A,K$19,siloDPAE!$F:$F,"Total",siloDPAE!$G:$G,$A4) -> 22625 | L4: =SUMIFS(siloDPAE!$E:$E,siloDPAE!$H:$H,"Période",siloDPAE!$A:$A,L$19,siloDPAE!$F:$F,"Total",siloDPAE!$G:$G,$A4) -> 7613 | M4: =SUMIFS(siloDPAE!$E:$E,siloDPAE!$H:$H,"Période",siloDPAE!$A:$A,M$19,siloDPAE!$F:$F,"Total",siloDPAE!$G:$G,$A4) -> 9023 | N4: 83881
A5: Energie | B5: =SUMIFS(siloDPAE!$E:$E,siloDPAE!$H:$H,"Période",siloDPAE!$A:$A,B$19,siloDPAE!$F:$F,"Total",siloDPAE!$G:$G,$A5) -> 301 | C5: =SUMIFS(siloDPAE!$E:$E,siloDPAE!$H:$H,"Période",siloDPAE!$A:$A,C$19,siloDPAE!$F:$F,"Total",siloDPAE!$G:$G,$A5) -> 47 | D5: =SUMIFS(siloDPAE!$E:$E,siloDPAE!$H:$H,"Période",siloDPAE!$A:$A,D$19,siloDPAE!$F:$F,"Total",siloDPAE!$G:$G,$A5) -> 287 | E5: =SUMIFS(siloDPAE!$E:$E,siloDPAE!$H:$H,"Période",siloDPAE!$A:$A,E$19,siloDPAE!$F:$F,"Total",siloDPAE!$G:$G,$A5) -> 25 | F5: =SUMIFS(siloDPAE!$E:$E,siloDPAE!$H:$H,"Période",siloDPAE!$A:$A,F$19,siloDPAE!$F:$F,"Total",siloDPAE!$G:$G,$A5) -> 222 | G5: =SUMIFS(siloDPAE!$E:$E,siloDPAE!$H:$H,"Période",siloDPAE!$A:$A,G$19,siloDPAE!$F:$F,"Total",siloDPAE!$G:$G,$A5) -> 456 | H5: =SUMIFS(siloDPAE!$E:$E,siloDPAE!$H:$H,"Période",siloDPAE!$A:$A,H$19,siloDPAE!$F:$F,"Total",siloDPAE!$G:$G,$A5) -> 97 | I5: =SUMIFS(siloDPAE!$E:$E,siloDPAE!$H:$H,"Période",siloDPAE!$A:$A,I$19,siloDPAE!$F:$F,"Total",siloDPAE!$G:$G,$A5) -> 16 | J5: =SUMIFS(siloDPAE!$E:$E,siloDPAE!$H:$H,"Période",siloDPAE!$A:$A,J$19,siloDPAE!$F:$F,"Total",siloDPAE!$G:$G,$A5) -> 201 | K5: =SUMIFS(siloDPAE!$E:$E,siloDPAE!$H:$H,"Période",siloDPAE!$A:$A,K$19,siloDPAE!$F:$F,"Total",siloDPAE!$G:$G,$A5) -> 1476 | L5: =SUMIFS(siloDPAE!$E:$E,siloDPAE!$H:$H,"Période",siloDPAE!$A:$A,L$19,siloDPAE!$F:$F,"Total",siloDPAE!$G:$G,$A5) -> 323 | M5: =SUMIFS(siloDPAE!$E:$E,siloDPAE!$H:$H,"Période",siloDPAE!$A:$A,M$19,siloDPAE!$F:$F,"Total",siloDPAE!$G:$G,$A5) -> 88 | N5: 3539
A6: Industrie du futur, production industrielle | B6: =SUMIFS(siloDPAE!$E:$E,siloDPAE!$H:$H,"Période",siloDPAE!$A:$A,B$19,siloDPAE!$F:$F,"Total",siloDPAE!$G:$G,$A6) -> 4024 | C6: =SUMIFS(siloDPAE!$E:$E,siloDPAE!$H:$H,"Période",siloDPAE!$A:$A,C$19,siloDPAE!$F:$F,"Total",siloDPAE!$G:$G,$A6) -> 1433 | D6: =SUMIFS(siloDPAE!$E:$E,siloDPAE!$H:$H,"Période",siloDPAE!$A:$A,D$19,siloDPAE!$F:$F,"Total",siloDPAE!$G:$G,$A6) -> 1915 | E6: =SUMIFS(siloDPAE!$E:$E,siloDPAE!$H:$H,"Période",siloDPAE!$A:$A,E$19,siloDPAE!$F:$F,"Total",siloDPAE!$G:$G,$A6) -> 294 | F6: =SUMIFS(siloDPAE!$E:$E,siloDPAE!$H:$H,"Période",siloDPAE!$A:$A,F$19,siloDPAE!$F:$F,"Total",siloDPAE!$G:$G,$A6) -> 3788 | G6: =SUMIFS(siloDPAE!$E:$E,siloDPAE!$H:$H,"Période",siloDPAE!$A:$A,G$19,siloDPAE!$F:$F,"Total",siloDPAE!$G:$G,$A6) -> 9587 | H6: =SUMIFS(siloDPAE!$E:$E,siloDPAE!$H:$H,"Période",siloDPAE!$A:$A,H$19,siloDPAE!$F:$F,"Total",siloDPAE!$G:$G,$A6) -> 5117 | I6: =SUMIFS(siloDPAE!$E:$E,siloDPAE!$H:$H,"Période",siloDPAE!$A:$A,I$19,siloDPAE!$F:$F,"Total",siloDPAE!$G:$G,$A6) -> 903 | J6: =SUMIFS(siloDPAE!$E:$E,siloDPAE!$H:$H,"Période",siloDPAE!$A:$A,J$19,siloDPAE!$F:$F,"Total",siloDPAE!$G:$G,$A6) -> 3532 | K6: =SUMIFS(siloDPAE!$E:$E,siloDPAE!$H:$H,"Période",siloDPAE!$A:$A,K$19,siloDPAE!$F:$F,"Total",siloDPAE!$G:$G,$A6) -> 12652 | L6: =SUMIFS(siloDPAE!$E:$E,siloDPAE!$H:$H,"Période",siloDPAE!$A:$A,L$19,siloDPAE!$F:$F,"Total",siloDPAE!$G:$G,$A6) -> 2167 | M6: =SUMIFS(siloDPAE!$E:$E,siloDPAE!$H:$H,"Période",siloDPAE!$A:$A,M$19,siloDPAE!$F:$F,"Total",siloDPAE!$G:$G,$A6) -> 3989 | N6: 49401
A7: Métier de bouche | B7: =SUMIFS(siloDPAE!$E:$E,siloDPAE!$H:$H,"Période",siloDPAE!$A:$A,B$19,siloDPAE!$F:$F,"Total",siloDPAE!$G:$G,$A7) -> 4825 | C7: =SUMIFS(siloDPAE!$E:$E,siloDPAE!$H:$H,"Période",siloDPAE!$A:$A,C$19,siloDPAE!$F:$F,"Total",siloDPAE!$G:$G,$A7) -> 2540 | D7: =SUMIFS(siloDPAE!$E:$E,siloDPAE!$H:$H,"Période",siloDPAE!$A:$A,D$19,siloDPAE!$F:$F,"Total",siloDPAE!$G:$G,$A7) -> 2810 | E7: =SUMIFS(siloDPAE!$E:$E,siloDPAE!$H:$H,"Période",siloDPAE!$A:$A,E$19,siloDPAE!$F:$F,"Total",siloDPAE!$G:$G,$A7) -> 1238 | F7: =SUMIFS(siloDPAE!$E:$E,siloDPAE!$H:$H,"Période",siloDPAE!$A:$A,F$19,siloDPAE!$F:$F,"Total",siloDPAE!$G:$G,$A7) -> 3761 | G7: =SUMIFS(siloDPAE!$E:$E,siloDPAE!$H:$H,"Période",siloDPAE!$A:$A,G$19,siloDPAE!$F:$F,"Total",siloDPAE!$G:$G,$A7) -> 10469 | H7: =SUMIFS(siloDPAE!$E:$E,siloDPAE!$H:$H,"Période",siloDPAE!$A:$A,H$19,siloDPAE!$F:$F,"Total",siloDPAE!$G:$G,$A7) -> 8697 | I7: =SUMIFS(siloDPAE!$E:$E,siloDPAE!$H:$H,"Période",siloDPAE!$A:$A,I$19,siloDPAE!$F:$F,"Total",siloDPAE!$G:$G,$A7) -> 1054 | J7: =SUMIFS(siloDPAE!$E:$E,siloDPAE!$H:$H,"Période",siloDPAE!$A:$A,J$19,siloDPAE!$F:$F,"Total",siloDPAE!$G:$G,$A7) -> 7396 | K7: =SUMIFS(siloDPAE!$E:$E,siloDPAE!$H:$H,"Période",siloDPAE!$A:$A,K$19,siloDPAE!$F:$F,"Total",siloDPAE!$G:$G,$A7) -> 32340 | L7: =SUMIFS(siloDPAE!$E:$E,siloDPAE!$H:$H,"Période",siloDPAE!$A:$A,L$19,siloDPAE!$F:$F,"Total",siloDPAE!$G:$G,$A7) -> 5946 | M7: =SUMIFS(siloDPAE!$E:$E,siloDPAE!$H:$H,"Période",siloDPAE!$A:$A,M$19,siloDPAE!$F:$F,"Total",siloDPAE!$G:$G,$A7) -> 8021 | N7: 89097
A8: Mobilité, systèmes de transport intelligents | B8: =SUMIFS(siloDPAE!$E:$E,siloDPAE!$H:$H,"Période",siloDPAE!$A:$A,B$19,siloDPAE!$F:$F,"Total",siloDPAE!$G:$G,$A8) -> 3886 | C8: =SUMIFS(siloDPAE!$E:$E,siloDPAE!$H:$H,"Période",siloDPAE!$A:$A,C$19,siloDPAE!$F:$F,"Total",siloDPAE!$G:$G,$A8) -> 1524 | D8: =SUMIFS(siloDPAE!$E:$E,siloDPAE!$H:$H,"Période",siloDPAE!$A:$A,D$19,siloDPAE!$F:$F,"Total",siloDPAE!$G:$G,$A8) -> 821 | E8: =SUMIFS(siloDPAE!$E:$E,siloDPAE!$H:$H,"Période",siloDPAE!$A:$A,E$19,siloDPAE!$F:$F,"Total",siloDPAE!$G:$G,$A8) -> 636 | F8: =SUMIFS(siloDPAE!$E:$E,siloDPAE!$H:$H,"Période",siloDPAE!$A:$A,F$19,siloDPAE!$F:$F,"Total",siloDPAE!$G:$G,$A8) -> 5058 | G8: =SUMIFS(siloDPAE!$E:$E,siloDPAE!$H:$H,"Période",siloDPAE!$A:$A,G$19,siloDPAE!$F:$F,"Total",siloDPAE!$G:$G,$A8) -> 9694 | H8: =SUMIFS(siloDPAE!$E:$E,siloDPAE!$H:$H,"Période",siloDPAE!$A:$A,H$19,siloDPAE!$F:$F,"Total",siloDPAE!$G:$G,$A8) -> 3545 | I8: =SUMIFS(siloDPAE!$E:$E,siloDPAE!$H:$H,"Période",siloDPAE!$A:$A,I$19,siloDPAE!$F:$F,"Total",siloDPAE!$G:$G,$A8) -> 872 | J8: =SUMIFS(siloDPAE!$E:$E,siloDPAE!$H:$H,"Période",siloDPAE!$A:$A,J$19,siloDPAE!$F:$F,"Total",siloDPAE!$G:$G,$A8) -> 5279 | K8: =SUMIFS(siloDPAE!$E:$E,siloDPAE!$H:$H,"Période",siloDPAE!$A:$A,K$19,siloDPAE!$F:$F,"Total",siloDPAE!$G:$G,$A8) -> 31495 | L8: =SUMIFS(siloDPAE!$E:$E,siloDPAE!$H:$H,"Période",siloDPAE!$A:$A,L$19,siloDPAE!$F:$F,"Total",siloDPAE!$G:$G,$A8) -> 4357 | M8: =SUMIFS(siloDPAE!$E:$E,siloDPAE!$H:$H,"Période",siloDPAE!$A:$A,M$19,siloDPAE!$F:$F,"Total",siloDPAE!$G:$G,$A8) -> 5142 | N8: 72309
A9: Numérique | B9: =SUMIFS(siloDPAE!$E:$E,siloDPAE!$H:$H,"Période",siloDPAE!$A:$A,B$19,siloDPAE!$F:$F,"Total",siloDPAE!$G:$G,$A9) -> 751 | C9: =SUMIFS(siloDPAE!$E:$E,siloDPAE!$H:$H,"Période",siloDPAE!$A:$A,C$19,siloDPAE!$F:$F,"Total",siloDPAE!$G:$G,$A9) -> 535 | D9: =SUMIFS(siloDPAE!$E:$E,siloDPAE!$H:$H,"Période",siloDPAE!$A:$A,D$19,siloDPAE!$F:$F,"Total",siloDPAE!$G:$G,$A9) -> 413 | E9: =SUMIFS(siloDPAE!$E:$E,siloDPAE!$H:$H,"Période",siloDPAE!$A:$A,E$19,siloDPAE!$F:$F,"Total",siloDPAE!$G:$G,$A9) -> 57 | F9: =SUMIFS(siloDPAE!$E:$E,siloDPAE!$H:$H,"Période",siloDPAE!$A:$A,F$19,siloDPAE!$F:$F,"Total",siloDPAE!$G:$G,$A9) -> 3471 | G9: =SUMIFS(siloDPAE!$E:$E,siloDPAE!$H:$H,"Période",siloDPAE!$A:$A,G$19,siloDPAE!$F:$F,"Total",siloDPAE!$G:$G,$A9) -> 7458 | H9: =SUMIFS(siloDPAE!$E:$E,siloDPAE!$H:$H,"Période",siloDPAE!$A:$A,H$19,siloDPAE!$F:$F,"Total",siloDPAE!$G:$G,$A9) -> 2206 | I9: =SUMIFS(siloDPAE!$E:$E,siloDPAE!$H:$H,"Période",siloDPAE!$A:$A,I$19,siloDPAE!$F:$F,"Total",siloDPAE!$G:$G,$A9) -> 422 | J9: =SUMIFS(siloDPAE!$E:$E,siloDPAE!$H:$H,"Période",siloDPAE!$A:$A,J$19,siloDPAE!$F:$F,"Total",siloDPAE!$G:$G,$A9) -> 3794 | K9: =SUMIFS(siloDPAE!$E:$E,siloDPAE!$H:$H,"Période",siloDPAE!$A:$A,K$19,siloDPAE!$F:$F,"Total",siloDPAE!$G:$G,$A9) -> 33513 | L9: =SUMIFS(siloDPAE!$E:$E,siloDPAE!$H:$H,"Période",siloDPAE!$A:$A,L$19,siloDPAE!$F:$F,"Total",siloDPAE!$G:$G,$A9) -> 838 | M9: =SUMIFS(siloDPAE!$E:$E,siloDPAE!$H:$H,"Période",siloDPAE!$A:$A,M$19,siloDPAE!$F:$F,"Total",siloDPAE!$G:$G,$A9) -> 2985 | N9: 56443
A10: Polymères | B10: =SUMIFS(siloDPAE!$E:$E,siloDPAE!$H:$H,"Période",siloDPAE!$A:$A,B$19,siloDPAE!$F:$F,"Total",siloDPAE!$G:$G,$A10) -> 1353 | C10: =SUMIFS(siloDPAE!$E:$E,siloDPAE!$H:$H,"Période",siloDPAE!$A:$A,C$19,siloDPAE!$F:$F,"Total",siloDPAE!$G:$G,$A10) -> 82 | D10: =SUMIFS(siloDPAE!$E:$E,siloDPAE!$H:$H,"Période",siloDPAE!$A:$A,D$19,siloDPAE!$F:$F,"Total",siloDPAE!$G:$G,$A10) -> 79 | E10: =SUMIFS(siloDPAE!$E:$E,siloDPAE!$H:$H,"Période",siloDPAE!$A:$A,E$19,siloDPAE!$F:$F,"Total",siloDPAE!$G:$G,$A10) -> 23 | F10: =SUMIFS(siloDPAE!$E:$E,siloDPAE!$H:$H,"Période",siloDPAE!$A:$A,F$19,siloDPAE!$F:$F,"Total",siloDPAE!$G:$G,$A10) -> 360 | G10: =SUMIFS(siloDPAE!$E:$E,siloDPAE!$H:$H,"Période",siloDPAE!$A:$A,G$19,siloDPAE!$F:$F,"Total",siloDPAE!$G:$G,$A10) -> 605 | H10: =SUMIFS(siloDPAE!$E:$E,siloDPAE!$H:$H,"Période",siloDPAE!$A:$A,H$19,siloDPAE!$F:$F,"Total",siloDPAE!$G:$G,$A10) -> 200 | I10: =SUMIFS(siloDPAE!$E:$E,siloDPAE!$H:$H,"Période",siloDPAE!$A:$A,I$19,siloDPAE!$F:$F,"Total",siloDPAE!$G:$G,$A10) -> 717 | J10: =SUMIFS(siloDPAE!$E:$E,siloDPAE!$H:$H,"Période",siloDPAE!$A:$A,J$19,siloDPAE!$F:$F,"Total",siloDPAE!$G:$G,$A10) -> 188 | K10: =SUMIFS(siloDPAE!$E:$E,siloDPAE!$H:$H,"Période",siloDPAE!$A:$A,K$19,siloDPAE!$F:$F,"Total",siloDPAE!$G:$G,$A10) -> 726 | L10: =SUMIFS(siloDPAE!$E:$E,siloDPAE!$H:$H,"Période",siloDPAE!$A:$A,L$19,siloDPAE!$F:$F,"Total",siloDPAE!$G:$G,$A10) -> 90 | M10: =SUMIFS(siloDPAE!$E:$E,siloDPAE!$H:$H,"Période",siloDPAE!$A:$A,M$19,siloDPAE!$F:$F,"Total",siloDPAE!$G:$G,$A10) -> 239 | N10: 4662
A11: Santé | B11: =SUMIFS(siloDPAE!$E:$E,siloDPAE!$H:$H,"Période",siloDPAE!$A:$A,B$19,siloDPAE!$F:$F,"Total",siloDPAE!$G:$G,$A11) -> 15173 | C11: =SUMIFS(siloDPAE!$E:$E,siloDPAE!$H:$H,"Période",siloDPAE!$A:$A,C$19,siloDPAE!$F:$F,"Total",siloDPAE!$G:$G,$A11) -> 3070 | D11: =SUMIFS(siloDPAE!$E:$E,siloDPAE!$H:$H,"Période",siloDPAE!$A:$A,D$19,siloDPAE!$F:$F,"Total",siloDPAE!$G:$G,$A11) -> 5120 | E11: =SUMIFS(siloDPAE!$E:$E,siloDPAE!$H:$H,"Période",siloDPAE!$A:$A,E$19,siloDPAE!$F:$F,"Total",siloDPAE!$G:$G,$A11) -> 3991 | F11: =SUMIFS(siloDPAE!$E:$E,siloDPAE!$H:$H,"Période",siloDPAE!$A:$A,F$19,siloDPAE!$F:$F,"Total",siloDPAE!$G:$G,$A11) -> 13238 | G11: =SUMIFS(siloDPAE!$E:$E,siloDPAE!$H:$H,"Période",siloDPAE!$A:$A,G$19,siloDPAE!$F:$F,"Total",siloDPAE!$G:$G,$A11) -> 28593 | H11: =SUMIFS(siloDPAE!$E:$E,siloDPAE!$H:$H,"Période",siloDPAE!$A:$A,H$19,siloDPAE!$F:$F,"Total",siloDPAE!$G:$G,$A11) -> 22363 | I11: =SUMIFS(siloDPAE!$E:$E,siloDPAE!$H:$H,"Période",siloDPAE!$A:$A,I$19,siloDPAE!$F:$F,"Total",siloDPAE!$G:$G,$A11) -> 2594 | J11: =SUMIFS(siloDPAE!$E:$E,siloDPAE!$H:$H,"Période",siloDPAE!$A:$A,J$19,siloDPAE!$F:$F,"Total",siloDPAE!$G:$G,$A11) -> 15709 | K11: =SUMIFS(siloDPAE!$E:$E,siloDPAE!$H:$H,"Période",siloDPAE!$A:$A,K$19,siloDPAE!$F:$F,"Total",siloDPAE!$G:$G,$A11) -> 103142 | L11: =SUMIFS(siloDPAE!$E:$E,siloDPAE!$H:$H,"Période",siloDPAE!$A:$A,L$19,siloDPAE!$F:$F,"Total",siloDPAE!$G:$G,$A11) -> 5952 | M11: =SUMIFS(siloDPAE!$E:$E,siloDPAE!$H:$H,"Période",siloDPAE!$A:$A,M$19,siloDPAE!$F:$F,"Total",siloDPAE!$G:$G,$A11) -> 25733 | N11: 244678
A12: Services à la personne | B12: =SUMIFS(siloDPAE!$E:$E,siloDPAE!$H:$H,"Période",siloDPAE!$A:$A,B$19,siloDPAE!$F:$F,"Total",siloDPAE!$G:$G,$A12) -> 2710 | C12: =SUMIFS(siloDPAE!$E:$E,siloDPAE!$H:$H,"Période",siloDPAE!$A:$A,C$19,siloDPAE!$F:$F,"Total",siloDPAE!$G:$G,$A12) -> 1349 | D12: =SUMIFS(siloDPAE!$E:$E,siloDPAE!$H:$H,"Période",siloDPAE!$A:$A,D$19,siloDPAE!$F:$F,"Total",siloDPAE!$G:$G,$A12) -> 2467 | E12: =SUMIFS(siloDPAE!$E:$E,siloDPAE!$H:$H,"Période",siloDPAE!$A:$A,E$19,siloDPAE!$F:$F,"Total",siloDPAE!$G:$G,$A12) -> 869 | F12: =SUMIFS(siloDPAE!$E:$E,siloDPAE!$H:$H,"Période",siloDPAE!$A:$A,F$19,siloDPAE!$F:$F,"Total",siloDPAE!$G:$G,$A12) -> 3740 | G12: =SUMIFS(siloDPAE!$E:$E,siloDPAE!$H:$H,"Période",siloDPAE!$A:$A,G$19,siloDPAE!$F:$F,"Total",siloDPAE!$G:$G,$A12) -> 11210 | H12: =SUMIFS(siloDPAE!$E:$E,siloDPAE!$H:$H,"Période",siloDPAE!$A:$A,H$19,siloDPAE!$F:$F,"Total",siloDPAE!$G:$G,$A12) -> 7236 | I12: =SUMIFS(siloDPAE!$E:$E,siloDPAE!$H:$H,"Période",siloDPAE!$A:$A,I$19,siloDPAE!$F:$F,"Total",siloDPAE!$G:$G,$A12) -> 1491 | J12: =SUMIFS(siloDPAE!$E:$E,siloDPAE!$H:$H,"Période",siloDPAE!$A:$A,J$19,siloDPAE!$F:$F,"Total",siloDPAE!$G:$G,$A12) -> 3553 | K12: =SUMIFS(siloDPAE!$E:$E,siloDPAE!$H:$H,"Période",siloDPAE!$A:$A,K$19,siloDPAE!$F:$F,"Total",siloDPAE!$G:$G,$A12) -> 18008 | L12: =SUMIFS(siloDPAE!$E:$E,siloDPAE!$H:$H,"Période",siloDPAE!$A:$A,L$19,siloDPAE!$F:$F,"Total",siloDPAE!$G:$G,$A12) -> 2582 | M12: =SUMIFS(siloDPAE!$E:$E,siloDPAE!$H:$H,"Période",siloDPAE!$A:$A,M$19,siloDPAE!$F:$F,"Total",siloDPAE!$G:$G,$A12) -> 3968 | N12: 59183
A13: Sport, Montagne, Tourisme | B13: =SUMIFS(siloDPAE!$E:$E,siloDPAE!$H:$H,"Période",siloDPAE!$A:$A,B$19,siloDPAE!$F:$F,"Total",siloDPAE!$G:$G,$A13) -> 21758 | C13: =SUMIFS(siloDPAE!$E:$E,siloDPAE!$H:$H,"Période",siloDPAE!$A:$A,C$19,siloDPAE!$F:$F,"Total",siloDPAE!$G:$G,$A13) -> 11994 | D13: =SUMIFS(siloDPAE!$E:$E,siloDPAE!$H:$H,"Période",siloDPAE!$A:$A,D$19,siloDPAE!$F:$F,"Total",siloDPAE!$G:$G,$A13) -> 15482 | E13: =SUMIFS(siloDPAE!$E:$E,siloDPAE!$H:$H,"Période",siloDPAE!$A:$A,E$19,siloDPAE!$F:$F,"Total",siloDPAE!$G:$G,$A13) -> 5258 | F13: =SUMIFS(siloDPAE!$E:$E,siloDPAE!$H:$H,"Période",siloDPAE!$A:$A,F$19,siloDPAE!$F:$F,"Total",siloDPAE!$G:$G,$A13) -> 26125 | G13: =SUMIFS(siloDPAE!$E:$E,siloDPAE!$H:$H,"Période",siloDPAE!$A:$A,G$19,siloDPAE!$F:$F,"Total",siloDPAE!$G:$G,$A13) -> 61010 | H13: =SUMIFS(siloDPAE!$E:$E,siloDPAE!$H:$H,"Période",siloDPAE!$A:$A,H$19,siloDPAE!$F:$F,"Total",siloDPAE!$G:$G,$A13) -> 23022 | I13: =SUMIFS(siloDPAE!$E:$E,siloDPAE!$H:$H,"Période",siloDPAE!$A:$A,I$19,siloDPAE!$F:$F,"Total",siloDPAE!$G:$G,$A13) -> 7262 | J13: =SUMIFS(siloDPAE!$E:$E,siloDPAE!$H:$H,"Période",siloDPAE!$A:$A,J$19,siloDPAE!$F:$F,"Total",siloDPAE!$G:$G,$A13) -> 26473 | K13: =SUMIFS(siloDPAE!$E:$E,siloDPAE!$H:$H,"Période",siloDPAE!$A:$A,K$19,siloDPAE!$F:$F,"Total",siloDPAE!$G:$G,$A13) -> 144889 | L13: =SUMIFS(siloDPAE!$E:$E,siloDPAE!$H:$H,"Période",siloDPAE!$A:$A,L$19,siloDPAE!$F:$F,"Total",siloDPAE!$G:$G,$A13) -> 77979 | M13: =SUMIFS(siloDPAE!$E:$E,siloDPAE!$H:$H,"Période",siloDPAE!$A:$A,M$19,siloDPAE!$F:$F,"Total",siloDPAE!$G:$G,$A13) -> 82140 | N13: 503392
A14: Hors DOMEX | B14: =B15-SUM(B2:B13) -> 338353 | C14: =C15-SUM(C2:C13) -> 152232 | D14: 102308 | E14: 52787 | F14: 381309 | G14: 737094 | H14: 397116 | I14: 117687 | J14: 379247 | K14: 2197064 | L14: 225304 | M14: 364516 | N14: 5445017
A15: TOTAL | B15: =SUMIFS(siloDPAE!$E:$E,siloDPAE!$H:$H,"Période",siloDPAE!$A:$A,B$19,siloDPAE!$F:$F,"Total",siloDPAE!$G:$G,$A15) -> 407827 | C15: =SUMIFS(siloDPAE!$E:$E,siloDPAE!$H:$H,"Période",siloDPAE!$A:$A,C$19,siloDPAE!$F:$F,"Total",siloDPAE!$G:$G,$A15) -> 181928 | D15: =SUMIFS(siloDPAE!$E:$E,siloDPAE!$H:$H,"Période",siloDPAE!$A:$A,D$19,siloDPAE!$F:$F,"Total",siloDPAE!$G:$G,$A15) -> 149575 | E15: =SUMIFS(siloDPAE!$E:$E,siloDPAE!$H:$H,"Période",siloDPAE!$A:$A,E$19,siloDPAE!$F:$F,"Total",siloDPAE!$G:$G,$A15) -> 68115 | F15: =SUMIFS(siloDPAE!$E:$E,siloDPAE!$H:$H,"Période",siloDPAE!$A:$A,F$19,siloDPAE!$F:$F,"Total",siloDPAE!$G:$G,$A15) -> 477837 | G15: =SUMIFS(siloDPAE!$E:$E,siloDPAE!$H:$H,"Période",siloDPAE!$A:$A,G$19,siloDPAE!$F:$F,"Total",siloDPAE!$G:$G,$A15) -> 905103 | H15: =SUMIFS(siloDPAE!$E:$E,siloDPAE!$H:$H,"Période",siloDPAE!$A:$A,H$19,siloDPAE!$F:$F,"Total",siloDPAE!$G:$G,$A15) -> 490699 | I15: =SUMIFS(siloDPAE!$E:$E,siloDPAE!$H:$H,"Période",siloDPAE!$A:$A,I$19,siloDPAE!$F:$F,"Total",siloDPAE!$G:$G,$A15) -> 138339 | J15: =SUMIFS(siloDPAE!$E:$E,siloDPAE!$H:$H,"Période",siloDPAE!$A:$A,J$19,siloDPAE!$F:$F,"Total",siloDPAE!$G:$G,$A15) -> 465685 | K15: =SUMIFS(siloDPAE!$E:$E,siloDPAE!$H:$H,"Période",siloDPAE!$A:$A,K$19,siloDPAE!$F:$F,"Total",siloDPAE!$G:$G,$A15) -> 2653071 | L15: =SUMIFS(siloDPAE!$E:$E,siloDPAE!$H:$H,"Période",siloDPAE!$A:$A,L$19,siloDPAE!$F:$F,"Total",siloDPAE!$G:$G,$A15) -> 341586 | M15: =SUMIFS(siloDPAE!$E:$E,siloDPAE!$H:$H,"Période",siloDPAE!$A:$A,M$19,siloDPAE!$F:$F,"Total",siloDPAE!$G:$G,$A15) -> 515232 | N15: 6794997
A19: DPAE cumul sur 12 mois (PLUS D'UN MOIS) | B19: =B1 -> 01 | C19: =C1 -> 03 | D19: 07 | E19: 15 | F19: 26 | G19: 38 | H19: 42 | I19: 43 | J19: 63 | K19: 69 | L19: 73 | M19: 74 | N19: TOTAL
A20: =A2 -> Aéronautique | B20: =SUMIFS(siloDPAE!$E:$E,siloDPAE!$H:$H,"Période",siloDPAE!$A:$A,B$19,siloDPAE!$F:$F,"Hors court",siloDPAE!$G:$G,$A20) -> 1241 | C20: =SUMIFS(siloDPAE!$E:$E,siloDPAE!$H:$H,"Période",siloDPAE!$A:$A,C$19,siloDPAE!$F:$F,"Hors court",siloDPAE!$G:$G,$A20) -> 802 | D20: =SUMIFS(siloDPAE!$E:$E,siloDPAE!$H:$H,"Période",siloDPAE!$A:$A,D$19,siloDPAE!$F:$F,"Hors court",siloDPAE!$G:$G,$A20) -> 297 | E20: =SUMIFS(siloDPAE!$E:$E,siloDPAE!$H:$H,"Période",siloDPAE!$A:$A,E$19,siloDPAE!$F:$F,"Hors court",siloDPAE!$G:$G,$A20) -> 101 | F20: =SUMIFS(siloDPAE!$E:$E,siloDPAE!$H:$H,"Période",siloDPAE!$A:$A,F$19,siloDPAE!$F:$F,"Hors court",siloDPAE!$G:$G,$A20) -> 1189 | G20: =SUMIFS(siloDPAE!$E:$E,siloDPAE!$H:$H,"Période",siloDPAE!$A:$A,G$19,siloDPAE!$F:$F,"Hors court",siloDPAE!$G:$G,$A20) -> 1845 | H20: =SUMIFS(siloDPAE!$E:$E,siloDPAE!$H:$H,"Période",siloDPAE!$A:$A,H$19,siloDPAE!$F:$F,"Hors court",siloDPAE!$G:$G,$A20) -> 2050 | I20: =SUMIFS(siloDPAE!$E:$E,siloDPAE!$H:$H,"Période",siloDPAE!$A:$A,I$19,siloDPAE!$F:$F,"Hors court",siloDPAE!$G:$G,$A20) -> 464 | J20: =SUMIFS(siloDPAE!$E:$E,siloDPAE!$H:$H,"Période",siloDPAE!$A:$A,J$19,siloDPAE!$F:$F,"Hors court",siloDPAE!$G:$G,$A20) -> 1399 | K20: =SUMIFS(siloDPAE!$E:$E,siloDPAE!$H:$H,"Période",siloDPAE!$A:$A,K$19,siloDPAE!$F:$F,"Hors court",siloDPAE!$G:$G,$A20) -> 2699 | L20: =SUMIFS(siloDPAE!$E:$E,siloDPAE!$H:$H,"Période",siloDPAE!$A:$A,L$19,siloDPAE!$F:$F,"Hors court",siloDPAE!$G:$G,$A20) -> 1014 | M20: =SUMIFS(siloDPAE!$E:$E,siloDPAE!$H:$H,"Période",siloDPAE!$A:$A,M$19,siloDPAE!$F:$F,"Hors court",siloDPAE!$G:$G,$A20) -> 2237 | N20: =SUM(B20:M20) -> 15338
A21: =A3 -> Agriculture, Agroalimentaire, Forêt | B21: =SUMIFS(siloDPAE!$E:$E,siloDPAE!$H:$H,"Période",siloDPAE!$A:$A,B$19,siloDPAE!$F:$F,"Hors court",siloDPAE!$G:$G,$A21) -> 2936 | C21: =SUMIFS(siloDPAE!$E:$E,siloDPAE!$H:$H,"Période",siloDPAE!$A:$A,C$19,siloDPAE!$F:$F,"Hors court",siloDPAE!$G:$G,$A21) -> 1540 | D21: =SUMIFS(siloDPAE!$E:$E,siloDPAE!$H:$H,"Période",siloDPAE!$A:$A,D$19,siloDPAE!$F:$F,"Hors court",siloDPAE!$G:$G,$A21) -> 1693 | E21: =SUMIFS(siloDPAE!$E:$E,siloDPAE!$H:$H,"Période",siloDPAE!$A:$A,E$19,siloDPAE!$F:$F,"Hors court",siloDPAE!$G:$G,$A21) -> 804 | F21: =SUMIFS(siloDPAE!$E:$E,siloDPAE!$H:$H,"Période",siloDPAE!$A:$A,F$19,siloDPAE!$F:$F,"Hors court",siloDPAE!$G:$G,$A21) -> 4802 | G21: =SUMIFS(siloDPAE!$E:$E,siloDPAE!$H:$H,"Période",siloDPAE!$A:$A,G$19,siloDPAE!$F:$F,"Hors court",siloDPAE!$G:$G,$A21) -> 3764 | H21: =SUMIFS(siloDPAE!$E:$E,siloDPAE!$H:$H,"Période",siloDPAE!$A:$A,H$19,siloDPAE!$F:$F,"Hors court",siloDPAE!$G:$G,$A21) -> 3403 | I21: =SUMIFS(siloDPAE!$E:$E,siloDPAE!$H:$H,"Période",siloDPAE!$A:$A,I$19,siloDPAE!$F:$F,"Hors court",siloDPAE!$G:$G,$A21) -> 1358 | J21: =SUMIFS(siloDPAE!$E:$E,siloDPAE!$H:$H,"Période",siloDPAE!$A:$A,J$19,siloDPAE!$F:$F,"Hors court",siloDPAE!$G:$G,$A21) -> 2588 | K21: =SUMIFS(siloDPAE!$E:$E,siloDPAE!$H:$H,"Période",siloDPAE!$A:$A,K$19,siloDPAE!$F:$F,"Hors court",siloDPAE!$G:$G,$A21) -> 5299 | L21: =SUMIFS(siloDPAE!$E:$E,siloDPAE!$H:$H,"Période",siloDPAE!$A:$A,L$19,siloDPAE!$F:$F,"Hors court",siloDPAE!$G:$G,$A21) -> 2203 | M21: =SUMIFS(siloDPAE!$E:$E,siloDPAE!$H:$H,"Période",siloDPAE!$A:$A,M$19,siloDPAE!$F:$F,"Hors court",siloDPAE!$G:$G,$A21) -> 3379 | N21: =SUM(B21:M21) -> 33769
A22: BTP | B22: =SUMIFS(siloDPAE!$E:$E,siloDPAE!$H:$H,"Période",siloDPAE!$A:$A,B$19,siloDPAE!$F:$F,"Hors court",siloDPAE!$G:$G,$A22) -> 4625 | C22: =SUMIFS(siloDPAE!$E:$E,siloDPAE!$H:$H,"Période",siloDPAE!$A:$A,C$19,siloDPAE!$F:$F,"Hors court",siloDPAE!$G:$G,$A22) -> 2050 | D22: =SUMIFS(siloDPAE!$E:$E,siloDPAE!$H:$H,"Période",siloDPAE!$A:$A,D$19,siloDPAE!$F:$F,"Hors court",siloDPAE!$G:$G,$A22) -> 2230 | E22: =SUMIFS(siloDPAE!$E:$E,siloDPAE!$H:$H,"Période",siloDPAE!$A:$A,E$19,siloDPAE!$F:$F,"Hors court",siloDPAE!$G:$G,$A22) -> 1012 | F22: =SUMIFS(siloDPAE!$E:$E,siloDPAE!$H:$H,"Période",siloDPAE!$A:$A,F$19,siloDPAE!$F:$F,"Hors court",siloDPAE!$G:$G,$A22) -> 4932 | G22: =SUMIFS(siloDPAE!$E:$E,siloDPAE!$H:$H,"Période",siloDPAE!$A:$A,G$19,siloDPAE!$F:$F,"Hors court",siloDPAE!$G:$G,$A22) -> 12050 | H22: =SUMIFS(siloDPAE!$E:$E,siloDPAE!$H:$H,"Période",siloDPAE!$A:$A,H$19,siloDPAE!$F:$F,"Hors court",siloDPAE!$G:$G,$A22) -> 6065 | I22: =SUMIFS(siloDPAE!$E:$E,siloDPAE!$H:$H,"Période",siloDPAE!$A:$A,I$19,siloDPAE!$F:$F,"Hors court",siloDPAE!$G:$G,$A22) -> 1519 | J22: =SUMIFS(siloDPAE!$E:$E,siloDPAE!$H:$H,"Période",siloDPAE!$A:$A,J$19,siloDPAE!$F:$F,"Hors court",siloDPAE!$G:$G,$A22) -> 4763 | K22: =SUMIFS(siloDPAE!$E:$E,siloDPAE!$H:$H,"Période",siloDPAE!$A:$A,K$19,siloDPAE!$F:$F,"Hors court",siloDPAE!$G:$G,$A22) -> 21198 | L22: =SUMIFS(siloDPAE!$E:$E,siloDPAE!$H:$H,"Période",siloDPAE!$A:$A,L$19,siloDPAE!$F:$F,"Hors court",siloDPAE!$G:$G,$A22) -> 6841 | M22: =SUMIFS(siloDPAE!$E:$E,siloDPAE!$H:$H,"Période",siloDPAE!$A:$A,M$19,siloDPAE!$F:$F,"Hors court",siloDPAE!$G:$G,$A22) -> 8019 | N22: 75304
A23: Energie | B23: =SUMIFS(siloDPAE!$E:$E,siloDPAE!$H:$H,"Période",siloDPAE!$A:$A,B$19,siloDPAE!$F:$F,"Hors court",siloDPAE!$G:$G,$A23) -> 300 | C23: =SUMIFS(siloDPAE!$E:$E,siloDPAE!$H:$H,"Période",siloDPAE!$A:$A,C$19,siloDPAE!$F:$F,"Hors court",siloDPAE!$G:$G,$A23) -> 41 | D23: =SUMIFS(siloDPAE!$E:$E,siloDPAE!$H:$H,"Période",siloDPAE!$A:$A,D$19,siloDPAE!$F:$F,"Hors court",siloDPAE!$G:$G,$A23) -> 155 | E23: =SUMIFS(siloDPAE!$E:$E,siloDPAE!$H:$H,"Période",siloDPAE!$A:$A,E$19,siloDPAE!$F:$F,"Hors court",siloDPAE!$G:$G,$A23) -> 20 | F23: =SUMIFS(siloDPAE!$E:$E,siloDPAE!$H:$H,"Période",siloDPAE!$A:$A,F$19,siloDPAE!$F:$F,"Hors court",siloDPAE!$G:$G,$A23) -> 212 | G23: =SUMIFS(siloDPAE!$E:$E,siloDPAE!$H:$H,"Période",siloDPAE!$A:$A,G$19,siloDPAE!$F:$F,"Hors court",siloDPAE!$G:$G,$A23) -> 440 | H23: =SUMIFS(siloDPAE!$E:$E,siloDPAE!$H:$H,"Période",siloDPAE!$A:$A,H$19,siloDPAE!$F:$F,"Hors court",siloDPAE!$G:$G,$A23) -> 95 | I23: =SUMIFS(siloDPAE!$E:$E,siloDPAE!$H:$H,"Période",siloDPAE!$A:$A,I$19,siloDPAE!$F:$F,"Hors court",siloDPAE!$G:$G,$A23) -> 16 | J23: =SUMIFS(siloDPAE!$E:$E,siloDPAE!$H:$H,"Période",siloDPAE!$A:$A,J$19,siloDPAE!$F:$F,"Hors court",siloDPAE!$G:$G,$A23) -> 185 | K23: =SUMIFS(siloDPAE!$E:$E,siloDPAE!$H:$H,"Période",siloDPAE!$A:$A,K$19,siloDPAE!$F:$F,"Hors court",siloDPAE!$G:$G,$A23) -> 1446 | L23: =SUMIFS(siloDPAE!$E:$E,siloDPAE!$H:$H,"Période",siloDPAE!$A:$A,L$19,siloDPAE!$F:$F,"Hors court",siloDPAE!$G:$G,$A23) -> 322 | M23: =SUMIFS(siloDPAE!$E:$E,siloDPAE!$H:$H,"Période",siloDPAE!$A:$A,M$19,siloDPAE!$F:$F,"Hors court",siloDPAE!$G:$G,$A23) -> 80 | N23: 3312
A24: Industrie du futur, production industrielle | B24: =SUMIFS(siloDPAE!$E:$E,siloDPAE!$H:$H,"Période",siloDPAE!$A:$A,B$19,siloDPAE!$F:$F,"Hors court",siloDPAE!$G:$G,$A24) -> 3725 | C24: =SUMIFS(siloDPAE!$E:$E,siloDPAE!$H:$H,"Période",siloDPAE!$A:$A,C$19,siloDPAE!$F:$F,"Hors court",siloDPAE!$G:$G,$A24) -> 1319 | D24: =SUMIFS(siloDPAE!$E:$E,siloDPAE!$H:$H,"Période",siloDPAE!$A:$A,D$19,siloDPAE!$F:$F,"Hors court",siloDPAE!$G:$G,$A24) -> 1747 | E24: =SUMIFS(siloDPAE!$E:$E,siloDPAE!$H:$H,"Période",siloDPAE!$A:$A,E$19,siloDPAE!$F:$F,"Hors court",siloDPAE!$G:$G,$A24) -> 256 | F24: =SUMIFS(siloDPAE!$E:$E,siloDPAE!$H:$H,"Période",siloDPAE!$A:$A,F$19,siloDPAE!$F:$F,"Hors court",siloDPAE!$G:$G,$A24) -> 3359 | G24: =SUMIFS(siloDPAE!$E:$E,siloDPAE!$H:$H,"Période",siloDPAE!$A:$A,G$19,siloDPAE!$F:$F,"Hors court",siloDPAE!$G:$G,$A24) -> 8924 | H24: =SUMIFS(siloDPAE!$E:$E,siloDPAE!$H:$H,"Période",siloDPAE!$A:$A,H$19,siloDPAE!$F:$F,"Hors court",siloDPAE!$G:$G,$A24) -> 4259 | I24: =SUMIFS(siloDPAE!$E:$E,siloDPAE!$H:$H,"Période",siloDPAE!$A:$A,I$19,siloDPAE!$F:$F,"Hors court",siloDPAE!$G:$G,$A24) -> 823 | J24: =SUMIFS(siloDPAE!$E:$E,siloDPAE!$H:$H,"Période",siloDPAE!$A:$A,J$19,siloDPAE!$F:$F,"Hors court",siloDPAE!$G:$G,$A24) -> 3351 | K24: =SUMIFS(siloDPAE!$E:$E,siloDPAE!$H:$H,"Période",siloDPAE!$A:$A,K$19,siloDPAE!$F:$F,"Hors court",siloDPAE!$G:$G,$A24) -> 12063 | L24: =SUMIFS(siloDPAE!$E:$E,siloDPAE!$H:$H,"Période",siloDPAE!$A:$A,L$19,siloDPAE!$F:$F,"Hors court",siloDPAE!$G:$G,$A24) -> 1918 | M24: =SUMIFS(siloDPAE!$E:$E,siloDPAE!$H:$H,"Période",siloDPAE!$A:$A,M$19,siloDPAE!$F:$F,"Hors court",siloDPAE!$G:$G,$A24) -> 3774 | N24: 45518
A25: Métier de bouche | B25: =SUMIFS(siloDPAE!$E:$E,siloDPAE!$H:$H,"Période",siloDPAE!$A:$A,B$19,siloDPAE!$F:$F,"Hors court",siloDPAE!$G:$G,$A25) -> 2579 | C25: =SUMIFS(siloDPAE!$E:$E,siloDPAE!$H:$H,"Période",siloDPAE!$A:$A,C$19,siloDPAE!$F:$F,"Hors court",siloDPAE!$G:$G,$A25) -> 1265 | D25: =SUMIFS(siloDPAE!$E:$E,siloDPAE!$H:$H,"Période",siloDPAE!$A:$A,D$19,siloDPAE!$F:$F,"Hors court",siloDPAE!$G:$G,$A25) -> 1249 | E25: =SUMIFS(siloDPAE!$E:$E,siloDPAE!$H:$H,"Période",siloDPAE!$A:$A,E$19,siloDPAE!$F:$F,"Hors court",siloDPAE!$G:$G,$A25) -> 533 | F25: =SUMIFS(siloDPAE!$E:$E,siloDPAE!$H:$H,"Période",siloDPAE!$A:$A,F$19,siloDPAE!$F:$F,"Hors court",siloDPAE!$G:$G,$A25) -> 2166 | G25: =SUMIFS(siloDPAE!$E:$E,siloDPAE!$H:$H,"Période",siloDPAE!$A:$A,G$19,siloDPAE!$F:$F,"Hors court",siloDPAE!$G:$G,$A25) -> 4632 | H25: =SUMIFS(siloDPAE!$E:$E,siloDPAE!$H:$H,"Période",siloDPAE!$A:$A,H$19,siloDPAE!$F:$F,"Hors court",siloDPAE!$G:$G,$A25) -> 2619 | I25: =SUMIFS(siloDPAE!$E:$E,siloDPAE!$H:$H,"Période",siloDPAE!$A:$A,I$19,siloDPAE!$F:$F,"Hors court",siloDPAE!$G:$G,$A25) -> 750 | J25: =SUMIFS(siloDPAE!$E:$E,siloDPAE!$H:$H,"Période",siloDPAE!$A:$A,J$19,siloDPAE!$F:$F,"Hors court",siloDPAE!$G:$G,$A25) -> 2247 | K25: =SUMIFS(siloDPAE!$E:$E,siloDPAE!$H:$H,"Période",siloDPAE!$A:$A,K$19,siloDPAE!$F:$F,"Hors court",siloDPAE!$G:$G,$A25) -> 9336 | L25: =SUMIFS(siloDPAE!$E:$E,siloDPAE!$H:$H,"Période",siloDPAE!$A:$A,L$19,siloDPAE!$F:$F,"Hors court",siloDPAE!$G:$G,$A25) -> 3377 | M25: =SUMIFS(siloDPAE!$E:$E,siloDPAE!$H:$H,"Période",siloDPAE!$A:$A,M$19,siloDPAE!$F:$F,"Hors court",siloDPAE!$G:$G,$A25) -> 5818 | N25: 36571
A26: Mobilité, systèmes de transport intelligents | B26: =SUMIFS(siloDPAE!$E:$E,siloDPAE!$H:$H,"Période",siloDPAE!$A:$A,B$19,siloDPAE!$F:$F,"Hors court",siloDPAE!$G:$G,$A26) -> 3054 | C26: =SUMIFS(siloDPAE!$E:$E,siloDPAE!$H:$H,"Période",siloDPAE!$A:$A,C$19,siloDPAE!$F:$F,"Hors court",siloDPAE!$G:$G,$A26) -> 1111 | D26: =SUMIFS(siloDPAE!$E:$E,siloDPAE!$H:$H,"Période",siloDPAE!$A:$A,D$19,siloDPAE!$F:$F,"Hors court",siloDPAE!$G:$G,$A26) -> 695 | E26: =SUMIFS(siloDPAE!$E:$E,siloDPAE!$H:$H,"Période",siloDPAE!$A:$A,E$19,siloDPAE!$F:$F,"Hors court",siloDPAE!$G:$G,$A26) -> 416 | F26: =SUMIFS(siloDPAE!$E:$E,siloDPAE!$H:$H,"Période",siloDPAE!$A:$A,F$19,siloDPAE!$F:$F,"Hors court",siloDPAE!$G:$G,$A26) -> 4154 | G26: =SUMIFS(siloDPAE!$E:$E,siloDPAE!$H:$H,"Période",siloDPAE!$A:$A,G$19,siloDPAE!$F:$F,"Hors court",siloDPAE!$G:$G,$A26) -> 7249 | H26: =SUMIFS(siloDPAE!$E:$E,siloDPAE!$H:$H,"Période",siloDPAE!$A:$A,H$19,siloDPAE!$F:$F,"Hors court",siloDPAE!$G:$G,$A26) -> 2891 | I26: =SUMIFS(siloDPAE!$E:$E,siloDPAE!$H:$H,"Période",siloDPAE!$A:$A,I$19,siloDPAE!$F:$F,"Hors court",siloDPAE!$G:$G,$A26) -> 553 | J26: =SUMIFS(siloDPAE!$E:$E,siloDPAE!$H:$H,"Période",siloDPAE!$A:$A,J$19,siloDPAE!$F:$F,"Hors court",siloDPAE!$G:$G,$A26) -> 3509 | K26: =SUMIFS(siloDPAE!$E:$E,siloDPAE!$H:$H,"Période",siloDPAE!$A:$A,K$19,siloDPAE!$F:$F,"Hors court",siloDPAE!$G:$G,$A26) -> 19841 | L26: =SUMIFS(siloDPAE!$E:$E,siloDPAE!$H:$H,"Période",siloDPAE!$A:$A,L$19,siloDPAE!$F:$F,"Hors court",siloDPAE!$G:$G,$A26) -> 3685 | M26: =SUMIFS(siloDPAE!$E:$E,siloDPAE!$H:$H,"Période",siloDPAE!$A:$A,M$19,siloDPAE!$F:$F,"Hors court",siloDPAE!$G:$G,$A26) -> 4505 | N26: 51663
A27: Numérique | B27: =SUMIFS(siloDPAE!$E:$E,siloDPAE!$H:$H,"Période",siloDPAE!$A:$A,B$19,siloDPAE!$F:$F,"Hors court",siloDPAE!$G:$G,$A27) -> 546 | C27: =SUMIFS(siloDPAE!$E:$E,siloDPAE!$H:$H,"Période",siloDPAE!$A:$A,C$19,siloDPAE!$F:$F,"Hors court",siloDPAE!$G:$G,$A27) -> 304 | D27: =SUMIFS(siloDPAE!$E:$E,siloDPAE!$H:$H,"Période",siloDPAE!$A:$A,D$19,siloDPAE!$F:$F,"Hors court",siloDPAE!$G:$G,$A27) -> 155 | E27: =SUMIFS(siloDPAE!$E:$E,siloDPAE!$H:$H,"Période",siloDPAE!$A:$A,E$19,siloDPAE!$F:$F,"Hors court",siloDPAE!$G:$G,$A27) -> 37 | F27: =SUMIFS(siloDPAE!$E:$E,siloDPAE!$H:$H,"Période",siloDPAE!$A:$A,F$19,siloDPAE!$F:$F,"Hors court",siloDPAE!$G:$G,$A27) -> 1312 | G27: =SUMIFS(siloDPAE!$E:$E,siloDPAE!$H:$H,"Période",siloDPAE!$A:$A,G$19,siloDPAE!$F:$F,"Hors court",siloDPAE!$G:$G,$A27) -> 3923 | H27: =SUMIFS(siloDPAE!$E:$E,siloDPAE!$H:$H,"Période",siloDPAE!$A:$A,H$19,siloDPAE!$F:$F,"Hors court",siloDPAE!$G:$G,$A27) -> 1010 | I27: =SUMIFS(siloDPAE!$E:$E,siloDPAE!$H:$H,"Période",siloDPAE!$A:$A,I$19,siloDPAE!$F:$F,"Hors court",siloDPAE!$G:$G,$A27) -> 156 | J27: =SUMIFS(siloDPAE!$E:$E,siloDPAE!$H:$H,"Période",siloDPAE!$A:$A,J$19,siloDPAE!$F:$F,"Hors court",siloDPAE!$G:$G,$A27) -> 1355 | K27: =SUMIFS(siloDPAE!$E:$E,siloDPAE!$H:$H,"Période",siloDPAE!$A:$A,K$19,siloDPAE!$F:$F,"Hors court",siloDPAE!$G:$G,$A27) -> 16975 | L27: =SUMIFS(siloDPAE!$E:$E,siloDPAE!$H:$H,"Période",siloDPAE!$A:$A,L$19,siloDPAE!$F:$F,"Hors court",siloDPAE!$G:$G,$A27) -> 612 | M27: =SUMIFS(siloDPAE!$E:$E,siloDPAE!$H:$H,"Période",siloDPAE!$A:$A,M$19,siloDPAE!$F:$F,"Hors court",siloDPAE!$G:$G,$A27) -> 1505 | N27: 27890
A28: Polymères | B28: =SUMIFS(siloDPAE!$E:$E,siloDPAE!$H:$H,"Période",siloDPAE!$A:$A,B$19,siloDPAE!$F:$F,"Hors court",siloDPAE!$G:$G,$A28) -> 1194 | C28: =SUMIFS(siloDPAE!$E:$E,siloDPAE!$H:$H,"Période",siloDPAE!$A:$A,C$19,siloDPAE!$F:$F,"Hors court",siloDPAE!$G:$G,$A28) -> 79 | D28: =SUMIFS(siloDPAE!$E:$E,siloDPAE!$H:$H,"Période",siloDPAE!$A:$A,D$19,siloDPAE!$F:$F,"Hors court",siloDPAE!$G:$G,$A28) -> 48 | E28: =SUMIFS(siloDPAE!$E:$E,siloDPAE!$H:$H,"Période",siloDPAE!$A:$A,E$19,siloDPAE!$F:$F,"Hors court",siloDPAE!$G:$G,$A28) -> 23 | F28: =SUMIFS(siloDPAE!$E:$E,siloDPAE!$H:$H,"Période",siloDPAE!$A:$A,F$19,siloDPAE!$F:$F,"Hors court",siloDPAE!$G:$G,$A28) -> 340 | G28: =SUMIFS(siloDPAE!$E:$E,siloDPAE!$H:$H,"Période",siloDPAE!$A:$A,G$19,siloDPAE!$F:$F,"Hors court",siloDPAE!$G:$G,$A28) -> 549 | H28: =SUMIFS(siloDPAE!$E:$E,siloDPAE!$H:$H,"Période",siloDPAE!$A:$A,H$19,siloDPAE!$F:$F,"Hors court",siloDPAE!$G:$G,$A28) -> 184 | I28: =SUMIFS(siloDPAE!$E:$E,siloDPAE!$H:$H,"Période",siloDPAE!$A:$A,I$19,siloDPAE!$F:$F,"Hors court",siloDPAE!$G:$G,$A28) -> 523 | J28: =SUMIFS(siloDPAE!$E:$E,siloDPAE!$H:$H,"Période",siloDPAE!$A:$A,J$19,siloDPAE!$F:$F,"Hors court",siloDPAE!$G:$G,$A28) -> 175 | K28: =SUMIFS(siloDPAE!$E:$E,siloDPAE!$H:$H,"Période",siloDPAE!$A:$A,K$19,siloDPAE!$F:$F,"Hors court",siloDPAE!$G:$G,$A28) -> 687 | L28: =SUMIFS(siloDPAE!$E:$E,siloDPAE!$H:$H,"Période",siloDPAE!$A:$A,L$19,siloDPAE!$F:$F,"Hors court",siloDPAE!$G:$G,$A28) -> 80 | M28: =SUMIFS(siloDPAE!$E:$E,siloDPAE!$H:$H,"Période",siloDPAE!$A:$A,M$19,siloDPAE!$F:$F,"Hors court",siloDPAE!$G:$G,$A28) -> 216 | N28: 4098
A29: Santé | B29: =SUMIFS(siloDPAE!$E:$E,siloDPAE!$H:$H,"Période",siloDPAE!$A:$A,B$19,siloDPAE!$F:$F,"Hors court",siloDPAE!$G:$G,$A29) -> 2588 | C29: =SUMIFS(siloDPAE!$E:$E,siloDPAE!$H:$H,"Période",siloDPAE!$A:$A,C$19,siloDPAE!$F:$F,"Hors court",siloDPAE!$G:$G,$A29) -> 1355 | D29: =SUMIFS(siloDPAE!$E:$E,siloDPAE!$H:$H,"Période",siloDPAE!$A:$A,D$19,siloDPAE!$F:$F,"Hors court",siloDPAE!$G:$G,$A29) -> 1116 | E29: =SUMIFS(siloDPAE!$E:$E,siloDPAE!$H:$H,"Période",siloDPAE!$A:$A,E$19,siloDPAE!$F:$F,"Hors court",siloDPAE!$G:$G,$A29) -> 695 | F29: =SUMIFS(siloDPAE!$E:$E,siloDPAE!$H:$H,"Période",siloDPAE!$A:$A,F$19,siloDPAE!$F:$F,"Hors court",siloDPAE!$G:$G,$A29) -> 2717 | G29: =SUMIFS(siloDPAE!$E:$E,siloDPAE!$H:$H,"Période",siloDPAE!$A:$A,G$19,siloDPAE!$F:$F,"Hors court",siloDPAE!$G:$G,$A29) -> 5422 | H29: =SUMIFS(siloDPAE!$E:$E,siloDPAE!$H:$H,"Période",siloDPAE!$A:$A,H$19,siloDPAE!$F:$F,"Hors court",siloDPAE!$G:$G,$A29) -> 2555 | I29: =SUMIFS(siloDPAE!$E:$E,siloDPAE!$H:$H,"Période",siloDPAE!$A:$A,I$19,siloDPAE!$F:$F,"Hors court",siloDPAE!$G:$G,$A29) -> 778 | J29: =SUMIFS(siloDPAE!$E:$E,siloDPAE!$H:$H,"Période",siloDPAE!$A:$A,J$19,siloDPAE!$F:$F,"Hors court",siloDPAE!$G:$G,$A29) -> 3740 | K29: =SUMIFS(siloDPAE!$E:$E,siloDPAE!$H:$H,"Période",siloDPAE!$A:$A,K$19,siloDPAE!$F:$F,"Hors court",siloDPAE!$G:$G,$A29) -> 12237 | L29: =SUMIFS(siloDPAE!$E:$E,siloDPAE!$H:$H,"Période",siloDPAE!$A:$A,L$19,siloDPAE!$F:$F,"Hors court",siloDPAE!$G:$G,$A29) -> 2125 | M29: =SUMIFS(siloDPAE!$E:$E,siloDPAE!$H:$H,"Période",siloDPAE!$A:$A,M$19,siloDPAE!$F:$F,"Hors court",siloDPAE!$G:$G,$A29) -> 3338 | N29: 38666
A30: Services à la personne | B30: =SUMIFS(siloDPAE!$E:$E,siloDPAE!$H:$H,"Période",siloDPAE!$A:$A,B$19,siloDPAE!$F:$F,"Hors court",siloDPAE!$G:$G,$A30) -> 1689 | C30: =SUMIFS(siloDPAE!$E:$E,siloDPAE!$H:$H,"Période",siloDPAE!$A:$A,C$19,siloDPAE!$F:$F,"Hors court",siloDPAE!$G:$G,$A30) -> 789 | D30: =SUMIFS(siloDPAE!$E:$E,siloDPAE!$H:$H,"Période",siloDPAE!$A:$A,D$19,siloDPAE!$F:$F,"Hors court",siloDPAE!$G:$G,$A30) -> 1176 | E30: =SUMIFS(siloDPAE!$E:$E,siloDPAE!$H:$H,"Période",siloDPAE!$A:$A,E$19,siloDPAE!$F:$F,"Hors court",siloDPAE!$G:$G,$A30) -> 431 | F30: =SUMIFS(siloDPAE!$E:$E,siloDPAE!$H:$H,"Période",siloDPAE!$A:$A,F$19,siloDPAE!$F:$F,"Hors court",siloDPAE!$G:$G,$A30) -> 2055 | G30: =SUMIFS(siloDPAE!$E:$E,siloDPAE!$H:$H,"Période",siloDPAE!$A:$A,G$19,siloDPAE!$F:$F,"Hors court",siloDPAE!$G:$G,$A30) -> 6112 | H30: =SUMIFS(siloDPAE!$E:$E,siloDPAE!$H:$H,"Période",siloDPAE!$A:$A,H$19,siloDPAE!$F:$F,"Hors court",siloDPAE!$G:$G,$A30) -> 2818 | I30: =SUMIFS(siloDPAE!$E:$E,siloDPAE!$H:$H,"Période",siloDPAE!$A:$A,I$19,siloDPAE!$F:$F,"Hors court",siloDPAE!$G:$G,$A30) -> 582 | J30: =SUMIFS(siloDPAE!$E:$E,siloDPAE!$H:$H,"Période",siloDPAE!$A:$A,J$19,siloDPAE!$F:$F,"Hors court",siloDPAE!$G:$G,$A30) -> 2260 | K30: =SUMIFS(siloDPAE!$E:$E,siloDPAE!$H:$H,"Période",siloDPAE!$A:$A,K$19,siloDPAE!$F:$F,"Hors court",siloDPAE!$G:$G,$A30) -> 12409 | L30: =SUMIFS(siloDPAE!$E:$E,siloDPAE!$H:$H,"Période",siloDPAE!$A:$A,L$19,siloDPAE!$F:$F,"Hors court",siloDPAE!$G:$G,$A30) -> 1461 | M30: =SUMIFS(siloDPAE!$E:$E,siloDPAE!$H:$H,"Période",siloDPAE!$A:$A,M$19,siloDPAE!$F:$F,"Hors court",siloDPAE!$G:$G,$A30) -> 2979 | N30: 34761
A31: Sport, Montagne, Tourisme | B31: =SUMIFS(siloDPAE!$E:$E,siloDPAE!$H:$H,"Période",siloDPAE!$A:$A,B$19,siloDPAE!$F:$F,"Hors court",siloDPAE!$G:$G,$A31) -> 11379 | C31: =SUMIFS(siloDPAE!$E:$E,siloDPAE!$H:$H,"Période",siloDPAE!$A:$A,C$19,siloDPAE!$F:$F,"Hors court",siloDPAE!$G:$G,$A31) -> 5447 | D31: =SUMIFS(siloDPAE!$E:$E,siloDPAE!$H:$H,"Période",siloDPAE!$A:$A,D$19,siloDPAE!$F:$F,"Hors court",siloDPAE!$G:$G,$A31) -> 9429 | E31: =SUMIFS(siloDPAE!$E:$E,siloDPAE!$H:$H,"Période",siloDPAE!$A:$A,E$19,siloDPAE!$F:$F,"Hors court",siloDPAE!$G:$G,$A31) -> 3064 | F31: =SUMIFS(siloDPAE!$E:$E,siloDPAE!$H:$H,"Période",siloDPAE!$A:$A,F$19,siloDPAE!$F:$F,"Hors court",siloDPAE!$G:$G,$A31) -> 12016 | G31: =SUMIFS(siloDPAE!$E:$E,siloDPAE!$H:$H,"Période",siloDPAE!$A:$A,G$19,siloDPAE!$F:$F,"Hors court",siloDPAE!$G:$G,$A31) -> 29701 | H31: =SUMIFS(siloDPAE!$E:$E,siloDPAE!$H:$H,"Période",siloDPAE!$A:$A,H$19,siloDPAE!$F:$F,"Hors court",siloDPAE!$G:$G,$A31) -> 10596 | I31: =SUMIFS(siloDPAE!$E:$E,siloDPAE!$H:$H,"Période",siloDPAE!$A:$A,I$19,siloDPAE!$F:$F,"Hors court",siloDPAE!$G:$G,$A31) -> 3613 | J31: =SUMIFS(siloDPAE!$E:$E,siloDPAE!$H:$H,"Période",siloDPAE!$A:$A,J$19,siloDPAE!$F:$F,"Hors court",siloDPAE!$G:$G,$A31) -> 13640 | K31: =SUMIFS(siloDPAE!$E:$E,siloDPAE!$H:$H,"Période",siloDPAE!$A:$A,K$19,siloDPAE!$F:$F,"Hors court",siloDPAE!$G:$G,$A31) -> 56655 | L31: =SUMIFS(siloDPAE!$E:$E,siloDPAE!$H:$H,"Période",siloDPAE!$A:$A,L$19,siloDPAE!$F:$F,"Hors court",siloDPAE!$G:$G,$A31) -> 57625 | M31: =SUMIFS(siloDPAE!$E:$E,siloDPAE!$H:$H,"Période",siloDPAE!$A:$A,M$19,siloDPAE!$F:$F,"Hors court",siloDPAE!$G:$G,$A31) -> 54350 | N31: 267515
A32: Hors DOMEX | B32: =B33-SUM(B20:B31) -> 35559 | C32: =C33-SUM(C20:C31) -> 19202 | D32: =D33-SUM(D20:D31) -> 16874 | E32: =E33-SUM(E20:E31) -> 8088 | F32: =F33-SUM(F20:F31) -> 35270 | G32: =G33-SUM(G20:G31) -> 96197 | H32: =H33-SUM(H20:H31) -> 41888 | I32: =I33-SUM(I20:I31) -> 10747 | J32: =J33-SUM(J20:J31) -> 41731 | K32: =K33-SUM(K20:K31) -> 204224 | L32: =L33-SUM(L20:L31) -> 48044 | M32: =M33-SUM(M20:M31) -> 63496 | N32: 621320
A33: TOTAL | B33: =SUMIFS(siloDPAE!$E:$E,siloDPAE!$H:$H,"Période",siloDPAE!$A:$A,B$19,siloDPAE!$F:$F,"Hors court",siloDPAE!$G:$G,$A33) -> 71415 | C33: =SUMIFS(siloDPAE!$E:$E,siloDPAE!$H:$H,"Période",siloDPAE!$A:$A,C$19,siloDPAE!$F:$F,"Hors court",siloDPAE!$G:$G,$A33) -> 35304 | D33: =SUMIFS(siloDPAE!$E:$E,siloDPAE!$H:$H,"Période",siloDPAE!$A:$A,D$19,siloDPAE!$F:$F,"Hors court",siloDPAE!$G:$G,$A33) -> 36864 | E33: =SUMIFS(siloDPAE!$E:$E,siloDPAE!$H:$H,"Période",siloDPAE!$A:$A,E$19,siloDPAE!$F:$F,"Hors court",siloDPAE!$G:$G,$A33) -> 15480 | F33: =SUMIFS(siloDPAE!$E:$E,siloDPAE!$H:$H,"Période",siloDPAE!$A:$A,F$19,siloDPAE!$F:$F,"Hors court",siloDPAE!$G:$G,$A33) -> 74524 | G33: =SUMIFS(siloDPAE!$E:$E,siloDPAE!$H:$H,"Période",siloDPAE!$A:$A,G$19,siloDPAE!$F:$F,"Hors court",siloDPAE!$G:$G,$A33) -> 180808 | H33: =SUMIFS(siloDPAE!$E:$E,siloDPAE!$H:$H,"Période",siloDPAE!$A:$A,H$19,siloDPAE!$F:$F,"Hors court",siloDPAE!$G:$G,$A33) -> 80433 | I33: =SUMIFS(siloDPAE!$E:$E,siloDPAE!$H:$H,"Période",siloDPAE!$A:$A,I$19,siloDPAE!$F:$F,"Hors court",siloDPAE!$G:$G,$A33) -> 21882 | J33: =SUMIFS(siloDPAE!$E:$E,siloDPAE!$H:$H,"Période",siloDPAE!$A:$A,J$19,siloDPAE!$F:$F,"Hors court",siloDPAE!$G:$G,$A33) -> 80943 | K33: =SUMIFS(siloDPAE!$E:$E,siloDPAE!$H:$H,"Période",siloDPAE!$A:$A,K$19,siloDPAE!$F:$F,"Hors court",siloDPAE!$G:$G,$A33) -> 375069 | L33: =SUMIFS(siloDPAE!$E:$E,siloDPAE!$H:$H,"Période",siloDPAE!$A:$A,L$19,siloDPAE!$F:$F,"Hors court",siloDPAE!$G:$G,$A33) -> 129307 | M33: =SUMIFS(siloDPAE!$E:$E,siloDPAE!$H:$H,"Période",siloDPAE!$A:$A,M$19,siloDPAE!$F:$F,"Hors court",siloDPAE!$G:$G,$A33) -> 153696 | N33: 1255725

Sheet OEE (ROME) (hidden)
A1: Code ROME | B1: Libellé ROME | C1: DOMEX | D1: Clé tri DOMEX | E1: Territoire sélection | F1: ='DPAE (DOMEX)'!B1 -> 01 | G1: ='DPAE (DOMEX)'!C1 -> 03 | H1: ='DPAE (DOMEX)'!D1 -> 07 | I1: ='DPAE (DOMEX)'!E1 -> 15 | J1: ='DPAE (DOMEX)'!F1 -> 26 | K1: ='DPAE (DOMEX)'!G1 -> 38 | L1: ='DPAE (DOMEX)'!H1 -> 42 | M1: ='DPAE (DOMEX)'!I1 -> 43 | N1: ='DPAE (DOMEX)'!J1 -> 63 | O1: ='DPAE (DOMEX)'!K1 -> 69 | P1: ='DPAE (DOMEX)'!L1 -> 73 | Q1: ='DPAE (DOMEX)'!M1 -> 74 | R1: TOTAL
A2: F1602 | B2: Électricité bâtiment | C2: =VLOOKUP(A2,'nomenclature rome'!A:C,3,FALSE) -> BTP | D2: =IF(C2='DONNEES INFOGRAPHIES'!$B$6,1,0) -> 1 | E2: =VLOOKUP(A2,A:R,'DONNEES INFOGRAPHIES'!$L$9+4,FALSE) -> 4609 | F2: =SUMIFS(SILOSTMAT!$C:$C,SILOSTMAT!$A:$A,F$1,SILOSTMAT!$B:$B,$A2) -> 343 | G2: =SUMIFS(SILOSTMAT!$C:$C,SILOSTMAT!$A:$A,G$1,SILOSTMAT!$B:$B,$A2) -> 158 | H2: =SUMIFS(SILOSTMAT!$C:$C,SILOSTMAT!$A:$A,H$1,SILOSTMAT!$B:$B,$A2) -> 90 | I2: =SUMIFS(SILOSTMAT!$C:$C,SILOSTMAT!$A:$A,I$1,SILOSTMAT!$B:$B,$A2) -> 47 | J2: =SUMIFS(SILOSTMAT!$C:$C,SILOSTMAT!$A:$A,J$1,SILOSTMAT!$B:$B,$A2) -> 347 | K2: =SUMIFS(SILOSTMAT!$C:$C,SILOSTMAT!$A:$A,K$1,SILOSTMAT!$B:$B,$A2) -> 593 | L2: =SUMIFS(SILOSTMAT!$C:$C,SILOSTMAT!$A:$A,L$1,SILOSTMAT!$B:$B,$A2) -> 327 | M2: =SUMIFS(SILOSTMAT!$C:$C,SILOSTMAT!$A:$A,M$1,SILOSTMAT!$B:$B,$A2) -> 104 | N2: =SUMIFS(SILOSTMAT!$C:$C,SILOSTMAT!$A:$A,N$1,SILOSTMAT!$B:$B,$A2) -> 301 | O2: =SUMIFS(SILOSTMAT!$C:$C,SILOSTMAT!$A:$A,O$1,SILOSTMAT!$B:$B,$A2) -> 1301 | P2: =SUMIFS(SILOSTMAT!$C:$C,SILOSTMAT!$A:$A,P$1,SILOSTMAT!$B:$B,$A2) -> 365 | Q2: =SUMIFS(SILOSTMAT!$C:$C,SILOSTMAT!$A:$A,Q$1,SILOSTMAT!$B:$B,$A2) -> 633 | R2: =SUMIFS(SILOSTMAT!$C:$C,SILOSTMAT!$A:$A,R$1,SILOSTMAT!$B:$B,$A2) -> 4609
A3: F1703 | B3: Maçonnerie | C3: =VLOOKUP(A3,'nomenclature rome'!A:C,3,FALSE) -> BTP | D3: =IF(C3='DONNEES INFOGRAPHIES'!$B$6,1,0) -> 1 | E3: =VLOOKUP(A3,A:R,'DONNEES INFOGRAPHIES'!$L$9+4,FALSE) -> 4375 | F3: =SUMIFS(SILOSTMAT!$C:$C,SILOSTMAT!$A:$A,F$1,SILOSTMAT!$B:$B,$A3) -> 393 | G3: =SUMIFS(SILOSTMAT!$C:$C,SILOSTMAT!$A:$A,G$1,SILOSTMAT!$B:$B,$A3) -> 118 | H3: =SUMIFS(SILOSTMAT!$C:$C,SILOSTMAT!$A:$A,H$1,SILOSTMAT!$B:$B,$A3) -> 166 | I3: =SUMIFS(SILOSTMAT!$C:$C,SILOSTMAT!$A:$A,I$1,SILOSTMAT!$B:$B,$A3) -> 78 | J3: =SUMIFS(SILOSTMAT!$C:$C,SILOSTMAT!$A:$A,J$1,SILOSTMAT!$B:$B,$A3) -> 474 | K3: =SUMIFS(SILOSTMAT!$C:$C,SILOSTMAT!$A:$A,K$1,SILOSTMAT!$B:$B,$A3) -> 457 | L3: =SUMIFS(SILOSTMAT!$C:$C,SILOSTMAT!$A:$A,L$1,SILOSTMAT!$B:$B,$A3) -> 291 | M3: =SUMIFS(SILOSTMAT!$C:$C,SILOSTMAT!$A:$A,M$1,SILOSTMAT!$B:$B,$A3) -> 166 | N3: =SUMIFS(SILOSTMAT!$C:$C,SILOSTMAT!$A:$A,N$1,SILOSTMAT!$B:$B,$A3) -> 344 | O3: =SUMIFS(SILOSTMAT!$C:$C,SILOSTMAT!$A:$A,O$1,SILOSTMAT!$B:$B,$A3) -> 857 | P3: =SUMIFS(SILOSTMAT!$C:$C,SILOSTMAT!$A:$A,P$1,SILOSTMAT!$B:$B,$A3) -> 316 | Q3: =SUMIFS(SILOSTMAT!$C:$C,SILOSTMAT!$A:$A,Q$1,SILOSTMAT!$B:$B,$A3) -> 715 | R3: =SUMIFS(SILOSTMAT!$C:$C,SILOSTMAT!$A:$A,R$1,SILOSTMAT!$B:$B,$A3) -> 4375
A4: F1704 | B4: Préparation du gros oeuvre et des travaux publics | C4: =VLOOKUP(A4,'nomenclature rome'!A:C,3,FALSE) -> BTP | D4: =IF(C4='DONNEES INFOGRAPHIES'!$B$6,1,0) -> 1 | E4: =VLOOKUP(A4,A:R,'DONNEES INFOGRAPHIES'!$L$9+4,FALSE) -> 3668 | F4: =SUMIFS(SILOSTMAT!$C:$C,SILOSTMAT!$A:$A,F$1,SILOSTMAT!$B:$B,$A4) -> 241 | G4: =SUMIFS(SILOSTMAT!$C:$C,SILOSTMAT!$A:$A,G$1,SILOSTMAT!$B:$B,$A4) -> 100 | H4: =SUMIFS(SILOSTMAT!$C:$C,SILOSTMAT!$A:$A,H$1,SILOSTMAT!$B:$B,$A4) -> 125 | I4: =SUMIFS(SILOSTMAT!$C:$C,SILOSTMAT!$A:$A,I$1,SILOSTMAT!$B:$B,$A4) -> 138 | J4: =SUMIFS(SILOSTMAT!$C:$C,SILOSTMAT!$A:$A,J$1,SILOSTMAT!$B:$B,$A4) -> 380 | K4: =SUMIFS(SILOSTMAT!$C:$C,SILOSTMAT!$A:$A,K$1,SILOSTMAT!$B:$B,$A4) -> 549 | L4: =SUMIFS(SILOSTMAT!$C:$C,SILOSTMAT!$A:$A,L$1,SILOSTMAT!$B:$B,$A4) -> 226 | M4: =SUMIFS(SILOSTMAT!$C:$C,SILOSTMAT!$A:$A,M$1,SILOSTMAT!$B:$B,$A4) -> 97 | N4: =SUMIFS(SILOSTMAT!$C:$C,SILOSTMAT!$A:$A,N$1,SILOSTMAT!$B:$B,$A4) -> 295 | O4: =SUMIFS(SILOSTMAT!$C:$C,SILOSTMAT!$A:$A,O$1,SILOSTMAT!$B:$B,$A4) -> 646 | P4: =SUMIFS(SILOSTMAT!$C:$C,SILOSTMAT!$A:$A,P$1,SILOSTMAT!$B:$B,$A4) -> 327 | Q4: =SUMIFS(SILOSTMAT!$C:$C,SILOSTMAT!$A:$A,Q$1,SILOSTMAT!$B:$B,$A4) -> 544 | R4: =SUMIFS(SILOSTMAT!$C:$C,SILOSTMAT!$A:$A,R$1,SILOSTMAT!$B:$B,$A4) -> 3668
A5: F1603 | B5: Installation d'équipements sanitaires et thermiques | C5: =VLOOKUP(A5,'nomenclature rome'!A:C,3,FALSE) -> BTP | D5: =IF(C5='DONNEES INFOGRAPHIES'!$B$6,1,0) -> 1 | E5: =VLOOKUP(A5,A:R,'DONNEES INFOGRAPHIES'!$L$9+4,FALSE) -> 3613 | F5: =SUMIFS(SILOSTMAT!$C:$C,SILOSTMAT!$A:$A,F$1,SILOSTMAT!$B:$B,$A5) -> 217 | G5: =SUMIFS(SILOSTMAT!$C:$C,SILOSTMAT!$A:$A,G$1,SILOSTMAT!$B:$B,$A5) -> 108 | H5: =SUMIFS(SILOSTMAT!$C:$C,SILOSTMAT!$A:$A,H$1,SILOSTMAT!$B:$B,$A5) -> 92 | I5: =SUMIFS(SILOSTMAT!$C:$C,SILOSTMAT!$A:$A,I$1,SILOSTMAT!$B:$B,$A5) -> 29 | J5: =SUMIFS(SILOSTMAT!$C:$C,SILOSTMAT!$A:$A,J$1,SILOSTMAT!$B:$B,$A5) -> 228 | K5: =SUMIFS(SILOSTMAT!$C:$C,SILOSTMAT!$A:$A,K$1,SILOSTMAT!$B:$B,$A5) -> 451 | L5: =SUMIFS(SILOSTMAT!$C:$C,SILOSTMAT!$A:$A,L$1,SILOSTMAT!$B:$B,$A5) -> 233 | M5: =SUMIFS(SILOSTMAT!$C:$C,SILOSTMAT!$A:$A,M$1,SILOSTMAT!$B:$B,$A5) -> 65 | N5: =SUMIFS(SILOSTMAT!$C:$C,SILOSTMAT!$A:$A,N$1,SILOSTMAT!$B:$B,$A5) -> 247 | O5: =SUMIFS(SILOSTMAT!$C:$C,SILOSTMAT!$A:$A,O$1,SILOSTMAT!$B:$B,$A5) -> 1078 | P5: =SUMIFS(SILOSTMAT!$C:$C,SILOSTMAT!$A:$A,P$1,SILOSTMAT!$B:$B,$A5) -> 257 | Q5: =SUMIFS(SILOSTMAT!$C:$C,SILOSTMAT!$A:$A,Q$1,SILOSTMAT!$B:$B,$A5) -> 608 | R5: =SUMIFS(SILOSTMAT!$C:$C,SILOSTMAT!$A:$A,R$1,SILOSTMAT!$B:$B,$A5) -> 3613
A6: F1302 | B6: Conduite d'engins de terrassement et de carrière | C6: =VLOOKUP(A6,'nomenclature rome'!A:C,3,FALSE) -> BTP | D6: =IF(C6='DONNEES INFOGRAPHIES'!$B$6,1,0) -> 1 | E6: =VLOOKUP(A6,A:R,'DONNEES INFOGRAPHIES'!$L$9+4,FALSE) -> 2563 | F6: =SUMIFS(SILOSTMAT!$C:$C,SILOSTMAT!$A:$A,F$1,SILOSTMAT!$B:$B,$A6) -> 169 | G6: =SUMIFS(SILOSTMAT!$C:$C,SILOSTMAT!$A:$A,G$1,SILOSTMAT!$B:$B,$A6) -> 92 | H6: =SUMIFS(SILOSTMAT!$C:$C,SILOSTMAT!$A:$A,H$1,SILOSTMAT!$B:$B,$A6) -> 67 | I6: =SUMIFS(SILOSTMAT!$C:$C,SILOSTMAT!$A:$A,I$1,SILOSTMAT!$B:$B,$A6) -> 54 | J6: =SUMIFS(SILOSTMAT!$C:$C,SILOSTMAT!$A:$A,J$1,SILOSTMAT!$B:$B,$A6) -> 243 | K6: =SUMIFS(SILOSTMAT!$C:$C,SILOSTMAT!$A:$A,K$1,SILOSTMAT!$B:$B,$A6) -> 369 | L6: =SUMIFS(SILOSTMAT!$C:$C,SILOSTMAT!$A:$A,L$1,SILOSTMAT!$B:$B,$A6) -> 134 | M6: =SUMIFS(SILOSTMAT!$C:$C,SILOSTMAT!$A:$A,M$1,SILOSTMAT!$B:$B,$A6) -> 111 | N6: =SUMIFS(SILOSTMAT!$C:$C,SILOSTMAT!$A:$A,N$1,SILOSTMAT!$B:$B,$A6) -> 160 | O6: =SUMIFS(SILOSTMAT!$C:$C,SILOSTMAT!$A:$A,O$1,SILOSTMAT!$B:$B,$A6) -> 477 | P6: =SUMIFS(SILOSTMAT!$C:$C,SILOSTMAT!$A:$A,P$1,SILOSTMAT!$B:$B,$A6) -> 343 | Q6: =SUMIFS(SILOSTMAT!$C:$C,SILOSTMAT!$A:$A,Q$1,SILOSTMAT!$B:$B,$A6) -> 344 | R6: =SUMIFS(SILOSTMAT!$C:$C,SILOSTMAT!$A:$A,R$1,SILOSTMAT!$B:$B,$A6) -> 2563
A7: F1106 | B7: Ingénierie et études du btp | C7: =VLOOKUP(A7,'nomenclature rome'!A:C,3,FALSE) -> BTP | D7: =IF(C7='DONNEES INFOGRAPHIES'!$B$6,1,0) -> 1 | E7: =VLOOKUP(A7,A:R,'DONNEES INFOGRAPHIES'!$L$9+4,FALSE) -> 2271 | F7: =SUMIFS(SILOSTMAT!$C:$C,SILOSTMAT!$A:$A,F$1,SILOSTMAT!$B:$B,$A7) -> 84 | G7: =SUMIFS(SILOSTMAT!$C:$C,SILOSTMAT!$A:$A,G$1,SILOSTMAT!$B:$B,$A7) -> 22 | H7: =SUMIFS(SILOSTMAT!$C:$C,SILOSTMAT!$A:$A,H$1,SILOSTMAT!$B:$B,$A7) -> 39 | I7: =SUMIFS(SILOSTMAT!$C:$C,SILOSTMAT!$A:$A,I$1,SILOSTMAT!$B:$B,$A7) -> 11 | J7: =SUMIFS(SILOSTMAT!$C:$C,SILOSTMAT!$A:$A,J$1,SILOSTMAT!$B:$B,$A7) -> 103 | K7: =SUMIFS(SILOSTMAT!$C:$C,SILOSTMAT!$A:$A,K$1,SILOSTMAT!$B:$B,$A7) -> 410 | L7: =SUMIFS(SILOSTMAT!$C:$C,SILOSTMAT!$A:$A,L$1,SILOSTMAT!$B:$B,$A7) -> 170 | M7: =SUMIFS(SILOSTMAT!$C:$C,SILOSTMAT!$A:$A,M$1,SILOSTMAT!$B:$B,$A7) -> 11 | N7: =SUMIFS(SILOSTMAT!$C:$C,SILOSTMAT!$A:$A,N$1,SILOSTMAT!$B:$B,$A7) -> 119 | O7: =SUMIFS(SILOSTMAT!$C:$C,SILOSTMAT!$A:$A,O$1,SILOSTMAT!$B:$B,$A7) -> 815 | P7: =SUMIFS(SILOSTMAT!$C:$C,SILOSTMAT!$A:$A,P$1,SILOSTMAT!$B:$B,$A7) -> 340 | Q7: =SUMIFS(SILOSTMAT!$C:$C,SILOSTMAT!$A:$A,Q$1,SILOSTMAT!$B:$B,$A7) -> 147 | R7: =SUMIFS(SILOSTMAT!$C:$C,SILOSTMAT!$A:$A,R$1,SILOSTMAT!$B:$B,$A7) -> 2271
A8: F1202 | B8: Chef / cheffe de chantier | C8: =VLOOKUP(A8,'nomenclature rome'!A:C,3,FALSE) -> BTP | D8: =IF(C8='DONNEES INFOGRAPHIES'!$B$6,1,0) -> 1 | E8: =VLOOKUP(A8,A:R,'DONNEES INFOGRAPHIES'!$L$9+4,FALSE) -> 2258 | F8: =SUMIFS(SILOSTMAT!$C:$C,SILOSTMAT!$A:$A,F$1,SILOSTMAT!$B:$B,$A8) -> 110 | G8: =SUMIFS(SILOSTMAT!$C:$C,SILOSTMAT!$A:$A,G$1,SILOSTMAT!$B:$B,$A8) -> 24 | H8: =SUMIFS(SILOSTMAT!$C:$C,SILOSTMAT!$A:$A,H$1,SILOSTMAT!$B:$B,$A8) -> 20 | I8: =SUMIFS(SILOSTMAT!$C:$C,SILOSTMAT!$A:$A,I$1,SILOSTMAT!$B:$B,$A8) -> 26 | J8: =SUMIFS(SILOSTMAT!$C:$C,SILOSTMAT!$A:$A,J$1,SILOSTMAT!$B:$B,$A8) -> 164 | K8: =SUMIFS(SILOSTMAT!$C:$C,SILOSTMAT!$A:$A,K$1,SILOSTMAT!$B:$B,$A8) -> 282 | L8: =SUMIFS(SILOSTMAT!$C:$C,SILOSTMAT!$A:$A,L$1,SILOSTMAT!$B:$B,$A8) -> 218 | M8: =SUMIFS(SILOSTMAT!$C:$C,SILOSTMAT!$A:$A,M$1,SILOSTMAT!$B:$B,$A8) -> 31 | N8: =SUMIFS(SILOSTMAT!$C:$C,SILOSTMAT!$A:$A,N$1,SILOSTMAT!$B:$B,$A8) -> 125 | O8: =SUMIFS(SILOSTMAT!$C:$C,SILOSTMAT!$A:$A,O$1,SILOSTMAT!$B:$B,$A8) -> 928 | P8: =SUMIFS(SILOSTMAT!$C:$C,SILOSTMAT!$A:$A,P$1,SILOSTMAT!$B:$B,$A8) -> 143 | Q8: =SUMIFS(SILOSTMAT!$C:$C,SILOSTMAT!$A:$A,Q$1,SILOSTMAT!$B:$B,$A8) -> 187 | R8: =SUMIFS(SILOSTMAT!$C:$C,SILOSTMAT!$A:$A,R$1,SILOSTMAT!$B:$B,$A8) -> 2258
A9: F1201 | B9: Conducteur / conductrice de travaux | C9: =VLOOKUP(A9,'nomenclature rome'!A:C,3,FALSE) -> BTP | D9: =IF(C9='DONNEES INFOGRAPHIES'!$B$6,1,0) -> 1 | E9: =VLOOKUP(A9,A:R,'DONNEES INFOGRAPHIES'!$L$9+4,FALSE) -> 1843 | F9: =SUMIFS(SILOSTMAT!$C:$C,SILOSTMAT!$A:$A,F$1,SILOSTMAT!$B:$B,$A9) -> 102 | G9: =SUMIFS(SILOSTMAT!$C:$C,SILOSTMAT!$A:$A,G$1,SILOSTMAT!$B:$B,$A9) -> 22 | H9: =SUMIFS(SILOSTMAT!$C:$C,SILOSTMAT!$A:$A,H$1,SILOSTMAT!$B:$B,$A9) -> 14 | I9: =SUMIFS(SILOSTMAT!$C:$C,SILOSTMAT!$A:$A,I$1,SILOSTMAT!$B:$B,$A9) -> 18 | J9: =SUMIFS(SILOSTMAT!$C:$C,SILOSTMAT!$A:$A,J$1,SILOSTMAT!$B:$B,$A9) -> 93 | K9: =SUMIFS(SILOSTMAT!$C:$C,SILOSTMAT!$A:$A,K$1,SILOSTMAT!$B:$B,$A9) -> 257 | L9: =SUMIFS(SILOSTMAT!$C:$C,SILOSTMAT!$A:$A,L$1,SILOSTMAT!$B:$B,$A9) -> 222 | M9: =SUMIFS(SILOSTMAT!$C:$C,SILOSTMAT!$A:$A,M$1,SILOSTMAT!$B:$B,$A9) -> 43 | N9: =SUMIFS(SILOSTMAT!$C:$C,SILOSTMAT!$A:$A,N$1,SILOSTMAT!$B:$B,$A9) -> 103 | O9: =SUMIFS(SILOSTMAT!$C:$C,SILOSTMAT!$A:$A,O$1,SILOSTMAT!$B:$B,$A9) -> 698 | P9: =SUMIFS(SILOSTMAT!$C:$C,SILOSTMAT!$A:$A,P$1,SILOSTMAT!$B:$B,$A9) -> 96 | Q9: =SUMIFS(SILOSTMAT!$C:$C,SILOSTMAT!$A:$A,Q$1,SILOSTMAT!$B:$B,$A9) -> 175 | R9: =SUMIFS(SILOSTMAT!$C:$C,SILOSTMAT!$A:$A,R$1,SILOSTMAT!$B:$B,$A9) -> 1843
A10: F1604 | B10: Montage d'agencements | C10: =VLOOKUP(A10,'nomenclature rome'!A:C,3,FALSE) -> BTP | D10: =IF(C10='DONNEES INFOGRAPHIES'!$B$6,1,0) -> 1 | E10: =VLOOKUP(A10,A:R,'DONNEES INFOGRAPHIES'!$L$9+4,FALSE) -> 1780 | F10: =SUMIFS(SILOSTMAT!$C:$C,SILOSTMAT!$A:$A,F$1,SILOSTMAT!$B:$B,$A10) -> 208 | G10: =SUMIFS(SILOSTMAT!$C:$C,SILOSTMAT!$A:$A,G$1,SILOSTMAT!$B:$B,$A10) -> 49 | H10: =SUMIFS(SILOSTMAT!$C:$C,SILOSTMAT!$A:$A,H$1,SILOSTMAT!$B:$B,$A10) -> 61 | I10: =SUMIFS(SILOSTMAT!$C:$C,SILOSTMAT!$A:$A,I$1,SILOSTMAT!$B:$B,$A10) -> 10 | J10: =SUMIFS(SILOSTMAT!$C:$C,SILOSTMAT!$A:$A,J$1,SILOSTMAT!$B:$B,$A10) -> 124 | K10: =SUMIFS(SILOSTMAT!$C:$C,SILOSTMAT!$A:$A,K$1,SILOSTMAT!$B:$B,$A10) -> 237 | L10: =SUMIFS(SILOSTMAT!$C:$C,SILOSTMAT!$A:$A,L$1,SILOSTMAT!$B:$B,$A10) -> 211 | M10: =SUMIFS(SILOSTMAT!$C:$C,SILOSTMAT!$A:$A,M$1,SILOSTMAT!$B:$B,$A10) -> 74 | N10: =SUMIFS(SILOSTMAT!$C:$C,SILOSTMAT!$A:$A,N$1,SILOSTMAT!$B:$B,$A10) -> 163 | O10: =SUMIFS(SILOSTMAT!$C:$C,SILOSTMAT!$A:$A,O$1,SILOSTMAT!$B:$B,$A10) -> 313 | P10: =SUMIFS(SILOSTMAT!$C:$C,SILOSTMAT!$A:$A,P$1,SILOSTMAT!$B:$B,$A10) -> 118 | Q10: =SUMIFS(SILOSTMAT!$C:$C,SILOSTMAT!$A:$A,Q$1,SILOSTMAT!$B:$B,$A10) -> 212 | R10: =SUMIFS(SILOSTMAT!$C:$C,SILOSTMAT!$A:$A,R$1,SILOSTMAT!$B:$B,$A10) -> 1780
A11: F1614 | B11: Poseur / poseuse en fermetures de bâtiment | C11: =VLOOKUP(A11,'nomenclature rome'!A:C,3,FALSE) -> BTP | D11: =IF(C11='DONNEES INFOGRAPHIES'!$B$6,1,0) -> 1 | E11: =VLOOKUP(A11,A:R,'DONNEES INFOGRAPHIES'!$L$9+4,FALSE) -> 1746 | F11: =SUMIFS(SILOSTMAT!$C:$C,SILOSTMAT!$A:$A,F$1,SILOSTMAT!$B:$B,$A11) -> 125 | G11: =SUMIFS(SILOSTMAT!$C:$C,SILOSTMAT!$A:$A,G$1,SILOSTMAT!$B:$B,$A11) -> 47 | H11: =SUMIFS(SILOSTMAT!$C:$C,SILOSTMAT!$A:$A,H$1,SILOSTMAT!$B:$B,$A11) -> 40 | I11: =SUMIFS(SILOSTMAT!$C:$C,SILOSTMAT!$A:$A,I$1,SILOSTMAT!$B:$B,$A11) -> 22 | J11: =SUMIFS(SILOSTMAT!$C:$C,SILOSTMAT!$A:$A,J$1,SILOSTMAT!$B:$B,$A11) -> 62 | K11: =SUMIFS(SILOSTMAT!$C:$C,SILOSTMAT!$A:$A,K$1,SILOSTMAT!$B:$B,$A11) -> 276 | L11: =SUMIFS(SILOSTMAT!$C:$C,SILOSTMAT!$A:$A,L$1,SILOSTMAT!$B:$B,$A11) -> 153 | M11: =SUMIFS(SILOSTMAT!$C:$C,SILOSTMAT!$A:$A,M$1,SILOSTMAT!$B:$B,$A11) -> 55 | N11: =SUMIFS(SILOSTMAT!$C:$C,SILOSTMAT!$A:$A,N$1,SILOSTMAT!$B:$B,$A11) -> 147 | O11: =SUMIFS(SILOSTMAT!$C:$C,SILOSTMAT!$A:$A,O$1,SILOSTMAT!$B:$B,$A11) -> 393 | P11: =SUMIFS(SILOSTMAT!$C:$C,SILOSTMAT!$A:$A,P$1,SILOSTMAT!$B:$B,$A11) -> 78 | Q11: =SUMIFS(SILOSTMAT!$C:$C,SILOSTMAT!$A:$A,Q$1,SILOSTMAT!$B:$B,$A11) -> 348 | R11: =SUMIFS(SILOSTMAT!$C:$C,SILOSTMAT!$A:$A,R$1,SILOSTMAT!$B:$B,$A11) -> 1746
A12: F1606 | B12: Peintre en bâtiment | C12: =VLOOKUP(A12,'nomenclature rome'!A:C,3,FALSE) -> BTP | D12: =IF(C12='DONNEES INFOGRAPHIES'!$B$6,1,0) -> 1 | E12: =VLOOKUP(A12,A:R,'DONNEES INFOGRAPHIES'!$L$9+4,FALSE) -> 1561 | F12: =SUMIFS(SILOSTMAT!$C:$C,SILOSTMAT!$A:$A,F$1,SILOSTMAT!$B:$B,$A12) -> 81 | G12: =SUMIFS(SILOSTMAT!$C:$C,SILOSTMAT!$A:$A,G$1,SILOSTMAT!$B:$B,$A12) -> 76 | H12: =SUMIFS(SILOSTMAT!$C:$C,SILOSTMAT!$A:$A,H$1,SILOSTMAT!$B:$B,$A12) -> 74 | I12: =SUMIFS(SILOSTMAT!$C:$C,SILOSTMAT!$A:$A,I$1,SILOSTMAT!$B:$B,$A12) -> 22 | J12: =SUMIFS(SILOSTMAT!$C:$C,SILOSTMAT!$A:$A,J$1,SILOSTMAT!$B:$B,$A12) -> 113 | K12: =SUMIFS(SILOSTMAT!$C:$C,SILOSTMAT!$A:$A,K$1,SILOSTMAT!$B:$B,$A12) -> 117 | L12: =SUMIFS(SILOSTMAT!$C:$C,SILOSTMAT!$A:$A,L$1,SILOSTMAT!$B:$B,$A12) -> 144 | M12: =SUMIFS(SILOSTMAT!$C:$C,SILOSTMAT!$A:$A,M$1,SILOSTMAT!$B:$B,$A12) -> 78 | N12: =SUMIFS(SILOSTMAT!$C:$C,SILOSTMAT!$A:$A,N$1,SILOSTMAT!$B:$B,$A12) -> 218 | O12: =SUMIFS(SILOSTMAT!$C:$C,SILOSTMAT!$A:$A,O$1,SILOSTMAT!$B:$B,$A12) -> 302 | P12: =SUMIFS(SILOSTMAT!$C:$C,SILOSTMAT!$A:$A,P$1,SILOSTMAT!$B:$B,$A12) -> 108 | Q12: =SUMIFS(SILOSTMAT!$C:$C,SILOSTMAT!$A:$A,Q$1,SILOSTMAT!$B:$B,$A12) -> 228 | R12: =SUMIFS(SILOSTMAT!$C:$C,SILOSTMAT!$A:$A,R$1,SILOSTMAT!$B:$B,$A12) -> 1561
A13: F1702 | B13: Construction de routes et voies | C13: =VLOOKUP(A13,'nomenclature rome'!A:C,3,FALSE) -> BTP | D13: =IF(C13='DONNEES INFOGRAPHIES'!$B$6,1,0) -> 1 | E13: =VLOOKUP(A13,A:R,'DONNEES INFOGRAPHIES'!$L$9+4,FALSE) -> 1275 | F13: =SUMIFS(SILOSTMAT!$C:$C,SILOSTMAT!$A:$A,F$1,SILOSTMAT!$B:$B,$A13) -> 136 | G13: =SUMIFS(SILOSTMAT!$C:$C,SILOSTMAT!$A:$A,G$1,SILOSTMAT!$B:$B,$A13) -> 20 | H13: =SUMIFS(SILOSTMAT!$C:$C,SILOSTMAT!$A:$A,H$1,SILOSTMAT!$B:$B,$A13) -> 16 | I13: =SUMIFS(SILOSTMAT!$C:$C,SILOSTMAT!$A:$A,I$1,SILOSTMAT!$B:$B,$A13) -> 10 | J13: =SUMIFS(SILOSTMAT!$C:$C,SILOSTMAT!$A:$A,J$1,SILOSTMAT!$B:$B,$A13) -> 67 | K13: =SUMIFS(SILOSTMAT!$C:$C,SILOSTMAT!$A:$A,K$1,SILOSTMAT!$B:$B,$A13) -> 246 | L13: =SUMIFS(SILOSTMAT!$C:$C,SILOSTMAT!$A:$A,L$1,SILOSTMAT!$B:$B,$A13) -> 36 | M13: =SUMIFS(SILOSTMAT!$C:$C,SILOSTMAT!$A:$A,M$1,SILOSTMAT!$B:$B,$A13) -> 13 | N13: =SUMIFS(SILOSTMAT!$C:$C,SILOSTMAT!$A:$A,N$1,SILOSTMAT!$B:$B,$A13) -> 75 | O13: =SUMIFS(SILOSTMAT!$C:$C,SILOSTMAT!$A:$A,O$1,SILOSTMAT!$B:$B,$A13) -> 363 | P13: =SUMIFS(SILOSTMAT!$C:$C,SILOSTMAT!$A:$A,P$1,SILOSTMAT!$B:$B,$A13) -> 113 | Q13: =SUMIFS(SILOSTMAT!$C:$C,SILOSTMAT!$A:$A,Q$1,SILOSTMAT!$B:$B,$A13) -> 180 | R13: =SUMIFS(SILOSTMAT!$C:$C,SILOSTMAT!$A:$A,R$1,SILOSTMAT!$B:$B,$A13) -> 1275
A14: F1705 | B14: Pose de canalisations | C14: =VLOOKUP(A14,'nomenclature rome'!A:C,3,FALSE) -> BTP | D14: =IF(C14='DONNEES INFOGRAPHIES'!$B$6,1,0) -> 1 | E14: =VLOOKUP(A14,A:R,'DONNEES INFOGRAPHIES'!$L$9+4,FALSE) -> 1185 | F14: =SUMIFS(SILOSTMAT!$C:$C,SILOSTMAT!$A:$A,F$1,SILOSTMAT!$B:$B,$A14) -> 105 | G14: =SUMIFS(SILOSTMAT!$C:$C,SILOSTMAT!$A:$A,G$1,SILOSTMAT!$B:$B,$A14) -> 0 | H14: =SUMIFS(SILOSTMAT!$C:$C,SILOSTMAT!$A:$A,H$1,SILOSTMAT!$B:$B,$A14) -> 10 | I14: =SUMIFS(SILOSTMAT!$C:$C,SILOSTMAT!$A:$A,I$1,SILOSTMAT!$B:$B,$A14) -> 6 | J14: =SUMIFS(SILOSTMAT!$C:$C,SILOSTMAT!$A:$A,J$1,SILOSTMAT!$B:$B,$A14) -> 160 | K14: =SUMIFS(SILOSTMAT!$C:$C,SILOSTMAT!$A:$A,K$1,SILOSTMAT!$B:$B,$A14) -> 236 | L14: =SUMIFS(SILOSTMAT!$C:$C,SILOSTMAT!$A:$A,L$1,SILOSTMAT!$B:$B,$A14) -> 47 | M14: =SUMIFS(SILOSTMAT!$C:$C,SILOSTMAT!$A:$A,M$1,SILOSTMAT!$B:$B,$A14) -> 15 | N14: =SUMIFS(SILOSTMAT!$C:$C,SILOSTMAT!$A:$A,N$1,SILOSTMAT!$B:$B,$A14) -> 35 | O14: =SUMIFS(SILOSTMAT!$C:$C,SILOSTMAT!$A:$A,O$1,SILOSTMAT!$B:$B,$A14) -> 240 | P14: =SUMIFS(SILOSTMAT!$C:$C,SILOSTMAT!$A:$A,P$1,SILOSTMAT!$B:$B,$A14) -> 113 | Q14: =SUMIFS(SILOSTMAT!$C:$C,SILOSTMAT!$A:$A,Q$1,SILOSTMAT!$B:$B,$A14) -> 218 | R14: =SUMIFS(SILOSTMAT!$C:$C,SILOSTMAT!$A:$A,R$1,SILOSTMAT!$B:$B,$A14) -> 1185
A15: F1503 | B15: Réalisation - installation d'ossatures bois | C15: =VLOOKUP(A15,'nomenclature rome'!A:C,3,FALSE) -> BTP | D15: =IF(C15='DONNEES INFOGRAPHIES'!$B$6,1,0) -> 1 | E15: =VLOOKUP(A15,A:R,'DONNEES INFOGRAPHIES'!$L$9+4,FALSE) -> 1164 | F15: =SUMIFS(SILOSTMAT!$C:$C,SILOSTMAT!$A:$A,F$1,SILOSTMAT!$B:$B,$A15) -> 150 | G15: =SUMIFS(SILOSTMAT!$C:$C,SILOSTMAT!$A:$A,G$1,SILOSTMAT!$B:$B,$A15) -> 2 | H15: =SUMIFS(SILOSTMAT!$C:$C,SILOSTMAT!$A:$A,H$1,SILOSTMAT!$B:$B,$A15) -> 23 | I15: =SUMIFS(SILOSTMAT!$C:$C,SILOSTMAT!$A:$A,I$1,SILOSTMAT!$B:$B,$A15) -> 11 | J15: =SUMIFS(SILOSTMAT!$C:$C,SILOSTMAT!$A:$A,J$1,SILOSTMAT!$B:$B,$A15) -> 55 | K15: =SUMIFS(SILOSTMAT!$C:$C,SILOSTMAT!$A:$A,K$1,SILOSTMAT!$B:$B,$A15) -> 188 | L15: =SUMIFS(SILOSTMAT!$C:$C,SILOSTMAT!$A:$A,L$1,SILOSTMAT!$B:$B,$A15) -> 68 | M15: =SUMIFS(SILOSTMAT!$C:$C,SILOSTMAT!$A:$A,M$1,SILOSTMAT!$B:$B,$A15) -> 28 | N15: =SUMIFS(SILOSTMAT!$C:$C,SILOSTMAT!$A:$A,N$1,SILOSTMAT!$B:$B,$A15) -> 26 | O15: =SUMIFS(SILOSTMAT!$C:$C,SILOSTMAT!$A:$A,O$1,SILOSTMAT!$B:$B,$A15) -> 136 | P15: =SUMIFS(SILOSTMAT!$C:$C,SILOSTMAT!$A:$A,P$1,SILOSTMAT!$B:$B,$A15) -> 170 | Q15: =SUMIFS(SILOSTMAT!$C:$C,SILOSTMAT!$A:$A,Q$1,SILOSTMAT!$B:$B,$A15) -> 307 | R15: =SUMIFS(SILOSTMAT!$C:$C,SILOSTMAT!$A:$A,R$1,SILOSTMAT!$B:$B,$A15) -> 1164
A16: F1605 | B16: Montage de réseaux électriques et télécoms | C16: =VLOOKUP(A16,'nomenclature rome'!A:C,3,FALSE) -> BTP | D16: =IF(C16='DONNEES INFOGRAPHIES'!$B$6,1,0) -> 1 | E16: =VLOOKUP(A16,A:R,'DONNEES INFOGRAPHIES'!$L$9+4,FALSE) -> 1145 | F16: =SUMIFS(SILOSTMAT!$C:$C,SILOSTMAT!$A:$A,F$1,SILOSTMAT!$B:$B,$A16) -> 112 | G16: =SUMIFS(SILOSTMAT!$C:$C,SILOSTMAT!$A:$A,G$1,SILOSTMAT!$B:$B,$A16) -> 32 | H16: =SUMIFS(SILOSTMAT!$C:$C,SILOSTMAT!$A:$A,H$1,SILOSTMAT!$B:$B,$A16) -> 13 | I16: =SUMIFS(SILOSTMAT!$C:$C,SILOSTMAT!$A:$A,I$1,SILOSTMAT!$B:$B,$A16) -> 21 | J16: =SUMIFS(SILOSTMAT!$C:$C,SILOSTMAT!$A:$A,J$1,SILOSTMAT!$B:$B,$A16) -> 89 | K16: =SUMIFS(SILOSTMAT!$C:$C,SILOSTMAT!$A:$A,K$1,SILOSTMAT!$B:$B,$A16) -> 186 | L16: =SUMIFS(SILOSTMAT!$C:$C,SILOSTMAT!$A:$A,L$1,SILOSTMAT!$B:$B,$A16) -> 47 | M16: =SUMIFS(SILOSTMAT!$C:$C,SILOSTMAT!$A:$A,M$1,SILOSTMAT!$B:$B,$A16) -> 40 | N16: =SUMIFS(SILOSTMAT!$C:$C,SILOSTMAT!$A:$A,N$1,SILOSTMAT!$B:$B,$A16) -> 119 | O16: =SUMIFS(SILOSTMAT!$C:$C,SILOSTMAT!$A:$A,O$1,SILOSTMAT!$B:$B,$A16) -> 274 | P16: =SUMIFS(SILOSTMAT!$C:$C,SILOSTMAT!$A:$A,P$1,SILOSTMAT!$B:$B,$A16) -> 72 | Q16: =SUMIFS(SILOSTMAT!$C:$C,SILOSTMAT!$A:$A,Q$1,SILOSTMAT!$B:$B,$A16) -> 140 | R16: =SUMIFS(SILOSTMAT!$C:$C,SILOSTMAT!$A:$A,R$1,SILOSTMAT!$B:$B,$A16) -> 1145
A17: F1610 | B17: Pose et restauration de couvertures | C17: =VLOOKUP(A17,'nomenclature rome'!A:C,3,FALSE) -> BTP | D17: =IF(C17='DONNEES INFOGRAPHIES'!$B$6,1,0) -> 1 | E17: =VLOOKUP(A17,A:R,'DONNEES INFOGRAPHIES'!$L$9+4,FALSE) -> 1033 | F17: =SUMIFS(SILOSTMAT!$C:$C,SILOSTMAT!$A:$A,F$1,SILOSTMAT!$B:$B,$A17) -> 67 | G17: =SUMIFS(SILOSTMAT!$C:$C,SILOSTMAT!$A:$A,G$1,SILOSTMAT!$B:$B,$A17) -> 73 | H17: =SUMIFS(SILOSTMAT!$C:$C,SILOSTMAT!$A:$A,H$1,SILOSTMAT!$B:$B,$A17) -> 17 | I17: =SUMIFS(SILOSTMAT!$C:$C,SILOSTMAT!$A:$A,I$1,SILOSTMAT!$B:$B,$A17) -> 20 | J17: =SUMIFS(SILOSTMAT!$C:$C,SILOSTMAT!$A:$A,J$1,SILOSTMAT!$B:$B,$A17) -> 107 | K17: =SUMIFS(SILOSTMAT!$C:$C,SILOSTMAT!$A:$A,K$1,SILOSTMAT!$B:$B,$A17) -> 75 | L17: =SUMIFS(SILOSTMAT!$C:$C,SILOSTMAT!$A:$A,L$1,SILOSTMAT!$B:$B,$A17) -> 101 | M17: =SUMIFS(SILOSTMAT!$C:$C,SILOSTMAT!$A:$A,M$1,SILOSTMAT!$B:$B,$A17) -> 10 | N17: =SUMIFS(SILOSTMAT!$C:$C,SILOSTMAT!$A:$A,N$1,SILOSTMAT!$B:$B,$A17) -> 105 | O17: =SUMIFS(SILOSTMAT!$C:$C,SILOSTMAT!$A:$A,O$1,SILOSTMAT!$B:$B,$A17) -> 293 | P17: =SUMIFS(SILOSTMAT!$C:$C,SILOSTMAT!$A:$A,P$1,SILOSTMAT!$B:$B,$A17) -> 80 | Q17: =SUMIFS(SILOSTMAT!$C:$C,SILOSTMAT!$A:$A,Q$1,SILOSTMAT!$B:$B,$A17) -> 85 | R17: =SUMIFS(SILOSTMAT!$C:$C,SILOSTMAT!$A:$A,R$1,SILOSTMAT!$B:$B,$A17) -> 1033
A18: F1104 | B18: Dessin btp et paysage | C18: =VLOOKUP(A18,'nomenclature rome'!A:C,3,FALSE) -> BTP | D18: =IF(C18='DONNEES INFOGRAPHIES'!$B$6,1,0) -> 1 | E18: =VLOOKUP(A18,A:R,'DONNEES INFOGRAPHIES'!$L$9+4,FALSE) -> 1023 | F18: =SUMIFS(SILOSTMAT!$C:$C,SILOSTMAT!$A:$A,F$1,SILOSTMAT!$B:$B,$A18) -> 53 | G18: =SUMIFS(SILOSTMAT!$C:$C,SILOSTMAT!$A:$A,G$1,SILOSTMAT!$B:$B,$A18) -> 22 | H18: =SUMIFS(SILOSTMAT!$C:$C,SILOSTMAT!$A:$A,H$1,SILOSTMAT!$B:$B,$A18) -> 9 | I18: =SUMIFS(SILOSTMAT!$C:$C,SILOSTMAT!$A:$A,I$1,SILOSTMAT!$B:$B,$A18) -> 20 | J18: =SUMIFS(SILOSTMAT!$C:$C,SILOSTMAT!$A:$A,J$1,SILOSTMAT!$B:$B,$A18) -> 50 | K18: =SUMIFS(SILOSTMAT!$C:$C,SILOSTMAT!$A:$A,K$1,SILOSTMAT!$B:$B,$A18) -> 155 | L18: =SUMIFS(SILOSTMAT!$C:$C,SILOSTMAT!$A:$A,L$1,SILOSTMAT!$B:$B,$A18) -> 78 | M18: =SUMIFS(SILOSTMAT!$C:$C,SILOSTMAT!$A:$A,M$1,SILOSTMAT!$B:$B,$A18) -> 16 | N18: =SUMIFS(SILOSTMAT!$C:$C,SILOSTMAT!$A:$A,N$1,SILOSTMAT!$B:$B,$A18) -> 52 | O18: =SUMIFS(SILOSTMAT!$C:$C,SILOSTMAT!$A:$A,O$1,SILOSTMAT!$B:$B,$A18) -> 373 | P18: =SUMIFS(SILOSTMAT!$C:$C,SILOSTMAT!$A:$A,P$1,SILOSTMAT!$B:$B,$A18) -> 86 | Q18: =SUMIFS(SILOSTMAT!$C:$C,SILOSTMAT!$A:$A,Q$1,SILOSTMAT!$B:$B,$A18) -> 109 | R18: =SUMIFS(SILOSTMAT!$C:$C,SILOSTMAT!$A:$A,R$1,SILOSTMAT!$B:$B,$A18) -> 1023
A19: F1502 | B19: Montage de structures métalliques | C19: =VLOOKUP(A19,'nomenclature rome'!A:C,3,FALSE) -> BTP | D19: =IF(C19='DONNEES INFOGRAPHIES'!$B$6,1,0) -> 1 | E19: =VLOOKUP(A19,A:R,'DONNEES INFOGRAPHIES'!$L$9+4,FALSE) -> 993 | F19: =SUMIFS(SILOSTMAT!$C:$C,SILOSTMAT!$A:$A,F$1,SILOSTMAT!$B:$B,$A19) -> 68 | G19: =SUMIFS(SILOSTMAT!$C:$C,SILOSTMAT!$A:$A,G$1,SILOSTMAT!$B:$B,$A19) -> 31 | H19: =SUMIFS(SILOSTMAT!$C:$C,SILOSTMAT!$A:$A,H$1,SILOSTMAT!$B:$B,$A19) -> 5 | I19: =SUMIFS(SILOSTMAT!$C:$C,SILOSTMAT!$A:$A,I$1,SILOSTMAT!$B:$B,$A19) -> 12 | J19: =SUMIFS(SILOSTMAT!$C:$C,SILOSTMAT!$A:$A,J$1,SILOSTMAT!$B:$B,$A19) -> 126 | K19: =SUMIFS(SILOSTMAT!$C:$C,SILOSTMAT!$A:$A,K$1,SILOSTMAT!$B:$B,$A19) -> 127 | L19: =SUMIFS(SILOSTMAT!$C:$C,SILOSTMAT!$A:$A,L$1,SILOSTMAT!$B:$B,$A19) -> 63 | M19: =SUMIFS(SILOSTMAT!$C:$C,SILOSTMAT!$A:$A,M$1,SILOSTMAT!$B:$B,$A19) -> 70 | N19: =SUMIFS(SILOSTMAT!$C:$C,SILOSTMAT!$A:$A,N$1,SILOSTMAT!$B:$B,$A19) -> 64 | O19: =SUMIFS(SILOSTMAT!$C:$C,SILOSTMAT!$A:$A,O$1,SILOSTMAT!$B:$B,$A19) -> 269 | P19: =SUMIFS(SILOSTMAT!$C:$C,SILOSTMAT!$A:$A,P$1,SILOSTMAT!$B:$B,$A19) -> 38 | Q19: =SUMIFS(SILOSTMAT!$C:$C,SILOSTMAT!$A:$A,Q$1,SILOSTMAT!$B:$B,$A19) -> 120 | R19: =SUMIFS(SILOSTMAT!$C:$C,SILOSTMAT!$A:$A,R$1,SILOSTMAT!$B:$B,$A19) -> 993
A20: F1611 | B20: Réalisation et restauration de façades | C20: =VLOOKUP(A20,'nomenclature rome'!A:C,3,FALSE) -> BTP | D20: =IF(C20='DONNEES INFOGRAPHIES'!$B$6,1,0) -> 1 | E20: =VLOOKUP(A20,A:R,'DONNEES INFOGRAPHIES'!$L$9+4,FALSE) -> 916 | F20: =SUMIFS(SILOSTMAT!$C:$C,SILOSTMAT!$A:$A,F$1,SILOSTMAT!$B:$B,$A20) -> 26 | G20: =SUMIFS(SILOSTMAT!$C:$C,SILOSTMAT!$A:$A,G$1,SILOSTMAT!$B:$B,$A20) -> 27 | H20: =SUMIFS(SILOSTMAT!$C:$C,SILOSTMAT!$A:$A,H$1,SILOSTMAT!$B:$B,$A20) -> 44 | I20: =SUMIFS(SILOSTMAT!$C:$C,SILOSTMAT!$A:$A,I$1,SILOSTMAT!$B:$B,$A20) -> 2 | J20: =SUMIFS(SILOSTMAT!$C:$C,SILOSTMAT!$A:$A,J$1,SILOSTMAT!$B:$B,$A20) -> 86 | K20: =SUMIFS(SILOSTMAT!$C:$C,SILOSTMAT!$A:$A,K$1,SILOSTMAT!$B:$B,$A20) -> 145 | L20: =SUMIFS(SILOSTMAT!$C:$C,SILOSTMAT!$A:$A,L$1,SILOSTMAT!$B:$B,$A20) -> 62 | M20: =SUMIFS(SILOSTMAT!$C:$C,SILOSTMAT!$A:$A,M$1,SILOSTMAT!$B:$B,$A20) -> 40 | N20: =SUMIFS(SILOSTMAT!$C:$C,SILOSTMAT!$A:$A,N$1,SILOSTMAT!$B:$B,$A20) -> 150 | O20: =SUMIFS(SILOSTMAT!$C:$C,SILOSTMAT!$A:$A,O$1,SILOSTMAT!$B:$B,$A20) -> 188 | P20: =SUMIFS(SILOSTMAT!$C:$C,SILOSTMAT!$A:$A,P$1,SILOSTMAT!$B:$B,$A20) -> 79 | Q20: =SUMIFS(SILOSTMAT!$C:$C,SILOSTMAT!$A:$A,Q$1,SILOSTMAT!$B:$B,$A20) -> 67 | R20: =SUMIFS(SILOSTMAT!$C:$C,SILOSTMAT!$A:$A,R$1,SILOSTMAT!$B:$B,$A20) -> 916
A21: F1613 | B21: Travaux d'étanchéité et d'isolation | C21: =VLOOKUP(A21,'nomenclature rome'!A:C,3,FALSE) -> BTP | D21: =IF(C21='DONNEES INFOGRAPHIES'!$B$6,1,0) -> 1 | E21: =VLOOKUP(A21,A:R,'DONNEES INFOGRAPHIES'!$L$9+4,FALSE) -> 899 | F21: =SUMIFS(SILOSTMAT!$C:$C,SILOSTMAT!$A:$A,F$1,SILOSTMAT!$B:$B,$A21) -> 42 | G21: =SUMIFS(SILOSTMAT!$C:$C,SILOSTMAT!$A:$A,G$1,SILOSTMAT!$B:$B,$A21) -> 13 | H21: =SUMIFS(SILOSTMAT!$C:$C,SILOSTMAT!$A:$A,H$1,SILOSTMAT!$B:$B,$A21) -> 16 | I21: =SUMIFS(SILOSTMAT!$C:$C,SILOSTMAT!$A:$A,I$1,SILOSTMAT!$B:$B,$A21) -> 1 | J21: =SUMIFS(SILOSTMAT!$C:$C,SILOSTMAT!$A:$A,J$1,SILOSTMAT!$B:$B,$A21) -> 88 | K21: =SUMIFS(SILOSTMAT!$C:$C,SILOSTMAT!$A:$A,K$1,SILOSTMAT!$B:$B,$A21) -> 123 | L21: =SUMIFS(SILOSTMAT!$C:$C,SILOSTMAT!$A:$A,L$1,SILOSTMAT!$B:$B,$A21) -> 77 | M21: =SUMIFS(SILOSTMAT!$C:$C,SILOSTMAT!$A:$A,M$1,SILOSTMAT!$B:$B,$A21) -> 10 | N21: =SUMIFS(SILOSTMAT!$C:$C,SILOSTMAT!$A:$A,N$1,SILOSTMAT!$B:$B,$A21) -> 50 | O21: =SUMIFS(SILOSTMAT!$C:$C,SILOSTMAT!$A:$A,O$1,SILOSTMAT!$B:$B,$A21) -> 254 | P21: =SUMIFS(SILOSTMAT!$C:$C,SILOSTMAT!$A:$A,P$1,SILOSTMAT!$B:$B,$A21) -> 29 | Q21: =SUMIFS(SILOSTMAT!$C:$C,SILOSTMAT!$A:$A,Q$1,SILOSTMAT!$B:$B,$A21) -> 196 | R21: =SUMIFS(SILOSTMAT!$C:$C,SILOSTMAT!$A:$A,R$1,SILOSTMAT!$B:$B,$A21) -> 899
A22: F1701 | B22: Construction en béton | C22: =VLOOKUP(A22,'nomenclature rome'!A:C,3,FALSE) -> BTP | D22: =IF(C22='DONNEES INFOGRAPHIES'!$B$6,1,0) -> 1 | E22: =VLOOKUP(A22,A:R,'DONNEES INFOGRAPHIES'!$L$9+4,FALSE) -> 840 | F22: =SUMIFS(SILOSTMAT!$C:$C,SILOSTMAT!$A:$A,F$1,SILOSTMAT!$B:$B,$A22) -> 63 | G22: =SUMIFS(SILOSTMAT!$C:$C,SILOSTMAT!$A:$A,G$1,SILOSTMAT!$B:$B,$A22) -> 13 | H22: =SUMIFS(SILOSTMAT!$C:$C,SILOSTMAT!$A:$A,H$1,SILOSTMAT!$B:$B,$A22) -> 3 | I22: =SUMIFS(SILOSTMAT!$C:$C,SILOSTMAT!$A:$A,I$1,SILOSTMAT!$B:$B,$A22) -> 1 | J22: =SUMIFS(SILOSTMAT!$C:$C,SILOSTMAT!$A:$A,J$1,SILOSTMAT!$B:$B,$A22) -> 81 | K22: =SUMIFS(SILOSTMAT!$C:$C,SILOSTMAT!$A:$A,K$1,SILOSTMAT!$B:$B,$A22) -> 57 | L22: =SUMIFS(SILOSTMAT!$C:$C,SILOSTMAT!$A:$A,L$1,SILOSTMAT!$B:$B,$A22) -> 72 | M22: =SUMIFS(SILOSTMAT!$C:$C,SILOSTMAT!$A:$A,M$1,SILOSTMAT!$B:$B,$A22) -> 4 | N22: =SUMIFS(SILOSTMAT!$C:$C,SILOSTMAT!$A:$A,N$1,SILOSTMAT!$B:$B,$A22) -> 94 | O22: =SUMIFS(SILOSTMAT!$C:$C,SILOSTMAT!$A:$A,O$1,SILOSTMAT!$B:$B,$A22) -> 301 | P22: =SUMIFS(SILOSTMAT!$C:$C,SILOSTMAT!$A:$A,P$1,SILOSTMAT!$B:$B,$A22) -> 65 | Q22: =SUMIFS(SILOSTMAT!$C:$C,SILOSTMAT!$A:$A,Q$1,SILOSTMAT!$B:$B,$A22) -> 86 | R22: =SUMIFS(SILOSTMAT!$C:$C,SILOSTMAT!$A:$A,R$1,SILOSTMAT!$B:$B,$A22) -> 840
A23: F1608 | B23: Pose de revêtements rigides | C23: =VLOOKUP(A23,'nomenclature rome'!A:C,3,FALSE) -> BTP | D23: =IF(C23='DONNEES INFOGRAPHIES'!$B$6,1,0) -> 1 | E23: =VLOOKUP(A23,A:R,'DONNEES INFOGRAPHIES'!$L$9+4,FALSE) -> 766 | F23: =SUMIFS(SILOSTMAT!$C:$C,SILOSTMAT!$A:$A,F$1,SILOSTMAT!$B:$B,$A23) -> 70 | G23: =SUMIFS(SILOSTMAT!$C:$C,SILOSTMAT!$A:$A,G$1,SILOSTMAT!$B:$B,$A23) -> 9 | H23: =SUMIFS(SILOSTMAT!$C:$C,SILOSTMAT!$A:$A,H$1,SILOSTMAT!$B:$B,$A23) -> 16 | I23: =SUMIFS(SILOSTMAT!$C:$C,SILOSTMAT!$A:$A,I$1,SILOSTMAT!$B:$B,$A23) -> 9 | J23: =SUMIFS(SILOSTMAT!$C:$C,SILOSTMAT!$A:$A,J$1,SILOSTMAT!$B:$B,$A23) -> 113 | K23: =SUMIFS(SILOSTMAT!$C:$C,SILOSTMAT!$A:$A,K$1,SILOSTMAT!$B:$B,$A23) -> 82 | L23: =SUMIFS(SILOSTMAT!$C:$C,SILOSTMAT!$A:$A,L$1,SILOSTMAT!$B:$B,$A23) -> 45 | M23: =SUMIFS(SILOSTMAT!$C:$C,SILOSTMAT!$A:$A,M$1,SILOSTMAT!$B:$B,$A23) -> 10 | N23: =SUMIFS(SILOSTMAT!$C:$C,SILOSTMAT!$A:$A,N$1,SILOSTMAT!$B:$B,$A23) -> 58 | O23: =SUMIFS(SILOSTMAT!$C:$C,SILOSTMAT!$A:$A,O$1,SILOSTMAT!$B:$B,$A23) -> 128 | P23: =SUMIFS(SILOSTMAT!$C:$C,SILOSTMAT!$A:$A,P$1,SILOSTMAT!$B:$B,$A23) -> 46 | Q23: =SUMIFS(SILOSTMAT!$C:$C,SILOSTMAT!$A:$A,Q$1,SILOSTMAT!$B:$B,$A23) -> 180 | R23: =SUMIFS(SILOSTMAT!$C:$C,SILOSTMAT!$A:$A,R$1,SILOSTMAT!$B:$B,$A23) -> 766
A24: F1619 | B24: Couvreur / couvreuse | C24: =VLOOKUP(A24,'nomenclature rome'!A:C,3,FALSE) -> BTP | D24: =IF(C24='DONNEES INFOGRAPHIES'!$B$6,1,0) -> 1 | E24: =VLOOKUP(A24,A:R,'DONNEES INFOGRAPHIES'!$L$9+4,FALSE) -> 719 | F24: =SUMIFS(SILOSTMAT!$C:$C,SILOSTMAT!$A:$A,F$1,SILOSTMAT!$B:$B,$A24) -> 29 | G24: =SUMIFS(SILOSTMAT!$C:$C,SILOSTMAT!$A:$A,G$1,SILOSTMAT!$B:$B,$A24) -> 70 | H24: =SUMIFS(SILOSTMAT!$C:$C,SILOSTMAT!$A:$A,H$1,SILOSTMAT!$B:$B,$A24) -> 15 | I24: =SUMIFS(SILOSTMAT!$C:$C,SILOSTMAT!$A:$A,I$1,SILOSTMAT!$B:$B,$A24) -> 21 | J24: =SUMIFS(SILOSTMAT!$C:$C,SILOSTMAT!$A:$A,J$1,SILOSTMAT!$B:$B,$A24) -> 69 | K24: =SUMIFS(SILOSTMAT!$C:$C,SILOSTMAT!$A:$A,K$1,SILOSTMAT!$B:$B,$A24) -> 43 | L24: =SUMIFS(SILOSTMAT!$C:$C,SILOSTMAT!$A:$A,L$1,SILOSTMAT!$B:$B,$A24) -> 85 | M24: =SUMIFS(SILOSTMAT!$C:$C,SILOSTMAT!$A:$A,M$1,SILOSTMAT!$B:$B,$A24) -> 16 | N24: =SUMIFS(SILOSTMAT!$C:$C,SILOSTMAT!$A:$A,N$1,SILOSTMAT!$B:$B,$A24) -> 97 | O24: =SUMIFS(SILOSTMAT!$C:$C,SILOSTMAT!$A:$A,O$1,SILOSTMAT!$B:$B,$A24) -> 113 | P24: =SUMIFS(SILOSTMAT!$C:$C,SILOSTMAT!$A:$A,P$1,SILOSTMAT!$B:$B,$A24) -> 70 | Q24: =SUMIFS(SILOSTMAT!$C:$C,SILOSTMAT!$A:$A,Q$1,SILOSTMAT!$B:$B,$A24) -> 91 | R24: =SUMIFS(SILOSTMAT!$C:$C,SILOSTMAT!$A:$A,R$1,SILOSTMAT!$B:$B,$A24) -> 719
A25: F1501 | B25: Montage de structures et de charpentes bois | C25: =VLOOKUP(A25,'nomenclature rome'!A:C,3,FALSE) -> BTP | D25: =IF(C25='DONNEES INFOGRAPHIES'!$B$6,1,0) -> 1 | E25: =VLOOKUP(A25,A:R,'DONNEES INFOGRAPHIES'!$L$9+4,FALSE) -> 560 | F25: =SUMIFS(SILOSTMAT!$C:$C,SILOSTMAT!$A:$A,F$1,SILOSTMAT!$B:$B,$A25) -> 20 | G25: =SUMIFS(SILOSTMAT!$C:$C,SILOSTMAT!$A:$A,G$1,SILOSTMAT!$B:$B,$A25) -> 8 | H25: =SUMIFS(SILOSTMAT!$C:$C,SILOSTMAT!$A:$A,H$1,SILOSTMAT!$B:$B,$A25) -> 13 | I25: =SUMIFS(SILOSTMAT!$C:$C,SILOSTMAT!$A:$A,I$1,SILOSTMAT!$B:$B,$A25) -> 7 | J25: =SUMIFS(SILOSTMAT!$C:$C,SILOSTMAT!$A:$A,J$1,SILOSTMAT!$B:$B,$A25) -> 20 | K25: =SUMIFS(SILOSTMAT!$C:$C,SILOSTMAT!$A:$A,K$1,SILOSTMAT!$B:$B,$A25) -> 86 | L25: =SUMIFS(SILOSTMAT!$C:$C,SILOSTMAT!$A:$A,L$1,SILOSTMAT!$B:$B,$A25) -> 44 | M25: =SUMIFS(SILOSTMAT!$C:$C,SILOSTMAT!$A:$A,M$1,SILOSTMAT!$B:$B,$A25) -> 36 | N25: =SUMIFS(SILOSTMAT!$C:$C,SILOSTMAT!$A:$A,N$1,SILOSTMAT!$B:$B,$A25) -> 41 | O25: =SUMIFS(SILOSTMAT!$C:$C,SILOSTMAT!$A:$A,O$1,SILOSTMAT!$B:$B,$A25) -> 85 | P25: =SUMIFS(SILOSTMAT!$C:$C,SILOSTMAT!$A:$A,P$1,SILOSTMAT!$B:$B,$A25) -> 57 | Q25: =SUMIFS(SILOSTMAT!$C:$C,SILOSTMAT!$A:$A,Q$1,SILOSTMAT!$B:$B,$A25) -> 143 | R25: =SUMIFS(SILOSTMAT!$C:$C,SILOSTMAT!$A:$A,R$1,SILOSTMAT!$B:$B,$A25) -> 560
A26: F1103 | B26: Contrôle et diagnostic technique du bâtiment | C26: =VLOOKUP(A26,'nomenclature rome'!A:C,3,FALSE) -> BTP | D26: =IF(C26='DONNEES INFOGRAPHIES'!$B$6,1,0) -> 1 | E26: =VLOOKUP(A26,A:R,'DONNEES INFOGRAPHIES'!$L$9+4,FALSE) -> 544 | F26: =SUMIFS(SILOSTMAT!$C:$C,SILOSTMAT!$A:$A,F$1,SILOSTMAT!$B:$B,$A26) -> 7 | G26: =SUMIFS(SILOSTMAT!$C:$C,SILOSTMAT!$A:$A,G$1,SILOSTMAT!$B:$B,$A26) -> 4 | H26: =SUMIFS(SILOSTMAT!$C:$C,SILOSTMAT!$A:$A,H$1,SILOSTMAT!$B:$B,$A26) -> 15 | I26: =SUMIFS(SILOSTMAT!$C:$C,SILOSTMAT!$A:$A,I$1,SILOSTMAT!$B:$B,$A26) -> 3 | J26: =SUMIFS(SILOSTMAT!$C:$C,SILOSTMAT!$A:$A,J$1,SILOSTMAT!$B:$B,$A26) -> 2 | K26: =SUMIFS(SILOSTMAT!$C:$C,SILOSTMAT!$A:$A,K$1,SILOSTMAT!$B:$B,$A26) -> 32 | L26: =SUMIFS(SILOSTMAT!$C:$C,SILOSTMAT!$A:$A,L$1,SILOSTMAT!$B:$B,$A26) -> 210 | M26: =SUMIFS(SILOSTMAT!$C:$C,SILOSTMAT!$A:$A,M$1,SILOSTMAT!$B:$B,$A26) -> 2 | N26: =SUMIFS(SILOSTMAT!$C:$C,SILOSTMAT!$A:$A,N$1,SILOSTMAT!$B:$B,$A26) -> 17 | O26: =SUMIFS(SILOSTMAT!$C:$C,SILOSTMAT!$A:$A,O$1,SILOSTMAT!$B:$B,$A26) -> 123 | P26: =SUMIFS(SILOSTMAT!$C:$C,SILOSTMAT!$A:$A,P$1,SILOSTMAT!$B:$B,$A26) -> 29 | Q26: =SUMIFS(SILOSTMAT!$C:$C,SILOSTMAT!$A:$A,Q$1,SILOSTMAT!$B:$B,$A26) -> 100 | R26: =SUMIFS(SILOSTMAT!$C:$C,SILOSTMAT!$A:$A,R$1,SILOSTMAT!$B:$B,$A26) -> 544
A27: F1204 | B27: Qualité sécurité environnement et protection santé du btp | C27: =VLOOKUP(A27,'nomenclature rome'!A:C,3,FALSE) -> BTP | D27: =IF(C27='DONNEES INFOGRAPHIES'!$B$6,1,0) -> 1 | E27: =VLOOKUP(A27,A:R,'DONNEES INFOGRAPHIES'!$L$9+4,FALSE) -> 515 | F27: =SUMIFS(SILOSTMAT!$C:$C,SILOSTMAT!$A:$A,F$1,SILOSTMAT!$B:$B,$A27) -> 41 | G27: =SUMIFS(SILOSTMAT!$C:$C,SILOSTMAT!$A:$A,G$1,SILOSTMAT!$B:$B,$A27) -> 12 | H27: =SUMIFS(SILOSTMAT!$C:$C,SILOSTMAT!$A:$A,H$1,SILOSTMAT!$B:$B,$A27) -> 5 | I27: =SUMIFS(SILOSTMAT!$C:$C,SILOSTMAT!$A:$A,I$1,SILOSTMAT!$B:$B,$A27) -> 9 | J27: =SUMIFS(SILOSTMAT!$C:$C,SILOSTMAT!$A:$A,J$1,SILOSTMAT!$B:$B,$A27) -> 30 | K27: =SUMIFS(SILOSTMAT!$C:$C,SILOSTMAT!$A:$A,K$1,SILOSTMAT!$B:$B,$A27) -> 77 | L27: =SUMIFS(SILOSTMAT!$C:$C,SILOSTMAT!$A:$A,L$1,SILOSTMAT!$B:$B,$A27) -> 43 | M27: =SUMIFS(SILOSTMAT!$C:$C,SILOSTMAT!$A:$A,M$1,SILOSTMAT!$B:$B,$A27) -> 4 | N27: =SUMIFS(SILOSTMAT!$C:$C,SILOSTMAT!$A:$A,N$1,SILOSTMAT!$B:$B,$A27) -> 15 | O27: =SUMIFS(SILOSTMAT!$C:$C,SILOSTMAT!$A:$A,O$1,SILOSTMAT!$B:$B,$A27) -> 150 | P27: =SUMIFS(SILOSTMAT!$C:$C,SILOSTMAT!$A:$A,P$1,SILOSTMAT!$B:$B,$A27) -> 71 | Q27: =SUMIFS(SILOSTMAT!$C:$C,SILOSTMAT!$A:$A,Q$1,SILOSTMAT!$B:$B,$A27) -> 58 | R27: =SUMIFS(SILOSTMAT!$C:$C,SILOSTMAT!$A:$A,R$1,SILOSTMAT!$B:$B,$A27) -> 515
A28: F1607 | B28: Menuisier / menuisière aluminium | C28: =VLOOKUP(A28,'nomenclature rome'!A:C,3,FALSE) -> BTP | D28: =IF(C28='DONNEES INFOGRAPHIES'!$B$6,1,0) -> 1 | E28: =VLOOKUP(A28,A:R,'DONNEES INFOGRAPHIES'!$L$9+4,FALSE) -> 505 | F28: =SUMIFS(SILOSTMAT!$C:$C,SILOSTMAT!$A:$A,F$1,SILOSTMAT!$B:$B,$A28) -> 50 | G28: =SUMIFS(SILOSTMAT!$C:$C,SILOSTMAT!$A:$A,G$1,SILOSTMAT!$B:$B,$A28) -> 43 | H28: =SUMIFS(SILOSTMAT!$C:$C,SILOSTMAT!$A:$A,H$1,SILOSTMAT!$B:$B,$A28) -> 10 | I28: =SUMIFS(SILOSTMAT!$C:$C,SILOSTMAT!$A:$A,I$1,SILOSTMAT!$B:$B,$A28) -> 2 | J28: =SUMIFS(SILOSTMAT!$C:$C,SILOSTMAT!$A:$A,J$1,SILOSTMAT!$B:$B,$A28) -> 15 | K28: =SUMIFS(SILOSTMAT!$C:$C,SILOSTMAT!$A:$A,K$1,SILOSTMAT!$B:$B,$A28) -> 55 | L28: =SUMIFS(SILOSTMAT!$C:$C,SILOSTMAT!$A:$A,L$1,SILOSTMAT!$B:$B,$A28) -> 52 | M28: =SUMIFS(SILOSTMAT!$C:$C,SILOSTMAT!$A:$A,M$1,SILOSTMAT!$B:$B,$A28) -> 17 | N28: =SUMIFS(SILOSTMAT!$C:$C,SILOSTMAT!$A:$A,N$1,SILOSTMAT!$B:$B,$A28) -> 64 | O28: =SUMIFS(SILOSTMAT!$C:$C,SILOSTMAT!$A:$A,O$1,SILOSTMAT!$B:$B,$A28) -> 113 | P28: =SUMIFS(SILOSTMAT!$C:$C,SILOSTMAT!$A:$A,P$1,SILOSTMAT!$B:$B,$A28) -> 23 | Q28: =SUMIFS(SILOSTMAT!$C:$C,SILOSTMAT!$A:$A,Q$1,SILOSTMAT!$B:$B,$A28) -> 61 | R28: =SUMIFS(SILOSTMAT!$C:$C,SILOSTMAT!$A:$A,R$1,SILOSTMAT!$B:$B,$A28) -> 505
A29: F1620 | B29: Installateur / Installatrice chauffage et climatisation | C29: =VLOOKUP(A29,'nomenclature rome'!A:C,3,FALSE) -> BTP | D29: =IF(C29='DONNEES INFOGRAPHIES'!$B$6,1,0) -> 1 | E29: =VLOOKUP(A29,A:R,'DONNEES INFOGRAPHIES'!$L$9+4,FALSE) -> 397 | F29: =SUMIFS(SILOSTMAT!$C:$C,SILOSTMAT!$A:$A,F$1,SILOSTMAT!$B:$B,$A29) -> 17 | G29: =SUMIFS(SILOSTMAT!$C:$C,SILOSTMAT!$A:$A,G$1,SILOSTMAT!$B:$B,$A29) -> 15 | H29: =SUMIFS(SILOSTMAT!$C:$C,SILOSTMAT!$A:$A,H$1,SILOSTMAT!$B:$B,$A29) -> 12 | I29: =SUMIFS(SILOSTMAT!$C:$C,SILOSTMAT!$A:$A,I$1,SILOSTMAT!$B:$B,$A29) -> 5 | J29: =SUMIFS(SILOSTMAT!$C:$C,SILOSTMAT!$A:$A,J$1,SILOSTMAT!$B:$B,$A29) -> 31 | K29: =SUMIFS(SILOSTMAT!$C:$C,SILOSTMAT!$A:$A,K$1,SILOSTMAT!$B:$B,$A29) -> 68 | L29: =SUMIFS(SILOSTMAT!$C:$C,SILOSTMAT!$A:$A,L$1,SILOSTMAT!$B:$B,$A29) -> 48 | M29: =SUMIFS(SILOSTMAT!$C:$C,SILOSTMAT!$A:$A,M$1,SILOSTMAT!$B:$B,$A29) -> 11 | N29: =SUMIFS(SILOSTMAT!$C:$C,SILOSTMAT!$A:$A,N$1,SILOSTMAT!$B:$B,$A29) -> 41 | O29: =SUMIFS(SILOSTMAT!$C:$C,SILOSTMAT!$A:$A,O$1,SILOSTMAT!$B:$B,$A29) -> 71 | P29: =SUMIFS(SILOSTMAT!$C:$C,SILOSTMAT!$A:$A,P$1,SILOSTMAT!$B:$B,$A29) -> 26 | Q29: =SUMIFS(SILOSTMAT!$C:$C,SILOSTMAT!$A:$A,Q$1,SILOSTMAT!$B:$B,$A29) -> 52 | R29: =SUMIFS(SILOSTMAT!$C:$C,SILOSTMAT!$A:$A,R$1,SILOSTMAT!$B:$B,$A29) -> 397
A30: F1616 | B30: Poseur / poseuse de menuiseries extérieures | C30: =VLOOKUP(A30,'nomenclature rome'!A:C,3,FALSE) -> BTP | D30: =IF(C30='DONNEES INFOGRAPHIES'!$B$6,1,0) -> 1 | E30: =VLOOKUP(A30,A:R,'DONNEES INFOGRAPHIES'!$L$9+4,FALSE) -> 375 | F30: =SUMIFS(SILOSTMAT!$C:$C,SILOSTMAT!$A:$A,F$1,SILOSTMAT!$B:$B,$A30) -> 21 | G30: =SUMIFS(SILOSTMAT!$C:$C,SILOSTMAT!$A:$A,G$1,SILOSTMAT!$B:$B,$A30) -> 5 | H30: =SUMIFS(SILOSTMAT!$C:$C,SILOSTMAT!$A:$A,H$1,SILOSTMAT!$B:$B,$A30) -> 22 | I30: =SUMIFS(SILOSTMAT!$C:$C,SILOSTMAT!$A:$A,I$1,SILOSTMAT!$B:$B,$A30) -> 5 | J30: =SUMIFS(SILOSTMAT!$C:$C,SILOSTMAT!$A:$A,J$1,SILOSTMAT!$B:$B,$A30) -> 17 | K30: =SUMIFS(SILOSTMAT!$C:$C,SILOSTMAT!$A:$A,K$1,SILOSTMAT!$B:$B,$A30) -> 79 | L30: =SUMIFS(SILOSTMAT!$C:$C,SILOSTMAT!$A:$A,L$1,SILOSTMAT!$B:$B,$A30) -> 40 | M30: =SUMIFS(SILOSTMAT!$C:$C,SILOSTMAT!$A:$A,M$1,SILOSTMAT!$B:$B,$A30) -> 19 | N30: =SUMIFS(SILOSTMAT!$C:$C,SILOSTMAT!$A:$A,N$1,SILOSTMAT!$B:$B,$A30) -> 35 | O30: =SUMIFS(SILOSTMAT!$C:$C,SILOSTMAT!$A:$A,O$1,SILOSTMAT!$B:$B,$A30) -> 51 | P30: =SUMIFS(SILOSTMAT!$C:$C,SILOSTMAT!$A:$A,P$1,SILOSTMAT!$B:$B,$A30) -> 15 | Q30: =SUMIFS(SILOSTMAT!$C:$C,SILOSTMAT!$A:$A,Q$1,SILOSTMAT!$B:$B,$A30) -> 66 | R30: =SUMIFS(SILOSTMAT!$C:$C,SILOSTMAT!$A:$A,R$1,SILOSTMAT!$B:$B,$A30) -> 375
A31: F1108 | B31: Métré de la construction | C31: =VLOOKUP(A31,'nomenclature rome'!A:C,3,FALSE) -> BTP | D31: =IF(C31='DONNEES INFOGRAPHIES'!$B$6,1,0) -> 1 | E31: =VLOOKUP(A31,A:R,'DONNEES INFOGRAPHIES'!$L$9+4,FALSE) -> 361 | F31: =SUMIFS(SILOSTMAT!$C:$C,SILOSTMAT!$A:$A,F$1,SILOSTMAT!$B:$B,$A31) -> 17 | G31: =SUMIFS(SILOSTMAT!$C:$C,SILOSTMAT!$A:$A,G$1,SILOSTMAT!$B:$B,$A31) -> 13 | H31: =SUMIFS(SILOSTMAT!$C:$C,SILOSTMAT!$A:$A,H$1,SILOSTMAT!$B:$B,$A31) -> 4 | I31: =SUMIFS(SILOSTMAT!$C:$C,SILOSTMAT!$A:$A,I$1,SILOSTMAT!$B:$B,$A31) -> 4 | J31: =SUMIFS(SILOSTMAT!$C:$C,SILOSTMAT!$A:$A,J$1,SILOSTMAT!$B:$B,$A31) -> 15 | K31: =SUMIFS(SILOSTMAT!$C:$C,SILOSTMAT!$A:$A,K$1,SILOSTMAT!$B:$B,$A31) -> 60 | L31: =SUMIFS(SILOSTMAT!$C:$C,SILOSTMAT!$A:$A,L$1,SILOSTMAT!$B:$B,$A31) -> 32 | M31: =SUMIFS(SILOSTMAT!$C:$C,SILOSTMAT!$A:$A,M$1,SILOSTMAT!$B:$B,$A31) -> 10 | N31: =SUMIFS(SILOSTMAT!$C:$C,SILOSTMAT!$A:$A,N$1,SILOSTMAT!$B:$B,$A31) -> 15 | O31: =SUMIFS(SILOSTMAT!$C:$C,SILOSTMAT!$A:$A,O$1,SILOSTMAT!$B:$B,$A31) -> 100 | P31: =SUMIFS(SILOSTMAT!$C:$C,SILOSTMAT!$A:$A,P$1,SILOSTMAT!$B:$B,$A31) -> 74 | Q31: =SUMIFS(SILOSTMAT!$C:$C,SILOSTMAT!$A:$A,Q$1,SILOSTMAT!$B:$B,$A31) -> 17 | R31: =SUMIFS(SILOSTMAT!$C:$C,SILOSTMAT!$A:$A,R$1,SILOSTMAT!$B:$B,$A31) -> 361
A32: F1107 | B32: Géomètre-topographe | C32: =VLOOKUP(A32,'nomenclature rome'!A:C,3,FALSE) -> BTP | D32: =IF(C32='DONNEES INFOGRAPHIES'!$B$6,1,0) -> 1 | E32: =VLOOKUP(A32,A:R,'DONNEES INFOGRAPHIES'!$L$9+4,FALSE) -> 325 | F32: =SUMIFS(SILOSTMAT!$C:$C,SILOSTMAT!$A:$A,F$1,SILOSTMAT!$B:$B,$A32) -> 30 | G32: =SUMIFS(SILOSTMAT!$C:$C,SILOSTMAT!$A:$A,G$1,SILOSTMAT!$B:$B,$A32) -> 4 | H32: =SUMIFS(SILOSTMAT!$C:$C,SILOSTMAT!$A:$A,H$1,SILOSTMAT!$B:$B,$A32) -> 2 | I32: =SUMIFS(SILOSTMAT!$C:$C,SILOSTMAT!$A:$A,I$1,SILOSTMAT!$B:$B,$A32) -> 2 | J32: =SUMIFS(SILOSTMAT!$C:$C,SILOSTMAT!$A:$A,J$1,SILOSTMAT!$B:$B,$A32) -> 9 | K32: =SUMIFS(SILOSTMAT!$C:$C,SILOSTMAT!$A:$A,K$1,SILOSTMAT!$B:$B,$A32) -> 132 | L32: =SUMIFS(SILOSTMAT!$C:$C,SILOSTMAT!$A:$A,L$1,SILOSTMAT!$B:$B,$A32) -> 14 | M32: =SUMIFS(SILOSTMAT!$C:$C,SILOSTMAT!$A:$A,M$1,SILOSTMAT!$B:$B,$A32) -> 11 | N32: =SUMIFS(SILOSTMAT!$C:$C,SILOSTMAT!$A:$A,N$1,SILOSTMAT!$B:$B,$A32) -> 14 | O32: =SUMIFS(SILOSTMAT!$C:$C,SILOSTMAT!$A:$A,O$1,SILOSTMAT!$B:$B,$A32) -> 38 | P32: =SUMIFS(SILOSTMAT!$C:$C,SILOSTMAT!$A:$A,P$1,SILOSTMAT!$B:$B,$A32) -> 40 | Q32: =SUMIFS(SILOSTMAT!$C:$C,SILOSTMAT!$A:$A,Q$1,SILOSTMAT!$B:$B,$A32) -> 29 | R32: =SUMIFS(SILOSTMAT!$C:$C,SILOSTMAT!$A:$A,R$1,SILOSTMAT!$B:$B,$A32) -> 325
A33: F1301 | B33: Conduite de grue | C33: =VLOOKUP(A33,'nomenclature rome'!A:C,3,FALSE) -> BTP | D33: =IF(C33='DONNEES INFOGRAPHIES'!$B$6,1,0) -> 1 | E33: =VLOOKUP(A33,A:R,'DONNEES INFOGRAPHIES'!$L$9+4,FALSE) -> 318 | F33: =SUMIFS(SILOSTMAT!$C:$C,SILOSTMAT!$A:$A,F$1,SILOSTMAT!$B:$B,$A33) -> 27 | G33: =SUMIFS(SILOSTMAT!$C:$C,SILOSTMAT!$A:$A,G$1,SILOSTMAT!$B:$B,$A33) -> 9 | H33: =SUMIFS(SILOSTMAT!$C:$C,SILOSTMAT!$A:$A,H$1,SILOSTMAT!$B:$B,$A33) -> 5 | I33: =SUMIFS(SILOSTMAT!$C:$C,SILOSTMAT!$A:$A,I$1,SILOSTMAT!$B:$B,$A33) -> 0 | J33: =SUMIFS(SILOSTMAT!$C:$C,SILOSTMAT!$A:$A,J$1,SILOSTMAT!$B:$B,$A33) -> 25 | K33: =SUMIFS(SILOSTMAT!$C:$C,SILOSTMAT!$A:$A,K$1,SILOSTMAT!$B:$B,$A33) -> 30 | L33: =SUMIFS(SILOSTMAT!$C:$C,SILOSTMAT!$A:$A,L$1,SILOSTMAT!$B:$B,$A33) -> 29 | M33: =SUMIFS(SILOSTMAT!$C:$C,SILOSTMAT!$A:$A,M$1,SILOSTMAT!$B:$B,$A33) -> 8 | N33: =SUMIFS(SILOSTMAT!$C:$C,SILOSTMAT!$A:$A,N$1,SILOSTMAT!$B:$B,$A33) -> 27 | O33: =SUMIFS(SILOSTMAT!$C:$C,SILOSTMAT!$A:$A,O$1,SILOSTMAT!$B:$B,$A33) -> 88 | P33: =SUMIFS(SILOSTMAT!$C:$C,SILOSTMAT!$A:$A,P$1,SILOSTMAT!$B:$B,$A33) -> 15 | Q33: =SUMIFS(SILOSTMAT!$C:$C,SILOSTMAT!$A:$A,Q$1,SILOSTMAT!$B:$B,$A33) -> 55 | R33: =SUMIFS(SILOSTMAT!$C:$C,SILOSTMAT!$A:$A,R$1,SILOSTMAT!$B:$B,$A33) -> 318
A34: F1609 | B34: Pose de revêtements souples | C34: =VLOOKUP(A34,'nomenclature rome'!A:C,3,FALSE) -> BTP | D34: =IF(C34='DONNEES INFOGRAPHIES'!$B$6,1,0) -> 1 | E34: =VLOOKUP(A34,A:R,'DONNEES INFOGRAPHIES'!$L$9+4,FALSE) -> 273 | F34: =SUMIFS(SILOSTMAT!$C:$C,SILOSTMAT!$A:$A,F$1,SILOSTMAT!$B:$B,$A34) -> 18 | G34: =SUMIFS(SILOSTMAT!$C:$C,SILOSTMAT!$A:$A,G$1,SILOSTMAT!$B:$B,$A34) -> 6 | H34: =SUMIFS(SILOSTMAT!$C:$C,SILOSTMAT!$A:$A,H$1,SILOSTMAT!$B:$B,$A34) -> 2 | I34: =SUMIFS(SILOSTMAT!$C:$C,SILOSTMAT!$A:$A,I$1,SILOSTMAT!$B:$B,$A34) -> 0 | J34: =SUMIFS(SILOSTMAT!$C:$C,SILOSTMAT!$A:$A,J$1,SILOSTMAT!$B:$B,$A34) -> 22 | K34: =SUMIFS(SILOSTMAT!$C:$C,SILOSTMAT!$A:$A,K$1,SILOSTMAT!$B:$B,$A34) -> 44 | L34: =SUMIFS(SILOSTMAT!$C:$C,SILOSTMAT!$A:$A,L$1,SILOSTMAT!$B:$B,$A34) -> 12 | M34: =SUMIFS(SILOSTMAT!$C:$C,SILOSTMAT!$A:$A,M$1,SILOSTMAT!$B:$B,$A34) -> 0 | N34: =SUMIFS(SILOSTMAT!$C:$C,SILOSTMAT!$A:$A,N$1,SILOSTMAT!$B:$B,$A34) -> 38 | O34: =SUMIFS(SILOSTMAT!$C:$C,SILOSTMAT!$A:$A,O$1,SILOSTMAT!$B:$B,$A34) -> 80 | P34: =SUMIFS(SILOSTMAT!$C:$C,SILOSTMAT!$A:$A,P$1,SILOSTMAT!$B:$B,$A34) -> 28 | Q34: =SUMIFS(SILOSTMAT!$C:$C,SILOSTMAT!$A:$A,Q$1,SILOSTMAT!$B:$B,$A34) -> 23 | R34: =SUMIFS(SILOSTMAT!$C:$C,SILOSTMAT!$A:$A,R$1,SILOSTMAT!$B:$B,$A34) -> 273
A35: F1205 | B35: Responsable de travaux btp | C35: =VLOOKUP(A35,'nomenclature rome'!A:C,3,FALSE) -> BTP | D35: =IF(C35='DONNEES INFOGRAPHIES'!$B$6,1,0) -> 1 | E35: =VLOOKUP(A35,A:R,'DONNEES INFOGRAPHIES'!$L$9+4,FALSE) -> 232 | F35: =SUMIFS(SILOSTMAT!$C:$C,SILOSTMAT!$A:$A,F$1,SILOSTMAT!$B:$B,$A35) -> 11 | G35: =SUMIFS(SILOSTMAT!$C:$C,SILOSTMAT!$A:$A,G$1,SILOSTMAT!$B:$B,$A35) -> 0 | H35: =SUMIFS(SILOSTMAT!$C:$C,SILOSTMAT!$A:$A,H$1,SILOSTMAT!$B:$B,$A35) -> 8 | I35: =SUMIFS(SILOSTMAT!$C:$C,SILOSTMAT!$A:$A,I$1,SILOSTMAT!$B:$B,$A35) -> 5 | J35: =SUMIFS(SILOSTMAT!$C:$C,SILOSTMAT!$A:$A,J$1,SILOSTMAT!$B:$B,$A35) -> 19 | K35: =SUMIFS(SILOSTMAT!$C:$C,SILOSTMAT!$A:$A,K$1,SILOSTMAT!$B:$B,$A35) -> 7 | L35: =SUMIFS(SILOSTMAT!$C:$C,SILOSTMAT!$A:$A,L$1,SILOSTMAT!$B:$B,$A35) -> 52 | M35: =SUMIFS(SILOSTMAT!$C:$C,SILOSTMAT!$A:$A,M$1,SILOSTMAT!$B:$B,$A35) -> 3 | N35: =SUMIFS(SILOSTMAT!$C:$C,SILOSTMAT!$A:$A,N$1,SILOSTMAT!$B:$B,$A35) -> 2 | O35: =SUMIFS(SILOSTMAT!$C:$C,SILOSTMAT!$A:$A,O$1,SILOSTMAT!$B:$B,$A35) -> 71 | P35: =SUMIFS(SILOSTMAT!$C:$C,SILOSTMAT!$A:$A,P$1,SILOSTMAT!$B:$B,$A35) -> 37 | Q35: =SUMIFS(SILOSTMAT!$C:$C,SILOSTMAT!$A:$A,Q$1,SILOSTMAT!$B:$B,$A35) -> 17 | R35: =SUMIFS(SILOSTMAT!$C:$C,SILOSTMAT!$A:$A,R$1,SILOSTMAT!$B:$B,$A35) -> 232
A36: F1706 | B36: Préfabrication en béton industriel | C36: =VLOOKUP(A36,'nomenclature rome'!A:C,3,FALSE) -> BTP | D36: =IF(C36='DONNEES INFOGRAPHIES'!$B$6,1,0) -> 1 | E36: =VLOOKUP(A36,A:R,'DONNEES INFOGRAPHIES'!$L$9+4,FALSE) -> 198 | F36: =SUMIFS(SILOSTMAT!$C:$C,SILOSTMAT!$A:$A,F$1,SILOSTMAT!$B:$B,$A36) -> 34 | G36: =SUMIFS(SILOSTMAT!$C:$C,SILOSTMAT!$A:$A,G$1,SILOSTMAT!$B:$B,$A36) -> 0 | H36: =SUMIFS(SILOSTMAT!$C:$C,SILOSTMAT!$A:$A,H$1,SILOSTMAT!$B:$B,$A36) -> 0 | I36: =SUMIFS(SILOSTMAT!$C:$C,SILOSTMAT!$A:$A,I$1,SILOSTMAT!$B:$B,$A36) -> 0 | J36: =SUMIFS(SILOSTMAT!$C:$C,SILOSTMAT!$A:$A,J$1,SILOSTMAT!$B:$B,$A36) -> 20 | K36: =SUMIFS(SILOSTMAT!$C:$C,SILOSTMAT!$A:$A,K$1,SILOSTMAT!$B:$B,$A36) -> 18 | L36: =SUMIFS(SILOSTMAT!$C:$C,SILOSTMAT!$A:$A,L$1,SILOSTMAT!$B:$B,$A36) -> 18 | M36: =SUMIFS(SILOSTMAT!$C:$C,SILOSTMAT!$A:$A,M$1,SILOSTMAT!$B:$B,$A36) -> 15 | N36: =SUMIFS(SILOSTMAT!$C:$C,SILOSTMAT!$A:$A,N$1,SILOSTMAT!$B:$B,$A36) -> 13 | O36: =SUMIFS(SILOSTMAT!$C:$C,SILOSTMAT!$A:$A,O$1,SILOSTMAT!$B:$B,$A36) -> 42 | P36: =SUMIFS(SILOSTMAT!$C:$C,SILOSTMAT!$A:$A,P$1,SILOSTMAT!$B:$B,$A36) -> 26 | Q36: =SUMIFS(SILOSTMAT!$C:$C,SILOSTMAT!$A:$A,Q$1,SILOSTMAT!$B:$B,$A36) -> 12 | R36: =SUMIFS(SILOSTMAT!$C:$C,SILOSTMAT!$A:$A,R$1,SILOSTMAT!$B:$B,$A36) -> 198
A37: F1110 | B37: Dessinateur / dessinatrice enveloppe du bâtiment | C37: =VLOOKUP(A37,'nomenclature rome'!A:C,3,FALSE) -> BTP | D37: =IF(C37='DONNEES INFOGRAPHIES'!$B$6,1,0) -> 1 | E37: =VLOOKUP(A37,A:R,'DONNEES INFOGRAPHIES'!$L$9+4,FALSE) -> 198 | F37: =SUMIFS(SILOSTMAT!$C:$C,SILOSTMAT!$A:$A,F$1,SILOSTMAT!$B:$B,$A37) -> 6 | G37: =SUMIFS(SILOSTMAT!$C:$C,SILOSTMAT!$A:$A,G$1,SILOSTMAT!$B:$B,$A37) -> 2 | H37: =SUMIFS(SILOSTMAT!$C:$C,SILOSTMAT!$A:$A,H$1,SILOSTMAT!$B:$B,$A37) -> 2 | I37: =SUMIFS(SILOSTMAT!$C:$C,SILOSTMAT!$A:$A,I$1,SILOSTMAT!$B:$B,$A37) -> 0 | J37: =SUMIFS(SILOSTMAT!$C:$C,SILOSTMAT!$A:$A,J$1,SILOSTMAT!$B:$B,$A37) -> 10 | K37: =SUMIFS(SILOSTMAT!$C:$C,SILOSTMAT!$A:$A,K$1,SILOSTMAT!$B:$B,$A37) -> 17 | L37: =SUMIFS(SILOSTMAT!$C:$C,SILOSTMAT!$A:$A,L$1,SILOSTMAT!$B:$B,$A37) -> 58 | M37: =SUMIFS(SILOSTMAT!$C:$C,SILOSTMAT!$A:$A,M$1,SILOSTMAT!$B:$B,$A37) -> 1 | N37: =SUMIFS(SILOSTMAT!$C:$C,SILOSTMAT!$A:$A,N$1,SILOSTMAT!$B:$B,$A37) -> 23 | O37: =SUMIFS(SILOSTMAT!$C:$C,SILOSTMAT!$A:$A,O$1,SILOSTMAT!$B:$B,$A37) -> 49 | P37: =SUMIFS(SILOSTMAT!$C:$C,SILOSTMAT!$A:$A,P$1,SILOSTMAT!$B:$B,$A37) -> 18 | Q37: =SUMIFS(SILOSTMAT!$C:$C,SILOSTMAT!$A:$A,Q$1,SILOSTMAT!$B:$B,$A37) -> 12 | R37: =SUMIFS(SILOSTMAT!$C:$C,SILOSTMAT!$A:$A,R$1,SILOSTMAT!$B:$B,$A37) -> 198
A38: F1111 | B38: Ingénieur / ingénieure génie civil | C38: =VLOOKUP(A38,'nomenclature rome'!A:C,3,FALSE) -> BTP | D38: =IF(C38='DONNEES INFOGRAPHIES'!$B$6,1,0) -> 1 | E38: =VLOOKUP(A38,A:R,'DONNEES INFOGRAPHIES'!$L$9+4,FALSE) -> 168 | F38: =SUMIFS(SILOSTMAT!$C:$C,SILOSTMAT!$A:$A,F$1,SILOSTMAT!$B:$B,$A38) -> 9 | G38: =SUMIFS(SILOSTMAT!$C:$C,SILOSTMAT!$A:$A,G$1,SILOSTMAT!$B:$B,$A38) -> 1 | H38: =SUMIFS(SILOSTMAT!$C:$C,SILOSTMAT!$A:$A,H$1,SILOSTMAT!$B:$B,$A38) -> 0 | I38: =SUMIFS(SILOSTMAT!$C:$C,SILOSTMAT!$A:$A,I$1,SILOSTMAT!$B:$B,$A38) -> 0 | J38: =SUMIFS(SILOSTMAT!$C:$C,SILOSTMAT!$A:$A,J$1,SILOSTMAT!$B:$B,$A38) -> 2 | K38: =SUMIFS(SILOSTMAT!$C:$C,SILOSTMAT!$A:$A,K$1,SILOSTMAT!$B:$B,$A38) -> 38 | L38: =SUMIFS(SILOSTMAT!$C:$C,SILOSTMAT!$A:$A,L$1,SILOSTMAT!$B:$B,$A38) -> 4 | M38: =SUMIFS(SILOSTMAT!$C:$C,SILOSTMAT!$A:$A,M$1,SILOSTMAT!$B:$B,$A38) -> 0 | N38: =SUMIFS(SILOSTMAT!$C:$C,SILOSTMAT!$A:$A,N$1,SILOSTMAT!$B:$B,$A38) -> 1 | O38: =SUMIFS(SILOSTMAT!$C:$C,SILOSTMAT!$A:$A,O$1,SILOSTMAT!$B:$B,$A38) -> 71 | P38: =SUMIFS(SILOSTMAT!$C:$C,SILOSTMAT!$A:$A,P$1,SILOSTMAT!$B:$B,$A38) -> 13 | Q38: =SUMIFS(SILOSTMAT!$C:$C,SILOSTMAT!$A:$A,Q$1,SILOSTMAT!$B:$B,$A38) -> 29 | R38: =SUMIFS(SILOSTMAT!$C:$C,SILOSTMAT!$A:$A,R$1,SILOSTMAT!$B:$B,$A38) -> 168
A39: F1101 | B39: Architecture du btp et du paysage | C39: =VLOOKUP(A39,'nomenclature rome'!A:C,3,FALSE) -> BTP | D39: =IF(C39='DONNEES INFOGRAPHIES'!$B$6,1,0) -> 1 | E39: =VLOOKUP(A39,A:R,'DONNEES INFOGRAPHIES'!$L$9+4,FALSE) -> 154 | F39: =SUMIFS(SILOSTMAT!$C:$C,SILOSTMAT!$A:$A,F$1,SILOSTMAT!$B:$B,$A39) -> 6 | G39: =SUMIFS(SILOSTMAT!$C:$C,SILOSTMAT!$A:$A,G$1,SILOSTMAT!$B:$B,$A39) -> 2 | H39: =SUMIFS(SILOSTMAT!$C:$C,SILOSTMAT!$A:$A,H$1,SILOSTMAT!$B:$B,$A39) -> 2 | I39: =SUMIFS(SILOSTMAT!$C:$C,SILOSTMAT!$A:$A,I$1,SILOSTMAT!$B:$B,$A39) -> 1 | J39: =SUMIFS(SILOSTMAT!$C:$C,SILOSTMAT!$A:$A,J$1,SILOSTMAT!$B:$B,$A39) -> 4 | K39: =SUMIFS(SILOSTMAT!$C:$C,SILOSTMAT!$A:$A,K$1,SILOSTMAT!$B:$B,$A39) -> 15 | L39: =SUMIFS(SILOSTMAT!$C:$C,SILOSTMAT!$A:$A,L$1,SILOSTMAT!$B:$B,$A39) -> 15 | M39: =SUMIFS(SILOSTMAT!$C:$C,SILOSTMAT!$A:$A,M$1,SILOSTMAT!$B:$B,$A39) -> 0 | N39: =SUMIFS(SILOSTMAT!$C:$C,SILOSTMAT!$A:$A,N$1,SILOSTMAT!$B:$B,$A39) -> 5 | O39: =SUMIFS(SILOSTMAT!$C:$C,SILOSTMAT!$A:$A,O$1,SILOSTMAT!$B:$B,$A39) -> 45 | P39: =SUMIFS(SILOSTMAT!$C:$C,SILOSTMAT!$A:$A,P$1,SILOSTMAT!$B:$B,$A39) -> 47 | Q39: =SUMIFS(SILOSTMAT!$C:$C,SILOSTMAT!$A:$A,Q$1,SILOSTMAT!$B:$B,$A39) -> 12 | R39: =SUMIFS(SILOSTMAT!$C:$C,SILOSTMAT!$A:$A,R$1,SILOSTMAT!$B:$B,$A39) -> 154
A40: F1112 | B40: Ingénieur / ingénieure calcul et structure | C40: =VLOOKUP(A40,'nomenclature rome'!A:C,3,FALSE) -> BTP | D40: =IF(C40='DONNEES INFOGRAPHIES'!$B$6,1,0) -> 1 | E40: =VLOOKUP(A40,A:R,'DONNEES INFOGRAPHIES'!$L$9+4,FALSE) -> 140 | F40: =SUMIFS(SILOSTMAT!$C:$C,SILOSTMAT!$A:$A,F$1,SILOSTMAT!$B:$B,$A40) -> 6 | G40: =SUMIFS(SILOSTMAT!$C:$C,SILOSTMAT!$A:$A,G$1,SILOSTMAT!$B:$B,$A40) -> 2 | H40: =SUMIFS(SILOSTMAT!$C:$C,SILOSTMAT!$A:$A,H$1,SILOSTMAT!$B:$B,$A40) -> 0 | I40: =SUMIFS(SILOSTMAT!$C:$C,SILOSTMAT!$A:$A,I$1,SILOSTMAT!$B:$B,$A40) -> 0 | J40: =SUMIFS(SILOSTMAT!$C:$C,SILOSTMAT!$A:$A,J$1,SILOSTMAT!$B:$B,$A40) -> 2 | K40: =SUMIFS(SILOSTMAT!$C:$C,SILOSTMAT!$A:$A,K$1,SILOSTMAT!$B:$B,$A40) -> 58 | L40: =SUMIFS(SILOSTMAT!$C:$C,SILOSTMAT!$A:$A,L$1,SILOSTMAT!$B:$B,$A40) -> 4 | M40: =SUMIFS(SILOSTMAT!$C:$C,SILOSTMAT!$A:$A,M$1,SILOSTMAT!$B:$B,$A40) -> 7 | N40: =SUMIFS(SILOSTMAT!$C:$C,SILOSTMAT!$A:$A,N$1,SILOSTMAT!$B:$B,$A40) -> 0 | O40: =SUMIFS(SILOSTMAT!$C:$C,SILOSTMAT!$A:$A,O$1,SILOSTMAT!$B:$B,$A40) -> 58 | P40: =SUMIFS(SILOSTMAT!$C:$C,SILOSTMAT!$A:$A,P$1,SILOSTMAT!$B:$B,$A40) -> 2 | Q40: =SUMIFS(SILOSTMAT!$C:$C,SILOSTMAT!$A:$A,Q$1,SILOSTMAT!$B:$B,$A40) -> 1 | R40: =SUMIFS(SILOSTMAT!$C:$C,SILOSTMAT!$A:$A,R$1,SILOSTMAT!$B:$B,$A40) -> 140
A41: F1105 | B41: Études géologiques | C41: =VLOOKUP(A41,'nomenclature rome'!A:C,3,FALSE) -> BTP | D41: =IF(C41='DONNEES INFOGRAPHIES'!$B$6,1,0) -> 1 | E41: =VLOOKUP(A41,A:R,'DONNEES INFOGRAPHIES'!$L$9+4,FALSE) -> 127 | F41: =SUMIFS(SILOSTMAT!$C:$C,SILOSTMAT!$A:$A,F$1,SILOSTMAT!$B:$B,$A41) -> 8 | G41: =SUMIFS(SILOSTMAT!$C:$C,SILOSTMAT!$A:$A,G$1,SILOSTMAT!$B:$B,$A41) -> 0 | H41: =SUMIFS(SILOSTMAT!$C:$C,SILOSTMAT!$A:$A,H$1,SILOSTMAT!$B:$B,$A41) -> 0 | I41: =SUMIFS(SILOSTMAT!$C:$C,SILOSTMAT!$A:$A,I$1,SILOSTMAT!$B:$B,$A41) -> 0 | J41: =SUMIFS(SILOSTMAT!$C:$C,SILOSTMAT!$A:$A,J$1,SILOSTMAT!$B:$B,$A41) -> 4 | K41: =SUMIFS(SILOSTMAT!$C:$C,SILOSTMAT!$A:$A,K$1,SILOSTMAT!$B:$B,$A41) -> 18 | L41: =SUMIFS(SILOSTMAT!$C:$C,SILOSTMAT!$A:$A,L$1,SILOSTMAT!$B:$B,$A41) -> 29 | M41: =SUMIFS(SILOSTMAT!$C:$C,SILOSTMAT!$A:$A,M$1,SILOSTMAT!$B:$B,$A41) -> 0 | N41: =SUMIFS(SILOSTMAT!$C:$C,SILOSTMAT!$A:$A,N$1,SILOSTMAT!$B:$B,$A41) -> 4 | O41: =SUMIFS(SILOSTMAT!$C:$C,SILOSTMAT!$A:$A,O$1,SILOSTMAT!$B:$B,$A41) -> 46 | P41: =SUMIFS(SILOSTMAT!$C:$C,SILOSTMAT!$A:$A,P$1,SILOSTMAT!$B:$B,$A41) -> 6 | Q41: =SUMIFS(SILOSTMAT!$C:$C,SILOSTMAT!$A:$A,Q$1,SILOSTMAT!$B:$B,$A41) -> 12 | R41: =SUMIFS(SILOSTMAT!$C:$C,SILOSTMAT!$A:$A,R$1,SILOSTMAT!$B:$B,$A41) -> 127
A42: F1612 | B42: Taille et décoration de pierres | C42: =VLOOKUP(A42,'nomenclature rome'!A:C,3,FALSE) -> BTP | D42: =IF(C42='DONNEES INFOGRAPHIES'!$B$6,1,0) -> 1 | E42: =VLOOKUP(A42,A:R,'DONNEES INFOGRAPHIES'!$L$9+4,FALSE) -> 121 | F42: =SUMIFS(SILOSTMAT!$C:$C,SILOSTMAT!$A:$A,F$1,SILOSTMAT!$B:$B,$A42) -> 4 | G42: =SUMIFS(SILOSTMAT!$C:$C,SILOSTMAT!$A:$A,G$1,SILOSTMAT!$B:$B,$A42) -> 1 | H42: =SUMIFS(SILOSTMAT!$C:$C,SILOSTMAT!$A:$A,H$1,SILOSTMAT!$B:$B,$A42) -> 1 | I42: =SUMIFS(SILOSTMAT!$C:$C,SILOSTMAT!$A:$A,I$1,SILOSTMAT!$B:$B,$A42) -> 1 | J42: =SUMIFS(SILOSTMAT!$C:$C,SILOSTMAT!$A:$A,J$1,SILOSTMAT!$B:$B,$A42) -> 3 | K42: =SUMIFS(SILOSTMAT!$C:$C,SILOSTMAT!$A:$A,K$1,SILOSTMAT!$B:$B,$A42) -> 11 | L42: =SUMIFS(SILOSTMAT!$C:$C,SILOSTMAT!$A:$A,L$1,SILOSTMAT!$B:$B,$A42) -> 8 | M42: =SUMIFS(SILOSTMAT!$C:$C,SILOSTMAT!$A:$A,M$1,SILOSTMAT!$B:$B,$A42) -> 2 | N42: =SUMIFS(SILOSTMAT!$C:$C,SILOSTMAT!$A:$A,N$1,SILOSTMAT!$B:$B,$A42) -> 8 | O42: =SUMIFS(SILOSTMAT!$C:$C,SILOSTMAT!$A:$A,O$1,SILOSTMAT!$B:$B,$A42) -> 10 | P42: =SUMIFS(SILOSTMAT!$C:$C,SILOSTMAT!$A:$A,P$1,SILOSTMAT!$B:$B,$A42) -> 59 | Q42: =SUMIFS(SILOSTMAT!$C:$C,SILOSTMAT!$A:$A,Q$1,SILOSTMAT!$B:$B,$A42) -> 13 | R42: =SUMIFS(SILOSTMAT!$C:$C,SILOSTMAT!$A:$A,R$1,SILOSTMAT!$B:$B,$A42) -> 121
A43: F1401 | B43: Extraction liquide et gazeuse | C43: =VLOOKUP(A43,'nomenclature rome'!A:C,3,FALSE) -> BTP | D43: =IF(C43='DONNEES INFOGRAPHIES'!$B$6,1,0) -> 1 | E43: =VLOOKUP(A43,A:R,'DONNEES INFOGRAPHIES'!$L$9+4,FALSE) -> 119 | F43: =SUMIFS(SILOSTMAT!$C:$C,SILOSTMAT!$A:$A,F$1,SILOSTMAT!$B:$B,$A43) -> 14 | G43: =SUMIFS(SILOSTMAT!$C:$C,SILOSTMAT!$A:$A,G$1,SILOSTMAT!$B:$B,$A43) -> 0 | H43: =SUMIFS(SILOSTMAT!$C:$C,SILOSTMAT!$A:$A,H$1,SILOSTMAT!$B:$B,$A43) -> 4 | I43: =SUMIFS(SILOSTMAT!$C:$C,SILOSTMAT!$A:$A,I$1,SILOSTMAT!$B:$B,$A43) -> 0 | J43: =SUMIFS(SILOSTMAT!$C:$C,SILOSTMAT!$A:$A,J$1,SILOSTMAT!$B:$B,$A43) -> 3 | K43: =SUMIFS(SILOSTMAT!$C:$C,SILOSTMAT!$A:$A,K$1,SILOSTMAT!$B:$B,$A43) -> 14 | L43: =SUMIFS(SILOSTMAT!$C:$C,SILOSTMAT!$A:$A,L$1,SILOSTMAT!$B:$B,$A43) -> 2 | M43: =SUMIFS(SILOSTMAT!$C:$C,SILOSTMAT!$A:$A,M$1,SILOSTMAT!$B:$B,$A43) -> 0 | N43: =SUMIFS(SILOSTMAT!$C:$C,SILOSTMAT!$A:$A,N$1,SILOSTMAT!$B:$B,$A43) -> 13 | O43: =SUMIFS(SILOSTMAT!$C:$C,SILOSTMAT!$A:$A,O$1,SILOSTMAT!$B:$B,$A43) -> 46 | P43: =SUMIFS(SILOSTMAT!$C:$C,SILOSTMAT!$A:$A,P$1,SILOSTMAT!$B:$B,$A43) -> 23 | Q43: =SUMIFS(SILOSTMAT!$C:$C,SILOSTMAT!$A:$A,Q$1,SILOSTMAT!$B:$B,$A43) -> 0 | R43: =SUMIFS(SILOSTMAT!$C:$C,SILOSTMAT!$A:$A,R$1,SILOSTMAT!$B:$B,$A43) -> 119
A44: F1109 | B44: Mesures topographiques | C44: =VLOOKUP(A44,'nomenclature rome'!A:C,3,FALSE) -> BTP | D44: =IF(C44='DONNEES INFOGRAPHIES'!$B$6,1,0) -> 1 | E44: =VLOOKUP(A44,A:R,'DONNEES INFOGRAPHIES'!$L$9+4,FALSE) -> 117 | F44: =SUMIFS(SILOSTMAT!$C:$C,SILOSTMAT!$A:$A,F$1,SILOSTMAT!$B:$B,$A44) -> 3 | G44: =SUMIFS(SILOSTMAT!$C:$C,SILOSTMAT!$A:$A,G$1,SILOSTMAT!$B:$B,$A44) -> 6 | H44: =SUMIFS(SILOSTMAT!$C:$C,SILOSTMAT!$A:$A,H$1,SILOSTMAT!$B:$B,$A44) -> 12 | I44: =SUMIFS(SILOSTMAT!$C:$C,SILOSTMAT!$A:$A,I$1,SILOSTMAT!$B:$B,$A44) -> 1 | J44: =SUMIFS(SILOSTMAT!$C:$C,SILOSTMAT!$A:$A,J$1,SILOSTMAT!$B:$B,$A44) -> 9 | K44: =SUMIFS(SILOSTMAT!$C:$C,SILOSTMAT!$A:$A,K$1,SILOSTMAT!$B:$B,$A44) -> 17 | L44: =SUMIFS(SILOSTMAT!$C:$C,SILOSTMAT!$A:$A,L$1,SILOSTMAT!$B:$B,$A44) -> 19 | M44: =SUMIFS(SILOSTMAT!$C:$C,SILOSTMAT!$A:$A,M$1,SILOSTMAT!$B:$B,$A44) -> 1 | N44: =SUMIFS(SILOSTMAT!$C:$C,SILOSTMAT!$A:$A,N$1,SILOSTMAT!$B:$B,$A44) -> 17 | O44: =SUMIFS(SILOSTMAT!$C:$C,SILOSTMAT!$A:$A,O$1,SILOSTMAT!$B:$B,$A44) -> 14 | P44: =SUMIFS(SILOSTMAT!$C:$C,SILOSTMAT!$A:$A,P$1,SILOSTMAT!$B:$B,$A44) -> 11 | Q44: =SUMIFS(SILOSTMAT!$C:$C,SILOSTMAT!$A:$A,Q$1,SILOSTMAT!$B:$B,$A44) -> 7 | R44: =SUMIFS(SILOSTMAT!$C:$C,SILOSTMAT!$A:$A,R$1,SILOSTMAT!$B:$B,$A44) -> 117
A45: F1402 | B45: Extraction solide | C45: =VLOOKUP(A45,'nomenclature rome'!A:C,3,FALSE) -> BTP | D45: =IF(C45='DONNEES INFOGRAPHIES'!$B$6,1,0) -> 1 | E45: =VLOOKUP(A45,A:R,'DONNEES INFOGRAPHIES'!$L$9+4,FALSE) -> 100 | F45: =SUMIFS(SILOSTMAT!$C:$C,SILOSTMAT!$A:$A,F$1,SILOSTMAT!$B:$B,$A45) -> 2 | G45: =SUMIFS(SILOSTMAT!$C:$C,SILOSTMAT!$A:$A,G$1,SILOSTMAT!$B:$B,$A45) -> 0 | H45: =SUMIFS(SILOSTMAT!$C:$C,SILOSTMAT!$A:$A,H$1,SILOSTMAT!$B:$B,$A45) -> 0 | I45: =SUMIFS(SILOSTMAT!$C:$C,SILOSTMAT!$A:$A,I$1,SILOSTMAT!$B:$B,$A45) -> 2 | J45: =SUMIFS(SILOSTMAT!$C:$C,SILOSTMAT!$A:$A,J$1,SILOSTMAT!$B:$B,$A45) -> 4 | K45: =SUMIFS(SILOSTMAT!$C:$C,SILOSTMAT!$A:$A,K$1,SILOSTMAT!$B:$B,$A45) -> 1 | L45: =SUMIFS(SILOSTMAT!$C:$C,SILOSTMAT!$A:$A,L$1,SILOSTMAT!$B:$B,$A45) -> 0 | M45: =SUMIFS(SILOSTMAT!$C:$C,SILOSTMAT!$A:$A,M$1,SILOSTMAT!$B:$B,$A45) -> 0 | N45: =SUMIFS(SILOSTMAT!$C:$C,SILOSTMAT!$A:$A,N$1,SILOSTMAT!$B:$B,$A45) -> 3 | O45: =SUMIFS(SILOSTMAT!$C:$C,SILOSTMAT!$A:$A,O$1,SILOSTMAT!$B:$B,$A45) -> 35 | P45: =SUMIFS(SILOSTMAT!$C:$C,SILOSTMAT!$A:$A,P$1,SILOSTMAT!$B:$B,$A45) -> 52 | Q45: =SUMIFS(SILOSTMAT!$C:$C,SILOSTMAT!$A:$A,Q$1,SILOSTMAT!$B:$B,$A45) -> 1 | R45: =SUMIFS(SILOSTMAT!$C:$C,SILOSTMAT!$A:$A,R$1,SILOSTMAT!$B:$B,$A45) -> 100
A46: F1618 | B46: Poseur / poseuse de façade vitrée | C46: =VLOOKUP(A46,'nomenclature rome'!A:C,3,FALSE) -> BTP | D46: =IF(C46='DONNEES INFOGRAPHIES'!$B$6,1,0) -> 1 | E46: =VLOOKUP(A46,A:R,'DONNEES INFOGRAPHIES'!$L$9+4,FALSE) -> 96 | F46: =SUMIFS(SILOSTMAT!$C:$C,SILOSTMAT!$A:$A,F$1,SILOSTMAT!$B:$B,$A46) -> 2 | G46: =SUMIFS(SILOSTMAT!$C:$C,SILOSTMAT!$A:$A,G$1,SILOSTMAT!$B:$B,$A46) -> 0 | H46: =SUMIFS(SILOSTMAT!$C:$C,SILOSTMAT!$A:$A,H$1,SILOSTMAT!$B:$B,$A46) -> 0 | I46: =SUMIFS(SILOSTMAT!$C:$C,SILOSTMAT!$A:$A,I$1,SILOSTMAT!$B:$B,$A46) -> 2 | J46: =SUMIFS(SILOSTMAT!$C:$C,SILOSTMAT!$A:$A,J$1,SILOSTMAT!$B:$B,$A46) -> 10 | K46: =SUMIFS(SILOSTMAT!$C:$C,SILOSTMAT!$A:$A,K$1,SILOSTMAT!$B:$B,$A46) -> 18 | L46: =SUMIFS(SILOSTMAT!$C:$C,SILOSTMAT!$A:$A,L$1,SILOSTMAT!$B:$B,$A46) -> 1 | M46: =SUMIFS(SILOSTMAT!$C:$C,SILOSTMAT!$A:$A,M$1,SILOSTMAT!$B:$B,$A46) -> 12 | N46: =SUMIFS(SILOSTMAT!$C:$C,SILOSTMAT!$A:$A,N$1,SILOSTMAT!$B:$B,$A46) -> 0 | O46: =SUMIFS(SILOSTMAT!$C:$C,SILOSTMAT!$A:$A,O$1,SILOSTMAT!$B:$B,$A46) -> 17 | P46: =SUMIFS(SILOSTMAT!$C:$C,SILOSTMAT!$A:$A,P$1,SILOSTMAT!$B:$B,$A46) -> 11 | Q46: =SUMIFS(SILOSTMAT!$C:$C,SILOSTMAT!$A:$A,Q$1,SILOSTMAT!$B:$B,$A46) -> 23 | R46: =SUMIFS(SILOSTMAT!$C:$C,SILOSTMAT!$A:$A,R$1,SILOSTMAT!$B:$B,$A46) -> 96
A47: F1601 | B47: Application et décoration en plâtre, stuc et staff | C47: =VLOOKUP(A47,'nomenclature rome'!A:C,3,FALSE) -> BTP | D47: =IF(C47='DONNEES INFOGRAPHIES'!$B$6,1,0) -> 1 | E47: =VLOOKUP(A47,A:R,'DONNEES INFOGRAPHIES'!$L$9+4,FALSE) -> 88 | F47: =SUMIFS(SILOSTMAT!$C:$C,SILOSTMAT!$A:$A,F$1,SILOSTMAT!$B:$B,$A47) -> 5 | G47: =SUMIFS(SILOSTMAT!$C:$C,SILOSTMAT!$A:$A,G$1,SILOSTMAT!$B:$B,$A47) -> 2 | H47: =SUMIFS(SILOSTMAT!$C:$C,SILOSTMAT!$A:$A,H$1,SILOSTMAT!$B:$B,$A47) -> 0 | I47: =SUMIFS(SILOSTMAT!$C:$C,SILOSTMAT!$A:$A,I$1,SILOSTMAT!$B:$B,$A47) -> 0 | J47: =SUMIFS(SILOSTMAT!$C:$C,SILOSTMAT!$A:$A,J$1,SILOSTMAT!$B:$B,$A47) -> 2 | K47: =SUMIFS(SILOSTMAT!$C:$C,SILOSTMAT!$A:$A,K$1,SILOSTMAT!$B:$B,$A47) -> 20 | L47: =SUMIFS(SILOSTMAT!$C:$C,SILOSTMAT!$A:$A,L$1,SILOSTMAT!$B:$B,$A47) -> 11 | M47: =SUMIFS(SILOSTMAT!$C:$C,SILOSTMAT!$A:$A,M$1,SILOSTMAT!$B:$B,$A47) -> 6 | N47: =SUMIFS(SILOSTMAT!$C:$C,SILOSTMAT!$A:$A,N$1,SILOSTMAT!$B:$B,$A47) -> 7 | O47: =SUMIFS(SILOSTMAT!$C:$C,SILOSTMAT!$A:$A,O$1,SILOSTMAT!$B:$B,$A47) -> 16 | P47: =SUMIFS(SILOSTMAT!$C:$C,SILOSTMAT!$A:$A,P$1,SILOSTMAT!$B:$B,$A47) -> 8 | Q47: =SUMIFS(SILOSTMAT!$C:$C,SILOSTMAT!$A:$A,Q$1,SILOSTMAT!$B:$B,$A47) -> 11 | R47: =SUMIFS(SILOSTMAT!$C:$C,SILOSTMAT!$A:$A,R$1,SILOSTMAT!$B:$B,$A47) -> 88
A48: F1707 | B48: Maçon / maçonne du paysage | C48: =VLOOKUP(A48,'nomenclature rome'!A:C,3,FALSE) -> BTP | D48: =IF(C48='DONNEES INFOGRAPHIES'!$B$6,1,0) -> 1 | E48: =VLOOKUP(A48,A:R,'DONNEES INFOGRAPHIES'!$L$9+4,FALSE) -> 70 | F48: =SUMIFS(SILOSTMAT!$C:$C,SILOSTMAT!$A:$A,F$1,SILOSTMAT!$B:$B,$A48) -> 6 | G48: =SUMIFS(SILOSTMAT!$C:$C,SILOSTMAT!$A:$A,G$1,SILOSTMAT!$B:$B,$A48) -> 0 | H48: =SUMIFS(SILOSTMAT!$C:$C,SILOSTMAT!$A:$A,H$1,SILOSTMAT!$B:$B,$A48) -> 0 | I48: =SUMIFS(SILOSTMAT!$C:$C,SILOSTMAT!$A:$A,I$1,SILOSTMAT!$B:$B,$A48) -> 0 | J48: =SUMIFS(SILOSTMAT!$C:$C,SILOSTMAT!$A:$A,J$1,SILOSTMAT!$B:$B,$A48) -> 2 | K48: =SUMIFS(SILOSTMAT!$C:$C,SILOSTMAT!$A:$A,K$1,SILOSTMAT!$B:$B,$A48) -> 11 | L48: =SUMIFS(SILOSTMAT!$C:$C,SILOSTMAT!$A:$A,L$1,SILOSTMAT!$B:$B,$A48) -> 7 | M48: =SUMIFS(SILOSTMAT!$C:$C,SILOSTMAT!$A:$A,M$1,SILOSTMAT!$B:$B,$A48) -> 0 | N48: =SUMIFS(SILOSTMAT!$C:$C,SILOSTMAT!$A:$A,N$1,SILOSTMAT!$B:$B,$A48) -> 1 | O48: =SUMIFS(SILOSTMAT!$C:$C,SILOSTMAT!$A:$A,O$1,SILOSTMAT!$B:$B,$A48) -> 13 | P48: =SUMIFS(SILOSTMAT!$C:$C,SILOSTMAT!$A:$A,P$1,SILOSTMAT!$B:$B,$A48) -> 7 | Q48: =SUMIFS(SILOSTMAT!$C:$C,SILOSTMAT!$A:$A,Q$1,SILOSTMAT!$B:$B,$A48) -> 23 | R48: =SUMIFS(SILOSTMAT!$C:$C,SILOSTMAT!$A:$A,R$1,SILOSTMAT!$B:$B,$A48) -> 70
A49: F1102 | B49: Architecte d'intérieur | C49: =VLOOKUP(A49,'nomenclature rome'!A:C,3,FALSE) -> BTP | D49: =IF(C49='DONNEES INFOGRAPHIES'!$B$6,1,0) -> 1 | E49: =VLOOKUP(A49,A:R,'DONNEES INFOGRAPHIES'!$L$9+4,FALSE) -> 50 | F49: =SUMIFS(SILOSTMAT!$C:$C,SILOSTMAT!$A:$A,F$1,SILOSTMAT!$B:$B,$A49) -> 4 | G49: =SUMIFS(SILOSTMAT!$C:$C,SILOSTMAT!$A:$A,G$1,SILOSTMAT!$B:$B,$A49) -> 1 | H49: =SUMIFS(SILOSTMAT!$C:$C,SILOSTMAT!$A:$A,H$1,SILOSTMAT!$B:$B,$A49) -> 1 | I49: =SUMIFS(SILOSTMAT!$C:$C,SILOSTMAT!$A:$A,I$1,SILOSTMAT!$B:$B,$A49) -> 0 | J49: =SUMIFS(SILOSTMAT!$C:$C,SILOSTMAT!$A:$A,J$1,SILOSTMAT!$B:$B,$A49) -> 0 | K49: =SUMIFS(SILOSTMAT!$C:$C,SILOSTMAT!$A:$A,K$1,SILOSTMAT!$B:$B,$A49) -> 10 | L49: =SUMIFS(SILOSTMAT!$C:$C,SILOSTMAT!$A:$A,L$1,SILOSTMAT!$B:$B,$A49) -> 3 | M49: =SUMIFS(SILOSTMAT!$C:$C,SILOSTMAT!$A:$A,M$1,SILOSTMAT!$B:$B,$A49) -> 2 | N49: =SUMIFS(SILOSTMAT!$C:$C,SILOSTMAT!$A:$A,N$1,SILOSTMAT!$B:$B,$A49) -> 2 | O49: =SUMIFS(SILOSTMAT!$C:$C,SILOSTMAT!$A:$A,O$1,SILOSTMAT!$B:$B,$A49) -> 12 | P49: =SUMIFS(SILOSTMAT!$C:$C,SILOSTMAT!$A:$A,P$1,SILOSTMAT!$B:$B,$A49) -> 12 | Q49: =SUMIFS(SILOSTMAT!$C:$C,SILOSTMAT!$A:$A,Q$1,SILOSTMAT!$B:$B,$A49) -> 3 | R49: =SUMIFS(SILOSTMAT!$C:$C,SILOSTMAT!$A:$A,R$1,SILOSTMAT!$B:$B,$A49) -> 50
A50: F1203 | B50: Direction et ingénierie d'exploitation de gisements et de carrières | C50: =VLOOKUP(A50,'nomenclature rome'!A:C,3,FALSE) -> BTP | D50: =IF(C50='DONNEES INFOGRAPHIES'!$B$6,1,0) -> 1 | E50: =VLOOKUP(A50,A:R,'DONNEES INFOGRAPHIES'!$L$9+4,FALSE) -> 30 | F50: =SUMIFS(SILOSTMAT!$C:$C,SILOSTMAT!$A:$A,F$1,SILOSTMAT!$B:$B,$A50) -> 0 | G50: =SUMIFS(SILOSTMAT!$C:$C,SILOSTMAT!$A:$A,G$1,SILOSTMAT!$B:$B,$A50) -> 0 | H50: =SUMIFS(SILOSTMAT!$C:$C,SILOSTMAT!$A:$A,H$1,SILOSTMAT!$B:$B,$A50) -> 1 | I50: =SUMIFS(SILOSTMAT!$C:$C,SILOSTMAT!$A:$A,I$1,SILOSTMAT!$B:$B,$A50) -> 3 | J50: =SUMIFS(SILOSTMAT!$C:$C,SILOSTMAT!$A:$A,J$1,SILOSTMAT!$B:$B,$A50) -> 0 | K50: =SUMIFS(SILOSTMAT!$C:$C,SILOSTMAT!$A:$A,K$1,SILOSTMAT!$B:$B,$A50) -> 7 | L50: =SUMIFS(SILOSTMAT!$C:$C,SILOSTMAT!$A:$A,L$1,SILOSTMAT!$B:$B,$A50) -> 0 | M50: =SUMIFS(SILOSTMAT!$C:$C,SILOSTMAT!$A:$A,M$1,SILOSTMAT!$B:$B,$A50) -> 0 | N50: =SUMIFS(SILOSTMAT!$C:$C,SILOSTMAT!$A:$A,N$1,SILOSTMAT!$B:$B,$A50) -> 0 | O50: =SUMIFS(SILOSTMAT!$C:$C,SILOSTMAT!$A:$A,O$1,SILOSTMAT!$B:$B,$A50) -> 11 | P50: =SUMIFS(SILOSTMAT!$C:$C,SILOSTMAT!$A:$A,P$1,SILOSTMAT!$B:$B,$A50) -> 3 | Q50: =SUMIFS(SILOSTMAT!$C:$C,SILOSTMAT!$A:$A,Q$1,SILOSTMAT!$B:$B,$A50) -> 5 | R50: =SUMIFS(SILOSTMAT!$C:$C,SILOSTMAT!$A:$A,R$1,SILOSTMAT!$B:$B,$A50) -> 30
A51: F1113 | B51: Chargé / Chargée d'affaires en rénovation énergétique | C51: =VLOOKUP(A51,'nomenclature rome'!A:C,3,FALSE) -> BTP | D51: =IF(C51='DONNEES INFOGRAPHIES'!$B$6,1,0) -> 1 | E51: =VLOOKUP(A51,A:R,'DONNEES INFOGRAPHIES'!$L$9+4,FALSE) -> 26 | F51: =SUMIFS(SILOSTMAT!$C:$C,SILOSTMAT!$A:$A,F$1,SILOSTMAT!$B:$B,$A51) -> 1 | G51: =SUMIFS(SILOSTMAT!$C:$C,SILOSTMAT!$A:$A,G$1,SILOSTMAT!$B:$B,$A51) -> 0 | H51: =SUMIFS(SILOSTMAT!$C:$C,SILOSTMAT!$A:$A,H$1,SILOSTMAT!$B:$B,$A51) -> 0 | I51: =SUMIFS(SILOSTMAT!$C:$C,SILOSTMAT!$A:$A,I$1,SILOSTMAT!$B:$B,$A51) -> 1 | J51: =SUMIFS(SILOSTMAT!$C:$C,SILOSTMAT!$A:$A,J$1,SILOSTMAT!$B:$B,$A51) -> 0 | K51: =SUMIFS(SILOSTMAT!$C:$C,SILOSTMAT!$A:$A,K$1,SILOSTMAT!$B:$B,$A51) -> 5 | L51: =SUMIFS(SILOSTMAT!$C:$C,SILOSTMAT!$A:$A,L$1,SILOSTMAT!$B:$B,$A51) -> 3 | M51: =SUMIFS(SILOSTMAT!$C:$C,SILOSTMAT!$A:$A,M$1,SILOSTMAT!$B:$B,$A51) -> 0 | N51: =SUMIFS(SILOSTMAT!$C:$C,SILOSTMAT!$A:$A,N$1,SILOSTMAT!$B:$B,$A51) -> 0 | O51: =SUMIFS(SILOSTMAT!$C:$C,SILOSTMAT!$A:$A,O$1,SILOSTMAT!$B:$B,$A51) -> 6 | P51: =SUMIFS(SILOSTMAT!$C:$C,SILOSTMAT!$A:$A,P$1,SILOSTMAT!$B:$B,$A51) -> 0 | Q51: =SUMIFS(SILOSTMAT!$C:$C,SILOSTMAT!$A:$A,Q$1,SILOSTMAT!$B:$B,$A51) -> 10 | R51: =SUMIFS(SILOSTMAT!$C:$C,SILOSTMAT!$A:$A,R$1,SILOSTMAT!$B:$B,$A51) -> 26
A52: F1709 | B52: Démolisseur / démolisseuse | C52: =VLOOKUP(A52,'nomenclature rome'!A:C,3,FALSE) -> BTP | D52: =IF(C52='DONNEES INFOGRAPHIES'!$B$6,1,0) -> 1 | E52: =VLOOKUP(A52,A:R,'DONNEES INFOGRAPHIES'!$L$9+4,FALSE) -> 23 | F52: =SUMIFS(SILOSTMAT!$C:$C,SILOSTMAT!$A:$A,F$1,SILOSTMAT!$B:$B,$A52) -> 1 | G52: =SUMIFS(SILOSTMAT!$C:$C,SILOSTMAT!$A:$A,G$1,SILOSTMAT!$B:$B,$A52) -> 0 | H52: =SUMIFS(SILOSTMAT!$C:$C,SILOSTMAT!$A:$A,H$1,SILOSTMAT!$B:$B,$A52) -> 0 | I52: =SUMIFS(SILOSTMAT!$C:$C,SILOSTMAT!$A:$A,I$1,SILOSTMAT!$B:$B,$A52) -> 0 | J52: =SUMIFS(SILOSTMAT!$C:$C,SILOSTMAT!$A:$A,J$1,SILOSTMAT!$B:$B,$A52) -> 0 | K52: =SUMIFS(SILOSTMAT!$C:$C,SILOSTMAT!$A:$A,K$1,SILOSTMAT!$B:$B,$A52) -> 2 | L52: =SUMIFS(SILOSTMAT!$C:$C,SILOSTMAT!$A:$A,L$1,SILOSTMAT!$B:$B,$A52) -> 2 | M52: =SUMIFS(SILOSTMAT!$C:$C,SILOSTMAT!$A:$A,M$1,SILOSTMAT!$B:$B,$A52) -> 0 | N52: =SUMIFS(SILOSTMAT!$C:$C,SILOSTMAT!$A:$A,N$1,SILOSTMAT!$B:$B,$A52) -> 4 | O52: =SUMIFS(SILOSTMAT!$C:$C,SILOSTMAT!$A:$A,O$1,SILOSTMAT!$B:$B,$A52) -> 12 | P52: =SUMIFS(SILOSTMAT!$C:$C,SILOSTMAT!$A:$A,P$1,SILOSTMAT!$B:$B,$A52) -> 0 | Q52: =SUMIFS(SILOSTMAT!$C:$C,SILOSTMAT!$A:$A,Q$1,SILOSTMAT!$B:$B,$A52) -> 2 | R52: =SUMIFS(SILOSTMAT!$C:$C,SILOSTMAT!$A:$A,R$1,SILOSTMAT!$B:$B,$A52) -> 23
A53: F1114 | B53: Conseiller / Conseillère en rénovation énergétique | C53: =VLOOKUP(A53,'nomenclature rome'!A:C,3,FALSE) -> BTP | D53: =IF(C53='DONNEES INFOGRAPHIES'!$B$6,1,0) -> 1 | E53: =VLOOKUP(A53,A:R,'DONNEES INFOGRAPHIES'!$L$9+4,FALSE) -> 15 | F53: =SUMIFS(SILOSTMAT!$C:$C,SILOSTMAT!$A:$A,F$1,SILOSTMAT!$B:$B,$A53) -> 2 | G53: =SUMIFS(SILOSTMAT!$C:$C,SILOSTMAT!$A:$A,G$1,SILOSTMAT!$B:$B,$A53) -> 0 | H53: =SUMIFS(SILOSTMAT!$C:$C,SILOSTMAT!$A:$A,H$1,SILOSTMAT!$B:$B,$A53) -> 0 | I53: =SUMIFS(SILOSTMAT!$C:$C,SILOSTMAT!$A:$A,I$1,SILOSTMAT!$B:$B,$A53) -> 0 | J53: =SUMIFS(SILOSTMAT!$C:$C,SILOSTMAT!$A:$A,J$1,SILOSTMAT!$B:$B,$A53) -> 3 | K53: =SUMIFS(SILOSTMAT!$C:$C,SILOSTMAT!$A:$A,K$1,SILOSTMAT!$B:$B,$A53) -> 8 | L53: =SUMIFS(SILOSTMAT!$C:$C,SILOSTMAT!$A:$A,L$1,SILOSTMAT!$B:$B,$A53) -> 0 | M53: =SUMIFS(SILOSTMAT!$C:$C,SILOSTMAT!$A:$A,M$1,SILOSTMAT!$B:$B,$A53) -> 0 | N53: =SUMIFS(SILOSTMAT!$C:$C,SILOSTMAT!$A:$A,N$1,SILOSTMAT!$B:$B,$A53) -> 0 | O53: =SUMIFS(SILOSTMAT!$C:$C,SILOSTMAT!$A:$A,O$1,SILOSTMAT!$B:$B,$A53) -> 2 | P53: =SUMIFS(SILOSTMAT!$C:$C,SILOSTMAT!$A:$A,P$1,SILOSTMAT!$B:$B,$A53) -> 0 | Q53: =SUMIFS(SILOSTMAT!$C:$C,SILOSTMAT!$A:$A,Q$1,SILOSTMAT!$B:$B,$A53) -> 0 | R53: =SUMIFS(SILOSTMAT!$C:$C,SILOSTMAT!$A:$A,R$1,SILOSTMAT!$B:$B,$A53) -> 15
A54: F1708 | B54: Installateur-poseur / installatrice-poseuse de piscines préfabriquées | C54: =VLOOKUP(A54,'nomenclature rome'!A:C,3,FALSE) -> BTP | D54: =IF(C54='DONNEES INFOGRAPHIES'!$B$6,1,0) -> 1 | E54: =VLOOKUP(A54,A:R,'DONNEES INFOGRAPHIES'!$L$9+4,FALSE) -> 15 | F54: =SUMIFS(SILOSTMAT!$C:$C,SILOSTMAT!$A:$A,F$1,SILOSTMAT!$B:$B,$A54) -> 1 | G54: =SUMIFS(SILOSTMAT!$C:$C,SILOSTMAT!$A:$A,G$1,SILOSTMAT!$B:$B,$A54) -> 0 | H54: =SUMIFS(SILOSTMAT!$C:$C,SILOSTMAT!$A:$A,H$1,SILOSTMAT!$B:$B,$A54) -> 0 | I54: =SUMIFS(SILOSTMAT!$C:$C,SILOSTMAT!$A:$A,I$1,SILOSTMAT!$B:$B,$A54) -> 0 | J54: =SUMIFS(SILOSTMAT!$C:$C,SILOSTMAT!$A:$A,J$1,SILOSTMAT!$B:$B,$A54) -> 1 | K54: =SUMIFS(SILOSTMAT!$C:$C,SILOSTMAT!$A:$A,K$1,SILOSTMAT!$B:$B,$A54) -> 3 | L54: =SUMIFS(SILOSTMAT!$C:$C,SILOSTMAT!$A:$A,L$1,SILOSTMAT!$B:$B,$A54) -> 0 | M54: =SUMIFS(SILOSTMAT!$C:$C,SILOSTMAT!$A:$A,M$1,SILOSTMAT!$B:$B,$A54) -> 0 | N54: =SUMIFS(SILOSTMAT!$C:$C,SILOSTMAT!$A:$A,N$1,SILOSTMAT!$B:$B,$A54) -> 1 | O54: =SUMIFS(SILOSTMAT!$C:$C,SILOSTMAT!$A:$A,O$1,SILOSTMAT!$B:$B,$A54) -> 5 | P54: =SUMIFS(SILOSTMAT!$C:$C,SILOSTMAT!$A:$A,P$1,SILOSTMAT!$B:$B,$A54) -> 0 | Q54: =SUMIFS(SILOSTMAT!$C:$C,SILOSTMAT!$A:$A,Q$1,SILOSTMAT!$B:$B,$A54) -> 4 | R54: =SUMIFS(SILOSTMAT!$C:$C,SILOSTMAT!$A:$A,R$1,SILOSTMAT!$B:$B,$A54) -> 15
A55: F1615 | B55: Poseur / poseuse de cloisons démontables et mobiles | C55: =VLOOKUP(A55,'nomenclature rome'!A:C,3,FALSE) -> BTP | D55: =IF(C55='DONNEES INFOGRAPHIES'!$B$6,1,0) -> 1 | E55: =VLOOKUP(A55,A:R,'DONNEES INFOGRAPHIES'!$L$9+4,FALSE) -> 15 | F55: =SUMIFS(SILOSTMAT!$C:$C,SILOSTMAT!$A:$A,F$1,SILOSTMAT!$B:$B,$A55) -> 0 | G55: =SUMIFS(SILOSTMAT!$C:$C,SILOSTMAT!$A:$A,G$1,SILOSTMAT!$B:$B,$A55) -> 0 | H55: =SUMIFS(SILOSTMAT!$C:$C,SILOSTMAT!$A:$A,H$1,SILOSTMAT!$B:$B,$A55) -> 1 | I55: =SUMIFS(SILOSTMAT!$C:$C,SILOSTMAT!$A:$A,I$1,SILOSTMAT!$B:$B,$A55) -> 0 | J55: =SUMIFS(SILOSTMAT!$C:$C,SILOSTMAT!$A:$A,J$1,SILOSTMAT!$B:$B,$A55) -> 0 | K55: =SUMIFS(SILOSTMAT!$C:$C,SILOSTMAT!$A:$A,K$1,SILOSTMAT!$B:$B,$A55) -> 2 | L55: =SUMIFS(SILOSTMAT!$C:$C,SILOSTMAT!$A:$A,L$1,SILOSTMAT!$B:$B,$A55) -> 9 | M55: =SUMIFS(SILOSTMAT!$C:$C,SILOSTMAT!$A:$A,M$1,SILOSTMAT!$B:$B,$A55) -> 0 | N55: =SUMIFS(SILOSTMAT!$C:$C,SILOSTMAT!$A:$A,N$1,SILOSTMAT!$B:$B,$A55) -> 0 | O55: =SUMIFS(SILOSTMAT!$C:$C,SILOSTMAT!$A:$A,O$1,SILOSTMAT!$B:$B,$A55) -> 2 | P55: =SUMIFS(SILOSTMAT!$C:$C,SILOSTMAT!$A:$A,P$1,SILOSTMAT!$B:$B,$A55) -> 0 | Q55: =SUMIFS(SILOSTMAT!$C:$C,SILOSTMAT!$A:$A,Q$1,SILOSTMAT!$B:$B,$A55) -> 1 | R55: =SUMIFS(SILOSTMAT!$C:$C,SILOSTMAT!$A:$A,R$1,SILOSTMAT!$B:$B,$A55) -> 15
A56: F1617 | B56: Poseur / poseuse de véranda | C56: =VLOOKUP(A56,'nomenclature rome'!A:C,3,FALSE) -> BTP | D56: =IF(C56='DONNEES INFOGRAPHIES'!$B$6,1,0) -> 1 | E56: =VLOOKUP(A56,A:R,'DONNEES INFOGRAPHIES'!$L$9+4,FALSE) -> 9 | F56: =SUMIFS(SILOSTMAT!$C:$C,SILOSTMAT!$A:$A,F$1,SILOSTMAT!$B:$B,$A56) -> 0 | G56: =SUMIFS(SILOSTMAT!$C:$C,SILOSTMAT!$A:$A,G$1,SILOSTMAT!$B:$B,$A56) -> 0 | H56: =SUMIFS(SILOSTMAT!$C:$C,SILOSTMAT!$A:$A,H$1,SILOSTMAT!$B:$B,$A56) -> 0 | I56: =SUMIFS(SILOSTMAT!$C:$C,SILOSTMAT!$A:$A,I$1,SILOSTMAT!$B:$B,$A56) -> 0 | J56: =SUMIFS(SILOSTMAT!$C:$C,SILOSTMAT!$A:$A,J$1,SILOSTMAT!$B:$B,$A56) -> 0 | K56: =SUMIFS(SILOSTMAT!$C:$C,SILOSTMAT!$A:$A,K$1,SILOSTMAT!$B:$B,$A56) -> 1 | L56: =SUMIFS(SILOSTMAT!$C:$C,SILOSTMAT!$A:$A,L$1,SILOSTMAT!$B:$B,$A56) -> 1 | M56: =SUMIFS(SILOSTMAT!$C:$C,SILOSTMAT!$A:$A,M$1,SILOSTMAT!$B:$B,$A56) -> 0 | N56: =SUMIFS(SILOSTMAT!$C:$C,SILOSTMAT!$A:$A,N$1,SILOSTMAT!$B:$B,$A56) -> 0 | O56: =SUMIFS(SILOSTMAT!$C:$C,SILOSTMAT!$A:$A,O$1,SILOSTMAT!$B:$B,$A56) -> 0 | P56: =SUMIFS(SILOSTMAT!$C:$C,SILOSTMAT!$A:$A,P$1,SILOSTMAT!$B:$B,$A56) -> 0 | Q56: =SUMIFS(SILOSTMAT!$C:$C,SILOSTMAT!$A:$A,Q$1,SILOSTMAT!$B:$B,$A56) -> 7 | R56: =SUMIFS(SILOSTMAT!$C:$C,SILOSTMAT!$A:$A,R$1,SILOSTMAT!$B:$B,$A56) -> 9
A57: N1103 | B57: Magasinage et préparation de commandes | C57: =VLOOKUP(A57,'nomenclature rome'!A:C,3,FALSE) -> Mobilité, systèmes de transport intelligents | D57: =IF(C57='DONNEES INFOGRAPHIES'!$B$6,1,0) -> 0 | E57: =VLOOKUP(A57,A:R,'DONNEES INFOGRAPHIES'!$L$9+4,FALSE) -> 15943 | F57: =SUMIFS(SILOSTMAT!$C:$C,SILOSTMAT!$A:$A,F$1,SILOSTMAT!$B:$B,$A57) -> 1861 | G57: =SUMIFS(SILOSTMAT!$C:$C,SILOSTMAT!$A:$A,G$1,SILOSTMAT!$B:$B,$A57) -> 283 | H57: =SUMIFS(SILOSTMAT!$C:$C,SILOSTMAT!$A:$A,H$1,SILOSTMAT!$B:$B,$A57) -> 245 | I57: =SUMIFS(SILOSTMAT!$C:$C,SILOSTMAT!$A:$A,I$1,SILOSTMAT!$B:$B,$A57) -> 122 | J57: =SUMIFS(SILOSTMAT!$C:$C,SILOSTMAT!$A:$A,J$1,SILOSTMAT!$B:$B,$A57) -> 1314 | K57: =SUMIFS(SILOSTMAT!$C:$C,SILOSTMAT!$A:$A,K$1,SILOSTMAT!$B:$B,$A57) -> 3155 | L57: =SUMIFS(SILOSTMAT!$C:$C,SILOSTMAT!$A:$A,L$1,SILOSTMAT!$B:$B,$A57) -> 676 | M57: =SUMIFS(SILOSTMAT!$C:$C,SILOSTMAT!$A:$A,M$1,SILOSTMAT!$B:$B,$A57) -> 227 | N57: =SUMIFS(SILOSTMAT!$C:$C,SILOSTMAT!$A:$A,N$1,SILOSTMAT!$B:$B,$A57) -> 880 | O57: =SUMIFS(SILOSTMAT!$C:$C,SILOSTMAT!$A:$A,O$1,SILOSTMAT!$B:$B,$A57) -> 5174 | P57: =SUMIFS(SILOSTMAT!$C:$C,SILOSTMAT!$A:$A,P$1,SILOSTMAT!$B:$B,$A57) -> 758 | Q57: =SUMIFS(SILOSTMAT!$C:$C,SILOSTMAT!$A:$A,Q$1,SILOSTMAT!$B:$B,$A57) -> 1248 | R57: =SUMIFS(SILOSTMAT!$C:$C,SILOSTMAT!$A:$A,R$1,SILOSTMAT!$B:$B,$A57) -> 15943
A58: K1304 | B58: Services domestiques | C58: =VLOOKUP(A58,'nomenclature rome'!A:C,3,FALSE) -> Services à la personne | D58: =IF(C58='DONNEES INFOGRAPHIES'!$B$6,1,0) -> 0 | E58: =VLOOKUP(A58,A:R,'DONNEES INFOGRAPHIES'!$L$9+4,FALSE) -> 14727 | F58: =SUMIFS(SILOSTMAT!$C:$C,SILOSTMAT!$A:$A,F$1,SILOSTMAT!$B:$B,$A58) -> 975 | G58: =SUMIFS(SILOSTMAT!$C:$C,SILOSTMAT!$A:$A,G$1,SILOSTMAT!$B:$B,$A58) -> 354 | H58: =SUMIFS(SILOSTMAT!$C:$C,SILOSTMAT!$A:$A,H$1,SILOSTMAT!$B:$B,$A58) -> 582 | I58: =SUMIFS(SILOSTMAT!$C:$C,SILOSTMAT!$A:$A,I$1,SILOSTMAT!$B:$B,$A58) -> 131 | J58: =SUMIFS(SILOSTMAT!$C:$C,SILOSTMAT!$A:$A,J$1,SILOSTMAT!$B:$B,$A58) -> 791 | K58: =SUMIFS(SILOSTMAT!$C:$C,SILOSTMAT!$A:$A,K$1,SILOSTMAT!$B:$B,$A58) -> 2293 | L58: =SUMIFS(SILOSTMAT!$C:$C,SILOSTMAT!$A:$A,L$1,SILOSTMAT!$B:$B,$A58) -> 1246 | M58: =SUMIFS(SILOSTMAT!$C:$C,SILOSTMAT!$A:$A,M$1,SILOSTMAT!$B:$B,$A58) -> 254 | N58: =SUMIFS(SILOSTMAT!$C:$C,SILOSTMAT!$A:$A,N$1,SILOSTMAT!$B:$B,$A58) -> 1325 | O58: =SUMIFS(SILOSTMAT!$C:$C,SILOSTMAT!$A:$A,O$1,SILOSTMAT!$B:$B,$A58) -> 3941 | P58: =SUMIFS(SILOSTMAT!$C:$C,SILOSTMAT!$A:$A,P$1,SILOSTMAT!$B:$B,$A58) -> 1063 | Q58: =SUMIFS(SILOSTMAT!$C:$C,SILOSTMAT!$A:$A,Q$1,SILOSTMAT!$B:$B,$A58) -> 1772 | R58: =SUMIFS(SILOSTMAT!$C:$C,SILOSTMAT!$A:$A,R$1,SILOSTMAT!$B:$B,$A58) -> 14727
A59: K2204 | B59: Nettoyage de locaux | C59: =VLOOKUP(A59,'nomenclature rome'!A:C,3,FALSE) ->  | D59: =IF(C59='DONNEES INFOGRAPHIES'!$B$6,1,0) -> 0 | E59: =VLOOKUP(A59,A:R,'DONNEES INFOGRAPHIES'!$L$9+4,FALSE) -> 10532 | F59: =SUMIFS(SILOSTMAT!$C:$C,SILOSTMAT!$A:$A,F$1,SILOSTMAT!$B:$B,$A59) -> 626 | G59: =SUMIFS(SILOSTMAT!$C:$C,SILOSTMAT!$A:$A,G$1,SILOSTMAT!$B:$B,$A59) -> 260 | H59: =SUMIFS(SILOSTMAT!$C:$C,SILOSTMAT!$A:$A,H$1,SILOSTMAT!$B:$B,$A59) -> 502 | I59: =SUMIFS(SILOSTMAT!$C:$C,SILOSTMAT!$A:$A,I$1,SILOSTMAT!$B:$B,$A59) -> 129 | J59: =SUMIFS(SILOSTMAT!$C:$C,SILOSTMAT!$A:$A,J$1,SILOSTMAT!$B:$B,$A59) -> 1051 | K59: =SUMIFS(SILOSTMAT!$C:$C,SILOSTMAT!$A:$A,K$1,SILOSTMAT!$B:$B,$A59) -> 1633 | L59: =SUMIFS(SILOSTMAT!$C:$C,SILOSTMAT!$A:$A,L$1,SILOSTMAT!$B:$B,$A59) -> 838 | M59: =SUMIFS(SILOSTMAT!$C:$C,SILOSTMAT!$A:$A,M$1,SILOSTMAT!$B:$B,$A59) -> 141 | N59: =SUMIFS(SILOSTMAT!$C:$C,SILOSTMAT!$A:$A,N$1,SILOSTMAT!$B:$B,$A59) -> 917 | O59: =SUMIFS(SILOSTMAT!$C:$C,SILOSTMAT!$A:$A,O$1,SILOSTMAT!$B:$B,$A59) -> 2278 | P59: =SUMIFS(SILOSTMAT!$C:$C,SILOSTMAT!$A:$A,P$1,SILOSTMAT!$B:$B,$A59) -> 1085 | Q59: =SUMIFS(SILOSTMAT!$C:$C,SILOSTMAT!$A:$A,Q$1,SILOSTMAT!$B:$B,$A59) -> 1072 | R59: =SUMIFS(SILOSTMAT!$C:$C,SILOSTMAT!$A:$A,R$1,SILOSTMAT!$B:$B,$A59) -> 10532
A60: M1203 | B60: Comptabilité | C60: =VLOOKUP(A60,'nomenclature rome'!A:C,3,FALSE) ->  | D60: =IF(C60='DONNEES INFOGRAPHIES'!$B$6,1,0) -> 0 | E60: =VLOOKUP(A60,A:R,'DONNEES INFOGRAPHIES'!$L$9+4,FALSE) -> 10095 | F60: =SUMIFS(SILOSTMAT!$C:$C,SILOSTMAT!$A:$A,F$1,SILOSTMAT!$B:$B,$A60) -> 517 | G60: =SUMIFS(SILOSTMAT!$C:$C,SILOSTMAT!$A:$A,G$1,SILOSTMAT!$B:$B,$A60) -> 151 | H60: =SUMIFS(SILOSTMAT!$C:$C,SILOSTMAT!$A:$A,H$1,SILOSTMAT!$B:$B,$A60) -> 172 | I60: =SUMIFS(SILOSTMAT!$C:$C,SILOSTMAT!$A:$A,I$1,SILOSTMAT!$B:$B,$A60) -> 88 | J60: =SUMIFS(SILOSTMAT!$C:$C,SILOSTMAT!$A:$A,J$1,SILOSTMAT!$B:$B,$A60) -> 460 | K60: =SUMIFS(SILOSTMAT!$C:$C,SILOSTMAT!$A:$A,K$1,SILOSTMAT!$B:$B,$A60) -> 1876 | L60: =SUMIFS(SILOSTMAT!$C:$C,SILOSTMAT!$A:$A,L$1,SILOSTMAT!$B:$B,$A60) -> 552 | M60: =SUMIFS(SILOSTMAT!$C:$C,SILOSTMAT!$A:$A,M$1,SILOSTMAT!$B:$B,$A60) -> 124 | N60: =SUMIFS(SILOSTMAT!$C:$C,SILOSTMAT!$A:$A,N$1,SILOSTMAT!$B:$B,$A60) -> 480 | O60: =SUMIFS(SILOSTMAT!$C:$C,SILOSTMAT!$A:$A,O$1,SILOSTMAT!$B:$B,$A60) -> 4233 | P60: =SUMIFS(SILOSTMAT!$C:$C,SILOSTMAT!$A:$A,P$1,SILOSTMAT!$B:$B,$A60) -> 538 | Q60: =SUMIFS(SILOSTMAT!$C:$C,SILOSTMAT!$A:$A,Q$1,SILOSTMAT!$B:$B,$A60) -> 904 | R60: =SUMIFS(SILOSTMAT!$C:$C,SILOSTMAT!$A:$A,R$1,SILOSTMAT!$B:$B,$A60) -> 10095
A61: I1304 | B61: Installation et maintenance d'équipements industriels et d'exploitation | C61: =VLOOKUP(A61,'nomenclature rome'!A:C,3,FALSE) -> Industrie du futur, production industrielle | D61: =IF(C61='DONNEES INFOGRAPHIES'!$B$6,1,0) -> 0 | E61: =VLOOKUP(A61,A:R,'DONNEES INFOGRAPHIES'!$L$9+4,FALSE) -> 9735 | F61: =SUMIFS(SILOSTMAT!$C:$C,SILOSTMAT!$A:$A,F$1,SILOSTMAT!$B:$B,$A61) -> 892 | G61: =SUMIFS(SILOSTMAT!$C:$C,SILOSTMAT!$A:$A,G$1,SILOSTMAT!$B:$B,$A61) -> 216 | H61: =SUMIFS(SILOSTMAT!$C:$C,SILOSTMAT!$A:$A,H$1,SILOSTMAT!$B:$B,$A61) -> 189 | I61: =SUMIFS(SILOSTMAT!$C:$C,SILOSTMAT!$A:$A,I$1,SILOSTMAT!$B:$B,$A61) -> 43 | J61: =SUMIFS(SILOSTMAT!$C:$C,SILOSTMAT!$A:$A,J$1,SILOSTMAT!$B:$B,$A61) -> 820 | K61: =SUMIFS(SILOSTMAT!$C:$C,SILOSTMAT!$A:$A,K$1,SILOSTMAT!$B:$B,$A61) -> 1175 | L61: =SUMIFS(SILOSTMAT!$C:$C,SILOSTMAT!$A:$A,L$1,SILOSTMAT!$B:$B,$A61) -> 632 | M61: =SUMIFS(SILOSTMAT!$C:$C,SILOSTMAT!$A:$A,M$1,SILOSTMAT!$B:$B,$A61) -> 155 | N61: =SUMIFS(SILOSTMAT!$C:$C,SILOSTMAT!$A:$A,N$1,SILOSTMAT!$B:$B,$A61) -> 779 | O61: =SUMIFS(SILOSTMAT!$C:$C,SILOSTMAT!$A:$A,O$1,SILOSTMAT!$B:$B,$A61) -> 3671 | P61: =SUMIFS(SILOSTMAT!$C:$C,SILOSTMAT!$A:$A,P$1,SILOSTMAT!$B:$B,$A61) -> 529 | Q61: =SUMIFS(SILOSTMAT!$C:$C,SILOSTMAT!$A:$A,Q$1,SILOSTMAT!$B:$B,$A61) -> 634 | R61: =SUMIFS(SILOSTMAT!$C:$C,SILOSTMAT!$A:$A,R$1,SILOSTMAT!$B:$B,$A61) -> 9735
A62: G1803 | B62: Service en restauration | C62: =VLOOKUP(A62,'nomenclature rome'!A:C,3,FALSE) -> Sport, Montagne, Tourisme | D62: =IF(C62='DONNEES INFOGRAPHIES'!$B$6,1,0) -> 0 | E62: =VLOOKUP(A62,A:R,'DONNEES INFOGRAPHIES'!$L$9+4,FALSE) -> 9265 | F62: =SUMIFS(SILOSTMAT!$C:$C,SILOSTMAT!$A:$A,F$1,SILOSTMAT!$B:$B,$A62) -> 533 | G62: =SUMIFS(SILOSTMAT!$C:$C,SILOSTMAT!$A:$A,G$1,SILOSTMAT!$B:$B,$A62) -> 233 | H62: =SUMIFS(SILOSTMAT!$C:$C,SILOSTMAT!$A:$A,H$1,SILOSTMAT!$B:$B,$A62) -> 388 | I62: =SUMIFS(SILOSTMAT!$C:$C,SILOSTMAT!$A:$A,I$1,SILOSTMAT!$B:$B,$A62) -> 193 | J62: =SUMIFS(SILOSTMAT!$C:$C,SILOSTMAT!$A:$A,J$1,SILOSTMAT!$B:$B,$A62) -> 600 | K62: =SUMIFS(SILOSTMAT!$C:$C,SILOSTMAT!$A:$A,K$1,SILOSTMAT!$B:$B,$A62) -> 1222 | L62: =SUMIFS(SILOSTMAT!$C:$C,SILOSTMAT!$A:$A,L$1,SILOSTMAT!$B:$B,$A62) -> 443 | M62: =SUMIFS(SILOSTMAT!$C:$C,SILOSTMAT!$A:$A,M$1,SILOSTMAT!$B:$B,$A62) -> 188 | N62: =SUMIFS(SILOSTMAT!$C:$C,SILOSTMAT!$A:$A,N$1,SILOSTMAT!$B:$B,$A62) -> 818 | O62: =SUMIFS(SILOSTMAT!$C:$C,SILOSTMAT!$A:$A,O$1,SILOSTMAT!$B:$B,$A62) -> 1503 | P62: =SUMIFS(SILOSTMAT!$C:$C,SILOSTMAT!$A:$A,P$1,SILOSTMAT!$B:$B,$A62) -> 1459 | Q62: =SUMIFS(SILOSTMAT!$C:$C,SILOSTMAT!$A:$A,Q$1,SILOSTMAT!$B:$B,$A62) -> 1685 | R62: =SUMIFS(SILOSTMAT!$C:$C,SILOSTMAT!$A:$A,R$1,SILOSTMAT!$B:$B,$A62) -> 9265
A63: I1604 | B63: Mécanique automobile et entretien de véhicules | C63: =VLOOKUP(A63,'nomenclature rome'!A:C,3,FALSE) ->  | D63: =IF(C63='DONNEES INFOGRAPHIES'!$B$6,1,0) -> 0 | E63: =VLOOKUP(A63,A:R,'DONNEES INFOGRAPHIES'!$L$9+4,FALSE) -> 8019 | F63: =SUMIFS(SILOSTMAT!$C:$C,SILOSTMAT!$A:$A,F$1,SILOSTMAT!$B:$B,$A63) -> 503 | G63: =SUMIFS(SILOSTMAT!$C:$C,SILOSTMAT!$A:$A,G$1,SILOSTMAT!$B:$B,$A63) -> 193 | H63: =SUMIFS(SILOSTMAT!$C:$C,SILOSTMAT!$A:$A,H$1,SILOSTMAT!$B:$B,$A63) -> 197 | I63: =SUMIFS(SILOSTMAT!$C:$C,SILOSTMAT!$A:$A,I$1,SILOSTMAT!$B:$B,$A63) -> 124 | J63: =SUMIFS(SILOSTMAT!$C:$C,SILOSTMAT!$A:$A,J$1,SILOSTMAT!$B:$B,$A63) -> 616 | K63: =SUMIFS(SILOSTMAT!$C:$C,SILOSTMAT!$A:$A,K$1,SILOSTMAT!$B:$B,$A63) -> 1239 | L63: =SUMIFS(SILOSTMAT!$C:$C,SILOSTMAT!$A:$A,L$1,SILOSTMAT!$B:$B,$A63) -> 483 | M63: =SUMIFS(SILOSTMAT!$C:$C,SILOSTMAT!$A:$A,M$1,SILOSTMAT!$B:$B,$A63) -> 194 | N63: =SUMIFS(SILOSTMAT!$C:$C,SILOSTMAT!$A:$A,N$1,SILOSTMAT!$B:$B,$A63) -> 558 | O63: =SUMIFS(SILOSTMAT!$C:$C,SILOSTMAT!$A:$A,O$1,SILOSTMAT!$B:$B,$A63) -> 2639 | P63: =SUMIFS(SILOSTMAT!$C:$C,SILOSTMAT!$A:$A,P$1,SILOSTMAT!$B:$B,$A63) -> 611 | Q63: =SUMIFS(SILOSTMAT!$C:$C,SILOSTMAT!$A:$A,Q$1,SILOSTMAT!$B:$B,$A63) -> 662 | R63: =SUMIFS(SILOSTMAT!$C:$C,SILOSTMAT!$A:$A,R$1,SILOSTMAT!$B:$B,$A63) -> 8019
A64: G1601 | B64: Chef / cheffe de cuisine | C64: =VLOOKUP(A64,'nomenclature rome'!A:C,3,FALSE) -> Sport, Montagne, Tourisme | D64: =IF(C64='DONNEES INFOGRAPHIES'!$B$6,1,0) -> 0 | E64: =VLOOKUP(A64,A:R,'DONNEES INFOGRAPHIES'!$L$9+4,FALSE) -> 7365 | F64: =SUMIFS(SILOSTMAT!$C:$C,SILOSTMAT!$A:$A,F$1,SILOSTMAT!$B:$B,$A64) -> 371 | G64: =SUMIFS(SILOSTMAT!$C:$C,SILOSTMAT!$A:$A,G$1,SILOSTMAT!$B:$B,$A64) -> 191 | H64: =SUMIFS(SILOSTMAT!$C:$C,SILOSTMAT!$A:$A,H$1,SILOSTMAT!$B:$B,$A64) -> 316 | I64: =SUMIFS(SILOSTMAT!$C:$C,SILOSTMAT!$A:$A,I$1,SILOSTMAT!$B:$B,$A64) -> 197 | J64: =SUMIFS(SILOSTMAT!$C:$C,SILOSTMAT!$A:$A,J$1,SILOSTMAT!$B:$B,$A64) -> 581 | K64: =SUMIFS(SILOSTMAT!$C:$C,SILOSTMAT!$A:$A,K$1,SILOSTMAT!$B:$B,$A64) -> 1035 | L64: =SUMIFS(SILOSTMAT!$C:$C,SILOSTMAT!$A:$A,L$1,SILOSTMAT!$B:$B,$A64) -> 381 | M64: =SUMIFS(SILOSTMAT!$C:$C,SILOSTMAT!$A:$A,M$1,SILOSTMAT!$B:$B,$A64) -> 161 | N64: =SUMIFS(SILOSTMAT!$C:$C,SILOSTMAT!$A:$A,N$1,SILOSTMAT!$B:$B,$A64) -> 667 | O64: =SUMIFS(SILOSTMAT!$C:$C,SILOSTMAT!$A:$A,O$1,SILOSTMAT!$B:$B,$A64) -> 1352 | P64: =SUMIFS(SILOSTMAT!$C:$C,SILOSTMAT!$A:$A,P$1,SILOSTMAT!$B:$B,$A64) -> 960 | Q64: =SUMIFS(SILOSTMAT!$C:$C,SILOSTMAT!$A:$A,Q$1,SILOSTMAT!$B:$B,$A64) -> 1153 | R64: =SUMIFS(SILOSTMAT!$C:$C,SILOSTMAT!$A:$A,R$1,SILOSTMAT!$B:$B,$A64) -> 7365
A65: G1603 | B65: Personnel polyvalent en restauration | C65: =VLOOKUP(A65,'nomenclature rome'!A:C,3,FALSE) -> Sport, Montagne, Tourisme | D65: =IF(C65='DONNEES INFOGRAPHIES'!$B$6,1,0) -> 0 | E65: =VLOOKUP(A65,A:R,'DONNEES INFOGRAPHIES'!$L$9+4,FALSE) -> 7289 | F65: =SUMIFS(SILOSTMAT!$C:$C,SILOSTMAT!$A:$A,F$1,SILOSTMAT!$B:$B,$A65) -> 297 | G65: =SUMIFS(SILOSTMAT!$C:$C,SILOSTMAT!$A:$A,G$1,SILOSTMAT!$B:$B,$A65) -> 204 | H65: =SUMIFS(SILOSTMAT!$C:$C,SILOSTMAT!$A:$A,H$1,SILOSTMAT!$B:$B,$A65) -> 165 | I65: =SUMIFS(SILOSTMAT!$C:$C,SILOSTMAT!$A:$A,I$1,SILOSTMAT!$B:$B,$A65) -> 75 | J65: =SUMIFS(SILOSTMAT!$C:$C,SILOSTMAT!$A:$A,J$1,SILOSTMAT!$B:$B,$A65) -> 448 | K65: =SUMIFS(SILOSTMAT!$C:$C,SILOSTMAT!$A:$A,K$1,SILOSTMAT!$B:$B,$A65) -> 1452 | L65: =SUMIFS(SILOSTMAT!$C:$C,SILOSTMAT!$A:$A,L$1,SILOSTMAT!$B:$B,$A65) -> 735 | M65: =SUMIFS(SILOSTMAT!$C:$C,SILOSTMAT!$A:$A,M$1,SILOSTMAT!$B:$B,$A65) -> 88 | N65: =SUMIFS(SILOSTMAT!$C:$C,SILOSTMAT!$A:$A,N$1,SILOSTMAT!$B:$B,$A65) -> 619 | O65: =SUMIFS(SILOSTMAT!$C:$C,SILOSTMAT!$A:$A,O$1,SILOSTMAT!$B:$B,$A65) -> 1912 | P65: =SUMIFS(SILOSTMAT!$C:$C,SILOSTMAT!$A:$A,P$1,SILOSTMAT!$B:$B,$A65) -> 513 | Q65: =SUMIFS(SILOSTMAT!$C:$C,SILOSTMAT!$A:$A,Q$1,SILOSTMAT!$B:$B,$A65) -> 781 | R65: =SUMIFS(SILOSTMAT!$C:$C,SILOSTMAT!$A:$A,R$1,SILOSTMAT!$B:$B,$A65) -> 7289
A66: D1507 | B66: Mise en rayon libre-service | C66: =VLOOKUP(A66,'nomenclature rome'!A:C,3,FALSE) -> Force de vente | D66: =IF(C66='DONNEES INFOGRAPHIES'!$B$6,1,0) -> 0 | E66: =VLOOKUP(A66,A:R,'DONNEES INFOGRAPHIES'!$L$9+4,FALSE) -> 7246 | F66: =SUMIFS(SILOSTMAT!$C:$C,SILOSTMAT!$A:$A,F$1,SILOSTMAT!$B:$B,$A66) -> 489 | G66: =SUMIFS(SILOSTMAT!$C:$C,SILOSTMAT!$A:$A,G$1,SILOSTMAT!$B:$B,$A66) -> 124 | H66: =SUMIFS(SILOSTMAT!$C:$C,SILOSTMAT!$A:$A,H$1,SILOSTMAT!$B:$B,$A66) -> 181 | I66: =SUMIFS(SILOSTMAT!$C:$C,SILOSTMAT!$A:$A,I$1,SILOSTMAT!$B:$B,$A66) -> 116 | J66: =SUMIFS(SILOSTMAT!$C:$C,SILOSTMAT!$A:$A,J$1,SILOSTMAT!$B:$B,$A66) -> 471 | K66: =SUMIFS(SILOSTMAT!$C:$C,SILOSTMAT!$A:$A,K$1,SILOSTMAT!$B:$B,$A66) -> 1794 | L66: =SUMIFS(SILOSTMAT!$C:$C,SILOSTMAT!$A:$A,L$1,SILOSTMAT!$B:$B,$A66) -> 493 | M66: =SUMIFS(SILOSTMAT!$C:$C,SILOSTMAT!$A:$A,M$1,SILOSTMAT!$B:$B,$A66) -> 112 | N66: =SUMIFS(SILOSTMAT!$C:$C,SILOSTMAT!$A:$A,N$1,SILOSTMAT!$B:$B,$A66) -> 624 | O66: =SUMIFS(SILOSTMAT!$C:$C,SILOSTMAT!$A:$A,O$1,SILOSTMAT!$B:$B,$A66) -> 1394 | P66: =SUMIFS(SILOSTMAT!$C:$C,SILOSTMAT!$A:$A,P$1,SILOSTMAT!$B:$B,$A66) -> 525 | Q66: =SUMIFS(SILOSTMAT!$C:$C,SILOSTMAT!$A:$A,Q$1,SILOSTMAT!$B:$B,$A66) -> 923 | R66: =SUMIFS(SILOSTMAT!$C:$C,SILOSTMAT!$A:$A,R$1,SILOSTMAT!$B:$B,$A66) -> 7246
A67: G1602 | B67: Personnel de cuisine | C67: =VLOOKUP(A67,'nomenclature rome'!A:C,3,FALSE) -> Sport, Montagne, Tourisme | D67: =IF(C67='DONNEES INFOGRAPHIES'!$B$6,1,0) -> 0 | E67: =VLOOKUP(A67,A:R,'DONNEES INFOGRAPHIES'!$L$9+4,FALSE) -> 7220 | F67: =SUMIFS(SILOSTMAT!$C:$C,SILOSTMAT!$A:$A,F$1,SILOSTMAT!$B:$B,$A67) -> 354 | G67: =SUMIFS(SILOSTMAT!$C:$C,SILOSTMAT!$A:$A,G$1,SILOSTMAT!$B:$B,$A67) -> 204 | H67: =SUMIFS(SILOSTMAT!$C:$C,SILOSTMAT!$A:$A,H$1,SILOSTMAT!$B:$B,$A67) -> 218 | I67: =SUMIFS(SILOSTMAT!$C:$C,SILOSTMAT!$A:$A,I$1,SILOSTMAT!$B:$B,$A67) -> 121 | J67: =SUMIFS(SILOSTMAT!$C:$C,SILOSTMAT!$A:$A,J$1,SILOSTMAT!$B:$B,$A67) -> 397 | K67: =SUMIFS(SILOSTMAT!$C:$C,SILOSTMAT!$A:$A,K$1,SILOSTMAT!$B:$B,$A67) -> 765 | L67: =SUMIFS(SILOSTMAT!$C:$C,SILOSTMAT!$A:$A,L$1,SILOSTMAT!$B:$B,$A67) -> 326 | M67: =SUMIFS(SILOSTMAT!$C:$C,SILOSTMAT!$A:$A,M$1,SILOSTMAT!$B:$B,$A67) -> 125 | N67: =SUMIFS(SILOSTMAT!$C:$C,SILOSTMAT!$A:$A,N$1,SILOSTMAT!$B:$B,$A67) -> 544 | O67: =SUMIFS(SILOSTMAT!$C:$C,SILOSTMAT!$A:$A,O$1,SILOSTMAT!$B:$B,$A67) -> 1452 | P67: =SUMIFS(SILOSTMAT!$C:$C,SILOSTMAT!$A:$A,P$1,SILOSTMAT!$B:$B,$A67) -> 1244 | Q67: =SUMIFS(SILOSTMAT!$C:$C,SILOSTMAT!$A:$A,Q$1,SILOSTMAT!$B:$B,$A67) -> 1470 | R67: =SUMIFS(SILOSTMAT!$C:$C,SILOSTMAT!$A:$A,R$1,SILOSTMAT!$B:$B,$A67) -> 7220
A68: H2903 | B68: Conduite d'équipement d'usinage | C68: =VLOOKUP(A68,'nomenclature rome'!A:C,3,FALSE) -> Aéronautique | D68: =IF(C68='DONNEES INFOGRAPHIES'!$B$6,1,0) -> 0 | E68: =VLOOKUP(A68,A:R,'DONNEES INFOGRAPHIES'!$L$9+4,FALSE) -> 6634 | F68: =SUMIFS(SILOSTMAT!$C:$C,SILOSTMAT!$A:$A,F$1,SILOSTMAT!$B:$B,$A68) -> 409 | G68: =SUMIFS(SILOSTMAT!$C:$C,SILOSTMAT!$A:$A,G$1,SILOSTMAT!$B:$B,$A68) -> 190 | H68: =SUMIFS(SILOSTMAT!$C:$C,SILOSTMAT!$A:$A,H$1,SILOSTMAT!$B:$B,$A68) -> 85 | I68: =SUMIFS(SILOSTMAT!$C:$C,SILOSTMAT!$A:$A,I$1,SILOSTMAT!$B:$B,$A68) -> 12 | J68: =SUMIFS(SILOSTMAT!$C:$C,SILOSTMAT!$A:$A,J$1,SILOSTMAT!$B:$B,$A68) -> 285 | K68: =SUMIFS(SILOSTMAT!$C:$C,SILOSTMAT!$A:$A,K$1,SILOSTMAT!$B:$B,$A68) -> 965 | L68: =SUMIFS(SILOSTMAT!$C:$C,SILOSTMAT!$A:$A,L$1,SILOSTMAT!$B:$B,$A68) -> 1107 | M68: =SUMIFS(SILOSTMAT!$C:$C,SILOSTMAT!$A:$A,M$1,SILOSTMAT!$B:$B,$A68) -> 177 | N68: =SUMIFS(SILOSTMAT!$C:$C,SILOSTMAT!$A:$A,N$1,SILOSTMAT!$B:$B,$A68) -> 592 | O68: =SUMIFS(SILOSTMAT!$C:$C,SILOSTMAT!$A:$A,O$1,SILOSTMAT!$B:$B,$A68) -> 1330 | P68: =SUMIFS(SILOSTMAT!$C:$C,SILOSTMAT!$A:$A,P$1,SILOSTMAT!$B:$B,$A68) -> 311 | Q68: =SUMIFS(SILOSTMAT!$C:$C,SILOSTMAT!$A:$A,Q$1,SILOSTMAT!$B:$B,$A68) -> 1171 | R68: =SUMIFS(SILOSTMAT!$C:$C,SILOSTMAT!$A:$A,R$1,SILOSTMAT!$B:$B,$A68) -> 6634
A69: M1607 | B69: Secrétariat | C69: =VLOOKUP(A69,'nomenclature rome'!A:C,3,FALSE) ->  | D69: =IF(C69='DONNEES INFOGRAPHIES'!$B$6,1,0) -> 0 | E69: =VLOOKUP(A69,A:R,'DONNEES INFOGRAPHIES'!$L$9+4,FALSE) -> 6392 | F69: =SUMIFS(SILOSTMAT!$C:$C,SILOSTMAT!$A:$A,F$1,SILOSTMAT!$B:$B,$A69) -> 508 | G69: =SUMIFS(SILOSTMAT!$C:$C,SILOSTMAT!$A:$A,G$1,SILOSTMAT!$B:$B,$A69) -> 110 | H69: =SUMIFS(SILOSTMAT!$C:$C,SILOSTMAT!$A:$A,H$1,SILOSTMAT!$B:$B,$A69) -> 121 | I69: =SUMIFS(SILOSTMAT!$C:$C,SILOSTMAT!$A:$A,I$1,SILOSTMAT!$B:$B,$A69) -> 75 | J69: =SUMIFS(SILOSTMAT!$C:$C,SILOSTMAT!$A:$A,J$1,SILOSTMAT!$B:$B,$A69) -> 395 | K69: =SUMIFS(SILOSTMAT!$C:$C,SILOSTMAT!$A:$A,K$1,SILOSTMAT!$B:$B,$A69) -> 1003 | L69: =SUMIFS(SILOSTMAT!$C:$C,SILOSTMAT!$A:$A,L$1,SILOSTMAT!$B:$B,$A69) -> 420 | M69: =SUMIFS(SILOSTMAT!$C:$C,SILOSTMAT!$A:$A,M$1,SILOSTMAT!$B:$B,$A69) -> 106 | N69: =SUMIFS(SILOSTMAT!$C:$C,SILOSTMAT!$A:$A,N$1,SILOSTMAT!$B:$B,$A69) -> 355 | O69: =SUMIFS(SILOSTMAT!$C:$C,SILOSTMAT!$A:$A,O$1,SILOSTMAT!$B:$B,$A69) -> 2364 | P69: =SUMIFS(SILOSTMAT!$C:$C,SILOSTMAT!$A:$A,P$1,SILOSTMAT!$B:$B,$A69) -> 392 | Q69: =SUMIFS(SILOSTMAT!$C:$C,SILOSTMAT!$A:$A,Q$1,SILOSTMAT!$B:$B,$A69) -> 543 | R69: =SUMIFS(SILOSTMAT!$C:$C,SILOSTMAT!$A:$A,R$1,SILOSTMAT!$B:$B,$A69) -> 6392
A70: J1501 | B70: Aide-soignant / aide-soignante | C70: =VLOOKUP(A70,'nomenclature rome'!A:C,3,FALSE) -> Santé | D70: =IF(C70='DONNEES INFOGRAPHIES'!$B$6,1,0) -> 0 | E70: =VLOOKUP(A70,A:R,'DONNEES INFOGRAPHIES'!$L$9+4,FALSE) -> 6344 | F70: =SUMIFS(SILOSTMAT!$C:$C,SILOSTMAT!$A:$A,F$1,SILOSTMAT!$B:$B,$A70) -> 488 | G70: =SUMIFS(SILOSTMAT!$C:$C,SILOSTMAT!$A:$A,G$1,SILOSTMAT!$B:$B,$A70) -> 261 | H70: =SUMIFS(SILOSTMAT!$C:$C,SILOSTMAT!$A:$A,H$1,SILOSTMAT!$B:$B,$A70) -> 554 | I70: =SUMIFS(SILOSTMAT!$C:$C,SILOSTMAT!$A:$A,I$1,SILOSTMAT!$B:$B,$A70) -> 276 | J70: =SUMIFS(SILOSTMAT!$C:$C,SILOSTMAT!$A:$A,J$1,SILOSTMAT!$B:$B,$A70) -> 382 | K70: =SUMIFS(SILOSTMAT!$C:$C,SILOSTMAT!$A:$A,K$1,SILOSTMAT!$B:$B,$A70) -> 831 | L70: =SUMIFS(SILOSTMAT!$C:$C,SILOSTMAT!$A:$A,L$1,SILOSTMAT!$B:$B,$A70) -> 469 | M70: =SUMIFS(SILOSTMAT!$C:$C,SILOSTMAT!$A:$A,M$1,SILOSTMAT!$B:$B,$A70) -> 172 | N70: =SUMIFS(SILOSTMAT!$C:$C,SILOSTMAT!$A:$A,N$1,SILOSTMAT!$B:$B,$A70) -> 548 | O70: =SUMIFS(SILOSTMAT!$C:$C,SILOSTMAT!$A:$A,O$1,SILOSTMAT!$B:$B,$A70) -> 1185 | P70: =SUMIFS(SILOSTMAT!$C:$C,SILOSTMAT!$A:$A,P$1,SILOSTMAT!$B:$B,$A70) -> 647 | Q70: =SUMIFS(SILOSTMAT!$C:$C,SILOSTMAT!$A:$A,Q$1,SILOSTMAT!$B:$B,$A70) -> 531 | R70: =SUMIFS(SILOSTMAT!$C:$C,SILOSTMAT!$A:$A,R$1,SILOSTMAT!$B:$B,$A70) -> 6344
A71: N1101 | B71: Conduite d'engins de déplacement des charges | C71: =VLOOKUP(A71,'nomenclature rome'!A:C,3,FALSE) -> Mobilité, systèmes de transport intelligents | D71: =IF(C71='DONNEES INFOGRAPHIES'!$B$6,1,0) -> 0 | E71: =VLOOKUP(A71,A:R,'DONNEES INFOGRAPHIES'!$L$9+4,FALSE) -> 6342 | F71: =SUMIFS(SILOSTMAT!$C:$C,SILOSTMAT!$A:$A,F$1,SILOSTMAT!$B:$B,$A71) -> 934 | G71: =SUMIFS(SILOSTMAT!$C:$C,SILOSTMAT!$A:$A,G$1,SILOSTMAT!$B:$B,$A71) -> 115 | H71: =SUMIFS(SILOSTMAT!$C:$C,SILOSTMAT!$A:$A,H$1,SILOSTMAT!$B:$B,$A71) -> 198 | I71: =SUMIFS(SILOSTMAT!$C:$C,SILOSTMAT!$A:$A,I$1,SILOSTMAT!$B:$B,$A71) -> 30 | J71: =SUMIFS(SILOSTMAT!$C:$C,SILOSTMAT!$A:$A,J$1,SILOSTMAT!$B:$B,$A71) -> 828 | K71: =SUMIFS(SILOSTMAT!$C:$C,SILOSTMAT!$A:$A,K$1,SILOSTMAT!$B:$B,$A71) -> 988 | L71: =SUMIFS(SILOSTMAT!$C:$C,SILOSTMAT!$A:$A,L$1,SILOSTMAT!$B:$B,$A71) -> 389 | M71: =SUMIFS(SILOSTMAT!$C:$C,SILOSTMAT!$A:$A,M$1,SILOSTMAT!$B:$B,$A71) -> 132 | N71: =SUMIFS(SILOSTMAT!$C:$C,SILOSTMAT!$A:$A,N$1,SILOSTMAT!$B:$B,$A71) -> 511 | O71: =SUMIFS(SILOSTMAT!$C:$C,SILOSTMAT!$A:$A,O$1,SILOSTMAT!$B:$B,$A71) -> 1571 | P71: =SUMIFS(SILOSTMAT!$C:$C,SILOSTMAT!$A:$A,P$1,SILOSTMAT!$B:$B,$A71) -> 287 | Q71: =SUMIFS(SILOSTMAT!$C:$C,SILOSTMAT!$A:$A,Q$1,SILOSTMAT!$B:$B,$A71) -> 359 | R71: =SUMIFS(SILOSTMAT!$C:$C,SILOSTMAT!$A:$A,R$1,SILOSTMAT!$B:$B,$A71) -> 6342
A72: K1302 | B72: Assistance auprès d'adultes | C72: =VLOOKUP(A72,'nomenclature rome'!A:C,3,FALSE) -> Services à la personne | D72: =IF(C72='DONNEES INFOGRAPHIES'!$B$6,1,0) -> 0 | E72: =VLOOKUP(A72,A:R,'DONNEES INFOGRAPHIES'!$L$9+4,FALSE) -> 6262 | F72: =SUMIFS(SILOSTMAT!$C:$C,SILOSTMAT!$A:$A,F$1,SILOSTMAT!$B:$B,$A72) -> 357 | G72: =SUMIFS(SILOSTMAT!$C:$C,SILOSTMAT!$A:$A,G$1,SILOSTMAT!$B:$B,$A72) -> 138 | H72: =SUMIFS(SILOSTMAT!$C:$C,SILOSTMAT!$A:$A,H$1,SILOSTMAT!$B:$B,$A72) -> 290 | I72: =SUMIFS(SILOSTMAT!$C:$C,SILOSTMAT!$A:$A,I$1,SILOSTMAT!$B:$B,$A72) -> 90 | J72: =SUMIFS(SILOSTMAT!$C:$C,SILOSTMAT!$A:$A,J$1,SILOSTMAT!$B:$B,$A72) -> 331 | K72: =SUMIFS(SILOSTMAT!$C:$C,SILOSTMAT!$A:$A,K$1,SILOSTMAT!$B:$B,$A72) -> 1548 | L72: =SUMIFS(SILOSTMAT!$C:$C,SILOSTMAT!$A:$A,L$1,SILOSTMAT!$B:$B,$A72) -> 469 | M72: =SUMIFS(SILOSTMAT!$C:$C,SILOSTMAT!$A:$A,M$1,SILOSTMAT!$B:$B,$A72) -> 87 | N72: =SUMIFS(SILOSTMAT!$C:$C,SILOSTMAT!$A:$A,N$1,SILOSTMAT!$B:$B,$A72) -> 475 | O72: =SUMIFS(SILOSTMAT!$C:$C,SILOSTMAT!$A:$A,O$1,SILOSTMAT!$B:$B,$A72) -> 1824 | P72: =SUMIFS(SILOSTMAT!$C:$C,SILOSTMAT!$A:$A,P$1,SILOSTMAT!$B:$B,$A72) -> 338 | Q72: =SUMIFS(SILOSTMAT!$C:$C,SILOSTMAT!$A:$A,Q$1,SILOSTMAT!$B:$B,$A72) -> 315 | R72: =SUMIFS(SILOSTMAT!$C:$C,SILOSTMAT!$A:$A,R$1,SILOSTMAT!$B:$B,$A72) -> 6262
A73: D1106 | B73: Vente en alimentation | C73: =VLOOKUP(A73,'nomenclature rome'!A:C,3,FALSE) ->  | D73: =IF(C73='DONNEES INFOGRAPHIES'!$B$6,1,0) -> 0 | E73: =VLOOKUP(A73,A:R,'DONNEES INFOGRAPHIES'!$L$9+4,FALSE) -> 5864 | F73: =SUMIFS(SILOSTMAT!$C:$C,SILOSTMAT!$A:$A,F$1,SILOSTMAT!$B:$B,$A73) -> 359 | G73: =SUMIFS(SILOSTMAT!$C:$C,SILOSTMAT!$A:$A,G$1,SILOSTMAT!$B:$B,$A73) -> 115 | H73: =SUMIFS(SILOSTMAT!$C:$C,SILOSTMAT!$A:$A,H$1,SILOSTMAT!$B:$B,$A73) -> 156 | I73: =SUMIFS(SILOSTMAT!$C:$C,SILOSTMAT!$A:$A,I$1,SILOSTMAT!$B:$B,$A73) -> 89 | J73: =SUMIFS(SILOSTMAT!$C:$C,SILOSTMAT!$A:$A,J$1,SILOSTMAT!$B:$B,$A73) -> 410 | K73: =SUMIFS(SILOSTMAT!$C:$C,SILOSTMAT!$A:$A,K$1,SILOSTMAT!$B:$B,$A73) -> 763 | L73: =SUMIFS(SILOSTMAT!$C:$C,SILOSTMAT!$A:$A,L$1,SILOSTMAT!$B:$B,$A73) -> 355 | M73: =SUMIFS(SILOSTMAT!$C:$C,SILOSTMAT!$A:$A,M$1,SILOSTMAT!$B:$B,$A73) -> 190 | N73: =SUMIFS(SILOSTMAT!$C:$C,SILOSTMAT!$A:$A,N$1,SILOSTMAT!$B:$B,$A73) -> 546 | O73: =SUMIFS(SILOSTMAT!$C:$C,SILOSTMAT!$A:$A,O$1,SILOSTMAT!$B:$B,$A73) -> 1078 | P73: =SUMIFS(SILOSTMAT!$C:$C,SILOSTMAT!$A:$A,P$1,SILOSTMAT!$B:$B,$A73) -> 811 | Q73: =SUMIFS(SILOSTMAT!$C:$C,SILOSTMAT!$A:$A,Q$1,SILOSTMAT!$B:$B,$A73) -> 992 | R73: =SUMIFS(SILOSTMAT!$C:$C,SILOSTMAT!$A:$A,R$1,SILOSTMAT!$B:$B,$A73) -> 5864
A74: H3302 | B74: Opérations manuelles d'assemblage, tri ou emballage | C74: =VLOOKUP(A74,'nomenclature rome'!A:C,3,FALSE) -> Industrie du futur, production industrielle | D74: =IF(C74='DONNEES INFOGRAPHIES'!$B$6,1,0) -> 0 | E74: =VLOOKUP(A74,A:R,'DONNEES INFOGRAPHIES'!$L$9+4,FALSE) -> 5767 | F74: =SUMIFS(SILOSTMAT!$C:$C,SILOSTMAT!$A:$A,F$1,SILOSTMAT!$B:$B,$A74) -> 699 | G74: =SUMIFS(SILOSTMAT!$C:$C,SILOSTMAT!$A:$A,G$1,SILOSTMAT!$B:$B,$A74) -> 174 | H74: =SUMIFS(SILOSTMAT!$C:$C,SILOSTMAT!$A:$A,H$1,SILOSTMAT!$B:$B,$A74) -> 238 | I74: =SUMIFS(SILOSTMAT!$C:$C,SILOSTMAT!$A:$A,I$1,SILOSTMAT!$B:$B,$A74) -> 74 | J74: =SUMIFS(SILOSTMAT!$C:$C,SILOSTMAT!$A:$A,J$1,SILOSTMAT!$B:$B,$A74) -> 419 | K74: =SUMIFS(SILOSTMAT!$C:$C,SILOSTMAT!$A:$A,K$1,SILOSTMAT!$B:$B,$A74) -> 1146 | L74: =SUMIFS(SILOSTMAT!$C:$C,SILOSTMAT!$A:$A,L$1,SILOSTMAT!$B:$B,$A74) -> 690 | M74: =SUMIFS(SILOSTMAT!$C:$C,SILOSTMAT!$A:$A,M$1,SILOSTMAT!$B:$B,$A74) -> 170 | N74: =SUMIFS(SILOSTMAT!$C:$C,SILOSTMAT!$A:$A,N$1,SILOSTMAT!$B:$B,$A74) -> 559 | O74: =SUMIFS(SILOSTMAT!$C:$C,SILOSTMAT!$A:$A,O$1,SILOSTMAT!$B:$B,$A74) -> 865 | P74: =SUMIFS(SILOSTMAT!$C:$C,SILOSTMAT!$A:$A,P$1,SILOSTMAT!$B:$B,$A74) -> 213 | Q74: =SUMIFS(SILOSTMAT!$C:$C,SILOSTMAT!$A:$A,Q$1,SILOSTMAT!$B:$B,$A74) -> 520 | R74: =SUMIFS(SILOSTMAT!$C:$C,SILOSTMAT!$A:$A,R$1,SILOSTMAT!$B:$B,$A74) -> 5767
A75: H2909 | B75: Montage-assemblage mécanique | C75: =VLOOKUP(A75,'nomenclature rome'!A:C,3,FALSE) -> Aéronautique | D75: =IF(C75='DONNEES INFOGRAPHIES'!$B$6,1,0) -> 0 | E75: =VLOOKUP(A75,A:R,'DONNEES INFOGRAPHIES'!$L$9+4,FALSE) -> 5675 | F75: =SUMIFS(SILOSTMAT!$C:$C,SILOSTMAT!$A:$A,F$1,SILOSTMAT!$B:$B,$A75) -> 584 | G75: =SUMIFS(SILOSTMAT!$C:$C,SILOSTMAT!$A:$A,G$1,SILOSTMAT!$B:$B,$A75) -> 165 | H75: =SUMIFS(SILOSTMAT!$C:$C,SILOSTMAT!$A:$A,H$1,SILOSTMAT!$B:$B,$A75) -> 285 | I75: =SUMIFS(SILOSTMAT!$C:$C,SILOSTMAT!$A:$A,I$1,SILOSTMAT!$B:$B,$A75) -> 28 | J75: =SUMIFS(SILOSTMAT!$C:$C,SILOSTMAT!$A:$A,J$1,SILOSTMAT!$B:$B,$A75) -> 353 | K75: =SUMIFS(SILOSTMAT!$C:$C,SILOSTMAT!$A:$A,K$1,SILOSTMAT!$B:$B,$A75) -> 953 | L75: =SUMIFS(SILOSTMAT!$C:$C,SILOSTMAT!$A:$A,L$1,SILOSTMAT!$B:$B,$A75) -> 457 | M75: =SUMIFS(SILOSTMAT!$C:$C,SILOSTMAT!$A:$A,M$1,SILOSTMAT!$B:$B,$A75) -> 147 | N75: =SUMIFS(SILOSTMAT!$C:$C,SILOSTMAT!$A:$A,N$1,SILOSTMAT!$B:$B,$A75) -> 207 | O75: =SUMIFS(SILOSTMAT!$C:$C,SILOSTMAT!$A:$A,O$1,SILOSTMAT!$B:$B,$A75) -> 1649 | P75: =SUMIFS(SILOSTMAT!$C:$C,SILOSTMAT!$A:$A,P$1,SILOSTMAT!$B:$B,$A75) -> 248 | Q75: =SUMIFS(SILOSTMAT!$C:$C,SILOSTMAT!$A:$A,Q$1,SILOSTMAT!$B:$B,$A75) -> 599 | R75: =SUMIFS(SILOSTMAT!$C:$C,SILOSTMAT!$A:$A,R$1,SILOSTMAT!$B:$B,$A75) -> 5675
A76: K2503 | B76: Sécurité et surveillance privées | C76: =VLOOKUP(A76,'nomenclature rome'!A:C,3,FALSE) ->  | D76: =IF(C76='DONNEES INFOGRAPHIES'!$B$6,1,0) -> 0 | E76: =VLOOKUP(A76,A:R,'DONNEES INFOGRAPHIES'!$L$9+4,FALSE) -> 5668 | F76: =SUMIFS(SILOSTMAT!$C:$C,SILOSTMAT!$A:$A,F$1,SILOSTMAT!$B:$B,$A76) -> 195 | G76: =SUMIFS(SILOSTMAT!$C:$C,SILOSTMAT!$A:$A,G$1,SILOSTMAT!$B:$B,$A76) -> 32 | H76: =SUMIFS(SILOSTMAT!$C:$C,SILOSTMAT!$A:$A,H$1,SILOSTMAT!$B:$B,$A76) -> 40 | I76: =SUMIFS(SILOSTMAT!$C:$C,SILOSTMAT!$A:$A,I$1,SILOSTMAT!$B:$B,$A76) -> 19 | J76: =SUMIFS(SILOSTMAT!$C:$C,SILOSTMAT!$A:$A,J$1,SILOSTMAT!$B:$B,$A76) -> 85 | K76: =SUMIFS(SILOSTMAT!$C:$C,SILOSTMAT!$A:$A,K$1,SILOSTMAT!$B:$B,$A76) -> 505 | L76: =SUMIFS(SILOSTMAT!$C:$C,SILOSTMAT!$A:$A,L$1,SILOSTMAT!$B:$B,$A76) -> 407 | M76: =SUMIFS(SILOSTMAT!$C:$C,SILOSTMAT!$A:$A,M$1,SILOSTMAT!$B:$B,$A76) -> 23 | N76: =SUMIFS(SILOSTMAT!$C:$C,SILOSTMAT!$A:$A,N$1,SILOSTMAT!$B:$B,$A76) -> 484 | O76: =SUMIFS(SILOSTMAT!$C:$C,SILOSTMAT!$A:$A,O$1,SILOSTMAT!$B:$B,$A76) -> 3348 | P76: =SUMIFS(SILOSTMAT!$C:$C,SILOSTMAT!$A:$A,P$1,SILOSTMAT!$B:$B,$A76) -> 309 | Q76: =SUMIFS(SILOSTMAT!$C:$C,SILOSTMAT!$A:$A,Q$1,SILOSTMAT!$B:$B,$A76) -> 221 | R76: =SUMIFS(SILOSTMAT!$C:$C,SILOSTMAT!$A:$A,R$1,SILOSTMAT!$B:$B,$A76) -> 5668
A77: K1303 | B77: Assistance auprès d'enfants | C77: =VLOOKUP(A77,'nomenclature rome'!A:C,3,FALSE) -> Services à la personne | D77: =IF(C77='DONNEES INFOGRAPHIES'!$B$6,1,0) -> 0 | E77: =VLOOKUP(A77,A:R,'DONNEES INFOGRAPHIES'!$L$9+4,FALSE) -> 5597 | F77: =SUMIFS(SILOSTMAT!$C:$C,SILOSTMAT!$A:$A,F$1,SILOSTMAT!$B:$B,$A77) -> 327 | G77: =SUMIFS(SILOSTMAT!$C:$C,SILOSTMAT!$A:$A,G$1,SILOSTMAT!$B:$B,$A77) -> 40 | H77: =SUMIFS(SILOSTMAT!$C:$C,SILOSTMAT!$A:$A,H$1,SILOSTMAT!$B:$B,$A77) -> 77 | I77: =SUMIFS(SILOSTMAT!$C:$C,SILOSTMAT!$A:$A,I$1,SILOSTMAT!$B:$B,$A77) -> 30 | J77: =SUMIFS(SILOSTMAT!$C:$C,SILOSTMAT!$A:$A,J$1,SILOSTMAT!$B:$B,$A77) -> 225 | K77: =SUMIFS(SILOSTMAT!$C:$C,SILOSTMAT!$A:$A,K$1,SILOSTMAT!$B:$B,$A77) -> 756 | L77: =SUMIFS(SILOSTMAT!$C:$C,SILOSTMAT!$A:$A,L$1,SILOSTMAT!$B:$B,$A77) -> 253 | M77: =SUMIFS(SILOSTMAT!$C:$C,SILOSTMAT!$A:$A,M$1,SILOSTMAT!$B:$B,$A77) -> 79 | N77: =SUMIFS(SILOSTMAT!$C:$C,SILOSTMAT!$A:$A,N$1,SILOSTMAT!$B:$B,$A77) -> 267 | O77: =SUMIFS(SILOSTMAT!$C:$C,SILOSTMAT!$A:$A,O$1,SILOSTMAT!$B:$B,$A77) -> 2324 | P77: =SUMIFS(SILOSTMAT!$C:$C,SILOSTMAT!$A:$A,P$1,SILOSTMAT!$B:$B,$A77) -> 542 | Q77: =SUMIFS(SILOSTMAT!$C:$C,SILOSTMAT!$A:$A,Q$1,SILOSTMAT!$B:$B,$A77) -> 677 | R77: =SUMIFS(SILOSTMAT!$C:$C,SILOSTMAT!$A:$A,R$1,SILOSTMAT!$B:$B,$A77) -> 5597
A78: K1207 | B78: Intervention socioéducative | C78: =VLOOKUP(A78,'nomenclature rome'!A:C,3,FALSE) ->  | D78: =IF(C78='DONNEES INFOGRAPHIES'!$B$6,1,0) -> 0 | E78: =VLOOKUP(A78,A:R,'DONNEES INFOGRAPHIES'!$L$9+4,FALSE) -> 5590 | F78: =SUMIFS(SILOSTMAT!$C:$C,SILOSTMAT!$A:$A,F$1,SILOSTMAT!$B:$B,$A78) -> 451 | G78: =SUMIFS(SILOSTMAT!$C:$C,SILOSTMAT!$A:$A,G$1,SILOSTMAT!$B:$B,$A78) -> 108 | H78: =SUMIFS(SILOSTMAT!$C:$C,SILOSTMAT!$A:$A,H$1,SILOSTMAT!$B:$B,$A78) -> 233 | I78: =SUMIFS(SILOSTMAT!$C:$C,SILOSTMAT!$A:$A,I$1,SILOSTMAT!$B:$B,$A78) -> 95 | J78: =SUMIFS(SILOSTMAT!$C:$C,SILOSTMAT!$A:$A,J$1,SILOSTMAT!$B:$B,$A78) -> 424 | K78: =SUMIFS(SILOSTMAT!$C:$C,SILOSTMAT!$A:$A,K$1,SILOSTMAT!$B:$B,$A78) -> 952 | L78: =SUMIFS(SILOSTMAT!$C:$C,SILOSTMAT!$A:$A,L$1,SILOSTMAT!$B:$B,$A78) -> 250 | M78: =SUMIFS(SILOSTMAT!$C:$C,SILOSTMAT!$A:$A,M$1,SILOSTMAT!$B:$B,$A78) -> 95 | N78: =SUMIFS(SILOSTMAT!$C:$C,SILOSTMAT!$A:$A,N$1,SILOSTMAT!$B:$B,$A78) -> 299 | O78: =SUMIFS(SILOSTMAT!$C:$C,SILOSTMAT!$A:$A,O$1,SILOSTMAT!$B:$B,$A78) -> 1188 | P78: =SUMIFS(SILOSTMAT!$C:$C,SILOSTMAT!$A:$A,P$1,SILOSTMAT!$B:$B,$A78) -> 545 | Q78: =SUMIFS(SILOSTMAT!$C:$C,SILOSTMAT!$A:$A,Q$1,SILOSTMAT!$B:$B,$A78) -> 950 | R78: =SUMIFS(SILOSTMAT!$C:$C,SILOSTMAT!$A:$A,R$1,SILOSTMAT!$B:$B,$A78) -> 5590
A79: I1203 | B79: Maintenance des bâtiments et des locaux | C79: =VLOOKUP(A79,'nomenclature rome'!A:C,3,FALSE) ->  | D79: =IF(C79='DONNEES INFOGRAPHIES'!$B$6,1,0) -> 0 | E79: =VLOOKUP(A79,A:R,'DONNEES INFOGRAPHIES'!$L$9+4,FALSE) -> 5467 | F79: =SUMIFS(SILOSTMAT!$C:$C,SILOSTMAT!$A:$A,F$1,SILOSTMAT!$B:$B,$A79) -> 382 | G79: =SUMIFS(SILOSTMAT!$C:$C,SILOSTMAT!$A:$A,G$1,SILOSTMAT!$B:$B,$A79) -> 105 | H79: =SUMIFS(SILOSTMAT!$C:$C,SILOSTMAT!$A:$A,H$1,SILOSTMAT!$B:$B,$A79) -> 159 | I79: =SUMIFS(SILOSTMAT!$C:$C,SILOSTMAT!$A:$A,I$1,SILOSTMAT!$B:$B,$A79) -> 93 | J79: =SUMIFS(SILOSTMAT!$C:$C,SILOSTMAT!$A:$A,J$1,SILOSTMAT!$B:$B,$A79) -> 320 | K79: =SUMIFS(SILOSTMAT!$C:$C,SILOSTMAT!$A:$A,K$1,SILOSTMAT!$B:$B,$A79) -> 797 | L79: =SUMIFS(SILOSTMAT!$C:$C,SILOSTMAT!$A:$A,L$1,SILOSTMAT!$B:$B,$A79) -> 286 | M79: =SUMIFS(SILOSTMAT!$C:$C,SILOSTMAT!$A:$A,M$1,SILOSTMAT!$B:$B,$A79) -> 99 | N79: =SUMIFS(SILOSTMAT!$C:$C,SILOSTMAT!$A:$A,N$1,SILOSTMAT!$B:$B,$A79) -> 459 | O79: =SUMIFS(SILOSTMAT!$C:$C,SILOSTMAT!$A:$A,O$1,SILOSTMAT!$B:$B,$A79) -> 1520 | P79: =SUMIFS(SILOSTMAT!$C:$C,SILOSTMAT!$A:$A,P$1,SILOSTMAT!$B:$B,$A79) -> 650 | Q79: =SUMIFS(SILOSTMAT!$C:$C,SILOSTMAT!$A:$A,Q$1,SILOSTMAT!$B:$B,$A79) -> 597 | R79: =SUMIFS(SILOSTMAT!$C:$C,SILOSTMAT!$A:$A,R$1,SILOSTMAT!$B:$B,$A79) -> 5467
A80: K1306 | B80: Auxiliaire de vie sociale (avs) | C80: =VLOOKUP(A80,'nomenclature rome'!A:C,3,FALSE) -> Services à la personne | D80: =IF(C80='DONNEES INFOGRAPHIES'!$B$6,1,0) -> 0 | E80: =VLOOKUP(A80,A:R,'DONNEES INFOGRAPHIES'!$L$9+4,FALSE) -> 5413 | F80: =SUMIFS(SILOSTMAT!$C:$C,SILOSTMAT!$A:$A,F$1,SILOSTMAT!$B:$B,$A80) -> 430 | G80: =SUMIFS(SILOSTMAT!$C:$C,SILOSTMAT!$A:$A,G$1,SILOSTMAT!$B:$B,$A80) -> 121 | H80: =SUMIFS(SILOSTMAT!$C:$C,SILOSTMAT!$A:$A,H$1,SILOSTMAT!$B:$B,$A80) -> 185 | I80: =SUMIFS(SILOSTMAT!$C:$C,SILOSTMAT!$A:$A,I$1,SILOSTMAT!$B:$B,$A80) -> 102 | J80: =SUMIFS(SILOSTMAT!$C:$C,SILOSTMAT!$A:$A,J$1,SILOSTMAT!$B:$B,$A80) -> 359 | K80: =SUMIFS(SILOSTMAT!$C:$C,SILOSTMAT!$A:$A,K$1,SILOSTMAT!$B:$B,$A80) -> 1524 | L80: =SUMIFS(SILOSTMAT!$C:$C,SILOSTMAT!$A:$A,L$1,SILOSTMAT!$B:$B,$A80) -> 334 | M80: =SUMIFS(SILOSTMAT!$C:$C,SILOSTMAT!$A:$A,M$1,SILOSTMAT!$B:$B,$A80) -> 102 | N80: =SUMIFS(SILOSTMAT!$C:$C,SILOSTMAT!$A:$A,N$1,SILOSTMAT!$B:$B,$A80) -> 414 | O80: =SUMIFS(SILOSTMAT!$C:$C,SILOSTMAT!$A:$A,O$1,SILOSTMAT!$B:$B,$A80) -> 1354 | P80: =SUMIFS(SILOSTMAT!$C:$C,SILOSTMAT!$A:$A,P$1,SILOSTMAT!$B:$B,$A80) -> 220 | Q80: =SUMIFS(SILOSTMAT!$C:$C,SILOSTMAT!$A:$A,Q$1,SILOSTMAT!$B:$B,$A80) -> 268 | R80: =SUMIFS(SILOSTMAT!$C:$C,SILOSTMAT!$A:$A,R$1,SILOSTMAT!$B:$B,$A80) -> 5413
A81: H2102 | B81: Conduite d'équipement de production alimentaire | C81: =VLOOKUP(A81,'nomenclature rome'!A:C,3,FALSE) -> Agriculture, Agroalimentaire, Forêt | D81: =IF(C81='DONNEES INFOGRAPHIES'!$B$6,1,0) -> 0 | E81: =VLOOKUP(A81,A:R,'DONNEES INFOGRAPHIES'!$L$9+4,FALSE) -> 5229 | F81: =SUMIFS(SILOSTMAT!$C:$C,SILOSTMAT!$A:$A,F$1,SILOSTMAT!$B:$B,$A81) -> 376 | G81: =SUMIFS(SILOSTMAT!$C:$C,SILOSTMAT!$A:$A,G$1,SILOSTMAT!$B:$B,$A81) -> 223 | H81: =SUMIFS(SILOSTMAT!$C:$C,SILOSTMAT!$A:$A,H$1,SILOSTMAT!$B:$B,$A81) -> 262 | I81: =SUMIFS(SILOSTMAT!$C:$C,SILOSTMAT!$A:$A,I$1,SILOSTMAT!$B:$B,$A81) -> 76 | J81: =SUMIFS(SILOSTMAT!$C:$C,SILOSTMAT!$A:$A,J$1,SILOSTMAT!$B:$B,$A81) -> 1013 | K81: =SUMIFS(SILOSTMAT!$C:$C,SILOSTMAT!$A:$A,K$1,SILOSTMAT!$B:$B,$A81) -> 566 | L81: =SUMIFS(SILOSTMAT!$C:$C,SILOSTMAT!$A:$A,L$1,SILOSTMAT!$B:$B,$A81) -> 632 | M81: =SUMIFS(SILOSTMAT!$C:$C,SILOSTMAT!$A:$A,M$1,SILOSTMAT!$B:$B,$A81) -> 319 | N81: =SUMIFS(SILOSTMAT!$C:$C,SILOSTMAT!$A:$A,N$1,SILOSTMAT!$B:$B,$A81) -> 440 | O81: =SUMIFS(SILOSTMAT!$C:$C,SILOSTMAT!$A:$A,O$1,SILOSTMAT!$B:$B,$A81) -> 777 | P81: =SUMIFS(SILOSTMAT!$C:$C,SILOSTMAT!$A:$A,P$1,SILOSTMAT!$B:$B,$A81) -> 260 | Q81: =SUMIFS(SILOSTMAT!$C:$C,SILOSTMAT!$A:$A,Q$1,SILOSTMAT!$B:$B,$A81) -> 285 | R81: =SUMIFS(SILOSTMAT!$C:$C,SILOSTMAT!$A:$A,R$1,SILOSTMAT!$B:$B,$A81) -> 5229
A82: J1506 | B82: Infirmier / infirmière en soins généraux (ide) | C82: =VLOOKUP(A82,'nomenclature rome'!A:C,3,FALSE) -> Santé | D82: =IF(C82='DONNEES INFOGRAPHIES'!$B$6,1,0) -> 0 | E82: =VLOOKUP(A82,A:R,'DONNEES INFOGRAPHIES'!$L$9+4,FALSE) -> 5068 | F82: =SUMIFS(SILOSTMAT!$C:$C,SILOSTMAT!$A:$A,F$1,SILOSTMAT!$B:$B,$A82) -> 319 | G82: =SUMIFS(SILOSTMAT!$C:$C,SILOSTMAT!$A:$A,G$1,SILOSTMAT!$B:$B,$A82) -> 212 | H82: =SUMIFS(SILOSTMAT!$C:$C,SILOSTMAT!$A:$A,H$1,SILOSTMAT!$B:$B,$A82) -> 322 | I82: =SUMIFS(SILOSTMAT!$C:$C,SILOSTMAT!$A:$A,I$1,SILOSTMAT!$B:$B,$A82) -> 197 | J82: =SUMIFS(SILOSTMAT!$C:$C,SILOSTMAT!$A:$A,J$1,SILOSTMAT!$B:$B,$A82) -> 331 | K82: =SUMIFS(SILOSTMAT!$C:$C,SILOSTMAT!$A:$A,K$1,SILOSTMAT!$B:$B,$A82) -> 581 | L82: =SUMIFS(SILOSTMAT!$C:$C,SILOSTMAT!$A:$A,L$1,SILOSTMAT!$B:$B,$A82) -> 275 | M82: =SUMIFS(SILOSTMAT!$C:$C,SILOSTMAT!$A:$A,M$1,SILOSTMAT!$B:$B,$A82) -> 133 | N82: =SUMIFS(SILOSTMAT!$C:$C,SILOSTMAT!$A:$A,N$1,SILOSTMAT!$B:$B,$A82) -> 461 | O82: =SUMIFS(SILOSTMAT!$C:$C,SILOSTMAT!$A:$A,O$1,SILOSTMAT!$B:$B,$A82) -> 1456 | P82: =SUMIFS(SILOSTMAT!$C:$C,SILOSTMAT!$A:$A,P$1,SILOSTMAT!$B:$B,$A82) -> 233 | Q82: =SUMIFS(SILOSTMAT!$C:$C,SILOSTMAT!$A:$A,Q$1,SILOSTMAT!$B:$B,$A82) -> 548 | R82: =SUMIFS(SILOSTMAT!$C:$C,SILOSTMAT!$A:$A,R$1,SILOSTMAT!$B:$B,$A82) -> 5068
A83: G1203 | B83: Animation de loisirs auprès d'enfants ou d'adolescents | C83: =VLOOKUP(A83,'nomenclature rome'!A:C,3,FALSE) -> Sport, Montagne, Tourisme | D83: =IF(C83='DONNEES INFOGRAPHIES'!$B$6,1,0) -> 0 | E83: =VLOOKUP(A83,A:R,'DONNEES INFOGRAPHIES'!$L$9+4,FALSE) -> 4929 | F83: =SUMIFS(SILOSTMAT!$C:$C,SILOSTMAT!$A:$A,F$1,SILOSTMAT!$B:$B,$A83) -> 440 | G83: =SUMIFS(SILOSTMAT!$C:$C,SILOSTMAT!$A:$A,G$1,SILOSTMAT!$B:$B,$A83) -> 86 | H83: =SUMIFS(SILOSTMAT!$C:$C,SILOSTMAT!$A:$A,H$1,SILOSTMAT!$B:$B,$A83) -> 163 | I83: =SUMIFS(SILOSTMAT!$C:$C,SILOSTMAT!$A:$A,I$1,SILOSTMAT!$B:$B,$A83) -> 37 | J83: =SUMIFS(SILOSTMAT!$C:$C,SILOSTMAT!$A:$A,J$1,SILOSTMAT!$B:$B,$A83) -> 342 | K83: =SUMIFS(SILOSTMAT!$C:$C,SILOSTMAT!$A:$A,K$1,SILOSTMAT!$B:$B,$A83) -> 748 | L83: =SUMIFS(SILOSTMAT!$C:$C,SILOSTMAT!$A:$A,L$1,SILOSTMAT!$B:$B,$A83) -> 373 | M83: =SUMIFS(SILOSTMAT!$C:$C,SILOSTMAT!$A:$A,M$1,SILOSTMAT!$B:$B,$A83) -> 107 | N83: =SUMIFS(SILOSTMAT!$C:$C,SILOSTMAT!$A:$A,N$1,SILOSTMAT!$B:$B,$A83) -> 308 | O83: =SUMIFS(SILOSTMAT!$C:$C,SILOSTMAT!$A:$A,O$1,SILOSTMAT!$B:$B,$A83) -> 999 | P83: =SUMIFS(SILOSTMAT!$C:$C,SILOSTMAT!$A:$A,P$1,SILOSTMAT!$B:$B,$A83) -> 506 | Q83: =SUMIFS(SILOSTMAT!$C:$C,SILOSTMAT!$A:$A,Q$1,SILOSTMAT!$B:$B,$A83) -> 820 | R83: =SUMIFS(SILOSTMAT!$C:$C,SILOSTMAT!$A:$A,R$1,SILOSTMAT!$B:$B,$A83) -> 4929
A84: N1105 | B84: Manutention manuelle de charges | C84: =VLOOKUP(A84,'nomenclature rome'!A:C,3,FALSE) -> Mobilité, systèmes de transport intelligents | D84: =IF(C84='DONNEES INFOGRAPHIES'!$B$6,1,0) -> 0 | E84: =VLOOKUP(A84,A:R,'DONNEES INFOGRAPHIES'!$L$9+4,FALSE) -> 4706 | F84: =SUMIFS(SILOSTMAT!$C:$C,SILOSTMAT!$A:$A,F$1,SILOSTMAT!$B:$B,$A84) -> 511 | G84: =SUMIFS(SILOSTMAT!$C:$C,SILOSTMAT!$A:$A,G$1,SILOSTMAT!$B:$B,$A84) -> 170 | H84: =SUMIFS(SILOSTMAT!$C:$C,SILOSTMAT!$A:$A,H$1,SILOSTMAT!$B:$B,$A84) -> 105 | I84: =SUMIFS(SILOSTMAT!$C:$C,SILOSTMAT!$A:$A,I$1,SILOSTMAT!$B:$B,$A84) -> 67 | J84: =SUMIFS(SILOSTMAT!$C:$C,SILOSTMAT!$A:$A,J$1,SILOSTMAT!$B:$B,$A84) -> 372 | K84: =SUMIFS(SILOSTMAT!$C:$C,SILOSTMAT!$A:$A,K$1,SILOSTMAT!$B:$B,$A84) -> 737 | L84: =SUMIFS(SILOSTMAT!$C:$C,SILOSTMAT!$A:$A,L$1,SILOSTMAT!$B:$B,$A84) -> 280 | M84: =SUMIFS(SILOSTMAT!$C:$C,SILOSTMAT!$A:$A,M$1,SILOSTMAT!$B:$B,$A84) -> 204 | N84: =SUMIFS(SILOSTMAT!$C:$C,SILOSTMAT!$A:$A,N$1,SILOSTMAT!$B:$B,$A84) -> 487 | O84: =SUMIFS(SILOSTMAT!$C:$C,SILOSTMAT!$A:$A,O$1,SILOSTMAT!$B:$B,$A84) -> 1243 | P84: =SUMIFS(SILOSTMAT!$C:$C,SILOSTMAT!$A:$A,P$1,SILOSTMAT!$B:$B,$A84) -> 255 | Q84: =SUMIFS(SILOSTMAT!$C:$C,SILOSTMAT!$A:$A,Q$1,SILOSTMAT!$B:$B,$A84) -> 275 | R84: =SUMIFS(SILOSTMAT!$C:$C,SILOSTMAT!$A:$A,R$1,SILOSTMAT!$B:$B,$A84) -> 4706
A85: K2107 | B85: Enseignement général du second degré | C85: =VLOOKUP(A85,'nomenclature rome'!A:C,3,FALSE) ->  | D85: =IF(C85='DONNEES INFOGRAPHIES'!$B$6,1,0) -> 0 | E85: =VLOOKUP(A85,A:R,'DONNEES INFOGRAPHIES'!$L$9+4,FALSE) -> 4485 | F85: =SUMIFS(SILOSTMAT!$C:$C,SILOSTMAT!$A:$A,F$1,SILOSTMAT!$B:$B,$A85) -> 100 | G85: =SUMIFS(SILOSTMAT!$C:$C,SILOSTMAT!$A:$A,G$1,SILOSTMAT!$B:$B,$A85) -> 34 | H85: =SUMIFS(SILOSTMAT!$C:$C,SILOSTMAT!$A:$A,H$1,SILOSTMAT!$B:$B,$A85) -> 93 | I85: =SUMIFS(SILOSTMAT!$C:$C,SILOSTMAT!$A:$A,I$1,SILOSTMAT!$B:$B,$A85) -> 20 | J85: =SUMIFS(SILOSTMAT!$C:$C,SILOSTMAT!$A:$A,J$1,SILOSTMAT!$B:$B,$A85) -> 120 | K85: =SUMIFS(SILOSTMAT!$C:$C,SILOSTMAT!$A:$A,K$1,SILOSTMAT!$B:$B,$A85) -> 1027 | L85: =SUMIFS(SILOSTMAT!$C:$C,SILOSTMAT!$A:$A,L$1,SILOSTMAT!$B:$B,$A85) -> 205 | M85: =SUMIFS(SILOSTMAT!$C:$C,SILOSTMAT!$A:$A,M$1,SILOSTMAT!$B:$B,$A85) -> 54 | N85: =SUMIFS(SILOSTMAT!$C:$C,SILOSTMAT!$A:$A,N$1,SILOSTMAT!$B:$B,$A85) -> 524 | O85: =SUMIFS(SILOSTMAT!$C:$C,SILOSTMAT!$A:$A,O$1,SILOSTMAT!$B:$B,$A85) -> 1908 | P85: =SUMIFS(SILOSTMAT!$C:$C,SILOSTMAT!$A:$A,P$1,SILOSTMAT!$B:$B,$A85) -> 133 | Q85: =SUMIFS(SILOSTMAT!$C:$C,SILOSTMAT!$A:$A,Q$1,SILOSTMAT!$B:$B,$A85) -> 267 | R85: =SUMIFS(SILOSTMAT!$C:$C,SILOSTMAT!$A:$A,R$1,SILOSTMAT!$B:$B,$A85) -> 4485
A86: D1401 | B86: Assistant commercial / assistante commerciale | C86: =VLOOKUP(A86,'nomenclature rome'!A:C,3,FALSE) -> Force de vente | D86: =IF(C86='DONNEES INFOGRAPHIES'!$B$6,1,0) -> 0 | E86: =VLOOKUP(A86,A:R,'DONNEES INFOGRAPHIES'!$L$9+4,FALSE) -> 4222 | F86: =SUMIFS(SILOSTMAT!$C:$C,SILOSTMAT!$A:$A,F$1,SILOSTMAT!$B:$B,$A86) -> 298 | G86: =SUMIFS(SILOSTMAT!$C:$C,SILOSTMAT!$A:$A,G$1,SILOSTMAT!$B:$B,$A86) -> 52 | H86: =SUMIFS(SILOSTMAT!$C:$C,SILOSTMAT!$A:$A,H$1,SILOSTMAT!$B:$B,$A86) -> 61 | I86: =SUMIFS(SILOSTMAT!$C:$C,SILOSTMAT!$A:$A,I$1,SILOSTMAT!$B:$B,$A86) -> 19 | J86: =SUMIFS(SILOSTMAT!$C:$C,SILOSTMAT!$A:$A,J$1,SILOSTMAT!$B:$B,$A86) -> 235 | K86: =SUMIFS(SILOSTMAT!$C:$C,SILOSTMAT!$A:$A,K$1,SILOSTMAT!$B:$B,$A86) -> 744 | L86: =SUMIFS(SILOSTMAT!$C:$C,SILOSTMAT!$A:$A,L$1,SILOSTMAT!$B:$B,$A86) -> 295 | M86: =SUMIFS(SILOSTMAT!$C:$C,SILOSTMAT!$A:$A,M$1,SILOSTMAT!$B:$B,$A86) -> 70 | N86: =SUMIFS(SILOSTMAT!$C:$C,SILOSTMAT!$A:$A,N$1,SILOSTMAT!$B:$B,$A86) -> 192 | O86: =SUMIFS(SILOSTMAT!$C:$C,SILOSTMAT!$A:$A,O$1,SILOSTMAT!$B:$B,$A86) -> 1681 | P86: =SUMIFS(SILOSTMAT!$C:$C,SILOSTMAT!$A:$A,P$1,SILOSTMAT!$B:$B,$A86) -> 258 | Q86: =SUMIFS(SILOSTMAT!$C:$C,SILOSTMAT!$A:$A,Q$1,SILOSTMAT!$B:$B,$A86) -> 317 | R86: =SUMIFS(SILOSTMAT!$C:$C,SILOSTMAT!$A:$A,R$1,SILOSTMAT!$B:$B,$A86) -> 4222
A87: D1505 | B87: Personnel de caisse | C87: =VLOOKUP(A87,'nomenclature rome'!A:C,3,FALSE) ->  | D87: =IF(C87='DONNEES INFOGRAPHIES'!$B$6,1,0) -> 0 | E87: =VLOOKUP(A87,A:R,'DONNEES INFOGRAPHIES'!$L$9+4,FALSE) -> 3795 | F87: =SUMIFS(SILOSTMAT!$C:$C,SILOSTMAT!$A:$A,F$1,SILOSTMAT!$B:$B,$A87) -> 236 | G87: =SUMIFS(SILOSTMAT!$C:$C,SILOSTMAT!$A:$A,G$1,SILOSTMAT!$B:$B,$A87) -> 55 | H87: =SUMIFS(SILOSTMAT!$C:$C,SILOSTMAT!$A:$A,H$1,SILOSTMAT!$B:$B,$A87) -> 81 | I87: =SUMIFS(SILOSTMAT!$C:$C,SILOSTMAT!$A:$A,I$1,SILOSTMAT!$B:$B,$A87) -> 55 | J87: =SUMIFS(SILOSTMAT!$C:$C,SILOSTMAT!$A:$A,J$1,SILOSTMAT!$B:$B,$A87) -> 117 | K87: =SUMIFS(SILOSTMAT!$C:$C,SILOSTMAT!$A:$A,K$1,SILOSTMAT!$B:$B,$A87) -> 682 | L87: =SUMIFS(SILOSTMAT!$C:$C,SILOSTMAT!$A:$A,L$1,SILOSTMAT!$B:$B,$A87) -> 130 | M87: =SUMIFS(SILOSTMAT!$C:$C,SILOSTMAT!$A:$A,M$1,SILOSTMAT!$B:$B,$A87) -> 78 | N87: =SUMIFS(SILOSTMAT!$C:$C,SILOSTMAT!$A:$A,N$1,SILOSTMAT!$B:$B,$A87) -> 215 | O87: =SUMIFS(SILOSTMAT!$C:$C,SILOSTMAT!$A:$A,O$1,SILOSTMAT!$B:$B,$A87) -> 1397 | P87: =SUMIFS(SILOSTMAT!$C:$C,SILOSTMAT!$A:$A,P$1,SILOSTMAT!$B:$B,$A87) -> 268 | Q87: =SUMIFS(SILOSTMAT!$C:$C,SILOSTMAT!$A:$A,Q$1,SILOSTMAT!$B:$B,$A87) -> 481 | R87: =SUMIFS(SILOSTMAT!$C:$C,SILOSTMAT!$A:$A,R$1,SILOSTMAT!$B:$B,$A87) -> 3795
A88: A1203 | B88: Aménagement et entretien des espaces verts | C88: =VLOOKUP(A88,'nomenclature rome'!A:C,3,FALSE) -> Agriculture, Agroalimentaire, Forêt | D88: =IF(C88='DONNEES INFOGRAPHIES'!$B$6,1,0) -> 0 | E88: =VLOOKUP(A88,A:R,'DONNEES INFOGRAPHIES'!$L$9+4,FALSE) -> 3723 | F88: =SUMIFS(SILOSTMAT!$C:$C,SILOSTMAT!$A:$A,F$1,SILOSTMAT!$B:$B,$A88) -> 225 | G88: =SUMIFS(SILOSTMAT!$C:$C,SILOSTMAT!$A:$A,G$1,SILOSTMAT!$B:$B,$A88) -> 82 | H88: =SUMIFS(SILOSTMAT!$C:$C,SILOSTMAT!$A:$A,H$1,SILOSTMAT!$B:$B,$A88) -> 86 | I88: =SUMIFS(SILOSTMAT!$C:$C,SILOSTMAT!$A:$A,I$1,SILOSTMAT!$B:$B,$A88) -> 14 | J88: =SUMIFS(SILOSTMAT!$C:$C,SILOSTMAT!$A:$A,J$1,SILOSTMAT!$B:$B,$A88) -> 185 | K88: =SUMIFS(SILOSTMAT!$C:$C,SILOSTMAT!$A:$A,K$1,SILOSTMAT!$B:$B,$A88) -> 580 | L88: =SUMIFS(SILOSTMAT!$C:$C,SILOSTMAT!$A:$A,L$1,SILOSTMAT!$B:$B,$A88) -> 239 | M88: =SUMIFS(SILOSTMAT!$C:$C,SILOSTMAT!$A:$A,M$1,SILOSTMAT!$B:$B,$A88) -> 51 | N88: =SUMIFS(SILOSTMAT!$C:$C,SILOSTMAT!$A:$A,N$1,SILOSTMAT!$B:$B,$A88) -> 256 | O88: =SUMIFS(SILOSTMAT!$C:$C,SILOSTMAT!$A:$A,O$1,SILOSTMAT!$B:$B,$A88) -> 1020 | P88: =SUMIFS(SILOSTMAT!$C:$C,SILOSTMAT!$A:$A,P$1,SILOSTMAT!$B:$B,$A88) -> 314 | Q88: =SUMIFS(SILOSTMAT!$C:$C,SILOSTMAT!$A:$A,Q$1,SILOSTMAT!$B:$B,$A88) -> 671 | R88: =SUMIFS(SILOSTMAT!$C:$C,SILOSTMAT!$A:$A,R$1,SILOSTMAT!$B:$B,$A88) -> 3723
A89: D1407 | B89: Technico-commercial / technico-commerciale | C89: =VLOOKUP(A89,'nomenclature rome'!A:C,3,FALSE) -> Force de vente | D89: =IF(C89='DONNEES INFOGRAPHIES'!$B$6,1,0) -> 0 | E89: =VLOOKUP(A89,A:R,'DONNEES INFOGRAPHIES'!$L$9+4,FALSE) -> 3708 | F89: =SUMIFS(SILOSTMAT!$C:$C,SILOSTMAT!$A:$A,F$1,SILOSTMAT!$B:$B,$A89) -> 235 | G89: =SUMIFS(SILOSTMAT!$C:$C,SILOSTMAT!$A:$A,G$1,SILOSTMAT!$B:$B,$A89) -> 34 | H89: =SUMIFS(SILOSTMAT!$C:$C,SILOSTMAT!$A:$A,H$1,SILOSTMAT!$B:$B,$A89) -> 49 | I89: =SUMIFS(SILOSTMAT!$C:$C,SILOSTMAT!$A:$A,I$1,SILOSTMAT!$B:$B,$A89) -> 9 | J89: =SUMIFS(SILOSTMAT!$C:$C,SILOSTMAT!$A:$A,J$1,SILOSTMAT!$B:$B,$A89) -> 199 | K89: =SUMIFS(SILOSTMAT!$C:$C,SILOSTMAT!$A:$A,K$1,SILOSTMAT!$B:$B,$A89) -> 458 | L89: =SUMIFS(SILOSTMAT!$C:$C,SILOSTMAT!$A:$A,L$1,SILOSTMAT!$B:$B,$A89) -> 317 | M89: =SUMIFS(SILOSTMAT!$C:$C,SILOSTMAT!$A:$A,M$1,SILOSTMAT!$B:$B,$A89) -> 44 | N89: =SUMIFS(SILOSTMAT!$C:$C,SILOSTMAT!$A:$A,N$1,SILOSTMAT!$B:$B,$A89) -> 136 | O89: =SUMIFS(SILOSTMAT!$C:$C,SILOSTMAT!$A:$A,O$1,SILOSTMAT!$B:$B,$A89) -> 1801 | P89: =SUMIFS(SILOSTMAT!$C:$C,SILOSTMAT!$A:$A,P$1,SILOSTMAT!$B:$B,$A89) -> 123 | Q89: =SUMIFS(SILOSTMAT!$C:$C,SILOSTMAT!$A:$A,Q$1,SILOSTMAT!$B:$B,$A89) -> 303 | R89: =SUMIFS(SILOSTMAT!$C:$C,SILOSTMAT!$A:$A,R$1,SILOSTMAT!$B:$B,$A89) -> 3708
A90: D1214 | B90: Vente en habillement et accessoires de la personne | C90: =VLOOKUP(A90,'nomenclature rome'!A:C,3,FALSE) -> Force de vente | D90: =IF(C90='DONNEES INFOGRAPHIES'!$B$6,1,0) -> 0 | E90: =VLOOKUP(A90,A:R,'DONNEES INFOGRAPHIES'!$L$9+4,FALSE) -> 3258 | F90: =SUMIFS(SILOSTMAT!$C:$C,SILOSTMAT!$A:$A,F$1,SILOSTMAT!$B:$B,$A90) -> 996 | G90: =SUMIFS(SILOSTMAT!$C:$C,SILOSTMAT!$A:$A,G$1,SILOSTMAT!$B:$B,$A90) -> 79 | H90: =SUMIFS(SILOSTMAT!$C:$C,SILOSTMAT!$A:$A,H$1,SILOSTMAT!$B:$B,$A90) -> 42 | I90: =SUMIFS(SILOSTMAT!$C:$C,SILOSTMAT!$A:$A,I$1,SILOSTMAT!$B:$B,$A90) -> 143 | J90: =SUMIFS(SILOSTMAT!$C:$C,SILOSTMAT!$A:$A,J$1,SILOSTMAT!$B:$B,$A90) -> 76 | K90: =SUMIFS(SILOSTMAT!$C:$C,SILOSTMAT!$A:$A,K$1,SILOSTMAT!$B:$B,$A90) -> 431 | L90: =SUMIFS(SILOSTMAT!$C:$C,SILOSTMAT!$A:$A,L$1,SILOSTMAT!$B:$B,$A90) -> 133 | M90: =SUMIFS(SILOSTMAT!$C:$C,SILOSTMAT!$A:$A,M$1,SILOSTMAT!$B:$B,$A90) -> 22 | N90: =SUMIFS(SILOSTMAT!$C:$C,SILOSTMAT!$A:$A,N$1,SILOSTMAT!$B:$B,$A90) -> 175 | O90: =SUMIFS(SILOSTMAT!$C:$C,SILOSTMAT!$A:$A,O$1,SILOSTMAT!$B:$B,$A90) -> 583 | P90: =SUMIFS(SILOSTMAT!$C:$C,SILOSTMAT!$A:$A,P$1,SILOSTMAT!$B:$B,$A90) -> 159 | Q90: =SUMIFS(SILOSTMAT!$C:$C,SILOSTMAT!$A:$A,Q$1,SILOSTMAT!$B:$B,$A90) -> 419 | R90: =SUMIFS(SILOSTMAT!$C:$C,SILOSTMAT!$A:$A,R$1,SILOSTMAT!$B:$B,$A90) -> 3258
